Workbook

Sheet Data Input Instructions (hidden)
A3: Worksheet ID | B3: Worksheet | C3: Input Data Notes
A4: 1 | B4: Data Current Rates | C4: R2 Service Charge should already be net of RRRP credit
A5: 1 | B5: Data Current Rates | C5: Demand billed RTSR should already be loss adjusted
A6: 2 | B6: Data Proposed Rates | C6: Mapped from Draft Rates file prepared for Claude
A7: 2 | B7: Data Proposed Rates | C7: Row 5 with header name TEXT is precedent to templates; changes to TEXT need to reflected in templates
A8: 2 | B8: Data Proposed Rates | C8: Templates are set up with 2-dimension vlookups so it will accommodate inserted/deleted rows and/or columns
A9: 3 | B9: Data Billing Quantities | C9: Row 4 with header name TEXT is precedent to templates; changes to TEXT need to reflected in templates
A10: 3 | B10: Data Billing Quantities | C10: Templates are set up with 2-dimension vlookups so it will accommodate inserted/deleted rows and/or columns
A11: 4 | B11: Data Pass Through | C11: Changes to Pass Through rates can be manually input on this sheet, which is precedent to the templates
A12: 4 | B12: Data Pass Through | C12: Links to templates from Column A TEXT; any changes in the TEXT of the charge names must be reflected in the templates
A13: 5 | B13: Data BI List | C13: Instruction Sheet for macro to create individual bill impact worksheets
A14: 5 | B14: Data BI List | C14: Need to MANUALLY update Test Year to appear as header on all bill impact worksheets
A15: 6 | B15: Data BI Summary | C15: This replaces the need for cell references in summary sheet, and displays value for totals so rows can be added to templates and worksheets without having to update the summary sheet
B16: Bill Impact Summary | C16: This file has 2 hidden columns needed to link to worksheets; see Col E and F

Sheet Data Current Rates (hidden)
A1: Current Dx Rates effective Jan 1 2018 (i.e. 2018 interim rates; 2017 approved with no riders)
A3: 1 | B3: 2 | C3: 3 | D3: 4 | E3: 5 | H3: 6 | I3: 7 | J3: 8 | K3: 9 | L3: 10 | M3: 11 | N3: 12
A4: Rate Class | B4: Fixed Charge ($/month) | C4: Current Variable Charge ($/kWh or $/kW) | D4: Current Foregone Revenue Riders Fixed ($/month) | E4: Current Volumetric Foregone Revenue Rider | F4: Fixed Charge + Fixed Foregone | G4: Volumetric Charge + Volumetric Foregone | H4: Current Def/VA rate rider Fixed ($/month) | I4: Current Def/VA rate rider Volumetric ($/kWh or $/kW) | J4: Vol VA Rider ($/kWh or $/kW) Non WMP | K4: Current Rate Rider for CBR (Non-WMP Class B) ($/kWh or $/kW) | L4: Current Rate Rider for Disposition of Global Adjustment (Non WMP, Non-RPP, Non-LDC, and Class B) ($/kWh) | M4: Current RTSR-NW ($/kWh or $/kW) | N4: Current RTSR-CONN ($/kWh or $/kW)
A5: Rate as shown on Bill Impact Sheet | B5: Service Charge | C5: Distribution Volumetric Charge | D5: Fixed Foregone Revenue Charge | E5: Volumetric Foregone Revenue Charge | F5: Fixed Service Charge | G5: Dx Volumetric Charge | H5: Fixed Deferral/Variance Account Rider (General) | I5: Volumetric Deferral/Variance Account Rider (General) | J5: Volumetric Deferral/Variance Account Rider (Sub-Account RSVA Wholesale Market Service Charge & RSVA Power) - ST only | K5: Volumetric Deferral/Variance Account Rider (Sub Account CBR) | L5: Volumetric Deferral/Variance Account Rider (Sub-Account Global Adjustment) | M5: Retail Transmission Rate – Network Service Rate | N5: Retail Transmission Rate – Line and Transformation Connection Service Rate
A6: UR | B6: =VLOOKUP($A6,'[1]Data Current Rates'!$A:$AX,MATCH(B$5,[1]!ProposedHeader,0),FALSE) -> 24.78 | C6: =VLOOKUP($A6,'[1]Data Current Rates'!$A:$AX,MATCH(C$5,[1]!ProposedHeader,0),FALSE) -> 0.0094 | D6: =VLOOKUP($A6,'[1]Data Current Rates'!$A:$AX,MATCH(D$5,[1]!ProposedHeader,0),FALSE) -> 0 | E6: =VLOOKUP($A6,'[1]Data Current Rates'!$A:$AX,MATCH(E$5,[1]!ProposedHeader,0),FALSE) -> 0 | F6: =ROUND(SUM(D6,B6),2) -> 24.78 | G6: =ROUND(SUM(C6,E6),4) -> 0.0094 | H6: =VLOOKUP($A6,'[1]Data Current Rates'!$A:$AX,MATCH(H$5,[1]!ProposedHeader,0),FALSE) -> 0 | I6: =VLOOKUP($A6,'[1]Data Current Rates'!$A:$AX,MATCH(I$5,[1]!ProposedHeader,0),FALSE) -> 0 | J6: =VLOOKUP($A6,'[1]Data Current Rates'!$A:$AX,MATCH(J$5,[1]!ProposedHeader,0),FALSE) -> 0 | K6: =VLOOKUP($A6,'[1]Data Current Rates'!$A:$AX,MATCH(K$5,[1]!ProposedHeader,0),FALSE) -> 0 | L6: =VLOOKUP($A6,'[1]Data Current Rates'!$A:$AX,MATCH(L$5,[1]!ProposedHeader,0),FALSE) -> 0 | M6: =VLOOKUP($A6,'[1]Data Current Rates'!$A:$AX,MATCH(M$5,[1]!ProposedHeader,0),FALSE) -> 0.0067 | N6: =VLOOKUP($A6,'[1]Data Current Rates'!$A:$AX,MATCH(N$5,[1]!ProposedHeader,0),FALSE) -> 0.0047
A7: R1 | B7: =VLOOKUP($A7,'[1]Data Current Rates'!$A:$AX,MATCH(B$5,[1]!ProposedHeader,0),FALSE) -> 33.77 | C7: =VLOOKUP($A7,'[1]Data Current Rates'!$A:$AX,MATCH(C$5,[1]!ProposedHeader,0),FALSE) -> 0.023 | D7: =VLOOKUP($A7,'[1]Data Current Rates'!$A:$AX,MATCH(D$5,[1]!ProposedHeader,0),FALSE) -> 0 | E7: =VLOOKUP($A7,'[1]Data Current Rates'!$A:$AX,MATCH(E$5,[1]!ProposedHeader,0),FALSE) -> 0 | F7: =ROUND(SUM(D7,B7),2) -> 33.77 | G7: =ROUND(SUM(C7,E7),4) -> 0.023 | H7: =VLOOKUP($A7,'[1]Data Current Rates'!$A:$AX,MATCH(H$5,[1]!ProposedHeader,0),FALSE) -> 0 | I7: =VLOOKUP($A7,'[1]Data Current Rates'!$A:$AX,MATCH(I$5,[1]!ProposedHeader,0),FALSE) -> 0 | J7: =VLOOKUP($A7,'[1]Data Current Rates'!$A:$AX,MATCH(J$5,[1]!ProposedHeader,0),FALSE) -> 0 | K7: =VLOOKUP($A7,'[1]Data Current Rates'!$A:$AX,MATCH(K$5,[1]!ProposedHeader,0),FALSE) -> 0 | L7: =VLOOKUP($A7,'[1]Data Current Rates'!$A:$AX,MATCH(L$5,[1]!ProposedHeader,0),FALSE) -> 0 | M7: =VLOOKUP($A7,'[1]Data Current Rates'!$A:$AX,MATCH(M$5,[1]!ProposedHeader,0),FALSE) -> 0.0064 | N7: =VLOOKUP($A7,'[1]Data Current Rates'!$A:$AX,MATCH(N$5,[1]!ProposedHeader,0),FALSE) -> 0.0047
A8: R2 | B8: =VLOOKUP($A8,'[1]Data Current Rates'!$A:$AX,MATCH(B$5,[1]!ProposedHeader,0),FALSE) -> 19.83 | C8: =VLOOKUP($A8,'[1]Data Current Rates'!$A:$AX,MATCH(C$5,[1]!ProposedHeader,0),FALSE) -> 0.0374 | D8: =VLOOKUP($A8,'[1]Data Current Rates'!$A:$AX,MATCH(D$5,[1]!ProposedHeader,0),FALSE) -> 0 | E8: =VLOOKUP($A8,'[1]Data Current Rates'!$A:$AX,MATCH(E$5,[1]!ProposedHeader,0),FALSE) -> 0 | F8: 19.83 | G8: 0.0374 | H8: =VLOOKUP($A8,'[1]Data Current Rates'!$A:$AX,MATCH(H$5,[1]!ProposedHeader,0),FALSE) -> 0 | I8: =VLOOKUP($A8,'[1]Data Current Rates'!$A:$AX,MATCH(I$5,[1]!ProposedHeader,0),FALSE) -> 0 | J8: =VLOOKUP($A8,'[1]Data Current Rates'!$A:$AX,MATCH(J$5,[1]!ProposedHeader,0),FALSE) -> 0 | K8: =VLOOKUP($A8,'[1]Data Current Rates'!$A:$AX,MATCH(K$5,[1]!ProposedHeader,0),FALSE) -> 0 | L8: =VLOOKUP($A8,'[1]Data Current Rates'!$A:$AX,MATCH(L$5,[1]!ProposedHeader,0),FALSE) -> 0 | M8: =VLOOKUP($A8,'[1]Data Current Rates'!$A:$AX,MATCH(M$5,[1]!ProposedHeader,0),FALSE) -> 0.0062 | N8: =VLOOKUP($A8,'[1]Data Current Rates'!$A:$AX,MATCH(N$5,[1]!ProposedHeader,0),FALSE) -> 0.0044
A9: Seasonal | B9: =VLOOKUP($A9,'[1]Data Current Rates'!$A:$AX,MATCH(B$5,[1]!ProposedHeader,0),FALSE) -> 36.28 | C9: =VLOOKUP($A9,'[1]Data Current Rates'!$A:$AX,MATCH(C$5,[1]!ProposedHeader,0),FALSE) -> 0.0635 | D9: =VLOOKUP($A9,'[1]Data Current Rates'!$A:$AX,MATCH(D$5,[1]!ProposedHeader,0),FALSE) -> 0 | E9: =VLOOKUP($A9,'[1]Data Current Rates'!$A:$AX,MATCH(E$5,[1]!ProposedHeader,0),FALSE) -> 0 | F9: 36.28 | G9: 0.0635 | H9: =VLOOKUP($A9,'[1]Data Current Rates'!$A:$AX,MATCH(H$5,[1]!ProposedHeader,0),FALSE) -> 0 | I9: =VLOOKUP($A9,'[1]Data Current Rates'!$A:$AX,MATCH(I$5,[1]!ProposedHeader,0),FALSE) -> 0 | J9: =VLOOKUP($A9,'[1]Data Current Rates'!$A:$AX,MATCH(J$5,[1]!ProposedHeader,0),FALSE) -> 0 | K9: =VLOOKUP($A9,'[1]Data Current Rates'!$A:$AX,MATCH(K$5,[1]!ProposedHeader,0),FALSE) -> 0 | L9: =VLOOKUP($A9,'[1]Data Current Rates'!$A:$AX,MATCH(L$5,[1]!ProposedHeader,0),FALSE) -> 0 | M9: =VLOOKUP($A9,'[1]Data Current Rates'!$A:$AX,MATCH(M$5,[1]!ProposedHeader,0),FALSE) -> 0.0051 | N9: =VLOOKUP($A9,'[1]Data Current Rates'!$A:$AX,MATCH(N$5,[1]!ProposedHeader,0),FALSE) -> 0.0042
A10: GSe | B10: =VLOOKUP($A10,'[1]Data Current Rates'!$A:$AX,MATCH(B$5,[1]!ProposedHeader,0),FALSE) -> 27.87 | C10: =VLOOKUP($A10,'[1]Data Current Rates'!$A:$AX,MATCH(C$5,[1]!ProposedHeader,0),FALSE) -> 0.056 | D10: =VLOOKUP($A10,'[1]Data Current Rates'!$A:$AX,MATCH(D$5,[1]!ProposedHeader,0),FALSE) -> 0 | E10: =VLOOKUP($A10,'[1]Data Current Rates'!$A:$AX,MATCH(E$5,[1]!ProposedHeader,0),FALSE) -> 0 | F10: 27.87 | G10: 0.056 | H10: =VLOOKUP($A10,'[1]Data Current Rates'!$A:$AX,MATCH(H$5,[1]!ProposedHeader,0),FALSE) -> 0 | I10: =VLOOKUP($A10,'[1]Data Current Rates'!$A:$AX,MATCH(I$5,[1]!ProposedHeader,0),FALSE) -> 0 | J10: =VLOOKUP($A10,'[1]Data Current Rates'!$A:$AX,MATCH(J$5,[1]!ProposedHeader,0),FALSE) -> 0 | K10: =VLOOKUP($A10,'[1]Data Current Rates'!$A:$AX,MATCH(K$5,[1]!ProposedHeader,0),FALSE) -> 0 | L10: =VLOOKUP($A10,'[1]Data Current Rates'!$A:$AX,MATCH(L$5,[1]!ProposedHeader,0),FALSE) -> 0 | M10: =VLOOKUP($A10,'[1]Data Current Rates'!$A:$AX,MATCH(M$5,[1]!ProposedHeader,0),FALSE) -> 0.0059 | N10: =VLOOKUP($A10,'[1]Data Current Rates'!$A:$AX,MATCH(N$5,[1]!ProposedHeader,0),FALSE) -> 0.0038
A11: UGe | B11: =VLOOKUP($A11,'[1]Data Current Rates'!$A:$AX,MATCH(B$5,[1]!ProposedHeader,0),FALSE) -> 23.3 | C11: =VLOOKUP($A11,'[1]Data Current Rates'!$A:$AX,MATCH(C$5,[1]!ProposedHeader,0),FALSE) -> 0.0262 | D11: =VLOOKUP($A11,'[1]Data Current Rates'!$A:$AX,MATCH(D$5,[1]!ProposedHeader,0),FALSE) -> 0 | E11: =VLOOKUP($A11,'[1]Data Current Rates'!$A:$AX,MATCH(E$5,[1]!ProposedHeader,0),FALSE) -> 0 | F11: 23.3 | G11: 0.0262 | H11: =VLOOKUP($A11,'[1]Data Current Rates'!$A:$AX,MATCH(H$5,[1]!ProposedHeader,0),FALSE) -> 0 | I11: =VLOOKUP($A11,'[1]Data Current Rates'!$A:$AX,MATCH(I$5,[1]!ProposedHeader,0),FALSE) -> 0 | J11: =VLOOKUP($A11,'[1]Data Current Rates'!$A:$AX,MATCH(J$5,[1]!ProposedHeader,0),FALSE) -> 0 | K11: =VLOOKUP($A11,'[1]Data Current Rates'!$A:$AX,MATCH(K$5,[1]!ProposedHeader,0),FALSE) -> 0 | L11: =VLOOKUP($A11,'[1]Data Current Rates'!$A:$AX,MATCH(L$5,[1]!ProposedHeader,0),FALSE) -> 0 | M11: =VLOOKUP($A11,'[1]Data Current Rates'!$A:$AX,MATCH(M$5,[1]!ProposedHeader,0),FALSE) -> 0.0064 | N11: =VLOOKUP($A11,'[1]Data Current Rates'!$A:$AX,MATCH(N$5,[1]!ProposedHeader,0),FALSE) -> 0.004
A12: St Lgt | B12: =VLOOKUP($A12,'[1]Data Current Rates'!$A:$AX,MATCH(B$5,[1]!ProposedHeader,0),FALSE) -> 4.25 | C12: =VLOOKUP($A12,'[1]Data Current Rates'!$A:$AX,MATCH(C$5,[1]!ProposedHeader,0),FALSE) -> 0.0924 | D12: =VLOOKUP($A12,'[1]Data Current Rates'!$A:$AX,MATCH(D$5,[1]!ProposedHeader,0),FALSE) -> 0 | E12: =VLOOKUP($A12,'[1]Data Current Rates'!$A:$AX,MATCH(E$5,[1]!ProposedHeader,0),FALSE) -> 0 | F12: 4.25 | G12: 0.0924 | H12: =VLOOKUP($A12,'[1]Data Current Rates'!$A:$AX,MATCH(H$5,[1]!ProposedHeader,0),FALSE) -> 0 | I12: =VLOOKUP($A12,'[1]Data Current Rates'!$A:$AX,MATCH(I$5,[1]!ProposedHeader,0),FALSE) -> 0 | J12: =VLOOKUP($A12,'[1]Data Current Rates'!$A:$AX,MATCH(J$5,[1]!ProposedHeader,0),FALSE) -> 0 | K12: =VLOOKUP($A12,'[1]Data Current Rates'!$A:$AX,MATCH(K$5,[1]!ProposedHeader,0),FALSE) -> 0 | L12: =VLOOKUP($A12,'[1]Data Current Rates'!$A:$AX,MATCH(L$5,[1]!ProposedHeader,0),FALSE) -> 0 | M12: =VLOOKUP($A12,'[1]Data Current Rates'!$A:$AX,MATCH(M$5,[1]!ProposedHeader,0),FALSE) -> 0.0045 | N12: =VLOOKUP($A12,'[1]Data Current Rates'!$A:$AX,MATCH(N$5,[1]!ProposedHeader,0),FALSE) -> 0.0027
A13: Sen Lgt | B13: =VLOOKUP($A13,'[1]Data Current Rates'!$A:$AX,MATCH(B$5,[1]!ProposedHeader,0),FALSE) -> 2.71 | C13: =VLOOKUP($A13,'[1]Data Current Rates'!$A:$AX,MATCH(C$5,[1]!ProposedHeader,0),FALSE) -> 0.1178 | D13: =VLOOKUP($A13,'[1]Data Current Rates'!$A:$AX,MATCH(D$5,[1]!ProposedHeader,0),FALSE) -> 0 | E13: =VLOOKUP($A13,'[1]Data Current Rates'!$A:$AX,MATCH(E$5,[1]!ProposedHeader,0),FALSE) -> 0 | F13: 2.71 | G13: 0.1178 | H13: =VLOOKUP($A13,'[1]Data Current Rates'!$A:$AX,MATCH(H$5,[1]!ProposedHeader,0),FALSE) -> 0 | I13: =VLOOKUP($A13,'[1]Data Current Rates'!$A:$AX,MATCH(I$5,[1]!ProposedHeader,0),FALSE) -> 0 | J13: =VLOOKUP($A13,'[1]Data Current Rates'!$A:$AX,MATCH(J$5,[1]!ProposedHeader,0),FALSE) -> 0 | K13: =VLOOKUP($A13,'[1]Data Current Rates'!$A:$AX,MATCH(K$5,[1]!ProposedHeader,0),FALSE) -> 0 | L13: =VLOOKUP($A13,'[1]Data Current Rates'!$A:$AX,MATCH(L$5,[1]!ProposedHeader,0),FALSE) -> 0 | M13: =VLOOKUP($A13,'[1]Data Current Rates'!$A:$AX,MATCH(M$5,[1]!ProposedHeader,0),FALSE) -> 0.0045 | N13: =VLOOKUP($A13,'[1]Data Current Rates'!$A:$AX,MATCH(N$5,[1]!ProposedHeader,0),FALSE) -> 0.0027
A14: USL | B14: =VLOOKUP($A14,'[1]Data Current Rates'!$A:$AX,MATCH(B$5,[1]!ProposedHeader,0),FALSE) -> 35.18 | C14: =VLOOKUP($A14,'[1]Data Current Rates'!$A:$AX,MATCH(C$5,[1]!CurrentHeader,0),FALSE) -> 0.0285 | D14: =VLOOKUP($A14,'[1]Data Current Rates'!$A:$AX,MATCH(D$5,[1]!ProposedHeader,0),FALSE) -> 0 | E14: =VLOOKUP($A14,'[1]Data Current Rates'!$A:$AX,MATCH(E$5,[1]!ProposedHeader,0),FALSE) -> 0 | F14: 35.18 | G14: 0.0285 | H14: =VLOOKUP($A14,'[1]Data Current Rates'!$A:$AX,MATCH(H$5,[1]!ProposedHeader,0),FALSE) -> 0 | I14: =VLOOKUP($A14,'[1]Data Current Rates'!$A:$AX,MATCH(I$5,[1]!ProposedHeader,0),FALSE) -> 0 | J14: =VLOOKUP($A14,'[1]Data Current Rates'!$A:$AX,MATCH(J$5,[1]!ProposedHeader,0),FALSE) -> 0 | K14: =VLOOKUP($A14,'[1]Data Current Rates'!$A:$AX,MATCH(K$5,[1]!ProposedHeader,0),FALSE) -> 0 | L14: =VLOOKUP($A14,'[1]Data Current Rates'!$A:$AX,MATCH(L$5,[1]!ProposedHeader,0),FALSE) -> 0 | M14: =VLOOKUP($A14,'[1]Data Current Rates'!$A:$AX,MATCH(M$5,[1]!ProposedHeader,0),FALSE) -> 0.0047 | N14: =VLOOKUP($A14,'[1]Data Current Rates'!$A:$AX,MATCH(N$5,[1]!ProposedHeader,0),FALSE) -> 0.0031
A15: GSd | B15: =VLOOKUP($A15,'[1]Data Current Rates'!$A:$AX,MATCH(B$5,[1]!ProposedHeader,0),FALSE) -> 89.48 | C15: =VLOOKUP($A15,'[1]Data Current Rates'!$A:$AX,MATCH(C$5,[1]!ProposedHeader,0),FALSE) -> 16.0236 | D15: =VLOOKUP($A15,'[1]Data Current Rates'!$A:$AX,MATCH(D$5,[1]!ProposedHeader,0),FALSE) -> 0 | E15: =VLOOKUP($A15,'[1]Data Current Rates'!$A:$AX,MATCH(E$5,[1]!ProposedHeader,0),FALSE) -> 0 | F15: 89.48 | G15: 16.0236 | H15: =VLOOKUP($A15,'[1]Data Current Rates'!$A:$AX,MATCH(H$5,[1]!ProposedHeader,0),FALSE) -> 0 | I15: =VLOOKUP($A15,'[1]Data Current Rates'!$A:$AX,MATCH(I$5,[1]!ProposedHeader,0),FALSE) -> 0 | J15: =VLOOKUP($A15,'[1]Data Current Rates'!$A:$AX,MATCH(J$5,[1]!ProposedHeader,0),FALSE) -> 0 | K15: =VLOOKUP($A15,'[1]Data Current Rates'!$A:$AX,MATCH(K$5,[1]!ProposedHeader,0),FALSE) -> 0 | L15: =VLOOKUP($A15,'[1]Data Current Rates'!$A:$AX,MATCH(L$5,[1]!ProposedHeader,0),FALSE) -> 0 | M15: =VLOOKUP($A15,'[1]Data Current Rates'!$A:$AX,MATCH(M$5,[1]!ProposedHeader,0),FALSE) -> 1.7027 | N15: =VLOOKUP($A15,'[1]Data Current Rates'!$A:$AX,MATCH(N$5,[1]!ProposedHeader,0),FALSE) -> 1.1398
A16: UGd | B16: =VLOOKUP($A16,'[1]Data Current Rates'!$A:$AX,MATCH(B$5,[1]!ProposedHeader,0),FALSE) -> 93.97 | C16: =VLOOKUP($A16,'[1]Data Current Rates'!$A:$AX,MATCH(C$5,[1]!ProposedHeader,0),FALSE) -> 9.1837 | D16: =VLOOKUP($A16,'[1]Data Current Rates'!$A:$AX,MATCH(D$5,[1]!ProposedHeader,0),FALSE) -> 0 | E16: =VLOOKUP($A16,'[1]Data Current Rates'!$A:$AX,MATCH(E$5,[1]!ProposedHeader,0),FALSE) -> 0 | F16: 93.97 | G16: 9.1837 | H16: =VLOOKUP($A16,'[1]Data Current Rates'!$A:$AX,MATCH(H$5,[1]!ProposedHeader,0),FALSE) -> 0 | I16: =VLOOKUP($A16,'[1]Data Current Rates'!$A:$AX,MATCH(I$5,[1]!ProposedHeader,0),FALSE) -> 0 | J16: =VLOOKUP($A16,'[1]Data Current Rates'!$A:$AX,MATCH(J$5,[1]!ProposedHeader,0),FALSE) -> 0 | K16: =VLOOKUP($A16,'[1]Data Current Rates'!$A:$AX,MATCH(K$5,[1]!ProposedHeader,0),FALSE) -> 0 | L16: =VLOOKUP($A16,'[1]Data Current Rates'!$A:$AX,MATCH(L$5,[1]!ProposedHeader,0),FALSE) -> 0 | M16: =VLOOKUP($A16,'[1]Data Current Rates'!$A:$AX,MATCH(M$5,[1]!ProposedHeader,0),FALSE) -> 2.1129 | N16: =VLOOKUP($A16,'[1]Data Current Rates'!$A:$AX,MATCH(N$5,[1]!ProposedHeader,0),FALSE) -> 1.3901
A17: Dgen | B17: =VLOOKUP($A17,'[1]Data Current Rates'!$A:$AX,MATCH(B$5,[1]!ProposedHeader,0),FALSE) -> 149.34 | C17: =VLOOKUP($A17,'[1]Data Current Rates'!$A:$AX,MATCH(C$5,[1]!ProposedHeader,0),FALSE) -> 7.0504 | D17: =VLOOKUP($A17,'[1]Data Current Rates'!$A:$AX,MATCH(D$5,[1]!ProposedHeader,0),FALSE) -> 0 | E17: =VLOOKUP($A17,'[1]Data Current Rates'!$A:$AX,MATCH(E$5,[1]!ProposedHeader,0),FALSE) -> 0 | F17: 149.34 | G17: 7.0504 | H17: =VLOOKUP($A17,'[1]Data Current Rates'!$A:$AX,MATCH(H$5,[1]!ProposedHeader,0),FALSE) -> 0 | I17: =VLOOKUP($A17,'[1]Data Current Rates'!$A:$AX,MATCH(I$5,[1]!ProposedHeader,0),FALSE) -> 0 | J17: =VLOOKUP($A17,'[1]Data Current Rates'!$A:$AX,MATCH(J$5,[1]!ProposedHeader,0),FALSE) -> 0 | K17: =VLOOKUP($A17,'[1]Data Current Rates'!$A:$AX,MATCH(K$5,[1]!ProposedHeader,0),FALSE) -> 0 | L17: =VLOOKUP($A17,'[1]Data Current Rates'!$A:$AX,MATCH(L$5,[1]!ProposedHeader,0),FALSE) -> 0 | M17: =VLOOKUP($A17,'[1]Data Current Rates'!$A:$AX,MATCH(M$5,[1]!ProposedHeader,0),FALSE) -> 0.5549 | N17: =VLOOKUP($A17,'[1]Data Current Rates'!$A:$AX,MATCH(N$5,[1]!ProposedHeader,0),FALSE) -> 0.3553
A18: ST | B18: =VLOOKUP($A18,'[1]Data Current Rates'!$A:$AX,MATCH(B$5,[1]!ProposedHeader,0),FALSE) -> 1256.56 | C18: =VLOOKUP($A18,'[1]Data Current Rates'!$A:$AX,MATCH(C$5,[1]!ProposedHeader,0),FALSE) -> 1.2052 | D18: =VLOOKUP($A18,'[1]Data Current Rates'!$A:$AX,MATCH(D$5,[1]!ProposedHeader,0),FALSE) -> 0 | E18: =VLOOKUP($A18,'[1]Data Current Rates'!$A:$AX,MATCH(E$5,[1]!ProposedHeader,0),FALSE) -> 0 | F18: 1256.56 | G18: 1.2052 | H18: =VLOOKUP($A18,'[1]Data Current Rates'!$A:$AX,MATCH(H$5,[1]!ProposedHeader,0),FALSE) -> 0 | I18: =VLOOKUP($A18,'[1]Data Current Rates'!$A:$AX,MATCH(I$5,[1]!ProposedHeader,0),FALSE) -> 0 | J18: =VLOOKUP($A18,'[1]Data Current Rates'!$A:$AX,MATCH(J$5,[1]!ProposedHeader,0),FALSE) -> 0 | K18: =VLOOKUP($A18,'[1]Data Current Rates'!$A:$AX,MATCH(K$5,[1]!ProposedHeader,0),FALSE) -> 0 | L18: =VLOOKUP($A18,'[1]Data Current Rates'!$A:$AX,MATCH(L$5,[1]!ProposedHeader,0),FALSE) -> 0 | M18: =VLOOKUP($A18,'[1]Data Current Rates'!$A:$AX,MATCH(M$5,[1]!ProposedHeader,0),FALSE) -> 3.3028 | N18: =VLOOKUP($A18,'[1]Data Current Rates'!$A:$AX,MATCH(N$5,[1]!ProposedHeader,0),FALSE) -> 2.606
A21: For ref: headers when base and foregone are not combined | B21: Service Charge | C21: Distribution Volumetric Charge | D21: Fixed Foregone Revenue Charge | E21: Volumetric Foregone Revenue Charge

Sheet Data Proposed Rates (hidden)
A1: 1. Rate Class-Specific Rates for Bill Impacts
A3: 1 | B3: 2 | C3: 3 | D3: 4 | E3: 5 | H3: 6 | I3: 7 | J3: 8 | K3: 9 | L3: 10 | M3: 11 | N3: 12
A4: Rate Class | B4: Proposed Fixed Charge ($/month) | C4: Proposed Variable Charge ($/kWh or $/kW) | D4: Proposed Foregone Revenue Charge Fixed ($/month) | E4: Proposed Volumetric Foregone Revenue Charge | F4: Fixed Charge + Fixed Foregone | G4: Volumetric Charge + Volumetric Foregone | H4: Proposed Def/VA rate rider Fixed ($/month) | I4: Proposed Def/VA rate rider Volumetric($/kWh or $/kW) | J4: Vol VA Rider ($/kWh or $/kW) Non WMP **ST ONLY** | K4: Proposed Rate Rider for CBR (Non-WMP Class B) ($/kWh or $/kW) | L4: Proposed Rate Rider for Disposition of Global Adjustment (Non WMP, Non-RPP, Non-LDC, and Class B) ($/kWh) | M4: Proposed RTSR-NW ($/kWh or $/kW) | N4: Proposed RTSR-CONN ($/kWh or $/kW)
A5: Rate as shown on Bill Impact Sheet | B5: Service Charge | C5: Distribution Volumetric Charge | D5: Fixed Foregone Revenue Charge | E5: Volumetric Foregone Revenue Charge | F5: Fixed Service Charge | G5: Dx Volumetric Charge | H5: Fixed Deferral/Variance Account Rider (General) | I5: Volumetric Deferral/Variance Account Rider (General) | J5: Volumetric Deferral/Variance Account Rider (Sub-Account RSVA Wholesale Market Service Charge & RSVA Power) - ST only | K5: Volumetric Deferral/Variance Account Rider (Sub Account CBR) | L5: Volumetric Deferral/Variance Account Rider (Sub-Account Global Adjustment) | M5: Retail Transmission Rate – Network Service Rate | N5: Retail Transmission Rate – Line and Transformation Connection Service Rate
A6: Rounding Factor | B6: 2 | C6: 4 | D6: 2 | E6: 4 | H6: 2 | I6: 4 | K6: 4 | L6: 4 | M6: 4 | N6: 4
A7: UR | B7: =ROUND(VLOOKUP($A7,'[2]Proposed Rates'!$A:$AY,MATCH(B$5,'[2]Proposed Rates'!$2:$2,0),FALSE),B$6) -> 28.63 | C7: =ROUND(VLOOKUP($A7,'[2]Proposed Rates'!$A:$AY,MATCH(C$5,'[2]Proposed Rates'!$2:$2,0),FALSE),C$6) -> 0.0075 | D7: =ROUND(VLOOKUP($A7,'[2]Proposed Rates'!$A:$AY,MATCH(D$5,'[2]Proposed Rates'!$2:$2,0),FALSE),D$6) -> 1.46 | E7: =ROUND(VLOOKUP($A7,'[2]Proposed Rates'!$A:$AY,MATCH(E$5,'[2]Proposed Rates'!$2:$2,0),FALSE),E$6) -> 0 | F7: =ROUND(SUM(B7,D7),2) -> 30.09 | G7: =ROUND(SUM(C7,E7),4) -> 0.0075 | H7: =ROUND(VLOOKUP($A7,'[2]Proposed Rates'!$A:$AY,MATCH(H$5,'[2]Proposed Rates'!$2:$2,0),FALSE),H$6) -> 0.05 | I7: =ROUND(VLOOKUP($A7,'[2]Proposed Rates'!$A:$AY,MATCH(I$5,'[2]Proposed Rates'!$2:$2,0),FALSE),I$6) -> -0.0008 | M7: =ROUND(VLOOKUP($A7,'[2]Proposed Rates'!$A:$AY,MATCH(M$5,'[2]Proposed Rates'!$2:$2,0),FALSE),M$6) -> 0.0084 | N7: =ROUND(VLOOKUP($A7,'[2]Proposed Rates'!$A:$AY,MATCH(N$5,'[2]Proposed Rates'!$2:$2,0),FALSE),N$6) -> 0.0074
A8: R1 | B8: =ROUND(VLOOKUP($A8,'[2]Proposed Rates'!$A:$AY,MATCH(B$5,'[2]Proposed Rates'!$2:$2,0),FALSE),B$6) -> 38.74 | C8: =ROUND(VLOOKUP($A8,'[2]Proposed Rates'!$A:$AY,MATCH(C$5,'[2]Proposed Rates'!$2:$2,0),FALSE),C$6) -> 0.0222 | D8: =ROUND(VLOOKUP($A8,'[2]Proposed Rates'!$A:$AY,MATCH(D$5,'[2]Proposed Rates'!$2:$2,0),FALSE),D$6) -> 1.71 | E8: =ROUND(VLOOKUP($A8,'[2]Proposed Rates'!$A:$AY,MATCH(E$5,'[2]Proposed Rates'!$2:$2,0),FALSE),E$6) -> 0.0009 | F8: =ROUND(SUM(B8,D8),2) -> 40.45 | G8: =ROUND(SUM(C8,E8),4) -> 0.0231 | H8: =ROUND(VLOOKUP($A8,'[2]Proposed Rates'!$A:$AY,MATCH(H$5,'[2]Proposed Rates'!$2:$2,0),FALSE),H$6) -> 0.04 | I8: =ROUND(VLOOKUP($A8,'[2]Proposed Rates'!$A:$AY,MATCH(I$5,'[2]Proposed Rates'!$2:$2,0),FALSE),I$6) -> -0.0008 | M8: =ROUND(VLOOKUP($A8,'[2]Proposed Rates'!$A:$AY,MATCH(M$5,'[2]Proposed Rates'!$2:$2,0),FALSE),M$6) -> 0.0078 | N8: =ROUND(VLOOKUP($A8,'[2]Proposed Rates'!$A:$AY,MATCH(N$5,'[2]Proposed Rates'!$2:$2,0),FALSE),N$6) -> 0.007
A9: R2 | B9: =ROUND(VLOOKUP($A9,'[2]Proposed Rates'!$A:$AY,MATCH(B$5,'[2]Proposed Rates'!$2:$2,0),FALSE),B$6)-'Data Pass Through'!C4 -> 31.35 | C9: =ROUND(VLOOKUP($A9,'[2]Proposed Rates'!$A:$AY,MATCH(C$5,'[2]Proposed Rates'!$2:$2,0),FALSE),C$6) -> 0.0356 | D9: =ROUND(VLOOKUP($A9,'[2]Proposed Rates'!$A:$AY,MATCH(D$5,'[2]Proposed Rates'!$2:$2,0),FALSE),D$6) -> 4.37 | E9: =ROUND(VLOOKUP($A9,'[2]Proposed Rates'!$A:$AY,MATCH(E$5,'[2]Proposed Rates'!$2:$2,0),FALSE),E$6) -> 0.0011 | F9: 35.72 | G9: 0.0367 | H9: =ROUND(VLOOKUP($A9,'[2]Proposed Rates'!$A:$AY,MATCH(H$5,'[2]Proposed Rates'!$2:$2,0),FALSE),H$6) -> -0.03 | I9: =ROUND(VLOOKUP($A9,'[2]Proposed Rates'!$A:$AY,MATCH(I$5,'[2]Proposed Rates'!$2:$2,0),FALSE),I$6) -> -0.0008 | M9: =ROUND(VLOOKUP($A9,'[2]Proposed Rates'!$A:$AY,MATCH(M$5,'[2]Proposed Rates'!$2:$2,0),FALSE),M$6) -> 0.0073 | N9: =ROUND(VLOOKUP($A9,'[2]Proposed Rates'!$A:$AY,MATCH(N$5,'[2]Proposed Rates'!$2:$2,0),FALSE),N$6) -> 0.0066
A10: Seasonal | B10: =ROUND(VLOOKUP($A10,'[2]Proposed Rates'!$A:$AY,MATCH(B$5,'[2]Proposed Rates'!$2:$2,0),FALSE),B$6) -> 39.04 | C10: =ROUND(VLOOKUP($A10,'[2]Proposed Rates'!$A:$AY,MATCH(C$5,'[2]Proposed Rates'!$2:$2,0),FALSE),C$6) -> 0.069 | D10: =ROUND(VLOOKUP($A10,'[2]Proposed Rates'!$A:$AY,MATCH(D$5,'[2]Proposed Rates'!$2:$2,0),FALSE),D$6) -> 1.13 | E10: =ROUND(VLOOKUP($A10,'[2]Proposed Rates'!$A:$AY,MATCH(E$5,'[2]Proposed Rates'!$2:$2,0),FALSE),E$6) -> 0.005 | F10: 40.17 | G10: 0.074 | H10: =ROUND(VLOOKUP($A10,'[2]Proposed Rates'!$A:$AY,MATCH(H$5,'[2]Proposed Rates'!$2:$2,0),FALSE),H$6) -> 0.03 | I10: =ROUND(VLOOKUP($A10,'[2]Proposed Rates'!$A:$AY,MATCH(I$5,'[2]Proposed Rates'!$2:$2,0),FALSE),I$6) -> -0.0009 | M10: =ROUND(VLOOKUP($A10,'[2]Proposed Rates'!$A:$AY,MATCH(M$5,'[2]Proposed Rates'!$2:$2,0),FALSE),M$6) -> 0.0061 | N10: =ROUND(VLOOKUP($A10,'[2]Proposed Rates'!$A:$AY,MATCH(N$5,'[2]Proposed Rates'!$2:$2,0),FALSE),N$6) -> 0.0059
A11: GSe | B11: =ROUND(VLOOKUP($A11,'[2]Proposed Rates'!$A:$AY,MATCH(B$5,'[2]Proposed Rates'!$2:$2,0),FALSE),B$6) -> 31.14 | C11: =ROUND(VLOOKUP($A11,'[2]Proposed Rates'!$A:$AY,MATCH(C$5,'[2]Proposed Rates'!$2:$2,0),FALSE),C$6) -> 0.06 | D11: =ROUND(VLOOKUP($A11,'[2]Proposed Rates'!$A:$AY,MATCH(D$5,'[2]Proposed Rates'!$2:$2,0),FALSE),D$6) -> 2.34 | E11: =ROUND(VLOOKUP($A11,'[2]Proposed Rates'!$A:$AY,MATCH(E$5,'[2]Proposed Rates'!$2:$2,0),FALSE),E$6) -> 0.0022 | F11: 33.48 | G11: 0.0622 | H11: =ROUND(VLOOKUP($A11,'[2]Proposed Rates'!$A:$AY,MATCH(H$5,'[2]Proposed Rates'!$2:$2,0),FALSE),H$6) -> 0.03 | I11: =ROUND(VLOOKUP($A11,'[2]Proposed Rates'!$A:$AY,MATCH(I$5,'[2]Proposed Rates'!$2:$2,0),FALSE),I$6) -> -0.0008 | M11: =ROUND(VLOOKUP($A11,'[2]Proposed Rates'!$A:$AY,MATCH(M$5,'[2]Proposed Rates'!$2:$2,0),FALSE),M$6) -> 0.0061 | N11: =ROUND(VLOOKUP($A11,'[2]Proposed Rates'!$A:$AY,MATCH(N$5,'[2]Proposed Rates'!$2:$2,0),FALSE),N$6) -> 0.0054
A12: UGe | B12: =ROUND(VLOOKUP($A12,'[2]Proposed Rates'!$A:$AY,MATCH(B$5,'[2]Proposed Rates'!$2:$2,0),FALSE),B$6) -> 24.4 | C12: =ROUND(VLOOKUP($A12,'[2]Proposed Rates'!$A:$AY,MATCH(C$5,'[2]Proposed Rates'!$2:$2,0),FALSE),C$6) -> 0.0286 | D12: =ROUND(VLOOKUP($A12,'[2]Proposed Rates'!$A:$AY,MATCH(D$5,'[2]Proposed Rates'!$2:$2,0),FALSE),D$6) -> 0.65 | E12: =ROUND(VLOOKUP($A12,'[2]Proposed Rates'!$A:$AY,MATCH(E$5,'[2]Proposed Rates'!$2:$2,0),FALSE),E$6) -> 0.0015 | F12: 25.05 | G12: 0.0301 | H12: =ROUND(VLOOKUP($A12,'[2]Proposed Rates'!$A:$AY,MATCH(H$5,'[2]Proposed Rates'!$2:$2,0),FALSE),H$6) -> 0.05 | I12: =ROUND(VLOOKUP($A12,'[2]Proposed Rates'!$A:$AY,MATCH(I$5,'[2]Proposed Rates'!$2:$2,0),FALSE),I$6) -> -0.0008 | M12: =ROUND(VLOOKUP($A12,'[2]Proposed Rates'!$A:$AY,MATCH(M$5,'[2]Proposed Rates'!$2:$2,0),FALSE),M$6) -> 0.0066 | N12: =ROUND(VLOOKUP($A12,'[2]Proposed Rates'!$A:$AY,MATCH(N$5,'[2]Proposed Rates'!$2:$2,0),FALSE),N$6) -> 0.0055
A13: St Lgt | B13: =ROUND(VLOOKUP($A13,'[2]Proposed Rates'!$A:$AY,MATCH(B$5,'[2]Proposed Rates'!$2:$2,0),FALSE),B$6) -> 3.32 | C13: =ROUND(VLOOKUP($A13,'[2]Proposed Rates'!$A:$AY,MATCH(C$5,'[2]Proposed Rates'!$2:$2,0),FALSE),C$6) -> 0.1007 | D13: =ROUND(VLOOKUP($A13,'[2]Proposed Rates'!$A:$AY,MATCH(D$5,'[2]Proposed Rates'!$2:$2,0),FALSE),D$6) -> -0.76 | E13: =ROUND(VLOOKUP($A13,'[2]Proposed Rates'!$A:$AY,MATCH(E$5,'[2]Proposed Rates'!$2:$2,0),FALSE),E$6) -> 0.0053 | F13: 2.56 | G13: 0.106 | H13: =ROUND(VLOOKUP($A13,'[2]Proposed Rates'!$A:$AY,MATCH(H$5,'[2]Proposed Rates'!$2:$2,0),FALSE),H$6) -> 0.03 | I13: =ROUND(VLOOKUP($A13,'[2]Proposed Rates'!$A:$AY,MATCH(I$5,'[2]Proposed Rates'!$2:$2,0),FALSE),I$6) -> -0.0009 | M13: =ROUND(VLOOKUP($A13,'[2]Proposed Rates'!$A:$AY,MATCH(M$5,'[2]Proposed Rates'!$2:$2,0),FALSE),M$6) -> 0.0051 | N13: =ROUND(VLOOKUP($A13,'[2]Proposed Rates'!$A:$AY,MATCH(N$5,'[2]Proposed Rates'!$2:$2,0),FALSE),N$6) -> 0.0035
A14: Sen Lgt | B14: =ROUND(VLOOKUP($A14,'[2]Proposed Rates'!$A:$AY,MATCH(B$5,'[2]Proposed Rates'!$2:$2,0),FALSE),B$6) -> 2.52 | C14: =ROUND(VLOOKUP($A14,'[2]Proposed Rates'!$A:$AY,MATCH(C$5,'[2]Proposed Rates'!$2:$2,0),FALSE),C$6) -> 0.1366 | D14: =ROUND(VLOOKUP($A14,'[2]Proposed Rates'!$A:$AY,MATCH(D$5,'[2]Proposed Rates'!$2:$2,0),FALSE),D$6) -> -0.19 | E14: =ROUND(VLOOKUP($A14,'[2]Proposed Rates'!$A:$AY,MATCH(E$5,'[2]Proposed Rates'!$2:$2,0),FALSE),E$6) -> 0.0123 | F14: 2.33 | G14: 0.1489 | H14: =ROUND(VLOOKUP($A14,'[2]Proposed Rates'!$A:$AY,MATCH(H$5,'[2]Proposed Rates'!$2:$2,0),FALSE),H$6) -> 0.02 | I14: =ROUND(VLOOKUP($A14,'[2]Proposed Rates'!$A:$AY,MATCH(I$5,'[2]Proposed Rates'!$2:$2,0),FALSE),I$6) -> -0.0013 | M14: =ROUND(VLOOKUP($A14,'[2]Proposed Rates'!$A:$AY,MATCH(M$5,'[2]Proposed Rates'!$2:$2,0),FALSE),M$6) -> 0.0051 | N14: =ROUND(VLOOKUP($A14,'[2]Proposed Rates'!$A:$AY,MATCH(N$5,'[2]Proposed Rates'!$2:$2,0),FALSE),N$6) -> 0.0036
A15: USL | B15: =ROUND(VLOOKUP($A15,'[2]Proposed Rates'!$A:$AY,MATCH(B$5,'[2]Proposed Rates'!$2:$2,0),FALSE),B$6) -> 37.99 | C15: =ROUND(VLOOKUP($A15,'[2]Proposed Rates'!$A:$AY,MATCH(C$5,'[2]Proposed Rates'!$2:$2,0),FALSE),C$6) -> 0.0254 | D15: =ROUND(VLOOKUP($A15,'[2]Proposed Rates'!$A:$AY,MATCH(D$5,'[2]Proposed Rates'!$2:$2,0),FALSE),D$6) -> 1.66 | E15: =ROUND(VLOOKUP($A15,'[2]Proposed Rates'!$A:$AY,MATCH(E$5,'[2]Proposed Rates'!$2:$2,0),FALSE),E$6) -> -0.0028 | F15: 39.65 | G15: 0.0226 | H15: =ROUND(VLOOKUP($A15,'[2]Proposed Rates'!$A:$AY,MATCH(H$5,'[2]Proposed Rates'!$2:$2,0),FALSE),H$6) -> 0.01 | I15: =ROUND(VLOOKUP($A15,'[2]Proposed Rates'!$A:$AY,MATCH(I$5,'[2]Proposed Rates'!$2:$2,0),FALSE),I$6) -> -0.0008 | M15: =ROUND(VLOOKUP($A15,'[2]Proposed Rates'!$A:$AY,MATCH(M$5,'[2]Proposed Rates'!$2:$2,0),FALSE),M$6) -> 0.0051 | N15: =ROUND(VLOOKUP($A15,'[2]Proposed Rates'!$A:$AY,MATCH(N$5,'[2]Proposed Rates'!$2:$2,0),FALSE),N$6) -> 0.0044
A16: GSd | B16: =ROUND(VLOOKUP($A16,'[2]Proposed Rates'!$A:$AY,MATCH(B$5,'[2]Proposed Rates'!$2:$2,0),FALSE),B$6) -> 104.18 | C16: =ROUND(VLOOKUP($A16,'[2]Proposed Rates'!$A:$AY,MATCH(C$5,'[2]Proposed Rates'!$2:$2,0),FALSE),C$6) -> 17.2259 | D16: =ROUND(VLOOKUP($A16,'[2]Proposed Rates'!$A:$AY,MATCH(D$5,'[2]Proposed Rates'!$2:$2,0),FALSE),D$6) -> 10.78 | E16: =ROUND(VLOOKUP($A16,'[2]Proposed Rates'!$A:$AY,MATCH(E$5,'[2]Proposed Rates'!$2:$2,0),FALSE),E$6) -> 0.7293 | F16: 114.96 | G16: 17.9552 | H16: =ROUND(VLOOKUP($A16,'[2]Proposed Rates'!$A:$AY,MATCH(H$5,'[2]Proposed Rates'!$2:$2,0),FALSE),H$6) -> -0.05 | I16: =ROUND(VLOOKUP($A16,'[2]Proposed Rates'!$A:$AY,MATCH(I$5,'[2]Proposed Rates'!$2:$2,0),FALSE),I$6) -> -0.2655 | L16: =ROUND(VLOOKUP($A16,'[2]Proposed Rates'!$A:$AY,MATCH(L$5,'[2]Proposed Rates'!$2:$2,0),FALSE),L$6) -> -0.0058 | M16: =ROUND(VLOOKUP($A16,'[2]Proposed Rates'!$A:$AY,MATCH(M$5,'[2]Proposed Rates'!$2:$2,0),FALSE)*VLOOKUP($A16,'Data Billing Quantities'!$A:$B,2,FALSE),M$6) -> 1.9327 | N16: =ROUND(VLOOKUP($A16,'[2]Proposed Rates'!$A:$AY,MATCH(N$5,'[2]Proposed Rates'!$2:$2,0),FALSE)*VLOOKUP($A16,'Data Billing Quantities'!$A:$B,2,FALSE),N$6) -> 1.6437
A17: UGd | B17: =ROUND(VLOOKUP($A17,'[2]Proposed Rates'!$A:$AY,MATCH(B$5,'[2]Proposed Rates'!$2:$2,0),FALSE),B$6) -> 96.99 | C17: =ROUND(VLOOKUP($A17,'[2]Proposed Rates'!$A:$AY,MATCH(C$5,'[2]Proposed Rates'!$2:$2,0),FALSE),C$6) -> 9.9137 | D17: =ROUND(VLOOKUP($A17,'[2]Proposed Rates'!$A:$AY,MATCH(D$5,'[2]Proposed Rates'!$2:$2,0),FALSE),D$6) -> 1.95 | E17: =ROUND(VLOOKUP($A17,'[2]Proposed Rates'!$A:$AY,MATCH(E$5,'[2]Proposed Rates'!$2:$2,0),FALSE),E$6) -> 0.4817 | F17: 98.94 | G17: 10.3954 | H17: =ROUND(VLOOKUP($A17,'[2]Proposed Rates'!$A:$AY,MATCH(H$5,'[2]Proposed Rates'!$2:$2,0),FALSE),H$6) -> 0.06 | I17: =ROUND(VLOOKUP($A17,'[2]Proposed Rates'!$A:$AY,MATCH(I$5,'[2]Proposed Rates'!$2:$2,0),FALSE),I$6) -> -0.3072 | L17: =ROUND(VLOOKUP($A17,'[2]Proposed Rates'!$A:$AY,MATCH(L$5,'[2]Proposed Rates'!$2:$2,0),FALSE),L$6) -> -0.0058 | M17: =ROUND(VLOOKUP($A17,'[2]Proposed Rates'!$A:$AY,MATCH(M$5,'[2]Proposed Rates'!$2:$2,0),FALSE)*VLOOKUP($A17,'Data Billing Quantities'!$A:$B,2,FALSE),M$6) -> 2.4771 | N17: =ROUND(VLOOKUP($A17,'[2]Proposed Rates'!$A:$AY,MATCH(N$5,'[2]Proposed Rates'!$2:$2,0),FALSE)*VLOOKUP($A17,'Data Billing Quantities'!$A:$B,2,FALSE),N$6) -> 2.0887
A18: Dgen | B18: =ROUND(VLOOKUP($A18,'[2]Proposed Rates'!$A:$AY,MATCH(B$5,'[2]Proposed Rates'!$2:$2,0),FALSE),B$6) -> 165.97 | C18: =ROUND(VLOOKUP($A18,'[2]Proposed Rates'!$A:$AY,MATCH(C$5,'[2]Proposed Rates'!$2:$2,0),FALSE),C$6) -> 7.5625 | D18: =ROUND(VLOOKUP($A18,'[2]Proposed Rates'!$A:$AY,MATCH(D$5,'[2]Proposed Rates'!$2:$2,0),FALSE),D$6) -> 13.93 | E18: =ROUND(VLOOKUP($A18,'[2]Proposed Rates'!$A:$AY,MATCH(E$5,'[2]Proposed Rates'!$2:$2,0),FALSE),E$6) -> 0.2453 | F18: 179.9 | G18: 7.8078 | H18: =ROUND(VLOOKUP($A18,'[2]Proposed Rates'!$A:$AY,MATCH(H$5,'[2]Proposed Rates'!$2:$2,0),FALSE),H$6) -> 0.05 | I18: =ROUND(VLOOKUP($A18,'[2]Proposed Rates'!$A:$AY,MATCH(I$5,'[2]Proposed Rates'!$2:$2,0),FALSE),I$6) -> -0.1097 | L18: =ROUND(VLOOKUP($A18,'[2]Proposed Rates'!$A:$AY,MATCH(L$5,'[2]Proposed Rates'!$2:$2,0),FALSE),L$6) -> -0.0058 | M18: =ROUND(VLOOKUP($A18,'[2]Proposed Rates'!$A:$AY,MATCH(M$5,'[2]Proposed Rates'!$2:$2,0),FALSE)*VLOOKUP($A18,'Data Billing Quantities'!$A:$B,2,FALSE),M$6) -> 0.9395 | N18: =ROUND(VLOOKUP($A18,'[2]Proposed Rates'!$A:$AY,MATCH(N$5,'[2]Proposed Rates'!$2:$2,0),FALSE)*VLOOKUP($A18,'Data Billing Quantities'!$A:$B,2,FALSE),N$6) -> 0.8007
A19: ST | B19: =ROUND(SUM('[2]Proposed Rates'!$B$16:$B$17),B$6) -> 1183.48 | C19: =ROUND(VLOOKUP("Common Line",'[2]Proposed Rates'!$A:$H,8,FALSE),C$6) -> 1.3521 | D19: =SUM('[2]Proposed Rates'!$I$16:$I$17) -> -65.89355023 | E19: ='[2]Proposed Rates'!$J$18 -> 0.09127551918 | F19: 1117.59 | G19: 1.4434 | H19: =ROUND(VLOOKUP($A19,'[2]Proposed Rates'!$A:$AY,MATCH(H$5,'[2]Proposed Rates'!$2:$2,0),FALSE),H$6) -> 13.07 | I19: =ROUND(VLOOKUP($A19,'[2]Proposed Rates'!$A:$AY,MATCH(I$5,'[2]Proposed Rates'!$2:$2,0),FALSE),I$6) -> 0.8959 | M19: =ROUND(VLOOKUP($A19,'[2]Proposed Rates'!$A:$AY,MATCH(M$5,'[2]Proposed Rates'!$2:$2,0),FALSE)*VLOOKUP($A19,'Data Billing Quantities'!$A:$B,2,FALSE),M$6) -> 3.4034 | N19: =ROUND(VLOOKUP($A19,'[2]Proposed Rates'!$A:$AY,MATCH(N$5,'[2]Proposed Rates'!$2:$2,0),FALSE)*VLOOKUP($A19,'Data Billing Quantities'!$A:$B,2,FALSE),N$6) -> 2.8571

Sheet Data Billing Quantities (hidden)
A1: Rate Class-Specific Billing Quantities (Applied to Current and Proposed Bill)
E3: Consumption (kWh) | I3: Peak (kW) | M3: TOU Split
A4: Rate Class | B4: Loss Factor | C4: Charge Determinant | D4: Commodity Threshold | E4: Low kWh | F4: Typical kWh | G4: Average kWh | H4: High kWh | I4: Low kW | J4: Typical kW | K4: Average kW | L4: High kW | M4: TOU-Off Peak | N4: TOU-Mid Peak | O4: TOU-On Peak
A5: UR | B5: 1.057 | C5: kWh | D5: 600 | E5: 350 | F5: 750 | G5: =VLOOKUP(A5,[3]Sheet1!$A$9:$I$22,8,FALSE) -> 755 | H5: 1400 | M5: 0.65 | N5: 0.17 | O5: 0.18
A6: R1 | B6: 1.076 | C6: kWh | D6: 600 | E6: 400 | F6: 750 | G6: =VLOOKUP(A6,[3]Sheet1!$A$10:$I$22,8,FALSE) -> 920 | H6: 1800 | M6: 0.65 | N6: 0.17 | O6: 0.18
A7: R2 | B7: 1.105 | C7: kWh | D7: 600 | E7: 450 | F7: 750 | G7: =VLOOKUP(A7,[3]Sheet1!$A$10:$I$22,8,FALSE) -> 1152 | H7: 2300 | M7: 0.65 | N7: 0.17 | O7: 0.18
A8: Seasonal | B8: 1.104 | C8: kWh | D8: 600 | E8: 50 | G8: =VLOOKUP(A8,[3]Sheet1!$A$10:$I$22,8,FALSE) -> 352 | H8: 1000 | M8: 0.65 | N8: 0.17 | O8: 0.18
A9: GSe | B9: 1.096 | C9: kWh | D9: 750 | E9: 1000 | F9: 2000 | G9: =VLOOKUP(A9,[3]Sheet1!$A$10:$I$22,8,FALSE) -> 1982 | H9: 15000 | M9: 0.65 | N9: 0.17 | O9: 0.18
A10: UGe | B10: 1.067 | C10: kWh | D10: 750 | E10: 1000 | F10: 2000 | G10: =VLOOKUP(A10,[3]Sheet1!$A$10:$I$22,8,FALSE) -> 2759 | H10: 15000 | M10: 0.65 | N10: 0.17 | O10: 0.18
A11: St Lgt | B11: 1.092 | C11: kWh | D11: 750 | E11: 100 | G11: =VLOOKUP(A11,[3]Sheet1!$A$10:$I$22,8,FALSE) -> 517 | H11: 2000
A12: Sen Lgt | B12: 1.092 | C12: kWh | D12: 750 | E12: 20 | G12: =VLOOKUP(A12,[3]Sheet1!$A$10:$I$22,8,FALSE) -> 71 | H12: 200
A13: USL | B13: 1.092 | C13: kWh | D13: 750 | E13: 100 | G13: =VLOOKUP(A13,[3]Sheet1!$A$10:$I$22,8,FALSE) -> 364 | H13: 1000
A14: GSd | B14: 1.061 | C14: kW | D14: 0 | E14: 15000 | G14: =VLOOKUP(A14,[3]Sheet1!$A$10:$I$22,8,FALSE) -> 36104 | H14: 175000 | I14: 60 | J14: 117 | K14: =VLOOKUP(A14,[3]Sheet1!$A$10:$I$22,9,FALSE) -> 124 | L14: 500
A15: UGd | B15: 1.05 | C15: kW | D15: 0 | E15: 15000 | G15: =VLOOKUP(A15,[3]Sheet1!$A$10:$I$22,8,FALSE) -> 50525 | H15: 175000 | I15: 60 | J15: 117 | K15: =VLOOKUP(A15,[3]Sheet1!$A$10:$I$22,9,FALSE) -> 135 | L15: 500
A16: Dgen | B16: 1.061 | C16: kW | D16: 0 | E16: 300 | G16: =VLOOKUP(A16,[3]Sheet1!$A$10:$I$22,8,FALSE) -> 1328 | H16: 5000 | I16: 10 | J16: 15 | K16: =VLOOKUP(A16,[3]Sheet1!$A$10:$I$22,9,FALSE) -> 13 | L16: 100
A17: ST | B17: 1.034 | C17: kW | D17: 0 | E17: 200000 | G17: =VLOOKUP(A17,[3]Sheet1!$A$10:$I$22,8,FALSE) -> 1601036 | H17: 4000000 | I17: 500 | J17: 117 | K17: =VLOOKUP(A17,[3]Sheet1!$A$10:$I$22,9,FALSE) -> 3091 | L17: 10000

Sheet Data Pass Through (hidden)
A1: 3. Pass Through Charges
B2: Current Bill | C2: Proposed Bill
A3: Effective Date | B3: 2018-05-01 | C3: 2018-05-01 | D3: TOU % | E3: Notes
A4: R2 Credit | B4: 60.5 | C4: 60.5
A5: Energy (Non-RPP)* | B5: ='[4]Average HOEP plus Average GA'!$C$2/100 -> 0.1155 | C5: ='[4]Average HOEP plus Average GA'!$C$2/100 -> 0.1155 | E5: *Average HOEP plus average GA used to approximate Non-RPP Energy Charges (IESO Monthly Market Report December 2017)
A6: Energy First Tier | B6: 0.077 | C6: 0.077 | E6: Effective May 1 2018
A7: Energy Second Tier | B7: 0.089 | C7: 0.089 | E7: Effective May 1 2018
A8: TOU-Off Peak | B8: 0.065 | C8: 0.065 | D8: 0.65 | E8: Effective May 1 2018
A9: TOU-Mid Peak | B9: 0.094 | C9: 0.094 | D9: 0.17 | E9: Effective May 1 2018
A10: TOU-On Peak | B10: 0.132 | C10: 0.132 | D10: 0.18 | E10: Effective May 1 2018
A11: Wholesale Market Service Rate (WMS) - not including CBR | B11: 0.003 | C11: 0.003 | E11: Effective May 1 2017, 0.0036 WMSC broken up between WMSC and CBR; Effective jan 1 2019 wmsc reduced from 0.0032 to 0.0030
A12: Capacity Based Recovery (CBR) - Applicable for Class B Customers | B12: 0.0004 | C12: 0.0004 | E12: Effective May 1 2017, 0.0036 WMSC broken up between WMSC and CBR
A13: Rural Rate Protection Charge | B13: 0.0005 | C13: 0.0005 | E13: RRRP charge reduced from $0.0021/kWh to $0.0003/kWh effective July 1, 2017; reduced to 0.0005 effective jan 1 2019
A14: Ontario Electricity Support Program Charge | B14: 0 | C14: 0 | E14: OESP charge removed for all rate classes effective May 1, 2017. ROW HIDDEN IN BILL IMPACT FILE
A15: Standard Supply Service – Administration Charge (if applicable) | B15: 0.25 | C15: 0.25
A16: Fair Hydro Plan - Distribution Rate Protection Savings* | B16: =IF('Bill Impact Summary'!L6="TOU",0,IF('Bill Impact Summary'!L6="TOU (DRP applied)",B17,"error")) -> 36.86 | C16: =IF('Bill Impact Summary'!L6="TOU",0,IF('Bill Impact Summary'!L6="TOU (DRP applied)",C17,"error")) -> 36.86 | E16: Highlighted cells are FORMULAS; do not overwrite with hard-entered values. Input DRP limit values in row 17 below
A17: DRP limit (applied when selected from Bill Impact Summary) | B17: 36.86 | C17: 36.86 | E17: Make change to FHP DRP limit here, but to apply DRP, must do in Bill Impact Summary sheet cell L6
A18: Smart Metering Entity Charge | B18: 0.57 | C18: 0.57 | E18: Change from 0.79 to 0.57 effective March 1 2018; only for metered energy-billed (UR, R1, R2, SEA, GSE, UGE)
A19: Debt Retirement Charge (DRC) | B19: 0 | C19: 0 | E19: DRC removed from all rate classes Apr 1 2018 ROW HIDDEN IN BILL IMPACT FILE
A21: Customer Attributes - Assumptions
A22: ST customers are assumed to be WMP Class B; exclude NonWMP rider and Standard Supply Service

Sheet Data BI List (hidden)
A1: Template Name | B1: Bill Impact Worksheet Name | C1: Bill Impact Header
A2: BI Template_Energy | B2: BI_UR_Low | C2: 2019 Bill Impacts (Low Consumption Level) - UR
A3: BI Template_Energy | B3: BI_UR_Typical | C3: 2019 Bill Impacts (Typical Consumption Level) - UR
A4: BI Template_Energy | B4: BI_UR_Avg | C4: 2019 Bill Impacts (Average Consumption Level) - UR
A5: BI Template_Energy | B5: BI_UR_High | C5: 2019 Bill Impacts (High Consumption Level) - UR
A6: BI Template_Energy | B6: BI_R1_Low | C6: 2019 Bill Impacts (Low Consumption Level) - R1
A7: BI Template_Energy | B7: BI_R1_Typical | C7: 2019 Bill Impacts (Typical Consumption Level) - R1
A8: BI Template_Energy | B8: BI_R1_Avg | C8: 2019 Bill Impacts (Average Consumption Level) - R1
A9: BI Template_Energy | B9: BI_R1_High | C9: 2019 Bill Impacts (High Consumption Level) - R1
A10: BI Template_Energy | B10: BI_R2_Low | C10: 2019 Bill Impacts (Low Consumption Level) - R2
A11: BI Template_Energy | B11: BI_R2_Typical | C11: 2019 Bill Impacts (Typical Consumption Level) - R2
A12: BI Template_Energy | B12: BI_R2_Avg | C12: 2019 Bill Impacts (Average Consumption Level) - R2
A13: BI Template_Energy | B13: BI_R2_High | C13: 2019 Bill Impacts (High Consumption Level) - R2
A14: BI Template_Energy | B14: BI_Seas_Low | C14: 2019 Bill Impacts (Low Consumption Level) - Seasonal
A15: BI Template_Energy | B15: BI_Seas_Typical | C15: 2019 Bill Impacts (Typical Consumption Level) - Seasonal
A16: BI Template_Energy | B16: BI_Seas_Avg | C16: 2019 Bill Impacts (Average Consumption Level) - Seasonal
A17: BI Template_Energy | B17: BI_Seas_High | C17: 2019 Bill Impacts (High Consumption Level) - Seasonal
A18: BI Template_Energy | B18: BI_GSe_Low | C18: 2019 Bill Impacts (Low Consumption Level) - GSe
A19: BI Template_Energy | B19: BI_GSe_Typical | C19: 2019 Bill Impacts (Typical Consumption Level) - GSe
A20: BI Template_Energy | B20: BI_GSe_Avg | C20: 2019 Bill Impacts (Average Consumption Level) - GSe
A21: BI Template_Energy | B21: BI_GSe_High | C21: 2019 Bill Impacts (High Consumption Level) - GSe
A22: BI Template_Energy | B22: BI_UGe_Low | C22: 2019 Bill Impacts (Low Consumption Level) - UGe
A23: BI Template_Energy | B23: BI_UGe_Typical | C23: 2019 Bill Impacts (Typical Consumption Level) - UGe
A24: BI Template_Energy | B24: BI_UGe_Avg | C24: 2019 Bill Impacts (Average Consumption Level) - UGe
A25: BI Template_Energy | B25: BI_UGe_High | C25: 2019 Bill Impacts (High Consumption Level) - UGe
A26: BI Template_Demand | B26: BI_GSd_Low | C26: 2019 Bill Impacts (Low Consumption Level) - GSd
A27: BI Template_Demand | B27: BI_GSd_Avg | C27: 2019 Bill Impacts (Average Consumption Level) - GSd
A28: BI Template_Demand | B28: BI_GSd_High | C28: 2019 Bill Impacts (High Consumption Level) - GSd
A29: BI Template_Demand | B29: BI_UGd_Low | C29: 2019 Bill Impacts (Low Consumption Level) - UGd
A30: BI Template_Demand | B30: BI_UGd_Avg | C30: 2019 Bill Impacts (Average Consumption Level) - UGd
A31: BI Template_Demand | B31: BI_UGd_High | C31: 2019 Bill Impacts (High Consumption Level) - UGd
A32: BI Template_EnergyUNM | B32: BI_StLgt_Low | C32: 2019 Bill Impacts (Low Consumption Level) - St Lgt
A33: BI Template_EnergyUNM | B33: BI_StLgt_Avg | C33: 2019 Bill Impacts (Average Consumption Level) - St Lgt
A34: BI Template_EnergyUNM | B34: BI_StLgt_High | C34: 2019 Bill Impacts (High Consumption Level) - St Lgt
A35: BI Template_EnergyUNM | B35: BI_SenLgt_Low | C35: 2019 Bill Impacts (Low Consumption Level) - Sen Lgt
A36: BI Template_EnergyUNM | B36: BI_SenLgt_Avg | C36: 2019 Bill Impacts (Average Consumption Level) - Sen Lgt
A37: BI Template_EnergyUNM | B37: BI_SenLgt_High | C37: 2019 Bill Impacts (High Consumption Level) - Sen Lgt
A38: BI Template_EnergyUNM | B38: BI_USL_Low | C38: 2019 Bill Impacts (Low Consumption Level) - USL
A39: BI Template_EnergyUNM | B39: BI_USL_Avg | C39: 2019 Bill Impacts (Average Consumption Level) - USL
A40: BI Template_EnergyUNM | B40: BI_USL_High | C40: 2019 Bill Impacts (High Consumption Level) - USL
A41: BI Template_Demand | B41: BI_Dgen_Low | C41: 2019 Bill Impacts (Low Consumption Level) - Dgen
A42: BI Template_Demand | B42: BI_Dgen_Avg | C42: 2019 Bill Impacts (Average Consumption Level) - Dgen
A43: BI Template_Demand | B43: BI_Dgen_High | C43: 2019 Bill Impacts (High Consumption Level) - Dgen
A44: BI Template_Demand | B44: BI_ST_Low | C44: 2019 Bill Impacts (Low Consumption Level) - ST
A45: BI Template_Demand | B45: BI_ST_Avg | C45: 2019 Bill Impacts (Average Consumption Level) - ST
A46: BI Template_Demand | B46: BI_ST_High | C46: 2019 Bill Impacts (High Consumption Level) - ST

Sheet Data BI Summary (hidden)
A2: Summary Column | B2: Current Total Bill | C2: Change in DX Bill ($) | D2: Change in DX Bill (%) | E2: Change in Total Bill ($) | F2: Change in Total Bill (%)
A3: BI Template_Energy | B3: Total Amount on TOU | C3: Sub-Total: Distribution (excluding pass through) | D3: Sub-Total: Distribution (excluding pass through) | E3: Total Amount on TOU | F3: Total Amount on TOU
A4: BI Template_EnergyUNM | B4: Total Amount on Two-Tier RPP | C4: Sub-Total: Distribution (excluding pass through) | D4: Sub-Total: Distribution (excluding pass through) | E4: Total Amount on Two-Tier RPP | F4: Total Amount on Two-Tier RPP
A5: BI Template_Demand | B5: Total Amount | C5: Sub-Total: Distribution | D5: Sub-Total: Distribution | E5: Total Amount | F5: Total Amount

Sheet Bill Impact Summary (hidden)
A1: Rate Class | B1: Consumption Level | C1: Monthly Consumption (kWh) | D1: Monthly Peak (kW) | E1: BI Worksheet | F1: Template | G1: Current Total Bill | H1: Change in DX Bill ($) | I1: Change in DX Bill (%) | J1: Change in Total Bill ($) | K1: Change in Total Bill (%) | L1: Commodity Price Used | O1: List for Data Validation of cell L6; do not remove
A2: UR | B2: Low | C2: =VLOOKUP(A$2,'Data Billing Quantities'!A:P,MATCH(B2&" kWh",'Data Billing Quantities'!$4:$4,0),FALSE) -> 350 | E2: BI_UR_Low | F2: BI Template_Energy | G2: =VLOOKUP(VLOOKUP($F2,'Data BI Summary'!$A:$F,MATCH(G$1,'Data BI Summary'!$2:$2,0),FALSE),INDIRECT("'"&$E2&"'!"&"$A:$K"),4,FALSE) -> 68.12655727 | H2: =VLOOKUP(VLOOKUP($F2,'Data BI Summary'!$A:$F,MATCH(H$1,'Data BI Summary'!$2:$2,0),FALSE),INDIRECT("'"&$E2&"'!"&"$A:$K"),8,FALSE) -> 4.415 | I2: =VLOOKUP(VLOOKUP($F2,'Data BI Summary'!$A:$F,MATCH(I$1,'Data BI Summary'!$2:$2,0),FALSE),INDIRECT("'"&$E2&"'!"&"$A:$K"),9,FALSE) -> 0.157285358 | J2: =VLOOKUP(VLOOKUP($F2,'Data BI Summary'!$A:$F,MATCH(J$1,'Data BI Summary'!$2:$2,0),FALSE),INDIRECT("'"&$E2&"'!"&"$A:$K"),8,FALSE) -> 6.344919 | K2: =VLOOKUP(VLOOKUP($F2,'Data BI Summary'!$A:$F,MATCH(K$1,'Data BI Summary'!$2:$2,0),FALSE),INDIRECT("'"&$E2&"'!"&"$A:$K"),9,FALSE) -> 0.09313429672 | L2: TOU
B3: Typical | C3: =VLOOKUP(A$2,'Data Billing Quantities'!A:P,MATCH(B3&" kWh",'Data Billing Quantities'!$4:$4,0),FALSE) -> 750 | E3: BI_UR_Typical | F3: BI Template_Energy | G3: =VLOOKUP(VLOOKUP($F3,'Data BI Summary'!$A:$F,MATCH(G$1,'Data BI Summary'!$2:$2,0),FALSE),INDIRECT("'"&$E3&"'!"&"$A:$K"),4,FALSE) -> 115.2654799 | H3: =VLOOKUP(VLOOKUP($F3,'Data BI Summary'!$A:$F,MATCH(H$1,'Data BI Summary'!$2:$2,0),FALSE),INDIRECT("'"&$E3&"'!"&"$A:$K"),8,FALSE) -> 3.335 | I3: =VLOOKUP(VLOOKUP($F3,'Data BI Summary'!$A:$F,MATCH(I$1,'Data BI Summary'!$2:$2,0),FALSE),INDIRECT("'"&$E3&"'!"&"$A:$K"),9,FALSE) -> 0.1047753691 | J3: =VLOOKUP(VLOOKUP($F3,'Data BI Summary'!$A:$F,MATCH(J$1,'Data BI Summary'!$2:$2,0),FALSE),INDIRECT("'"&$E3&"'!"&"$A:$K"),8,FALSE) -> 7.164255 | K3: =VLOOKUP(VLOOKUP($F3,'Data BI Summary'!$A:$F,MATCH(K$1,'Data BI Summary'!$2:$2,0),FALSE),INDIRECT("'"&$E3&"'!"&"$A:$K"),9,FALSE) -> 0.06215438488
B4: Average | C4: =VLOOKUP(A$2,'Data Billing Quantities'!A:P,MATCH(B4&" kWh",'Data Billing Quantities'!$4:$4,0),FALSE) -> 755 | E4: BI_UR_Avg | F4: BI Template_Energy | G4: =VLOOKUP(VLOOKUP($F4,'Data BI Summary'!$A:$F,MATCH(G$1,'Data BI Summary'!$2:$2,0),FALSE),INDIRECT("'"&$E4&"'!"&"$A:$K"),4,FALSE) -> 115.8547164 | H4: =VLOOKUP(VLOOKUP($F4,'Data BI Summary'!$A:$F,MATCH(H$1,'Data BI Summary'!$2:$2,0),FALSE),INDIRECT("'"&$E4&"'!"&"$A:$K"),8,FALSE) -> 3.3215 | I4: =VLOOKUP(VLOOKUP($F4,'Data BI Summary'!$A:$F,MATCH(I$1,'Data BI Summary'!$2:$2,0),FALSE),INDIRECT("'"&$E4&"'!"&"$A:$K"),9,FALSE) -> 0.1041973837 | J4: =VLOOKUP(VLOOKUP($F4,'Data BI Summary'!$A:$F,MATCH(J$1,'Data BI Summary'!$2:$2,0),FALSE),INDIRECT("'"&$E4&"'!"&"$A:$K"),8,FALSE) -> 7.1744967 | K4: =VLOOKUP(VLOOKUP($F4,'Data BI Summary'!$A:$F,MATCH(K$1,'Data BI Summary'!$2:$2,0),FALSE),INDIRECT("'"&$E4&"'!"&"$A:$K"),9,FALSE) -> 0.06192666922
B5: High | C5: =VLOOKUP(A$2,'Data Billing Quantities'!A:P,MATCH(B5&" kWh",'Data Billing Quantities'!$4:$4,0),FALSE) -> 1400 | E5: BI_UR_High | F5: BI Template_Energy | G5: =VLOOKUP(VLOOKUP($F5,'Data BI Summary'!$A:$F,MATCH(G$1,'Data BI Summary'!$2:$2,0),FALSE),INDIRECT("'"&$E5&"'!"&"$A:$K"),4,FALSE) -> 191.8662291 | H5: =VLOOKUP(VLOOKUP($F5,'Data BI Summary'!$A:$F,MATCH(H$1,'Data BI Summary'!$2:$2,0),FALSE),INDIRECT("'"&$E5&"'!"&"$A:$K"),8,FALSE) -> 1.58 | I5: =VLOOKUP(VLOOKUP($F5,'Data BI Summary'!$A:$F,MATCH(I$1,'Data BI Summary'!$2:$2,0),FALSE),INDIRECT("'"&$E5&"'!"&"$A:$K"),9,FALSE) -> 0.04164470216 | J5: =VLOOKUP(VLOOKUP($F5,'Data BI Summary'!$A:$F,MATCH(J$1,'Data BI Summary'!$2:$2,0),FALSE),INDIRECT("'"&$E5&"'!"&"$A:$K"),8,FALSE) -> 8.495676 | K5: =VLOOKUP(VLOOKUP($F5,'Data BI Summary'!$A:$F,MATCH(K$1,'Data BI Summary'!$2:$2,0),FALSE),INDIRECT("'"&$E5&"'!"&"$A:$K"),9,FALSE) -> 0.04427916283
A6: R1 | B6: Low | C6: =VLOOKUP(A$6,'Data Billing Quantities'!A:P,MATCH(B6&" kWh",'Data Billing Quantities'!$4:$4,0),FALSE) -> 400 | E6: BI_R1_Low | F6: BI Template_Energy | G6: =VLOOKUP(VLOOKUP($F6,'Data BI Summary'!$A:$F,MATCH(G$1,'Data BI Summary'!$2:$2,0),FALSE),INDIRECT("'"&$E6&"'!"&"$A:$K"),4,FALSE) -> 83.3957208 | H6: =VLOOKUP(VLOOKUP($F6,'Data BI Summary'!$A:$F,MATCH(H$1,'Data BI Summary'!$2:$2,0),FALSE),INDIRECT("'"&$E6&"'!"&"$A:$K"),8,FALSE) -> -0.28 | I6: =VLOOKUP(VLOOKUP($F6,'Data BI Summary'!$A:$F,MATCH(I$1,'Data BI Summary'!$2:$2,0),FALSE),INDIRECT("'"&$E6&"'!"&"$A:$K"),9,FALSE) -> -0.007596310364 | J6: =VLOOKUP(VLOOKUP($F6,'Data BI Summary'!$A:$F,MATCH(J$1,'Data BI Summary'!$2:$2,0),FALSE),INDIRECT("'"&$E6&"'!"&"$A:$K"),8,FALSE) -> 1.378104 | K6: =VLOOKUP(VLOOKUP($F6,'Data BI Summary'!$A:$F,MATCH(K$1,'Data BI Summary'!$2:$2,0),FALSE),INDIRECT("'"&$E6&"'!"&"$A:$K"),9,FALSE) -> 0.01652487666 | L6: TOU (DRP applied) | O6: TOU
B7: Typical | C7: =VLOOKUP(A$6,'Data Billing Quantities'!A:P,MATCH(B7&" kWh",'Data Billing Quantities'!$4:$4,0),FALSE) -> 750 | E7: BI_R1_Typical | F7: BI Template_Energy | G7: =VLOOKUP(VLOOKUP($F7,'Data BI Summary'!$A:$F,MATCH(G$1,'Data BI Summary'!$2:$2,0),FALSE),INDIRECT("'"&$E7&"'!"&"$A:$K"),4,FALSE) -> 121.7484765 | H7: =VLOOKUP(VLOOKUP($F7,'Data BI Summary'!$A:$F,MATCH(H$1,'Data BI Summary'!$2:$2,0),FALSE),INDIRECT("'"&$E7&"'!"&"$A:$K"),8,FALSE) -> -0.56 | I7: =VLOOKUP(VLOOKUP($F7,'Data BI Summary'!$A:$F,MATCH(I$1,'Data BI Summary'!$2:$2,0),FALSE),INDIRECT("'"&$E7&"'!"&"$A:$K"),9,FALSE) -> -0.01519262073 | J7: =VLOOKUP(VLOOKUP($F7,'Data BI Summary'!$A:$F,MATCH(J$1,'Data BI Summary'!$2:$2,0),FALSE),INDIRECT("'"&$E7&"'!"&"$A:$K"),8,FALSE) -> 2.547195 | K7: =VLOOKUP(VLOOKUP($F7,'Data BI Summary'!$A:$F,MATCH(K$1,'Data BI Summary'!$2:$2,0),FALSE),INDIRECT("'"&$E7&"'!"&"$A:$K"),9,FALSE) -> 0.02092178131 | O7: TOU (DRP applied)
B8: Average | C8: =VLOOKUP(A$6,'Data Billing Quantities'!A:P,MATCH(B8&" kWh",'Data Billing Quantities'!$4:$4,0),FALSE) -> 920 | E8: BI_R1_Avg | F8: BI Template_Energy | G8: =VLOOKUP(VLOOKUP($F8,'Data BI Summary'!$A:$F,MATCH(G$1,'Data BI Summary'!$2:$2,0),FALSE),INDIRECT("'"&$E8&"'!"&"$A:$K"),4,FALSE) -> 140.3769578 | H8: =VLOOKUP(VLOOKUP($F8,'Data BI Summary'!$A:$F,MATCH(H$1,'Data BI Summary'!$2:$2,0),FALSE),INDIRECT("'"&$E8&"'!"&"$A:$K"),8,FALSE) -> -0.696 | I8: =VLOOKUP(VLOOKUP($F8,'Data BI Summary'!$A:$F,MATCH(I$1,'Data BI Summary'!$2:$2,0),FALSE),INDIRECT("'"&$E8&"'!"&"$A:$K"),9,FALSE) -> -0.01888225719 | J8: =VLOOKUP(VLOOKUP($F8,'Data BI Summary'!$A:$F,MATCH(J$1,'Data BI Summary'!$2:$2,0),FALSE),INDIRECT("'"&$E8&"'!"&"$A:$K"),8,FALSE) -> 3.1150392 | K8: =VLOOKUP(VLOOKUP($F8,'Data BI Summary'!$A:$F,MATCH(K$1,'Data BI Summary'!$2:$2,0),FALSE),INDIRECT("'"&$E8&"'!"&"$A:$K"),9,FALSE) -> 0.02219053075
B9: High | C9: =VLOOKUP(A$6,'Data Billing Quantities'!A:P,MATCH(B9&" kWh",'Data Billing Quantities'!$4:$4,0),FALSE) -> 1800 | E9: BI_R1_High | F9: BI Template_Energy | G9: =VLOOKUP(VLOOKUP($F9,'Data BI Summary'!$A:$F,MATCH(G$1,'Data BI Summary'!$2:$2,0),FALSE),INDIRECT("'"&$E9&"'!"&"$A:$K"),4,FALSE) -> 236.8067436 | H9: =VLOOKUP(VLOOKUP($F9,'Data BI Summary'!$A:$F,MATCH(H$1,'Data BI Summary'!$2:$2,0),FALSE),INDIRECT("'"&$E9&"'!"&"$A:$K"),8,FALSE) -> -1.4 | I9: =VLOOKUP(VLOOKUP($F9,'Data BI Summary'!$A:$F,MATCH(I$1,'Data BI Summary'!$2:$2,0),FALSE),INDIRECT("'"&$E9&"'!"&"$A:$K"),9,FALSE) -> -0.03798155182 | J9: =VLOOKUP(VLOOKUP($F9,'Data BI Summary'!$A:$F,MATCH(J$1,'Data BI Summary'!$2:$2,0),FALSE),INDIRECT("'"&$E9&"'!"&"$A:$K"),8,FALSE) -> 6.054468 | K9: =VLOOKUP(VLOOKUP($F9,'Data BI Summary'!$A:$F,MATCH(K$1,'Data BI Summary'!$2:$2,0),FALSE),INDIRECT("'"&$E9&"'!"&"$A:$K"),9,FALSE) -> 0.02556712663
A10: R2 | B10: Low | C10: =VLOOKUP(A$10,'Data Billing Quantities'!A:P,MATCH(B10&" kWh",'Data Billing Quantities'!$4:$4,0),FALSE) -> 450 | E10: BI_R2_Low | F10: BI Template_Energy | G10: =VLOOKUP(VLOOKUP($F10,'Data BI Summary'!$A:$F,MATCH(G$1,'Data BI Summary'!$2:$2,0),FALSE),INDIRECT("'"&$E10&"'!"&"$A:$K"),4,FALSE) -> 89.73263512 | H10: =VLOOKUP(VLOOKUP($F10,'Data BI Summary'!$A:$F,MATCH(H$1,'Data BI Summary'!$2:$2,0),FALSE),INDIRECT("'"&$E10&"'!"&"$A:$K"),8,FALSE) -> -0.19 | I10: =VLOOKUP(VLOOKUP($F10,'Data BI Summary'!$A:$F,MATCH(I$1,'Data BI Summary'!$2:$2,0),FALSE),INDIRECT("'"&$E10&"'!"&"$A:$K"),9,FALSE) -> -0.005182760502 | J10: =VLOOKUP(VLOOKUP($F10,'Data BI Summary'!$A:$F,MATCH(J$1,'Data BI Summary'!$2:$2,0),FALSE),INDIRECT("'"&$E10&"'!"&"$A:$K"),8,FALSE) -> 1.52347125 | K10: =VLOOKUP(VLOOKUP($F10,'Data BI Summary'!$A:$F,MATCH(K$1,'Data BI Summary'!$2:$2,0),FALSE),INDIRECT("'"&$E10&"'!"&"$A:$K"),9,FALSE) -> 0.01697789492 | L10: =L6 -> TOU (DRP applied)
B11: Typical | C11: =VLOOKUP(A$10,'Data Billing Quantities'!A:P,MATCH(B11&" kWh",'Data Billing Quantities'!$4:$4,0),FALSE) -> 750 | E11: BI_R2_Typical | F11: BI Template_Energy | G11: =VLOOKUP(VLOOKUP($F11,'Data BI Summary'!$A:$F,MATCH(G$1,'Data BI Summary'!$2:$2,0),FALSE),INDIRECT("'"&$E11&"'!"&"$A:$K"),4,FALSE) -> 123.5283919 | H11: =VLOOKUP(VLOOKUP($F11,'Data BI Summary'!$A:$F,MATCH(H$1,'Data BI Summary'!$2:$2,0),FALSE),INDIRECT("'"&$E11&"'!"&"$A:$K"),8,FALSE) -> -0.63 | I11: =VLOOKUP(VLOOKUP($F11,'Data BI Summary'!$A:$F,MATCH(I$1,'Data BI Summary'!$2:$2,0),FALSE),INDIRECT("'"&$E11&"'!"&"$A:$K"),9,FALSE) -> -0.01709169832 | J11: =VLOOKUP(VLOOKUP($F11,'Data BI Summary'!$A:$F,MATCH(J$1,'Data BI Summary'!$2:$2,0),FALSE),INDIRECT("'"&$E11&"'!"&"$A:$K"),8,FALSE) -> 2.21011875 | K11: =VLOOKUP(VLOOKUP($F11,'Data BI Summary'!$A:$F,MATCH(K$1,'Data BI Summary'!$2:$2,0),FALSE),INDIRECT("'"&$E11&"'!"&"$A:$K"),9,FALSE) -> 0.01789158522
B12: Average | C12: =VLOOKUP(A$10,'Data Billing Quantities'!A:P,MATCH(B12&" kWh",'Data Billing Quantities'!$4:$4,0),FALSE) -> 1152 | E12: BI_R2_Avg | F12: BI Template_Energy | G12: =VLOOKUP(VLOOKUP($F12,'Data BI Summary'!$A:$F,MATCH(G$1,'Data BI Summary'!$2:$2,0),FALSE),INDIRECT("'"&$E12&"'!"&"$A:$K"),4,FALSE) -> 168.5333059 | H12: =VLOOKUP(VLOOKUP($F12,'Data BI Summary'!$A:$F,MATCH(H$1,'Data BI Summary'!$2:$2,0),FALSE),INDIRECT("'"&$E12&"'!"&"$A:$K"),8,FALSE) -> -0.9516 | I12: =VLOOKUP(VLOOKUP($F12,'Data BI Summary'!$A:$F,MATCH(I$1,'Data BI Summary'!$2:$2,0),FALSE),INDIRECT("'"&$E12&"'!"&"$A:$K"),9,FALSE) -> -0.02581660336 | J12: =VLOOKUP(VLOOKUP($F12,'Data BI Summary'!$A:$F,MATCH(J$1,'Data BI Summary'!$2:$2,0),FALSE),INDIRECT("'"&$E12&"'!"&"$A:$K"),8,FALSE) -> 3.4116264 | K12: =VLOOKUP(VLOOKUP($F12,'Data BI Summary'!$A:$F,MATCH(K$1,'Data BI Summary'!$2:$2,0),FALSE),INDIRECT("'"&$E12&"'!"&"$A:$K"),9,FALSE) -> 0.02024303969
B13: High | C13: =VLOOKUP(A$10,'Data Billing Quantities'!A:P,MATCH(B13&" kWh",'Data Billing Quantities'!$4:$4,0),FALSE) -> 2300 | E13: BI_R2_High | F13: BI Template_Energy | G13: =VLOOKUP(VLOOKUP($F13,'Data BI Summary'!$A:$F,MATCH(G$1,'Data BI Summary'!$2:$2,0),FALSE),INDIRECT("'"&$E13&"'!"&"$A:$K"),4,FALSE) -> 297.0548018 | H13: =VLOOKUP(VLOOKUP($F13,'Data BI Summary'!$A:$F,MATCH(H$1,'Data BI Summary'!$2:$2,0),FALSE),INDIRECT("'"&$E13&"'!"&"$A:$K"),8,FALSE) -> -1.87 | I13: =VLOOKUP(VLOOKUP($F13,'Data BI Summary'!$A:$F,MATCH(I$1,'Data BI Summary'!$2:$2,0),FALSE),INDIRECT("'"&$E13&"'!"&"$A:$K"),9,FALSE) -> -0.05073250136 | J13: =VLOOKUP(VLOOKUP($F13,'Data BI Summary'!$A:$F,MATCH(J$1,'Data BI Summary'!$2:$2,0),FALSE),INDIRECT("'"&$E13&"'!"&"$A:$K"),8,FALSE) -> 6.8427975 | K13: =VLOOKUP(VLOOKUP($F13,'Data BI Summary'!$A:$F,MATCH(K$1,'Data BI Summary'!$2:$2,0),FALSE),INDIRECT("'"&$E13&"'!"&"$A:$K"),9,FALSE) -> 0.02303547177
A14: Seasonal | B14: Low | C14: =VLOOKUP(A$14,'Data Billing Quantities'!A:P,MATCH(B14&" kWh",'Data Billing Quantities'!$4:$4,0),FALSE) -> 50 | E14: BI_Seas_Low | F14: BI Template_Energy | G14: =VLOOKUP(VLOOKUP($F14,'Data BI Summary'!$A:$F,MATCH(G$1,'Data BI Summary'!$2:$2,0),FALSE),INDIRECT("'"&$E14&"'!"&"$A:$K"),4,FALSE) -> 47.8059624 | H14: =VLOOKUP(VLOOKUP($F14,'Data BI Summary'!$A:$F,MATCH(H$1,'Data BI Summary'!$2:$2,0),FALSE),INDIRECT("'"&$E14&"'!"&"$A:$K"),8,FALSE) -> 4.4 | I14: =VLOOKUP(VLOOKUP($F14,'Data BI Summary'!$A:$F,MATCH(I$1,'Data BI Summary'!$2:$2,0),FALSE),INDIRECT("'"&$E14&"'!"&"$A:$K"),9,FALSE) -> 0.1115194525 | J14: =VLOOKUP(VLOOKUP($F14,'Data BI Summary'!$A:$F,MATCH(J$1,'Data BI Summary'!$2:$2,0),FALSE),INDIRECT("'"&$E14&"'!"&"$A:$K"),8,FALSE) -> 4.776492 | K14: =VLOOKUP(VLOOKUP($F14,'Data BI Summary'!$A:$F,MATCH(K$1,'Data BI Summary'!$2:$2,0),FALSE),INDIRECT("'"&$E14&"'!"&"$A:$K"),9,FALSE) -> 0.09991414795 | L14: TOU
B15: Average | C15: =VLOOKUP(A$14,'Data Billing Quantities'!A:P,MATCH(B15&" kWh",'Data Billing Quantities'!$4:$4,0),FALSE) -> 352 | E15: BI_Seas_Avg | F15: BI Template_Energy | G15: =VLOOKUP(VLOOKUP($F15,'Data BI Summary'!$A:$F,MATCH(G$1,'Data BI Summary'!$2:$2,0),FALSE),INDIRECT("'"&$E15&"'!"&"$A:$K"),4,FALSE) -> 101.2657753 | H15: =VLOOKUP(VLOOKUP($F15,'Data BI Summary'!$A:$F,MATCH(H$1,'Data BI Summary'!$2:$2,0),FALSE),INDIRECT("'"&$E15&"'!"&"$A:$K"),8,FALSE) -> 7.2992 | I15: =VLOOKUP(VLOOKUP($F15,'Data BI Summary'!$A:$F,MATCH(I$1,'Data BI Summary'!$2:$2,0),FALSE),INDIRECT("'"&$E15&"'!"&"$A:$K"),9,FALSE) -> 0.1244917451 | J15: =VLOOKUP(VLOOKUP($F15,'Data BI Summary'!$A:$F,MATCH(J$1,'Data BI Summary'!$2:$2,0),FALSE),INDIRECT("'"&$E15&"'!"&"$A:$K"),8,FALSE) -> 8.76586368 | K15: =VLOOKUP(VLOOKUP($F15,'Data BI Summary'!$A:$F,MATCH(K$1,'Data BI Summary'!$2:$2,0),FALSE),INDIRECT("'"&$E15&"'!"&"$A:$K"),9,FALSE) -> 0.08656294443
B16: High | C16: =VLOOKUP(A$14,'Data Billing Quantities'!A:P,MATCH(B16&" kWh",'Data Billing Quantities'!$4:$4,0),FALSE) -> 1000 | E16: BI_Seas_High | F16: BI Template_Energy | G16: =VLOOKUP(VLOOKUP($F16,'Data BI Summary'!$A:$F,MATCH(G$1,'Data BI Summary'!$2:$2,0),FALSE),INDIRECT("'"&$E16&"'!"&"$A:$K"),4,FALSE) -> 215.974248 | H16: =VLOOKUP(VLOOKUP($F16,'Data BI Summary'!$A:$F,MATCH(H$1,'Data BI Summary'!$2:$2,0),FALSE),INDIRECT("'"&$E16&"'!"&"$A:$K"),8,FALSE) -> 13.52 | I16: =VLOOKUP(VLOOKUP($F16,'Data BI Summary'!$A:$F,MATCH(I$1,'Data BI Summary'!$2:$2,0),FALSE),INDIRECT("'"&$E16&"'!"&"$A:$K"),9,FALSE) -> 0.1354980958 | J16: =VLOOKUP(VLOOKUP($F16,'Data BI Summary'!$A:$F,MATCH(J$1,'Data BI Summary'!$2:$2,0),FALSE),INDIRECT("'"&$E16&"'!"&"$A:$K"),8,FALSE) -> 17.32584 | K16: =VLOOKUP(VLOOKUP($F16,'Data BI Summary'!$A:$F,MATCH(K$1,'Data BI Summary'!$2:$2,0),FALSE),INDIRECT("'"&$E16&"'!"&"$A:$K"),9,FALSE) -> 0.08022178644
A17: GSe | B17: Low | C17: =VLOOKUP(A$17,'Data Billing Quantities'!A:P,MATCH(B17&" kWh",'Data Billing Quantities'!$4:$4,0),FALSE) -> 1000 | E17: BI_GSe_Low | F17: BI Template_Energy | G17: =VLOOKUP(VLOOKUP($F17,'Data BI Summary'!$A:$F,MATCH(G$1,'Data BI Summary'!$2:$2,0),FALSE),INDIRECT("'"&$E17&"'!"&"$A:$K"),4,FALSE) -> 198.929472 | H17: =VLOOKUP(VLOOKUP($F17,'Data BI Summary'!$A:$F,MATCH(H$1,'Data BI Summary'!$2:$2,0),FALSE),INDIRECT("'"&$E17&"'!"&"$A:$K"),8,FALSE) -> 11.04 | I17: =VLOOKUP(VLOOKUP($F17,'Data BI Summary'!$A:$F,MATCH(I$1,'Data BI Summary'!$2:$2,0),FALSE),INDIRECT("'"&$E17&"'!"&"$A:$K"),9,FALSE) -> 0.1316322881 | J17: =VLOOKUP(VLOOKUP($F17,'Data BI Summary'!$A:$F,MATCH(J$1,'Data BI Summary'!$2:$2,0),FALSE),INDIRECT("'"&$E17&"'!"&"$A:$K"),8,FALSE) -> 13.66344 | K17: =VLOOKUP(VLOOKUP($F17,'Data BI Summary'!$A:$F,MATCH(K$1,'Data BI Summary'!$2:$2,0),FALSE),INDIRECT("'"&$E17&"'!"&"$A:$K"),9,FALSE) -> 0.06868484525 | L17: TOU
B18: Typical | C18: =VLOOKUP(A$17,'Data Billing Quantities'!A:P,MATCH(B18&" kWh",'Data Billing Quantities'!$4:$4,0),FALSE) -> 2000 | E18: BI_GSe_Typical | F18: BI Template_Energy | G18: =VLOOKUP(VLOOKUP($F18,'Data BI Summary'!$A:$F,MATCH(G$1,'Data BI Summary'!$2:$2,0),FALSE),INDIRECT("'"&$E18&"'!"&"$A:$K"),4,FALSE) -> 367.734444 | H18: =VLOOKUP(VLOOKUP($F18,'Data BI Summary'!$A:$F,MATCH(H$1,'Data BI Summary'!$2:$2,0),FALSE),INDIRECT("'"&$E18&"'!"&"$A:$K"),8,FALSE) -> 16.44 | I18: =VLOOKUP(VLOOKUP($F18,'Data BI Summary'!$A:$F,MATCH(I$1,'Data BI Summary'!$2:$2,0),FALSE),INDIRECT("'"&$E18&"'!"&"$A:$K"),9,FALSE) -> 0.1175377136 | J18: =VLOOKUP(VLOOKUP($F18,'Data BI Summary'!$A:$F,MATCH(J$1,'Data BI Summary'!$2:$2,0),FALSE),INDIRECT("'"&$E18&"'!"&"$A:$K"),8,FALSE) -> 21.40488 | K18: =VLOOKUP(VLOOKUP($F18,'Data BI Summary'!$A:$F,MATCH(K$1,'Data BI Summary'!$2:$2,0),FALSE),INDIRECT("'"&$E18&"'!"&"$A:$K"),9,FALSE) -> 0.05820743841
B19: Average | C19: =VLOOKUP(A$17,'Data Billing Quantities'!A:P,MATCH(B19&" kWh",'Data Billing Quantities'!$4:$4,0),FALSE) -> 1982 | E19: BI_GSe_Avg | F19: BI Template_Energy | G19: =VLOOKUP(VLOOKUP($F19,'Data BI Summary'!$A:$F,MATCH(G$1,'Data BI Summary'!$2:$2,0),FALSE),INDIRECT("'"&$E19&"'!"&"$A:$K"),4,FALSE) -> 364.6959545 | H19: =VLOOKUP(VLOOKUP($F19,'Data BI Summary'!$A:$F,MATCH(H$1,'Data BI Summary'!$2:$2,0),FALSE),INDIRECT("'"&$E19&"'!"&"$A:$K"),8,FALSE) -> 16.3428 | I19: =VLOOKUP(VLOOKUP($F19,'Data BI Summary'!$A:$F,MATCH(I$1,'Data BI Summary'!$2:$2,0),FALSE),INDIRECT("'"&$E19&"'!"&"$A:$K"),9,FALSE) -> 0.117690945 | J19: =VLOOKUP(VLOOKUP($F19,'Data BI Summary'!$A:$F,MATCH(J$1,'Data BI Summary'!$2:$2,0),FALSE),INDIRECT("'"&$E19&"'!"&"$A:$K"),8,FALSE) -> 21.26553408 | K19: =VLOOKUP(VLOOKUP($F19,'Data BI Summary'!$A:$F,MATCH(K$1,'Data BI Summary'!$2:$2,0),FALSE),INDIRECT("'"&$E19&"'!"&"$A:$K"),9,FALSE) -> 0.05831030977
B20: High | C20: =VLOOKUP(A$17,'Data Billing Quantities'!A:P,MATCH(B20&" kWh",'Data Billing Quantities'!$4:$4,0),FALSE) -> 15000 | E20: BI_GSe_High | F20: BI Template_Energy | G20: =VLOOKUP(VLOOKUP($F20,'Data BI Summary'!$A:$F,MATCH(G$1,'Data BI Summary'!$2:$2,0),FALSE),INDIRECT("'"&$E20&"'!"&"$A:$K"),4,FALSE) -> 2562.19908 | H20: =VLOOKUP(VLOOKUP($F20,'Data BI Summary'!$A:$F,MATCH(H$1,'Data BI Summary'!$2:$2,0),FALSE),INDIRECT("'"&$E20&"'!"&"$A:$K"),8,FALSE) -> 86.64 | I20: =VLOOKUP(VLOOKUP($F20,'Data BI Summary'!$A:$F,MATCH(I$1,'Data BI Summary'!$2:$2,0),FALSE),INDIRECT("'"&$E20&"'!"&"$A:$K"),9,FALSE) -> 0.09983061979 | J20: =VLOOKUP(VLOOKUP($F20,'Data BI Summary'!$A:$F,MATCH(J$1,'Data BI Summary'!$2:$2,0),FALSE),INDIRECT("'"&$E20&"'!"&"$A:$K"),8,FALSE) -> 122.0436 | K20: =VLOOKUP(VLOOKUP($F20,'Data BI Summary'!$A:$F,MATCH(K$1,'Data BI Summary'!$2:$2,0),FALSE),INDIRECT("'"&$E20&"'!"&"$A:$K"),9,FALSE) -> 0.0476323643
A21: UGe | B21: Low | C21: =VLOOKUP(A$21,'Data Billing Quantities'!A:P,MATCH(B21&" kWh",'Data Billing Quantities'!$4:$4,0),FALSE) -> 1000 | E21: BI_UGe_Low | F21: BI Template_Energy | G21: =VLOOKUP(VLOOKUP($F21,'Data BI Summary'!$A:$F,MATCH(G$1,'Data BI Summary'!$2:$2,0),FALSE),INDIRECT("'"&$E21&"'!"&"$A:$K"),4,FALSE) -> 160.7145015 | H21: =VLOOKUP(VLOOKUP($F21,'Data BI Summary'!$A:$F,MATCH(H$1,'Data BI Summary'!$2:$2,0),FALSE),INDIRECT("'"&$E21&"'!"&"$A:$K"),8,FALSE) -> 4.9 | I21: =VLOOKUP(VLOOKUP($F21,'Data BI Summary'!$A:$F,MATCH(I$1,'Data BI Summary'!$2:$2,0),FALSE),INDIRECT("'"&$E21&"'!"&"$A:$K"),9,FALSE) -> 0.09898989899 | J21: =VLOOKUP(VLOOKUP($F21,'Data BI Summary'!$A:$F,MATCH(J$1,'Data BI Summary'!$2:$2,0),FALSE),INDIRECT("'"&$E21&"'!"&"$A:$K"),8,FALSE) -> 7.049595 | K21: =VLOOKUP(VLOOKUP($F21,'Data BI Summary'!$A:$F,MATCH(K$1,'Data BI Summary'!$2:$2,0),FALSE),INDIRECT("'"&$E21&"'!"&"$A:$K"),9,FALSE) -> 0.04386408777 | L21: TOU
B22: Typical | C22: =VLOOKUP(A$21,'Data Billing Quantities'!A:P,MATCH(B22&" kWh",'Data Billing Quantities'!$4:$4,0),FALSE) -> 2000 | E22: BI_UGe_Typical | F22: BI Template_Energy | G22: =VLOOKUP(VLOOKUP($F22,'Data BI Summary'!$A:$F,MATCH(G$1,'Data BI Summary'!$2:$2,0),FALSE),INDIRECT("'"&$E22&"'!"&"$A:$K"),4,FALSE) -> 296.103003 | H22: =VLOOKUP(VLOOKUP($F22,'Data BI Summary'!$A:$F,MATCH(H$1,'Data BI Summary'!$2:$2,0),FALSE),INDIRECT("'"&$E22&"'!"&"$A:$K"),8,FALSE) -> 8 | I22: =VLOOKUP(VLOOKUP($F22,'Data BI Summary'!$A:$F,MATCH(I$1,'Data BI Summary'!$2:$2,0),FALSE),INDIRECT("'"&$E22&"'!"&"$A:$K"),9,FALSE) -> 0.105680317 | J22: =VLOOKUP(VLOOKUP($F22,'Data BI Summary'!$A:$F,MATCH(J$1,'Data BI Summary'!$2:$2,0),FALSE),INDIRECT("'"&$E22&"'!"&"$A:$K"),8,FALSE) -> 12.20919 | K22: =VLOOKUP(VLOOKUP($F22,'Data BI Summary'!$A:$F,MATCH(K$1,'Data BI Summary'!$2:$2,0),FALSE),INDIRECT("'"&$E22&"'!"&"$A:$K"),9,FALSE) -> 0.04123291516
B23: Average | C23: =VLOOKUP(A$21,'Data Billing Quantities'!A:P,MATCH(B23&" kWh",'Data Billing Quantities'!$4:$4,0),FALSE) -> 2759 | E23: BI_UGe_Avg | F23: BI Template_Energy | G23: =VLOOKUP(VLOOKUP($F23,'Data BI Summary'!$A:$F,MATCH(G$1,'Data BI Summary'!$2:$2,0),FALSE),INDIRECT("'"&$E23&"'!"&"$A:$K"),4,FALSE) -> 398.8628756 | H23: =VLOOKUP(VLOOKUP($F23,'Data BI Summary'!$A:$F,MATCH(H$1,'Data BI Summary'!$2:$2,0),FALSE),INDIRECT("'"&$E23&"'!"&"$A:$K"),8,FALSE) -> 10.3529 | I23: =VLOOKUP(VLOOKUP($F23,'Data BI Summary'!$A:$F,MATCH(I$1,'Data BI Summary'!$2:$2,0),FALSE),INDIRECT("'"&$E23&"'!"&"$A:$K"),9,FALSE) -> 0.1083100209 | J23: =VLOOKUP(VLOOKUP($F23,'Data BI Summary'!$A:$F,MATCH(J$1,'Data BI Summary'!$2:$2,0),FALSE),INDIRECT("'"&$E23&"'!"&"$A:$K"),8,FALSE) -> 16.1253226 | K23: =VLOOKUP(VLOOKUP($F23,'Data BI Summary'!$A:$F,MATCH(K$1,'Data BI Summary'!$2:$2,0),FALSE),INDIRECT("'"&$E23&"'!"&"$A:$K"),9,FALSE) -> 0.04042823634
B24: High | C24: =VLOOKUP(A$21,'Data Billing Quantities'!A:P,MATCH(B24&" kWh",'Data Billing Quantities'!$4:$4,0),FALSE) -> 15000 | E24: BI_UGe_High | F24: BI Template_Energy | G24: =VLOOKUP(VLOOKUP($F24,'Data BI Summary'!$A:$F,MATCH(G$1,'Data BI Summary'!$2:$2,0),FALSE),INDIRECT("'"&$E24&"'!"&"$A:$K"),4,FALSE) -> 2056.153522 | H24: =VLOOKUP(VLOOKUP($F24,'Data BI Summary'!$A:$F,MATCH(H$1,'Data BI Summary'!$2:$2,0),FALSE),INDIRECT("'"&$E24&"'!"&"$A:$K"),8,FALSE) -> 48.3 | I24: =VLOOKUP(VLOOKUP($F24,'Data BI Summary'!$A:$F,MATCH(I$1,'Data BI Summary'!$2:$2,0),FALSE),INDIRECT("'"&$E24&"'!"&"$A:$K"),9,FALSE) -> 0.1160220994 | J24: =VLOOKUP(VLOOKUP($F24,'Data BI Summary'!$A:$F,MATCH(J$1,'Data BI Summary'!$2:$2,0),FALSE),INDIRECT("'"&$E24&"'!"&"$A:$K"),8,FALSE) -> 79.283925 | K24: =VLOOKUP(VLOOKUP($F24,'Data BI Summary'!$A:$F,MATCH(K$1,'Data BI Summary'!$2:$2,0),FALSE),INDIRECT("'"&$E24&"'!"&"$A:$K"),9,FALSE) -> 0.03855934109
A25: GSd | B25: Low | C25: =VLOOKUP(A$25,'Data Billing Quantities'!A:P,MATCH(B25&" kWh",'Data Billing Quantities'!$4:$4,0),FALSE) -> 15000 | D25: =VLOOKUP(A$25,'Data Billing Quantities'!A:P,MATCH(B25&" kW",'Data Billing Quantities'!$4:$4,0),FALSE) -> 60 | E25: BI_GSd_Low | F25: BI Template_Demand | G25: =VLOOKUP(VLOOKUP($F25,'Data BI Summary'!$A:$F,MATCH(G$1,'Data BI Summary'!$2:$2,0),FALSE),INDIRECT("'"&$E25&"'!"&"$A:$K"),4,FALSE) -> 3527.80011 | H25: =VLOOKUP(VLOOKUP($F25,'Data BI Summary'!$A:$F,MATCH(H$1,'Data BI Summary'!$2:$2,0),FALSE),INDIRECT("'"&$E25&"'!"&"$A:$K"),8,FALSE) -> 38.396 | I25: =VLOOKUP(VLOOKUP($F25,'Data BI Summary'!$A:$F,MATCH(I$1,'Data BI Summary'!$2:$2,0),FALSE),INDIRECT("'"&$E25&"'!"&"$A:$K"),9,FALSE) -> 0.03653644128 | J25: =VLOOKUP(VLOOKUP($F25,'Data BI Summary'!$A:$F,MATCH(J$1,'Data BI Summary'!$2:$2,0),FALSE),INDIRECT("'"&$E25&"'!"&"$A:$K"),8,FALSE) -> 93.1459 | K25: =VLOOKUP(VLOOKUP($F25,'Data BI Summary'!$A:$F,MATCH(K$1,'Data BI Summary'!$2:$2,0),FALSE),INDIRECT("'"&$E25&"'!"&"$A:$K"),9,FALSE) -> 0.02640339506 | L25: Non-RPP
B26: Average | C26: =VLOOKUP(A$25,'Data Billing Quantities'!A:P,MATCH(B26&" kWh",'Data Billing Quantities'!$4:$4,0),FALSE) -> 36104 | D26: =VLOOKUP(A$25,'Data Billing Quantities'!A:P,MATCH(B26&" kW",'Data Billing Quantities'!$4:$4,0),FALSE) -> 124 | E26: BI_GSd_Avg | F26: BI Template_Demand | G26: =VLOOKUP(VLOOKUP($F26,'Data BI Summary'!$A:$F,MATCH(G$1,'Data BI Summary'!$2:$2,0),FALSE),INDIRECT("'"&$E26&"'!"&"$A:$K"),4,FALSE) -> 7913.281377 | H26: =VLOOKUP(VLOOKUP($F26,'Data BI Summary'!$A:$F,MATCH(H$1,'Data BI Summary'!$2:$2,0),FALSE),INDIRECT("'"&$E26&"'!"&"$A:$K"),8,FALSE) -> 22.6232 | I26: =VLOOKUP(VLOOKUP($F26,'Data BI Summary'!$A:$F,MATCH(I$1,'Data BI Summary'!$2:$2,0),FALSE),INDIRECT("'"&$E26&"'!"&"$A:$K"),9,FALSE) -> 0.0108953623 | J26: =VLOOKUP(VLOOKUP($F26,'Data BI Summary'!$A:$F,MATCH(J$1,'Data BI Summary'!$2:$2,0),FALSE),INDIRECT("'"&$E26&"'!"&"$A:$K"),8,FALSE) -> 128.398284 | K26: =VLOOKUP(VLOOKUP($F26,'Data BI Summary'!$A:$F,MATCH(K$1,'Data BI Summary'!$2:$2,0),FALSE),INDIRECT("'"&$E26&"'!"&"$A:$K"),9,FALSE) -> 0.01622566896
B27: High | C27: =VLOOKUP(A$25,'Data Billing Quantities'!A:P,MATCH(B27&" kWh",'Data Billing Quantities'!$4:$4,0),FALSE) -> 175000 | D27: =VLOOKUP(A$25,'Data Billing Quantities'!A:P,MATCH(B27&" kW",'Data Billing Quantities'!$4:$4,0),FALSE) -> 500 | E27: BI_GSd_High | F27: BI Template_Demand | G27: =VLOOKUP(VLOOKUP($F27,'Data BI Summary'!$A:$F,MATCH(G$1,'Data BI Summary'!$2:$2,0),FALSE),INDIRECT("'"&$E27&"'!"&"$A:$K"),4,FALSE) -> 35812.38375 | H27: =VLOOKUP(VLOOKUP($F27,'Data BI Summary'!$A:$F,MATCH(H$1,'Data BI Summary'!$2:$2,0),FALSE),INDIRECT("'"&$E27&"'!"&"$A:$K"),8,FALSE) -> -156.52 | I27: =VLOOKUP(VLOOKUP($F27,'Data BI Summary'!$A:$F,MATCH(I$1,'Data BI Summary'!$2:$2,0),FALSE),INDIRECT("'"&$E27&"'!"&"$A:$K"),9,FALSE) -> -0.01932040369 | J27: =VLOOKUP(VLOOKUP($F27,'Data BI Summary'!$A:$F,MATCH(J$1,'Data BI Summary'!$2:$2,0),FALSE),INDIRECT("'"&$E27&"'!"&"$A:$K"),8,FALSE) -> 237.7859 | K27: =VLOOKUP(VLOOKUP($F27,'Data BI Summary'!$A:$F,MATCH(K$1,'Data BI Summary'!$2:$2,0),FALSE),INDIRECT("'"&$E27&"'!"&"$A:$K"),9,FALSE) -> 0.006639767452
A28: UGd | B28: Low | C28: =VLOOKUP(A$28,'Data Billing Quantities'!A:P,MATCH(B28&" kWh",'Data Billing Quantities'!$4:$4,0),FALSE) -> 15000 | D28: =VLOOKUP(A$28,'Data Billing Quantities'!A:P,MATCH(B28&" kW",'Data Billing Quantities'!$4:$4,0),FALSE) -> 60 | E28: BI_UGd_Low | F28: BI Template_Demand | G28: =VLOOKUP(VLOOKUP($F28,'Data BI Summary'!$A:$F,MATCH(G$1,'Data BI Summary'!$2:$2,0),FALSE),INDIRECT("'"&$E28&"'!"&"$A:$K"),4,FALSE) -> 3091.64836 | H28: =VLOOKUP(VLOOKUP($F28,'Data BI Summary'!$A:$F,MATCH(H$1,'Data BI Summary'!$2:$2,0),FALSE),INDIRECT("'"&$E28&"'!"&"$A:$K"),8,FALSE) -> -27.7 | I28: =VLOOKUP(VLOOKUP($F28,'Data BI Summary'!$A:$F,MATCH(I$1,'Data BI Summary'!$2:$2,0),FALSE),INDIRECT("'"&$E28&"'!"&"$A:$K"),9,FALSE) -> -0.0429462691 | J28: =VLOOKUP(VLOOKUP($F28,'Data BI Summary'!$A:$F,MATCH(J$1,'Data BI Summary'!$2:$2,0),FALSE),INDIRECT("'"&$E28&"'!"&"$A:$K"),8,FALSE) -> 40.75684 | K28: =VLOOKUP(VLOOKUP($F28,'Data BI Summary'!$A:$F,MATCH(K$1,'Data BI Summary'!$2:$2,0),FALSE),INDIRECT("'"&$E28&"'!"&"$A:$K"),9,FALSE) -> 0.01318288345 | L28: Non-RPP
B29: Average | C29: =VLOOKUP(A$28,'Data Billing Quantities'!A:P,MATCH(B29&" kWh",'Data Billing Quantities'!$4:$4,0),FALSE) -> 50525 | D29: =VLOOKUP(A$28,'Data Billing Quantities'!A:P,MATCH(B29&" kW",'Data Billing Quantities'!$4:$4,0),FALSE) -> 135 | E29: BI_UGd_Avg | F29: BI Template_Demand | G29: =VLOOKUP(VLOOKUP($F29,'Data BI Summary'!$A:$F,MATCH(G$1,'Data BI Summary'!$2:$2,0),FALSE),INDIRECT("'"&$E29&"'!"&"$A:$K"),4,FALSE) -> 9199.605438 | H29: =VLOOKUP(VLOOKUP($F29,'Data BI Summary'!$A:$F,MATCH(H$1,'Data BI Summary'!$2:$2,0),FALSE),INDIRECT("'"&$E29&"'!"&"$A:$K"),8,FALSE) -> -165.9075 | I29: =VLOOKUP(VLOOKUP($F29,'Data BI Summary'!$A:$F,MATCH(I$1,'Data BI Summary'!$2:$2,0),FALSE),INDIRECT("'"&$E29&"'!"&"$A:$K"),9,FALSE) -> -0.1243899339 | J29: =VLOOKUP(VLOOKUP($F29,'Data BI Summary'!$A:$F,MATCH(J$1,'Data BI Summary'!$2:$2,0),FALSE),INDIRECT("'"&$E29&"'!"&"$A:$K"),8,FALSE) -> -25.345335 | K29: =VLOOKUP(VLOOKUP($F29,'Data BI Summary'!$A:$F,MATCH(K$1,'Data BI Summary'!$2:$2,0),FALSE),INDIRECT("'"&$E29&"'!"&"$A:$K"),9,FALSE) -> -0.002755045874
B30: High | C30: =VLOOKUP(A$28,'Data Billing Quantities'!A:P,MATCH(B30&" kWh",'Data Billing Quantities'!$4:$4,0),FALSE) -> 175000 | D30: =VLOOKUP(A$28,'Data Billing Quantities'!A:P,MATCH(B30&" kW",'Data Billing Quantities'!$4:$4,0),FALSE) -> 500 | E30: BI_UGd_High | F30: BI Template_Demand | G30: =VLOOKUP(VLOOKUP($F30,'Data BI Summary'!$A:$F,MATCH(G$1,'Data BI Summary'!$2:$2,0),FALSE),INDIRECT("'"&$E30&"'!"&"$A:$K"),4,FALSE) -> 32066.3716 | H30: =VLOOKUP(VLOOKUP($F30,'Data BI Summary'!$A:$F,MATCH(H$1,'Data BI Summary'!$2:$2,0),FALSE),INDIRECT("'"&$E30&"'!"&"$A:$K"),8,FALSE) -> -557.72 | I30: =VLOOKUP(VLOOKUP($F30,'Data BI Summary'!$A:$F,MATCH(I$1,'Data BI Summary'!$2:$2,0),FALSE),INDIRECT("'"&$E30&"'!"&"$A:$K"),9,FALSE) -> -0.1190229245 | J30: =VLOOKUP(VLOOKUP($F30,'Data BI Summary'!$A:$F,MATCH(J$1,'Data BI Summary'!$2:$2,0),FALSE),INDIRECT("'"&$E30&"'!"&"$A:$K"),8,FALSE) -> -29.7416 | K30: =VLOOKUP(VLOOKUP($F30,'Data BI Summary'!$A:$F,MATCH(K$1,'Data BI Summary'!$2:$2,0),FALSE),INDIRECT("'"&$E30&"'!"&"$A:$K"),9,FALSE) -> -0.000927501258
A31: St Lgt | B31: Low | C31: =VLOOKUP(A$31,'Data Billing Quantities'!A:P,MATCH(B31&" kWh",'Data Billing Quantities'!$4:$4,0),FALSE) -> 100 | E31: BI_StLgt_Low | F31: BI Template_EnergyUNM | G31: =VLOOKUP(VLOOKUP($F31,'Data BI Summary'!$A:$F,MATCH(G$1,'Data BI Summary'!$2:$2,0),FALSE),INDIRECT("'"&$E31&"'!"&"$A:$K"),4,FALSE) -> 25.127046 | H31: =VLOOKUP(VLOOKUP($F31,'Data BI Summary'!$A:$F,MATCH(H$1,'Data BI Summary'!$2:$2,0),FALSE),INDIRECT("'"&$E31&"'!"&"$A:$K"),8,FALSE) -> -0.39 | I31: =VLOOKUP(VLOOKUP($F31,'Data BI Summary'!$A:$F,MATCH(I$1,'Data BI Summary'!$2:$2,0),FALSE),INDIRECT("'"&$E31&"'!"&"$A:$K"),9,FALSE) -> -0.02891030393 | J31: =VLOOKUP(VLOOKUP($F31,'Data BI Summary'!$A:$F,MATCH(J$1,'Data BI Summary'!$2:$2,0),FALSE),INDIRECT("'"&$E31&"'!"&"$A:$K"),8,FALSE) -> -0.248976 | K31: =VLOOKUP(VLOOKUP($F31,'Data BI Summary'!$A:$F,MATCH(K$1,'Data BI Summary'!$2:$2,0),FALSE),INDIRECT("'"&$E31&"'!"&"$A:$K"),9,FALSE) -> -0.009908685645 | L31: Two-tier RPP
B32: Average | C32: =VLOOKUP(A$31,'Data Billing Quantities'!A:P,MATCH(B32&" kWh",'Data Billing Quantities'!$4:$4,0),FALSE) -> 517 | E32: BI_StLgt_Avg | F32: BI Template_EnergyUNM | G32: =VLOOKUP(VLOOKUP($F32,'Data BI Summary'!$A:$F,MATCH(G$1,'Data BI Summary'!$2:$2,0),FALSE),INDIRECT("'"&$E32&"'!"&"$A:$K"),4,FALSE) -> 107.7078328 | H32: =VLOOKUP(VLOOKUP($F32,'Data BI Summary'!$A:$F,MATCH(H$1,'Data BI Summary'!$2:$2,0),FALSE),INDIRECT("'"&$E32&"'!"&"$A:$K"),8,FALSE) -> 4.9059 | I32: =VLOOKUP(VLOOKUP($F32,'Data BI Summary'!$A:$F,MATCH(I$1,'Data BI Summary'!$2:$2,0),FALSE),INDIRECT("'"&$E32&"'!"&"$A:$K"),9,FALSE) -> 0.09430650817 | J32: =VLOOKUP(VLOOKUP($F32,'Data BI Summary'!$A:$F,MATCH(J$1,'Data BI Summary'!$2:$2,0),FALSE),INDIRECT("'"&$E32&"'!"&"$A:$K"),8,FALSE) -> 5.98110408 | K32: =VLOOKUP(VLOOKUP($F32,'Data BI Summary'!$A:$F,MATCH(K$1,'Data BI Summary'!$2:$2,0),FALSE),INDIRECT("'"&$E32&"'!"&"$A:$K"),9,FALSE) -> 0.05553081817
B33: High | C33: =VLOOKUP(A$31,'Data Billing Quantities'!A:P,MATCH(B33&" kWh",'Data Billing Quantities'!$4:$4,0),FALSE) -> 2000 | E33: BI_StLgt_High | F33: BI Template_EnergyUNM | G33: =VLOOKUP(VLOOKUP($F33,'Data BI Summary'!$A:$F,MATCH(G$1,'Data BI Summary'!$2:$2,0),FALSE),INDIRECT("'"&$E33&"'!"&"$A:$K"),4,FALSE) -> 419.46282 | H33: =VLOOKUP(VLOOKUP($F33,'Data BI Summary'!$A:$F,MATCH(H$1,'Data BI Summary'!$2:$2,0),FALSE),INDIRECT("'"&$E33&"'!"&"$A:$K"),8,FALSE) -> 23.74 | I33: =VLOOKUP(VLOOKUP($F33,'Data BI Summary'!$A:$F,MATCH(I$1,'Data BI Summary'!$2:$2,0),FALSE),INDIRECT("'"&$E33&"'!"&"$A:$K"),9,FALSE) -> 0.1255752446 | J33: =VLOOKUP(VLOOKUP($F33,'Data BI Summary'!$A:$F,MATCH(J$1,'Data BI Summary'!$2:$2,0),FALSE),INDIRECT("'"&$E33&"'!"&"$A:$K"),8,FALSE) -> 28.13748 | K33: =VLOOKUP(VLOOKUP($F33,'Data BI Summary'!$A:$F,MATCH(K$1,'Data BI Summary'!$2:$2,0),FALSE),INDIRECT("'"&$E33&"'!"&"$A:$K"),9,FALSE) -> 0.06707979506
A34: Sen Lgt | B34: Low | C34: =VLOOKUP(A$34,'Data Billing Quantities'!A:P,MATCH(B34&" kWh",'Data Billing Quantities'!$4:$4,0),FALSE) -> 20 | E34: BI_SenLgt_Low | F34: BI Template_EnergyUNM | G34: =VLOOKUP(VLOOKUP($F34,'Data BI Summary'!$A:$F,MATCH(G$1,'Data BI Summary'!$2:$2,0),FALSE),INDIRECT("'"&$E34&"'!"&"$A:$K"),4,FALSE) -> 8.2006092 | H34: =VLOOKUP(VLOOKUP($F34,'Data BI Summary'!$A:$F,MATCH(H$1,'Data BI Summary'!$2:$2,0),FALSE),INDIRECT("'"&$E34&"'!"&"$A:$K"),8,FALSE) -> 0.236 | I34: =VLOOKUP(VLOOKUP($F34,'Data BI Summary'!$A:$F,MATCH(I$1,'Data BI Summary'!$2:$2,0),FALSE),INDIRECT("'"&$E34&"'!"&"$A:$K"),9,FALSE) -> 0.04658507698 | J34: =VLOOKUP(VLOOKUP($F34,'Data BI Summary'!$A:$F,MATCH(J$1,'Data BI Summary'!$2:$2,0),FALSE),INDIRECT("'"&$E34&"'!"&"$A:$K"),8,FALSE) -> 0.282198 | K34: =VLOOKUP(VLOOKUP($F34,'Data BI Summary'!$A:$F,MATCH(K$1,'Data BI Summary'!$2:$2,0),FALSE),INDIRECT("'"&$E34&"'!"&"$A:$K"),9,FALSE) -> 0.0344118337 | L34: Two-tier RPP
B35: Average | C35: =VLOOKUP(A$34,'Data Billing Quantities'!A:P,MATCH(B35&" kWh",'Data Billing Quantities'!$4:$4,0),FALSE) -> 71 | E35: BI_SenLgt_Avg | F35: BI Template_EnergyUNM | G35: =VLOOKUP(VLOOKUP($F35,'Data BI Summary'!$A:$F,MATCH(G$1,'Data BI Summary'!$2:$2,0),FALSE),INDIRECT("'"&$E35&"'!"&"$A:$K"),4,FALSE) -> 19.66058766 | H35: =VLOOKUP(VLOOKUP($F35,'Data BI Summary'!$A:$F,MATCH(H$1,'Data BI Summary'!$2:$2,0),FALSE),INDIRECT("'"&$E35&"'!"&"$A:$K"),8,FALSE) -> 1.7558 | I35: =VLOOKUP(VLOOKUP($F35,'Data BI Summary'!$A:$F,MATCH(I$1,'Data BI Summary'!$2:$2,0),FALSE),INDIRECT("'"&$E35&"'!"&"$A:$K"),9,FALSE) -> 0.1585544258 | J35: =VLOOKUP(VLOOKUP($F35,'Data BI Summary'!$A:$F,MATCH(J$1,'Data BI Summary'!$2:$2,0),FALSE),INDIRECT("'"&$E35&"'!"&"$A:$K"),8,FALSE) -> 1.9657029 | K35: =VLOOKUP(VLOOKUP($F35,'Data BI Summary'!$A:$F,MATCH(K$1,'Data BI Summary'!$2:$2,0),FALSE),INDIRECT("'"&$E35&"'!"&"$A:$K"),9,FALSE) -> 0.09998189952
B36: High | C36: =VLOOKUP(A$34,'Data Billing Quantities'!A:P,MATCH(B36&" kWh",'Data Billing Quantities'!$4:$4,0),FALSE) -> 200 | E36: BI_SenLgt_High | F36: BI Template_EnergyUNM | G36: =VLOOKUP(VLOOKUP($F36,'Data BI Summary'!$A:$F,MATCH(G$1,'Data BI Summary'!$2:$2,0),FALSE),INDIRECT("'"&$E36&"'!"&"$A:$K"),4,FALSE) -> 48.647592 | H36: =VLOOKUP(VLOOKUP($F36,'Data BI Summary'!$A:$F,MATCH(H$1,'Data BI Summary'!$2:$2,0),FALSE),INDIRECT("'"&$E36&"'!"&"$A:$K"),8,FALSE) -> 5.6 | I36: =VLOOKUP(VLOOKUP($F36,'Data BI Summary'!$A:$F,MATCH(I$1,'Data BI Summary'!$2:$2,0),FALSE),INDIRECT("'"&$E36&"'!"&"$A:$K"),9,FALSE) -> 0.2131709174 | J36: =VLOOKUP(VLOOKUP($F36,'Data BI Summary'!$A:$F,MATCH(J$1,'Data BI Summary'!$2:$2,0),FALSE),INDIRECT("'"&$E36&"'!"&"$A:$K"),8,FALSE) -> 6.22398 | K36: =VLOOKUP(VLOOKUP($F36,'Data BI Summary'!$A:$F,MATCH(K$1,'Data BI Summary'!$2:$2,0),FALSE),INDIRECT("'"&$E36&"'!"&"$A:$K"),9,FALSE) -> 0.1279401455
A37: USL | B37: Low | C37: =VLOOKUP(A$37,'Data Billing Quantities'!A:P,MATCH(B37&" kWh",'Data Billing Quantities'!$4:$4,0),FALSE) -> 100 | E37: BI_USL_Low | F37: BI Template_EnergyUNM | G37: =VLOOKUP(VLOOKUP($F37,'Data BI Summary'!$A:$F,MATCH(G$1,'Data BI Summary'!$2:$2,0),FALSE),INDIRECT("'"&$E37&"'!"&"$A:$K"),4,FALSE) -> 50.962842 | H37: =VLOOKUP(VLOOKUP($F37,'Data BI Summary'!$A:$F,MATCH(H$1,'Data BI Summary'!$2:$2,0),FALSE),INDIRECT("'"&$E37&"'!"&"$A:$K"),8,FALSE) -> 3.81 | I37: =VLOOKUP(VLOOKUP($F37,'Data BI Summary'!$A:$F,MATCH(I$1,'Data BI Summary'!$2:$2,0),FALSE),INDIRECT("'"&$E37&"'!"&"$A:$K"),9,FALSE) -> 0.1001840652 | J37: =VLOOKUP(VLOOKUP($F37,'Data BI Summary'!$A:$F,MATCH(J$1,'Data BI Summary'!$2:$2,0),FALSE),INDIRECT("'"&$E37&"'!"&"$A:$K"),8,FALSE) -> 4.195422 | K37: =VLOOKUP(VLOOKUP($F37,'Data BI Summary'!$A:$F,MATCH(K$1,'Data BI Summary'!$2:$2,0),FALSE),INDIRECT("'"&$E37&"'!"&"$A:$K"),9,FALSE) -> 0.08232315615 | L37: Two-tier RPP
B38: Average | C38: =VLOOKUP(A$37,'Data Billing Quantities'!A:P,MATCH(B38&" kWh",'Data Billing Quantities'!$4:$4,0),FALSE) -> 364 | E38: BI_USL_Avg | F38: BI Template_EnergyUNM | G38: =VLOOKUP(VLOOKUP($F38,'Data BI Summary'!$A:$F,MATCH(G$1,'Data BI Summary'!$2:$2,0),FALSE),INDIRECT("'"&$E38&"'!"&"$A:$K"),4,FALSE) -> 85.71274488 | H38: =VLOOKUP(VLOOKUP($F38,'Data BI Summary'!$A:$F,MATCH(H$1,'Data BI Summary'!$2:$2,0),FALSE),INDIRECT("'"&$E38&"'!"&"$A:$K"),8,FALSE) -> 2.0412 | I38: =VLOOKUP(VLOOKUP($F38,'Data BI Summary'!$A:$F,MATCH(I$1,'Data BI Summary'!$2:$2,0),FALSE),INDIRECT("'"&$E38&"'!"&"$A:$K"),9,FALSE) -> 0.04480835931 | J38: =VLOOKUP(VLOOKUP($F38,'Data BI Summary'!$A:$F,MATCH(J$1,'Data BI Summary'!$2:$2,0),FALSE),INDIRECT("'"&$E38&"'!"&"$A:$K"),8,FALSE) -> 2.85277608 | K38: =VLOOKUP(VLOOKUP($F38,'Data BI Summary'!$A:$F,MATCH(K$1,'Data BI Summary'!$2:$2,0),FALSE),INDIRECT("'"&$E38&"'!"&"$A:$K"),9,FALSE) -> 0.03328298591
B39: High | C39: =VLOOKUP(A$37,'Data Billing Quantities'!A:P,MATCH(B39&" kWh",'Data Billing Quantities'!$4:$4,0),FALSE) -> 1000 | E39: BI_USL_High | F39: BI Template_EnergyUNM | G39: =VLOOKUP(VLOOKUP($F39,'Data BI Summary'!$A:$F,MATCH(G$1,'Data BI Summary'!$2:$2,0),FALSE),INDIRECT("'"&$E39&"'!"&"$A:$K"),4,FALSE) -> 173.73762 | H39: =VLOOKUP(VLOOKUP($F39,'Data BI Summary'!$A:$F,MATCH(H$1,'Data BI Summary'!$2:$2,0),FALSE),INDIRECT("'"&$E39&"'!"&"$A:$K"),8,FALSE) -> -2.22 | I39: =VLOOKUP(VLOOKUP($F39,'Data BI Summary'!$A:$F,MATCH(I$1,'Data BI Summary'!$2:$2,0),FALSE),INDIRECT("'"&$E39&"'!"&"$A:$K"),9,FALSE) -> -0.03486180905 | J39: =VLOOKUP(VLOOKUP($F39,'Data BI Summary'!$A:$F,MATCH(J$1,'Data BI Summary'!$2:$2,0),FALSE),INDIRECT("'"&$E39&"'!"&"$A:$K"),8,FALSE) -> -0.38178 | K39: =VLOOKUP(VLOOKUP($F39,'Data BI Summary'!$A:$F,MATCH(K$1,'Data BI Summary'!$2:$2,0),FALSE),INDIRECT("'"&$E39&"'!"&"$A:$K"),9,FALSE) -> -0.002197451536
A40: DGen | B40: Low | C40: =VLOOKUP(A$40,'Data Billing Quantities'!A:P,MATCH($B40&" kWh",'Data Billing Quantities'!$4:$4,0),FALSE) -> 300 | D40: =VLOOKUP(A$40,'Data Billing Quantities'!A:P,MATCH($B40&" kW",'Data Billing Quantities'!$4:$4,0),FALSE) -> 10 | E40: BI_Dgen_Low | F40: BI Template_Demand | G40: =VLOOKUP(VLOOKUP($F40,'Data BI Summary'!$A:$F,MATCH(G$1,'Data BI Summary'!$2:$2,0),FALSE),INDIRECT("'"&$E40&"'!"&"$A:$K"),4,FALSE) -> 301.9371526 | H40: =VLOOKUP(VLOOKUP($F40,'Data BI Summary'!$A:$F,MATCH(H$1,'Data BI Summary'!$2:$2,0),FALSE),INDIRECT("'"&$E40&"'!"&"$A:$K"),8,FALSE) -> 35.347 | I40: =VLOOKUP(VLOOKUP($F40,'Data BI Summary'!$A:$F,MATCH(I$1,'Data BI Summary'!$2:$2,0),FALSE),INDIRECT("'"&$E40&"'!"&"$A:$K"),9,FALSE) -> 0.160782191 | J40: =VLOOKUP(VLOOKUP($F40,'Data BI Summary'!$A:$F,MATCH(J$1,'Data BI Summary'!$2:$2,0),FALSE),INDIRECT("'"&$E40&"'!"&"$A:$K"),8,FALSE) -> 49.32111 | K40: =VLOOKUP(VLOOKUP($F40,'Data BI Summary'!$A:$F,MATCH(K$1,'Data BI Summary'!$2:$2,0),FALSE),INDIRECT("'"&$E40&"'!"&"$A:$K"),9,FALSE) -> 0.1633489273 | L40: Non-RPP
B41: Average | C41: =VLOOKUP(A$40,'Data Billing Quantities'!A:P,MATCH($B41&" kWh",'Data Billing Quantities'!$4:$4,0),FALSE) -> 1328 | D41: =VLOOKUP(A$40,'Data Billing Quantities'!A:P,MATCH($B41&" kW",'Data Billing Quantities'!$4:$4,0),FALSE) -> 13 | E41: BI_Dgen_Avg | F41: BI Template_Demand | G41: =VLOOKUP(VLOOKUP($F41,'Data BI Summary'!$A:$F,MATCH(G$1,'Data BI Summary'!$2:$2,0),FALSE),INDIRECT("'"&$E41&"'!"&"$A:$K"),4,FALSE) -> 476.0840914 | H41: =VLOOKUP(VLOOKUP($F41,'Data BI Summary'!$A:$F,MATCH(H$1,'Data BI Summary'!$2:$2,0),FALSE),INDIRECT("'"&$E41&"'!"&"$A:$K"),8,FALSE) -> 31.3277 | I41: =VLOOKUP(VLOOKUP($F41,'Data BI Summary'!$A:$F,MATCH(I$1,'Data BI Summary'!$2:$2,0),FALSE),INDIRECT("'"&$E41&"'!"&"$A:$K"),9,FALSE) -> 0.1299930455 | J41: =VLOOKUP(VLOOKUP($F41,'Data BI Summary'!$A:$F,MATCH(J$1,'Data BI Summary'!$2:$2,0),FALSE),INDIRECT("'"&$E41&"'!"&"$A:$K"),8,FALSE) -> 47.593001 | K41: =VLOOKUP(VLOOKUP($F41,'Data BI Summary'!$A:$F,MATCH(K$1,'Data BI Summary'!$2:$2,0),FALSE),INDIRECT("'"&$E41&"'!"&"$A:$K"),9,FALSE) -> 0.09996763568
B42: High | C42: =VLOOKUP(A$40,'Data Billing Quantities'!A:P,MATCH($B42&" kWh",'Data Billing Quantities'!$4:$4,0),FALSE) -> 5000 | D42: =VLOOKUP(A$40,'Data Billing Quantities'!A:P,MATCH($B42&" kW",'Data Billing Quantities'!$4:$4,0),FALSE) -> 100 | E42: BI_Dgen_High | F42: BI Template_Demand | G42: =VLOOKUP(VLOOKUP($F42,'Data BI Summary'!$A:$F,MATCH(G$1,'Data BI Summary'!$2:$2,0),FALSE),INDIRECT("'"&$E42&"'!"&"$A:$K"),4,FALSE) -> 1784.34571 | H42: =VLOOKUP(VLOOKUP($F42,'Data BI Summary'!$A:$F,MATCH(H$1,'Data BI Summary'!$2:$2,0),FALSE),INDIRECT("'"&$E42&"'!"&"$A:$K"),8,FALSE) -> 66.38 | I42: =VLOOKUP(VLOOKUP($F42,'Data BI Summary'!$A:$F,MATCH(I$1,'Data BI Summary'!$2:$2,0),FALSE),INDIRECT("'"&$E42&"'!"&"$A:$K"),9,FALSE) -> 0.07769376624 | J42: =VLOOKUP(VLOOKUP($F42,'Data BI Summary'!$A:$F,MATCH(J$1,'Data BI Summary'!$2:$2,0),FALSE),INDIRECT("'"&$E42&"'!"&"$A:$K"),8,FALSE) -> 168.7994 | K42: =VLOOKUP(VLOOKUP($F42,'Data BI Summary'!$A:$F,MATCH(K$1,'Data BI Summary'!$2:$2,0),FALSE),INDIRECT("'"&$E42&"'!"&"$A:$K"),9,FALSE) -> 0.09460016579
A43: ST | B43: Low | C43: =VLOOKUP(A$43,'Data Billing Quantities'!A:P,MATCH($B43&" kWh",'Data Billing Quantities'!$4:$4,0),FALSE) -> 200000 | D43: =VLOOKUP(A$43,'Data Billing Quantities'!A:P,MATCH($B43&" kW",'Data Billing Quantities'!$4:$4,0),FALSE) -> 500 | E43: BI_ST_Low | F43: BI Template_Demand | G43: =VLOOKUP(VLOOKUP($F43,'Data BI Summary'!$A:$F,MATCH(G$1,'Data BI Summary'!$2:$2,0),FALSE),INDIRECT("'"&$E43&"'!"&"$A:$K"),4,FALSE) -> 33341.4749 | H43: =VLOOKUP(VLOOKUP($F43,'Data BI Summary'!$A:$F,MATCH(H$1,'Data BI Summary'!$2:$2,0),FALSE),INDIRECT("'"&$E43&"'!"&"$A:$K"),8,FALSE) -> 441.1342094 | I43: =VLOOKUP(VLOOKUP($F43,'Data BI Summary'!$A:$F,MATCH(I$1,'Data BI Summary'!$2:$2,0),FALSE),INDIRECT("'"&$E43&"'!"&"$A:$K"),9,FALSE) -> 0.2372760867 | J43: =VLOOKUP(VLOOKUP($F43,'Data BI Summary'!$A:$F,MATCH(J$1,'Data BI Summary'!$2:$2,0),FALSE),INDIRECT("'"&$E43&"'!"&"$A:$K"),8,FALSE) -> 697.1921566 | K43: =VLOOKUP(VLOOKUP($F43,'Data BI Summary'!$A:$F,MATCH(K$1,'Data BI Summary'!$2:$2,0),FALSE),INDIRECT("'"&$E43&"'!"&"$A:$K"),9,FALSE) -> 0.02091065733 | L43: Non-RPP
B44: Average | C44: =VLOOKUP(A$43,'Data Billing Quantities'!A:P,MATCH($B44&" kWh",'Data Billing Quantities'!$4:$4,0),FALSE) -> 1601036 | D44: =VLOOKUP(A$43,'Data Billing Quantities'!A:P,MATCH($B44&" kW",'Data Billing Quantities'!$4:$4,0),FALSE) -> 3091 | E44: BI_ST_Avg | F44: BI Template_Demand | G44: =VLOOKUP(VLOOKUP($F44,'Data BI Summary'!$A:$F,MATCH(G$1,'Data BI Summary'!$2:$2,0),FALSE),INDIRECT("'"&$E44&"'!"&"$A:$K"),4,FALSE) -> 249627.6764 | H44: =VLOOKUP(VLOOKUP($F44,'Data BI Summary'!$A:$F,MATCH(H$1,'Data BI Summary'!$2:$2,0),FALSE),INDIRECT("'"&$E44&"'!"&"$A:$K"),8,FALSE) -> 3379.52388 | I44: =VLOOKUP(VLOOKUP($F44,'Data BI Summary'!$A:$F,MATCH(I$1,'Data BI Summary'!$2:$2,0),FALSE),INDIRECT("'"&$E44&"'!"&"$A:$K"),9,FALSE) -> 0.6783695366 | J44: =VLOOKUP(VLOOKUP($F44,'Data BI Summary'!$A:$F,MATCH(J$1,'Data BI Summary'!$2:$2,0),FALSE),INDIRECT("'"&$E44&"'!"&"$A:$K"),8,FALSE) -> 5047.290295 | K44: =VLOOKUP(VLOOKUP($F44,'Data BI Summary'!$A:$F,MATCH(K$1,'Data BI Summary'!$2:$2,0),FALSE),INDIRECT("'"&$E44&"'!"&"$A:$K"),9,FALSE) -> 0.02021927363
B45: High | C45: =VLOOKUP(A$43,'Data Billing Quantities'!A:P,MATCH($B45&" kWh",'Data Billing Quantities'!$4:$4,0),FALSE) -> 4000000 | D45: =VLOOKUP(A$43,'Data Billing Quantities'!A:P,MATCH($B45&" kW",'Data Billing Quantities'!$4:$4,0),FALSE) -> 10000 | E45: BI_ST_High | F45: BI Template_Demand | G45: =VLOOKUP(VLOOKUP($F45,'Data BI Summary'!$A:$F,MATCH(G$1,'Data BI Summary'!$2:$2,0),FALSE),INDIRECT("'"&$E45&"'!"&"$A:$K"),4,FALSE) -> 639845.7873 | H45: =VLOOKUP(VLOOKUP($F45,'Data BI Summary'!$A:$F,MATCH(H$1,'Data BI Summary'!$2:$2,0),FALSE),INDIRECT("'"&$E45&"'!"&"$A:$K"),8,FALSE) -> 11214.85164 | I45: =VLOOKUP(VLOOKUP($F45,'Data BI Summary'!$A:$F,MATCH(I$1,'Data BI Summary'!$2:$2,0),FALSE),INDIRECT("'"&$E45&"'!"&"$A:$K"),9,FALSE) -> 0.8426795718 | J45: =VLOOKUP(VLOOKUP($F45,'Data BI Summary'!$A:$F,MATCH(J$1,'Data BI Summary'!$2:$2,0),FALSE),INDIRECT("'"&$E45&"'!"&"$A:$K"),8,FALSE) -> 16646.99235 | K45: =VLOOKUP(VLOOKUP($F45,'Data BI Summary'!$A:$F,MATCH(K$1,'Data BI Summary'!$2:$2,0),FALSE),INDIRECT("'"&$E45&"'!"&"$A:$K"),9,FALSE) -> 0.02601719459

Sheet BI Template_Energy (hidden)
A1: 2019 Bill Impacts (High Consumption Level) - R1
A3: Rate Class | B3: =RIGHT(A1,LEN(A1)-FIND("- ",A1,1)-1) -> R1
A4: Monthly Consumption (kWh) | B4: =IF(COUNTIF(A1,"*Low*")>0,VLOOKUP(B3,'Data Billing Quantities'!$A:$Z,MATCH("Low kWh",'Data Billing Quantities'!4:4,0),FALSE),IF(COUNTIF(A1,"*Typical*")>0,VLOOKUP(B3,'Data Billing Quantities'!$A:$Z,MATCH("Typical kWh",'Data Billing Quantities'!4:4,0),FALSE),IF(COUNTIF(A1,"*Average*")>0,VLOOKUP(B3,'Data Billing Quantities'!$A:$Z,MATCH("Average kWh",'Data Billing Quantities'!4:4,0),FALSE),IF(COUNTIF(A1,"*High*")>0,VLOOKUP(B3,'Data Billing Quantities'!$A:$Z,MATCH("High kWh",'Data Billing Quantities'!4:4,0),FALSE),"error")))) -> 1800
A5: Peak (kW) | B5: =IF(COUNTIF(A1,"*Low*")>0,VLOOKUP(B3,'Data Billing Quantities'!$A:$Z,MATCH("Low kW",'Data Billing Quantities'!4:4,0),FALSE),IF(COUNTIF(A1,"*Typical*")>0,VLOOKUP(B3,'Data Billing Quantities'!$A:$Z,MATCH("Typical kW",'Data Billing Quantities'!4:4,0),FALSE),IF(COUNTIF(A1,"*Average*")>0,VLOOKUP(B3,'Data Billing Quantities'!$A:$Z,MATCH("Average kW",'Data Billing Quantities'!4:4,0),FALSE),IF(COUNTIF(A1,"*High*")>0,VLOOKUP(B3,'Data Billing Quantities'!$A:$Z,MATCH("High kW",'Data Billing Quantities'!4:4,0),FALSE),"error")))) -> 0
A6: Loss factor | B6: =VLOOKUP(B3,'Data Billing Quantities'!A:D,MATCH(A6,'Data Billing Quantities'!4:4,0),FALSE) -> 1.076
A7: Commodity Threshold | B7: =VLOOKUP(B3,'Data Billing Quantities'!A:D,MATCH(A7,'Data Billing Quantities'!4:4,0),FALSE) -> 600
A8: Monthly Consumption (kWh) - Uplifted | B8: =B4*B6 -> 1936.8
A9: Charge determinant | B9: =VLOOKUP(B3,'Data Billing Quantities'!A:D,MATCH(A9,'Data Billing Quantities'!4:4,0),FALSE) -> kWh
B11: Volume | C11: Current Rate ($) | D11: Current Charge ($) | E11: Volume | F11: Proposed Rate ($) | G11: Proposed Charge ($) | H11: Change ($) | I11: Change (%) | J11: % of Total Bill on RPP | K11: % of Total Bill on TOU
A12: Energy First Tier | B12: =IF(B4>B7,B7,B4) -> 600 | C12: =VLOOKUP($A12,'Data Pass Through'!$A:$D,2,FALSE) -> 0.077 | D12: =B12*C12 -> 46.2 | E12: =B12 -> 600 | F12: =VLOOKUP($A12,'Data Pass Through'!$A:$D,3,FALSE) -> 0.077 | G12: =E12*F12 -> 46.2 | H12: =G12-D12 -> 0 | I12: =IF(ISERROR(H12/ABS(D12)),"N/A",(H12/ABS(D12))) -> 0 | J12: =G12/$G$48 -> 0.1851280261
A13: Energy Second Tier | B13: =IF(B4>B7,(B4)-B7,0) -> 1200 | C13: =VLOOKUP($A13,'Data Pass Through'!$A:$D,2,FALSE) -> 0.089 | D13: =B13*C13 -> 106.8 | E13: =B13 -> 1200 | F13: =VLOOKUP($A13,'Data Pass Through'!$A:$D,3,FALSE) -> 0.089 | G13: =E13*F13 -> 106.8 | H13: 0 | I13: 0 | J13: =G13/$G$48 -> 0.4279582942
A14: Sub-Total: Energy (RPP Tiered) | D14: =SUM(D12:D13) -> 153 | G14: =SUM(G12:G13) -> 153 | H14: 0 | I14: 0 | J14: =G14/$G$48 -> 0.6130863203
A15: TOU-Off Peak | B15: =B$4*VLOOKUP($B$3,'Data Billing Quantities'!$A:$O,MATCH('BI Template_Energy'!$A15,'Data Billing Quantities'!$4:$4,0),FALSE) -> 1170 | C15: =VLOOKUP($A15,'Data Pass Through'!$A:$D,2,FALSE) -> 0.065 | D15: =B15*C15 -> 76.05 | E15: 1170 | F15: =VLOOKUP($A15,'Data Pass Through'!$A:$D,3,FALSE) -> 0.065 | G15: =E15*F15 -> 76.05 | H15: 0 | I15: 0 | K15: =G15/$G$53 -> 0.3131418126
A16: TOU-Mid Peak | B16: =B$4*VLOOKUP($B$3,'Data Billing Quantities'!$A:$O,MATCH('BI Template_Energy'!$A16,'Data Billing Quantities'!$4:$4,0),FALSE) -> 306 | C16: =VLOOKUP($A16,'Data Pass Through'!$A:$D,2,FALSE) -> 0.094 | D16: =B16*C16 -> 28.764 | E16: 306 | F16: =VLOOKUP($A16,'Data Pass Through'!$A:$D,3,FALSE) -> 0.094 | G16: =E16*F16 -> 28.764 | H16: 0 | I16: 0 | K16: 0.1184380157
A17: TOU-On Peak | B17: =B$4*VLOOKUP($B$3,'Data Billing Quantities'!$A:$O,MATCH('BI Template_Energy'!$A17,'Data Billing Quantities'!$4:$4,0),FALSE) -> 324 | C17: =VLOOKUP($A17,'Data Pass Through'!$A:$D,2,FALSE) -> 0.132 | D17: =B17*C17 -> 42.768 | E17: 324 | F17: =VLOOKUP($A17,'Data Pass Through'!$A:$D,3,FALSE) -> 0.132 | G17: =E17*F17 -> 42.768 | H17: 0 | I17: 0 | K17: 0.1761005791
A18: Sub-Total: Energy (RPP TOU) | D18: =SUM(D15:D17) -> 147.582 | G18: =SUM(G15:G17) -> 147.582 | H18: 0 | I18: 0 | J18: =G18/$G$48 -> 0.5913758518 | K18: 0.6076804074
A19: Service Charge | B19: 1 | C19: =VLOOKUP($B$3,'Data Current Rates'!$A:$BA,MATCH('BI Template_Energy'!$A19,CurrentHeader,0),FALSE) -> 33.77 | D19: =B19*C19 -> 33.77 | E19: 1 | F19: =VLOOKUP($B$3,'Data Proposed Rates'!$A:$BA,MATCH('BI Template_Energy'!$A19,ProposedHeader,0),FALSE) -> 38.74 | G19: =E19*F19 -> 38.74 | H19: 4.97 | I19: 0.1471720462 | J19: 0.1552350591 | K19: 0.1595149746
A20: Fixed Foregone Revenue Charge | B20: 1 | C20: =VLOOKUP($B$3,'Data Current Rates'!$A:$BA,MATCH('BI Template_Energy'!$A20,CurrentHeader,0),FALSE) -> 0 | D20: 0 | E20: 1 | F20: =VLOOKUP($B$3,'Data Proposed Rates'!$A:$BA,MATCH('BI Template_Energy'!$A20,ProposedHeader,0),FALSE) -> 1.71 | G20: 1.71 | H20: 1.71 | I20: N/A | J20: =G20/$G$48 -> 0.006852141227 | K20: =G20/$G$53 -> 0.007041058507
A21: Fixed Deferral/Variance Account Rider (General) | B21: 1 | C21: =VLOOKUP($B$3,'Data Current Rates'!$A:$BA,MATCH('BI Template_Energy'!$A21,CurrentHeader,0),FALSE) -> 0 | D21: 0 | E21: 1 | F21: =VLOOKUP($B$3,'Data Proposed Rates'!$A:$BA,MATCH('BI Template_Energy'!$A21,ProposedHeader,0),FALSE) -> 0.04 | G21: 0.04 | H21: 0.04 | I21: N/A | J21: 0.0001602840053 | K21: 0.000164703123
A22: Distribution Volumetric Charge | B22: =IF($B$9="kWh",$B$4,$B$5) -> 1800 | C22: =VLOOKUP($B$3,'Data Current Rates'!$A:$BA,MATCH('BI Template_Energy'!$A22,CurrentHeader,0),FALSE) -> 0.023 | D22: 41.4 | E22: 1800 | F22: =VLOOKUP($B$3,'Data Proposed Rates'!$A:$BA,MATCH('BI Template_Energy'!$A22,ProposedHeader,0),FALSE) -> 0.0222 | G22: 39.96 | H22: -1.44 | I22: -0.0347826087 | J22: 0.1601237213 | K22: 0.1645384199
A23: Volumetric Foregone Revenue Charge | B23: =IF($B$9="kWh",$B$4,$B$5) -> 1800 | C23: =VLOOKUP($B$3,'Data Current Rates'!$A:$BA,MATCH('BI Template_Energy'!$A23,CurrentHeader,0),FALSE) -> 0 | D23: =B23*C23 -> 0 | E23: =B23 -> 1800 | F23: =VLOOKUP($B$3,'Data Proposed Rates'!$A:$BA,MATCH('BI Template_Energy'!$A23,ProposedHeader,0),FALSE) -> 0.0009 | G23: =E23*F23 -> 1.62 | H23: =G23-D23 -> 1.62 | I23: =IF(ISERROR(H23/ABS(D23)),"N/A",(H23/ABS(D23))) -> N/A | J23: =G23/$G$48 -> 0.006491502215 | K23: =G23/$G$53 -> 0.00667047648
A24: Volumetric Deferral/Variance Account Rider (General) | B24: =IF($B$9="kWh",$B$4,$B$5) -> 1800 | C24: =VLOOKUP($B$3,'Data Current Rates'!$A:$BA,MATCH('BI Template_Energy'!$A24,CurrentHeader,0),FALSE) -> 0 | D24: 0 | E24: 1800 | F24: =VLOOKUP($B$3,'Data Proposed Rates'!$A:$BA,MATCH('BI Template_Energy'!$A24,ProposedHeader,0),FALSE) -> -0.0008 | G24: -1.44 | H24: -1.44 | I24: N/A | J24: -0.005770224191 | K24: -0.005929312427
A25: Volumetric Deferral/Variance Account Rider (Sub Account CBR) | B25: 1800 | C25: =VLOOKUP($B$3,'Data Current Rates'!$A:$BA,MATCH('BI Template_Energy'!$A25,CurrentHeader,0),FALSE) -> 0 | D25: 0 | E25: 1800 | F25: =VLOOKUP($B$3,'Data Proposed Rates'!$A:$BA,MATCH('BI Template_Energy'!$A25,ProposedHeader,0),FALSE) -> 0 | G25: 0 | H25: 0 | I25: N/A | J25: 0 | K25: 0
A26: Fair Hydro Plan - Distribution Rate Protection Savings* | D26: =IF(AND(B3<>"R1",B3<>"R2"),0,IF(VLOOKUP($A26,'Data Pass Through'!$A:$D,2,FALSE)=0,0,IF(SUM(D19:D20,D22:D23)<VLOOKUP($A26,'Data Pass Through'!$A:$D,2,FALSE),0,VLOOKUP($A26,'Data Pass Through'!$A:$D,2,FALSE)-SUM(D19:D20,D22:D23)))) -> -38.31 | G26: =IF(AND(B3<>"R1",B3<>"R2"),0,IF(VLOOKUP($A26,'Data Pass Through'!$A:$D,2,FALSE)=0,0,IF(SUM(G19:G20,G22:G23)<VLOOKUP($A26,'Data Pass Through'!$A:$D,2,FALSE),0,VLOOKUP($A26,'Data Pass Through'!$A:$D,2,FALSE)-SUM(G19:G20,G22:G23)))) -> -45.17 | H26: -6.86 | I26: -0.1790655181 | J26: -0.181000713 | K26: -0.1859910016
A27: Sub-Total: Distribution (excluding pass through) | D27: =SUM(INDIRECT("D19:D"&ROW()-1)) -> 36.86 | G27: =SUM(INDIRECT("g19:g"&ROW()-1)) -> 35.46 | H27: =G27-D27 -> -1.4 | I27: =IF(ISERROR(H27/ABS(D27)),"N/A",(H27/ABS(D27))) -> -0.03798155182 | J27: 0.1420917707 | K27: 0.1460093185
A28: Smart Metering Entity Charge | B28: 1 | C28: =VLOOKUP($A28,'Data Pass Through'!$A:$D,2,FALSE) -> 0.57 | D28: =B28*C28 -> 0.57 | E28: 1 | F28: =VLOOKUP($A28,'Data Pass Through'!$A:$D,3,FALSE) -> 0.57 | G28: =E28*F28 -> 0.57 | H28: 0 | I28: 0 | J28: 0.002284047076 | K28: 0.002347019502
A29: Line Losses on Cost of Power (based on two-tier RPP prices) | B29: =B8-B4 -> 136.8 | C29: =IF(B4>B7,C13,C12) -> 0.089 | D29: =B29*C29 -> 12.1752 | E29: 136.8 | F29: =IF(B4>B7,F13,F12) -> 0.089 | G29: =E29*F29 -> 12.1752 | H29: 0 | I29: 0 | J29: 0.04878724553 | K29: 0.05013233657
A30: Line Losses on Cost of Power (based on TOU prices) | B30: =B8-B4 -> 136.8 | C30: =VLOOKUP($B$3,'Data Billing Quantities'!$A:$O,MATCH('BI Template_Energy'!$A15,'Data Billing Quantities'!$4:$4,0),FALSE)*C15+VLOOKUP($B$3,'Data Billing Quantities'!$A:$O,MATCH('BI Template_Energy'!$A16,'Data Billing Quantities'!$4:$4,0),FALSE)*C16+VLOOKUP($B$3,'Data Billing Quantities'!$A:$O,MATCH('BI Template_Energy'!$A17,'Data Billing Quantities'!$4:$4,0),FALSE)*C17 -> 0.08199 | D30: =B30*C30 -> 11.216232 | E30: 136.8 | F30: =VLOOKUP($B$3,'Data Billing Quantities'!$A:$O,MATCH('BI Template_Energy'!$A15,'Data Billing Quantities'!$4:$4,0),FALSE)*F15+VLOOKUP($B$3,'Data Billing Quantities'!$A:$O,MATCH('BI Template_Energy'!$A16,'Data Billing Quantities'!$4:$4,0),FALSE)*F16+VLOOKUP($B$3,'Data Billing Quantities'!$A:$O,MATCH('BI Template_Energy'!$A17,'Data Billing Quantities'!$4:$4,0),FALSE)*F17 -> 0.08199 | G30: =E30*F30 -> 11.216232 | H30: 0 | I30: 0 | J30: 0.04494456473 | K30: 0.04618371096
A31: Sub-Total: Distribution (based on two-tier RPP prices) | D31: =SUM(D27,D28:D29) -> 49.6052 | G31: =SUM(G27,G28:G29) -> 48.2052 | H31: -1.4 | I31: -0.0282228476 | J31: 0.1931630633 | K31: 0.1984886746
A32: Sub-Total: Distribution (based on TOU prices) | D32: =SUM(D27,D28,D30) -> 48.646232 | G32: =SUM(G27,G28,G30) -> 47.246232 | H32: -1.4 | I32: -0.0287792074 | J32: 0.1893203825 | K32: 0.194540049
A33: Retail Transmission Rate – Network Service Rate | B33: =B8 -> 1936.8 | C33: =VLOOKUP($B$3,'Data Current Rates'!$A:$BA,MATCH('BI Template_Energy'!$A33,CurrentHeader,0),FALSE) -> 0.0064 | D33: =B33*C33 -> 12.39552 | E33: 1936.8 | F33: =VLOOKUP($B$3,'Data Proposed Rates'!$A:$BA,MATCH('BI Template_Energy'!$A33,ProposedHeader,0),FALSE) -> 0.0078 | G33: =E33*F33 -> 15.10704 | H33: =G33-D33 -> 2.71152 | I33: 0.21875 | J33: 0.06053542199 | K33: 0.06220441667
A34: Retail Transmission Rate – Line and Transformation Connection Service Rate | B34: =B8 -> 1936.8 | C34: =VLOOKUP($B$3,'Data Current Rates'!$A:$BA,MATCH('BI Template_Energy'!$A34,CurrentHeader,0),FALSE) -> 0.0047 | D34: =B34*C34 -> 9.10296 | E34: 1936.8 | F34: =VLOOKUP($B$3,'Data Proposed Rates'!$A:$BA,MATCH('BI Template_Energy'!$A34,ProposedHeader,0),FALSE) -> 0.007 | G34: =E34*F34 -> 13.5576 | H34: =G34-D34 -> 4.45464 | I34: 0.4893617021 | J34: 0.05432666076 | K34: 0.0558244765
A35: Sub-Total: Retail Transmission | D35: =SUM(D33:D34) -> 21.49848 | G35: =SUM(G33:G34) -> 28.66464 | H35: =G35-D35 -> 7.16616 | I35: 0.3333333333 | J35: 0.1148620827 | K35: 0.1180288932
A36: Sub-Total: Delivery (based on two-tier RPP prices) | D36: =D31+D35 -> 71.10368 | G36: =G31+G35 -> 76.86984 | H36: =G36-D36 -> 5.76616 | I36: 0.08109509944 | J36: 0.3080251461 | K36: 0.3165175678
A37: Sub-Total: Delivery (based on TOU prices) | D37: =D32+D35 -> 70.144712 | G37: =G32+G35 -> 75.910872 | H37: =G37-D37 -> 5.76616 | I37: 0.08220377325 | J37: 0.3041824653 | K37: 0.3125689422
A38: Wholesale Market Service Rate (WMS) - not including CBR | B38: =B8 -> 1936.8 | C38: =VLOOKUP($A38,'Data Pass Through'!$A:$D,2,FALSE) -> 0.003 | D38: =B38*C38 -> 5.8104 | E38: =$B$8 -> 1936.8 | F38: =VLOOKUP($A38,'Data Pass Through'!$A:$D,3,FALSE) -> 0.003 | G38: =E38*F38 -> 5.8104 | H38: 0 | I38: 0 | J38: 0.02328285461 | K38: 0.02392477564
A39: Capacity Based Recovery (CBR) - Applicable for Class B Customers | B39: =B8 -> 1936.8 | C39: =VLOOKUP($A39,'Data Pass Through'!$A:$D,2,FALSE) -> 0.0004 | D39: =B39*C39 -> 0.77472 | E39: =$B$8 -> 1936.8 | F39: =VLOOKUP($A39,'Data Pass Through'!$A:$D,3,FALSE) -> 0.0004 | G39: =E39*F39 -> 0.77472 | H39: =G39-D39 -> 0 | I39: =IF(ISERROR(H39/ABS(D39)),"N/A",(H39/ABS(D39))) -> 0 | J39: 0.003104380615 | K39: 0.003189970086
A40: Rural Rate Protection Charge | B40: =B8 -> 1936.8 | C40: =VLOOKUP($A40,'Data Pass Through'!$A:$D,2,FALSE) -> 0.0005 | D40: 0.9684 | E40: 1936.8 | F40: =VLOOKUP($A40,'Data Pass Through'!$A:$D,3,FALSE) -> 0.0005 | G40: 0.9684 | H40: 0 | I40: 0 | J40: 0.003880475768 | K40: 0.003987462607
A41: Standard Supply Service – Administration Charge (if applicable) | B41: 1 | C41: =VLOOKUP($A41,'Data Pass Through'!$A:$D,2,FALSE) -> 0.25 | D41: =B41*C41 -> 0.25 | E41: 1 | F41: =VLOOKUP($A41,'Data Pass Through'!$A:$D,3,FALSE) -> 0.25 | G41: 0.25 | H41: 0 | I41: 0 | J41: 0.001001775033 | K41: 0.001029394519
A42: Sub-Total: Regulatory | D42: =SUM(D38:D41) -> 7.80352 | G42: =SUM(G38:G41) -> 7.80352 | H42: 0 | I42: 0 | J42: 0.03126948603 | K42: 0.03213160285
A43: Debt Retirement Charge (DRC) | B43: =B4 -> 1800 | C43: =VLOOKUP($A43,'Data Pass Through'!$A:$D,2,FALSE) -> 0 | D43: =B43*C43 -> 0 | E43: 1800 | F43: =VLOOKUP($A43,'Data Pass Through'!$A:$D,3,FALSE) -> 0 | G43: =E43*F43 -> 0 | H43: 0 | I43: N/A | J43: 0 | K43: 0
A44: Total Electricty Charge on Two-Tier RPP | D44: =SUM(D14,D27,D28,D29,D35,D42,D43) -> 231.9072 | G44: =SUM(G14,G27,G28,G29,G35,G42,G43) -> 237.67336 | H44: 5.76616 | I44: 0.02486408356 | J44: 0.9523809524
A45: HST | C45: 0.13 | D45: =D44*C45 -> 30.147936 | F45: =C45 -> 0.13 | G45: =G44*F45 -> 30.8975368 | H45: 0.7496008 | I45: 0.02486408356 | J45: 0.1238095238
A46: Total Electricity Charge on Two-Tier RPP (including HST) | D46: =SUM(D44:D45) -> 262.055136 | G46: =SUM(G44:G45) -> 268.5708968 | H46: 6.5157608 | I46: 0.02486408356 | J46: 1.076190476
A47: Ontario Rebate for Electricity Consumers (OREC) | C47: -0.08 | D47: =D44*C47 -> -18.552576 | F47: =C47 -> -0.08 | G47: =G44*F47 -> -19.0138688 | H47: -0.4612928 | I47: -0.02486408356 | J47: -0.07619047619
A48: Total Amount on Two-Tier RPP | D48: =SUM(D46:D47) -> 243.50256 | G48: =SUM(G46:G47) -> 249.557028 | H48: 6.054468 | I48: 0.02486408356 | J48: 1
A49: Total Electricty Charge on TOU (before HST) | D49: =SUM(D18,D27,D28,D30,D35,D42,D43) -> 225.530232 | G49: =SUM(G18,G27,G28,G30,G35,G42,G43) -> 231.296392 | H49: 5.76616 | I49: 0.02556712663 | K49: =G49/$G$53 -> 0.9523809524
A50: HST | C50: 0.13 | D50: =D49*C50 -> 29.31893016 | F50: =C50 -> 0.13 | G50: =G49*F50 -> 30.06853096 | H50: 0.7496008 | I50: 0.02556712663 | K50: =G50/$G$53 -> 0.1238095238
A51: Total Electricity Charge on TOU (including HST) | D51: =SUM(D49:D50) -> 254.8491622 | G51: =SUM(G49:G50) -> 261.364923 | H51: 6.5157608 | I51: 0.02556712663 | K51: =G51/$G$53 -> 1.076190476
A52: Ontario Rebate for Electricity Consumers (OREC) | C52: -0.08 | D52: =D49*C52 -> -18.04241856 | F52: =C52 -> -0.08 | G52: =G49*F52 -> -18.50371136 | H52: -0.4612928 | I52: -0.02556712663 | K52: =G52/$G$53 -> -0.07619047619
A53: Total Amount on TOU | D53: =SUM(D51:D52) -> 236.8067436 | G53: =SUM(G51:G52) -> 242.8612116 | H53: 6.054468 | I53: 0.02556712663 | K53: =G53/$G$53 -> 1
A54: * Distribution rate protection applies to R1 and R2 customers

Sheet BI Template_EnergyUNM (hidden)
A1: 2019 Bill Impacts (Average Consumption Level) - USL
A3: Rate Class | B3: =RIGHT(A1,LEN(A1)-FIND("- ",A1,1)-1) -> USL
A4: Monthly Consumption (kWh) | B4: =IF(COUNTIF(A1,"*Low*")>0,VLOOKUP(B3,'Data Billing Quantities'!$A:$Z,MATCH("Low kWh",'Data Billing Quantities'!4:4,0),FALSE),IF(COUNTIF(A1,"*Typical*")>0,VLOOKUP(B3,'Data Billing Quantities'!$A:$Z,MATCH("Typical kWh",'Data Billing Quantities'!4:4,0),FALSE),IF(COUNTIF(A1,"*Average*")>0,VLOOKUP(B3,'Data Billing Quantities'!$A:$Z,MATCH("Average kWh",'Data Billing Quantities'!4:4,0),FALSE),IF(COUNTIF(A1,"*High*")>0,VLOOKUP(B3,'Data Billing Quantities'!$A:$Z,MATCH("High kWh",'Data Billing Quantities'!4:4,0),FALSE),"error")))) -> 364
A5: Peak (kW) | B5: =IF(COUNTIF(A1,"*Low*")>0,VLOOKUP(B3,'Data Billing Quantities'!$A:$Z,MATCH("Low kW",'Data Billing Quantities'!4:4,0),FALSE),IF(COUNTIF(A1,"*Typical*")>0,VLOOKUP(B3,'Data Billing Quantities'!$A:$Z,MATCH("Typical kW",'Data Billing Quantities'!4:4,0),FALSE),IF(COUNTIF(A1,"*Average*")>0,VLOOKUP(B3,'Data Billing Quantities'!$A:$Z,MATCH("Average kW",'Data Billing Quantities'!4:4,0),FALSE),IF(COUNTIF(A1,"*High*")>0,VLOOKUP(B3,'Data Billing Quantities'!$A:$Z,MATCH("High kW",'Data Billing Quantities'!4:4,0),FALSE),"error")))) -> 0
A6: Loss factor | B6: =VLOOKUP(B3,'Data Billing Quantities'!A:D,MATCH(A6,'Data Billing Quantities'!4:4,0),FALSE) -> 1.092
A7: Commodity Threshold | B7: =VLOOKUP(B3,'Data Billing Quantities'!A:D,MATCH(A7,'Data Billing Quantities'!4:4,0),FALSE) -> 750
A8: Monthly Consumption (kWh) - Uplifted | B8: =B4*B6 -> 397.488
A9: Charge determinant | B9: =VLOOKUP(B3,'Data Billing Quantities'!A:D,MATCH(A9,'Data Billing Quantities'!4:4,0),FALSE) -> kWh
B11: Volume | C11: Current Rate ($) | D11: Current Charge ($) | E11: Volume | F11: Proposed Rate ($) | G11: Proposed Charge ($) | H11: Change ($) | I11: Change (%) | J11: % of Total Bill on RPP
A12: Energy First Tier | B12: =IF(B4>B7,B7,B4) -> 364 | C12: =VLOOKUP($A12,'Data Pass Through'!$A:$D,2,FALSE) -> 0.077 | D12: =B12*C12 -> 28.028 | E12: =B12 -> 364 | F12: =VLOOKUP($A12,'Data Pass Through'!$A:$D,3,FALSE) -> 0.077 | G12: =E12*F12 -> 28.028 | H12: =G12-D12 -> 0 | I12: =IF(ISERROR(H12/ABS(D12)),"N/A",(H12/ABS(D12))) -> 0 | J12: =G12/$G$41 -> 0.3164662692
A13: Energy Second Tier | B13: =IF(B4>B7,(B4)-B7,0) -> 0 | C13: =VLOOKUP($A13,'Data Pass Through'!$A:$D,2,FALSE) -> 0.089 | D13: =B13*C13 -> 0 | E13: =B13 -> 0 | F13: =VLOOKUP($A13,'Data Pass Through'!$A:$D,3,FALSE) -> 0.089 | G13: =E13*F13 -> 0 | H13: 0 | I13: N/A | J13: 0
A14: Sub-Total: Energy (RPP Tiered) | D14: =SUM(D12:D13) -> 28.028 | G14: =SUM(G12:G13) -> 28.028 | H14: 0 | I14: 0 | J14: 0.3164662692
A15: Service Charge | B15: 1 | C15: =VLOOKUP($B$3,'Data Current Rates'!$A:$BA,MATCH('BI Template_EnergyUNM'!$A15,CurrentHeader,0),FALSE) -> 35.18 | D15: =B15*C15 -> 35.18 | E15: 1 | F15: =VLOOKUP($B$3,'Data Proposed Rates'!$A:$BA,MATCH('BI Template_EnergyUNM'!$A15,ProposedHeader,0),FALSE) -> 37.99 | G15: =E15*F15 -> 37.99 | H15: 2.81 | I15: 0.07987492894 | J15: 0.4289479652
A16: Fixed Foregone Revenue Charge | B16: 1 | C16: =VLOOKUP($B$3,'Data Current Rates'!$A:$BA,MATCH('BI Template_EnergyUNM'!$A16,CurrentHeader,0),FALSE) -> 0 | D16: =B16*C16 -> 0 | E16: =B16 -> 1 | F16: =VLOOKUP($B$3,'Data Proposed Rates'!$A:$BA,MATCH('BI Template_EnergyUNM'!$A16,ProposedHeader,0),FALSE) -> 1.66 | G16: =E16*F16 -> 1.66 | H16: =G16-D16 -> 1.66 | I16: =IF(ISERROR(H16/ABS(D16)),"N/A",(H16/ABS(D16))) -> N/A | J16: =G16/$G$41 -> 0.01874318563
A17: Fixed Deferral/Variance Account Rider (General) | B17: 1 | C17: =VLOOKUP($B$3,'Data Current Rates'!$A:$BA,MATCH('BI Template_EnergyUNM'!$A17,CurrentHeader,0),FALSE) -> 0 | D17: 0 | E17: 1 | F17: =VLOOKUP($B$3,'Data Proposed Rates'!$A:$BA,MATCH('BI Template_EnergyUNM'!$A17,ProposedHeader,0),FALSE) -> 0.01 | G17: 0.01 | H17: 0.01 | I17: N/A | J17: 0.0001129107568
A18: Distribution Volumetric Charge | B18: =IF($B$9="kWh",$B$4,$B$5) -> 364 | C18: =VLOOKUP($B$3,'Data Current Rates'!$A:$BA,MATCH('BI Template_EnergyUNM'!$A18,CurrentHeader,0),FALSE) -> 0.0285 | D18: 10.374 | E18: 364 | F18: =VLOOKUP($B$3,'Data Proposed Rates'!$A:$BA,MATCH('BI Template_EnergyUNM'!$A18,ProposedHeader,0),FALSE) -> 0.0254 | G18: 9.2456 | H18: -1.1284 | I18: -0.1087719298 | J18: 0.1043927693
A19: Volumetric Foregone Revenue Charge | B19: =IF($B$9="kWh",$B$4,$B$5) -> 364 | C19: =VLOOKUP($B$3,'Data Current Rates'!$A:$BA,MATCH('BI Template_EnergyUNM'!$A19,CurrentHeader,0),FALSE) -> 0 | D19: =B19*C19 -> 0 | E19: =B19 -> 364 | F19: =VLOOKUP($B$3,'Data Proposed Rates'!$A:$BA,MATCH('BI Template_EnergyUNM'!$A19,ProposedHeader,0),FALSE) -> -0.0028 | G19: =E19*F19 -> -1.0192 | H19: =G19-D19 -> -1.0192 | I19: =IF(ISERROR(H19/ABS(D19)),"N/A",(H19/ABS(D19))) -> N/A | J19: =G19/$G$41 -> -0.01150786434
A20: Volumetric Deferral/Variance Account Rider (General) | B20: =IF($B$9="kWh",$B$4,$B$5) -> 364 | C20: =VLOOKUP($B$3,'Data Current Rates'!$A:$BA,MATCH('BI Template_EnergyUNM'!$A20,CurrentHeader,0),FALSE) -> 0 | D20: 0 | E20: 364 | F20: =VLOOKUP($B$3,'Data Proposed Rates'!$A:$BA,MATCH('BI Template_EnergyUNM'!$A20,ProposedHeader,0),FALSE) -> -0.0008 | G20: -0.2912 | H20: -0.2912 | I20: N/A | J20: -0.003287961239
A21: Volumetric Deferral/Variance Account Rider (Sub Account CBR) | B21: 364 | C21: =VLOOKUP($B$3,'Data Current Rates'!$A:$BA,MATCH('BI Template_EnergyUNM'!$A21,CurrentHeader,0),FALSE) -> 0 | D21: 0 | E21: 364 | F21: =VLOOKUP($B$3,'Data Proposed Rates'!$A:$BA,MATCH('BI Template_EnergyUNM'!$A21,ProposedHeader,0),FALSE) -> 0 | G21: 0 | H21: 0 | I21: N/A | J21: 0
A22: Volumetric Deferral/Variance Account Rider (Sub-Account Global Adjustment) | B22: 364 | C22: =VLOOKUP($B$3,'Data Current Rates'!$A:$BA,MATCH('BI Template_EnergyUNM'!$A22,CurrentHeader,0),FALSE) -> 0 | D22: 0 | E22: 364 | F22: =VLOOKUP($B$3,'Data Proposed Rates'!$A:$BA,MATCH('BI Template_EnergyUNM'!$A22,ProposedHeader,0),FALSE) -> 0 | G22: 0 | H22: 0 | I22: N/A | J22: 0
A23: Sub-Total: Distribution (excluding pass through) | D23: =SUM(INDIRECT("D15:D"&ROW()-1)) -> 45.554 | G23: =SUM(INDIRECT("g15:g"&ROW()-1)) -> 47.5952 | H23: =G23-D23 -> 2.0412 | I23: 0.04480835931 | J23: 0.5374010053
A24: Smart Metering Entity Charge | B24: 1 | C24: =VLOOKUP($A24,'Data Pass Through'!$A:$D,2,FALSE) -> 0.57 | D24: =B24*C24 -> 0.57 | E24: 1 | F24: =VLOOKUP($A24,'Data Pass Through'!$A:$D,3,FALSE) -> 0.57 | G24: =E24*F24 -> 0.57 | H24: 0 | I24: 0 | J24: 0.006435913139
A25: Line Losses on Cost of Power (based on two-tier RPP prices) | B25: =B8-B4 -> 33.488 | C25: =IF(B4>B7,C13,C12) -> 0.077 | D25: =B25*C25 -> 2.578576 | E25: 33.488 | F25: =IF(B4>B7,F13,F12) -> 0.077 | G25: =E25*F25 -> 2.578576 | H25: 0 | I25: 0 | J25: 0.02911489677
A26: Sub-Total: Distribution (based on two-tier RPP prices) | D26: =SUM(D23,D24:D25) -> 48.702576 | G26: =SUM(G23,G24:G25) -> 50.743776 | H26: 2.0412 | I26: 0.04191154078 | J26: 0.5729518152
A27: Retail Transmission Rate – Network Service Rate | B27: =B8 -> 397.488 | C27: =VLOOKUP($B$3,'Data Current Rates'!$A:$BA,MATCH('BI Template_EnergyUNM'!$A27,CurrentHeader,0),FALSE) -> 0.0047 | D27: =B27*C27 -> 1.8681936 | E27: 397.488 | F27: =VLOOKUP($B$3,'Data Proposed Rates'!$A:$BA,MATCH('BI Template_EnergyUNM'!$A27,ProposedHeader,0),FALSE) -> 0.0051 | G27: =E27*F27 -> 2.0271888 | H27: =G27-D27 -> 0.1589952 | I27: 0.08510638298 | J27: 0.02288914216
A28: Retail Transmission Rate – Line and Transformation Connection Service Rate | B28: =B8 -> 397.488 | C28: =VLOOKUP($B$3,'Data Current Rates'!$A:$BA,MATCH('BI Template_EnergyUNM'!$A28,CurrentHeader,0),FALSE) -> 0.0031 | D28: =B28*C28 -> 1.2322128 | E28: 397.488 | F28: =VLOOKUP($B$3,'Data Proposed Rates'!$A:$BA,MATCH('BI Template_EnergyUNM'!$A28,ProposedHeader,0),FALSE) -> 0.0044 | G28: =E28*F28 -> 1.7489472 | H28: =G28-D28 -> 0.5167344 | I28: 0.4193548387 | J28: 0.0197474952
A29: Sub-Total: Retail Transmission | D29: =SUM(D27:D28) -> 3.1004064 | G29: =SUM(G27:G28) -> 3.776136 | H29: =G29-D29 -> 0.6757296 | I29: 0.2179487179 | J29: 0.04263663736
A30: Sub-Total: Delivery (based on two-tier RPP prices) | D30: =D26+D29 -> 51.8029824 | G30: =G26+G29 -> 54.519912 | H30: =G30-D30 -> 2.7169296 | I30: 0.05244735871 | J30: 0.6155884526
A31: Wholesale Market Service Rate (WMS) - not including CBR | B31: =B8 -> 397.488 | C31: =VLOOKUP($A31,'Data Pass Through'!$A:$D,2,FALSE) -> 0.003 | D31: =B31*C31 -> 1.192464 | E31: =$B$8 -> 397.488 | F31: =VLOOKUP($A31,'Data Pass Through'!$A:$D,3,FALSE) -> 0.003 | G31: =E31*F31 -> 1.192464 | H31: =G31-D31 -> 0 | I31: 0 | J31: 0.01346420127
A32: Capacity Based Recovery (CBR) - Applicable for Class B Customers | B32: =B8 -> 397.488 | C32: =VLOOKUP($A32,'Data Pass Through'!$A:$D,2,FALSE) -> 0.0004 | D32: =B32*C32 -> 0.1589952 | E32: =$B$8 -> 397.488 | F32: =VLOOKUP($A32,'Data Pass Through'!$A:$D,3,FALSE) -> 0.0004 | G32: =E32*F32 -> 0.1589952 | H32: 0 | I32: 0 | J32: 0.001795226836
A33: Rural Rate Protection Charge | B33: =B8 -> 397.488 | C33: =VLOOKUP($A33,'Data Pass Through'!$A:$D,2,FALSE) -> 0.0005 | D33: 0.198744 | E33: 397.488 | F33: =VLOOKUP($A33,'Data Pass Through'!$A:$D,3,FALSE) -> 0.0005 | G33: 0.198744 | H33: 0 | I33: 0 | J33: 0.002244033545
A34: Standard Supply Service – Administration Charge (if applicable) | B34: 1 | C34: =VLOOKUP($A34,'Data Pass Through'!$A:$D,2,FALSE) -> 0.25 | D34: =B34*C34 -> 0.25 | E34: 1 | F34: =VLOOKUP($A34,'Data Pass Through'!$A:$D,3,FALSE) -> 0.25 | G34: 0.25 | H34: 0 | I34: 0 | J34: 0.002822768921
A35: Sub-Total: Regulatory | D35: =SUM(D31:D34) -> 1.8002032 | G35: =SUM(G31:G34) -> 1.8002032 | H35: 0 | I35: 0 | J35: 0.02032623057
A36: Debt Retirement Charge (DRC) | B36: =B4 -> 364 | C36: =VLOOKUP($A36,'Data Pass Through'!$A:$D,2,FALSE) -> 0 | D36: =B36*C36 -> 0 | E36: 364 | F36: =VLOOKUP($A36,'Data Pass Through'!$A:$D,3,FALSE) -> 0 | G36: =E36*F36 -> 0 | H36: 0 | I36: N/A | J36: 0
A37: Total Electricty Charge on Two-Tier RPP | D37: =SUM(D14,D23,D24,D25,D29,D35,D36) -> 81.6311856 | G37: =SUM(G14,G23,G24,G25,G29,G35,G36) -> 84.3481152 | H37: 2.7169296 | I37: 0.03328298591 | J37: 0.9523809524
A38: HST | C38: 0.13 | D38: =D37*C38 -> 10.61205413 | F38: =C38 -> 0.13 | G38: =G37*F38 -> 10.96525498 | H38: 0.353200848 | I38: 0.03328298591 | J38: 0.1238095238
A39: Total Electricity Charge on Two-Tier RPP (including HST) | D39: =SUM(D37:D38) -> 92.24323973 | G39: =SUM(G37:G38) -> 95.31337018 | H39: 3.070130448 | I39: 0.03328298591 | J39: 1.076190476
A40: Ontario Rebate for Electricity Consumers (OREC) | C40: -0.08 | D40: =D37*C40 -> -6.530494848 | F40: =C40 -> -0.08 | G40: =G37*F40 -> -6.747849216 | H40: -0.217354368 | I40: -0.03328298591 | J40: -0.07619047619
A41: Total Amount on Two-Tier RPP | D41: =SUM(D39:D40) -> 85.71274488 | G41: =SUM(G39:G40) -> 88.56552096 | H41: 2.85277608 | I41: 0.03328298591 | J41: 1

Sheet BI Template_Demand (hidden)
A1: 2019 Bill Impacts (Average Consumption Level) - GSd
A3: Rate Class | B3: =RIGHT(A1,LEN(A1)-FIND("- ",A1,1)-1) -> GSd
A4: Monthly Consumption (kWh) | B4: =IF(COUNTIF(A1,"*Low*")>0,VLOOKUP(B3,'Data Billing Quantities'!$A:$Z,MATCH("Low kWh",'Data Billing Quantities'!4:4,0),FALSE),IF(COUNTIF(A1,"*Typical*")>0,VLOOKUP(B3,'Data Billing Quantities'!$A:$Z,MATCH("Typical kWh",'Data Billing Quantities'!4:4,0),FALSE),IF(COUNTIF(A1,"*Average*")>0,VLOOKUP(B3,'Data Billing Quantities'!$A:$Z,MATCH("Average kWh",'Data Billing Quantities'!4:4,0),FALSE),IF(COUNTIF(A1,"*High*")>0,VLOOKUP(B3,'Data Billing Quantities'!$A:$Z,MATCH("High kWh",'Data Billing Quantities'!4:4,0),FALSE),"error")))) -> 36104
A5: Peak (kW) | B5: =IF(COUNTIF(A1,"*Low*")>0,VLOOKUP(B3,'Data Billing Quantities'!$A:$Z,MATCH("Low kW",'Data Billing Quantities'!4:4,0),FALSE),IF(COUNTIF(A1,"*Typical*")>0,VLOOKUP(B3,'Data Billing Quantities'!$A:$Z,MATCH("Typical kW",'Data Billing Quantities'!4:4,0),FALSE),IF(COUNTIF(A1,"*Average*")>0,VLOOKUP(B3,'Data Billing Quantities'!$A:$Z,MATCH("Average kW",'Data Billing Quantities'!4:4,0),FALSE),IF(COUNTIF(A1,"*High*")>0,VLOOKUP(B3,'Data Billing Quantities'!$A:$Z,MATCH("High kW",'Data Billing Quantities'!4:4,0),FALSE),"error")))) -> 124
A6: Loss factor | B6: =VLOOKUP(B3,'Data Billing Quantities'!A:D,MATCH(A6,'Data Billing Quantities'!4:4,0),FALSE) -> 1.061
A7: Load factor | B7: =B4/(B5*730) -> 0.3988510826
A8: Monthly Consumption (kWh) - Uplifted | B8: =B4*B6 -> 38306.344
A9: Charge determinant | B9: =VLOOKUP(B3,'Data Billing Quantities'!A:D,MATCH(A9,'Data Billing Quantities'!4:4,0),FALSE) -> kW
B11: Volume | C11: Current Rate ($) | D11: Current Charge ($) | E11: Volume | F11: Proposed Rate ($) | G11: Proposed Charge ($) | H11: Change ($) | I11: Change (%) | J11: % of Total Bill
A12: Energy (Non-RPP)* | B12: =B8 -> 38306.344 | C12: =VLOOKUP($A12,'Data Pass Through'!A:E,2,FALSE) -> 0.1155 | D12: =B12*C12 -> 4424.382732 | E12: =B8 -> 38306.344 | F12: =VLOOKUP($A12,'Data Pass Through'!A:E,3,FALSE) -> 0.1155 | G12: =E12*F12 -> 4424.382732 | H12: =G12-D12 -> 0 | I12: =IF(ISERROR(H12/ABS(D12)),"N/A",(H12/ABS(D12))) -> 0 | J12: =G12/$G$36 -> 0.5501814196
A13: Service Charge | B13: 1 | C13: =VLOOKUP($B$3,'Data Current Rates'!$A:$BA,MATCH($A13,CurrentHeader,0),FALSE) -> 89.48 | D13: =B13*C13 -> 89.48 | E13: =B13 -> 1 | F13: =VLOOKUP($B$3,'Data Proposed Rates'!$A:$BA,MATCH($A13,ProposedHeader,0),FALSE) -> 104.18 | G13: =E13*F13 -> 104.18 | H13: 14.7 | I13: 0.1642825212 | J13: 0.01295500497
A14: Fixed Foregone Revenue Charge | B14: 1 | C14: =VLOOKUP($B$3,'Data Current Rates'!$A:$BA,MATCH($A14,CurrentHeader,0),FALSE) -> 0 | D14: =B14*C14 -> 0 | E14: =B14 -> 1 | F14: =VLOOKUP($B$3,'Data Proposed Rates'!$A:$BA,MATCH($A14,ProposedHeader,0),FALSE) -> 10.78 | G14: =E14*F14 -> 10.78 | H14: =G14-D14 -> 10.78 | I14: =IF(ISERROR(H14/ABS(D14)),"N/A",(H14/ABS(D14))) -> N/A | J14: =G14/$G$36 -> 0.001340515969
A15: Fixed Deferral/Variance Account Rider (General) | B15: 1 | C15: =VLOOKUP($B$3,'Data Current Rates'!$A:$BA,MATCH($A15,CurrentHeader,0),FALSE) -> 0 | D15: =B15*C15 -> 0 | E15: 1 | F15: =VLOOKUP($B$3,'Data Proposed Rates'!$A:$BA,MATCH($A15,ProposedHeader,0),FALSE) -> -0.05 | G15: =E15*F15 -> -0.05 | H15: -0.05 | I15: N/A | J15: -6.217606533e-06
A16: Distribution Volumetric Charge | B16: =IF($B$9="kWh",$B$4,$B$5) -> 124 | C16: =VLOOKUP($B$3,'Data Current Rates'!$A:$BA,MATCH($A16,CurrentHeader,0),FALSE) -> 16.0236 | D16: 1986.9264 | E16: =$B$5 -> 124 | F16: =VLOOKUP($B$3,'Data Proposed Rates'!$A:$BA,MATCH($A16,ProposedHeader,0),FALSE) -> 17.2259 | G16: 2136.0116 | H16: 149.0852 | I16: =IF(ISERROR(H16/ABS(D16)),"N/A",(H16/ABS(D16))) -> 0.07503307621 | J16: 0.2656175936
A17: Volumetric Foregone Revenue Charge | B17: =IF($B$9="kWh",$B$4,$B$5) -> 124 | C17: =VLOOKUP($B$3,'Data Current Rates'!$A:$BA,MATCH($A17,CurrentHeader,0),FALSE) -> 0 | D17: =B17*C17 -> 0 | E17: =$B$5 -> 124 | F17: =VLOOKUP($B$3,'Data Proposed Rates'!$A:$BA,MATCH($A17,ProposedHeader,0),FALSE) -> 0.7293 | G17: =E17*F17 -> 90.4332 | H17: =G17-D17 -> 90.4332 | I17: =IF(ISERROR(H17/ABS(D17)),"N/A",(H17/ABS(D17))) -> N/A | J17: =G17/$G$36 -> 0.0112455611
A18: Volumetric Deferral/Variance Account Rider (General) | B18: =IF($B$9="kWh",$B$4,$B$5) -> 124 | C18: =VLOOKUP($B$3,'Data Current Rates'!$A:$BA,MATCH($A18,CurrentHeader,0),FALSE) -> 0 | D18: 0 | E18: =$B$5 -> 124 | F18: =VLOOKUP($B$3,'Data Proposed Rates'!$A:$BA,MATCH($A18,ProposedHeader,0),FALSE) -> -0.2655 | G18: -32.922 | H18: -32.922 | I18: =IF(ISERROR(H18/ABS(D18)),"N/A",(H18/ABS(D18))) -> N/A | J18: -0.004093920846
A19: Volumetric Deferral/Variance Account Rider (Sub Account CBR) | B19: 124 | C19: =VLOOKUP($B$3,'Data Current Rates'!$A:$BA,MATCH($A19,CurrentHeader,0),FALSE) -> 0 | D19: 0 | E19: 124 | F19: =VLOOKUP($B$3,'Data Proposed Rates'!$A:$BA,MATCH($A19,ProposedHeader,0),FALSE) -> 0 | G19: 0 | H19: 0 | I19: N/A | J19: 0
A20: Volumetric Deferral/Variance Account Rider (Sub-Account Global Adjustment) | B20: =B4 -> 36104 | C20: =VLOOKUP($B$3,'Data Current Rates'!$A:$BA,MATCH($A20,CurrentHeader,0),FALSE) -> 0 | D20: 0 | E20: =B4 -> 36104 | F20: =VLOOKUP($B$3,'Data Proposed Rates'!$A:$BA,MATCH($A20,ProposedHeader,0),FALSE) -> -0.0058 | G20: -209.4032 | H20: =G20-D20 -> -209.4032 | I20: =IF(ISERROR(H20/ABS(D20)),"N/A",(H20/ABS(D20))) -> N/A | J20: -0.02603973409
A21: Sub-Total: Distribution | D21: =SUM(INDIRECT("D13:D"&ROW()-1)) -> 2076.4064 | G21: =SUM(INDIRECT("g13:g"&ROW()-1)) -> 2099.0296 | H21: 22.6232 | I21: 0.0108953623 | J21: 0.2610188031
A22: Retail Transmission Rate – Network Service Rate | B22: =B5 -> 124 | C22: =VLOOKUP($B$3,'Data Current Rates'!$A:$BA,MATCH($A22,CurrentHeader,0),FALSE) -> 1.7027 | D22: =B22*C22 -> 211.1348 | E22: 124 | F22: =VLOOKUP($B$3,'Data Proposed Rates'!$A:$BA,MATCH($A22,ProposedHeader,0),FALSE) -> 1.9327 | G22: =E22*F22 -> 239.6548 | H22: 28.52 | I22: 0.1350795795 | J22: 0.029801585
A23: Retail Transmission Rate – Line and Transformation Connection Service Rate | B23: =B5 -> 124 | C23: =VLOOKUP($B$3,'Data Current Rates'!$A:$BA,MATCH($A23,CurrentHeader,0),FALSE) -> 1.1398 | D23: =B23*C23 -> 141.3352 | E23: 124 | F23: =VLOOKUP($B$3,'Data Proposed Rates'!$A:$BA,MATCH($A23,ProposedHeader,0),FALSE) -> 1.6437 | G23: =E23*F23 -> 203.8188 | H23: 62.4836 | I23: 0.4420951044 | J23: 0.02534530205
A24: Sub-Total: Retail Transmission | D24: =SUM(D22:D23) -> 352.47 | G24: =SUM(G22:G23) -> 443.4736 | H24: 91.0036 | I24: 0.2581882146 | J24: 0.05514688705
A25: Sub-Total: Delivery | D25: =D21+D24 -> 2428.8764 | G25: =G21+G24 -> 2542.5032 | H25: 113.6268 | I25: 0.04678163121 | J25: 0.3161656901
A26: Wholesale Market Service Rate (WMS) - not including CBR | B26: =$B$8 -> 38306.344 | C26: =VLOOKUP($A26,'Data Pass Through'!$A:$D,2,FALSE) -> 0.003 | D26: =B26*C26 -> 114.919032 | E26: =$B$8 -> 38306.344 | F26: =VLOOKUP($A26,'Data Pass Through'!$A:$D,3,FALSE) -> 0.003 | G26: =E26*F26 -> 114.919032 | H26: 0 | I26: 0 | J26: 0.01429042648
A27: Capacity Based Recovery (CBR) - Applicable for Class B Customers | B27: =$B$8 -> 38306.344 | C27: =VLOOKUP($A27,'Data Pass Through'!$A:$D,2,FALSE) -> 0.0004 | D27: =B27*C27 -> 15.3225376 | E27: =$B$8 -> 38306.344 | F27: =VLOOKUP($A27,'Data Pass Through'!$A:$D,3,FALSE) -> 0.0004 | G27: =E27*F27 -> 15.3225376 | H27: =G27-D27 -> 0 | I27: 0 | J27: 0.001905390198
A28: Rural Rate Protection Charge | B28: =$B$8 -> 38306.344 | C28: =VLOOKUP($A28,'Data Pass Through'!$A:$D,2,FALSE) -> 0.0005 | D28: =B28*C28 -> 19.153172 | E28: =$B$8 -> 38306.344 | F28: =VLOOKUP($A28,'Data Pass Through'!$A:$D,3,FALSE) -> 0.0005 | G28: =E28*F28 -> 19.153172 | H28: =G28-D28 -> 0 | I28: 0 | J28: 0.002381737747
A29: Standard Supply Service – Administration Charge (if applicable) | B29: 1 | C29: =VLOOKUP($A29,'Data Pass Through'!$A:$D,2,FALSE) -> 0.25 | D29: =B29*C29 -> 0.25 | E29: 1 | F29: =VLOOKUP($A29,'Data Pass Through'!$A:$D,3,FALSE) -> 0.25 | G29: =E29*F29 -> 0.25 | H29: 0 | I29: 0 | J29: 3.108803267e-05
A30: Sub-Total: Regulatory | D30: =SUM(D26:D29) -> 149.6447416 | G30: =SUM(G26:G29) -> 149.6447416 | H30: 0 | I30: 0 | J30: 0.01860864246
A31: Debt Retirement Charge (DRC) | B31: =B4 -> 36104 | C31: =VLOOKUP($A31,'Data Pass Through'!$A:$D,2,FALSE) -> 0 | D31: =B31*C31 -> 0 | E31: =B4 -> 36104 | F31: =VLOOKUP($A31,'Data Pass Through'!$A:$D,3,FALSE) -> 0 | G31: =E31*F31 -> 0 | H31: 0 | I31: N/A | J31: 0
A32: Total Electricity Charge (before HST) | D32: =SUM(D12,D21,D24,D30,D31) -> 7002.903874 | G32: =SUM(G12,G21,G24,G30,G31) -> 7116.530674 | H32: 113.6268 | I32: 0.01622566896 | J32: 0.8849557522
A33: HST | C33: 0.13 | D33: =D32*C33 -> 910.3775036 | F33: =C33 -> 0.13 | G33: =G32*F33 -> 925.1489876 | H33: 14.771484 | I33: 0.01622566896 | J33: 0.1150442478
A34: Total Electricity Charge (including HST) | D34: =SUM(D32:D33) -> 7913.281377 | G34: =SUM(G32:G33) -> 8041.679661 | H34: 128.398284 | I34: 0.01622566896 | J34: 1
A35: Ontario Rebate for Electricity Consumers (OREC) | C35: 0 | D35: =D32*C35 -> 0 | F35: =C35 -> 0 | G35: =G32*F35 -> 0 | H35: 0 | I35: N/A | J35: 0
A36: Total Amount | D36: =SUM(D34:D35) -> 7913.281377 | G36: =SUM(G34:G35) -> 8041.679661 | H36: 128.398284 | I36: 0.01622566896 | J36: 1
A37: =VLOOKUP(A12,'Data Pass Through'!A:E,5,FALSE) -> *Average HOEP plus average GA used to approximate Non-RPP Energy Charges (IESO Monthly Market Report December 2017)

Sheet BI_UR_Low
A1: 2019 Bill Impacts (Low Consumption Level) - UR
A3: Rate Class | B3: =RIGHT(A1,LEN(A1)-FIND("- ",A1,1)-1) -> UR
A4: Monthly Consumption (kWh) | B4: =IF(COUNTIF(A1,"*Low*")>0,VLOOKUP(B3,'Data Billing Quantities'!$A:$Z,MATCH("Low kWh",'Data Billing Quantities'!4:4,0),FALSE),IF(COUNTIF(A1,"*Typical*")>0,VLOOKUP(B3,'Data Billing Quantities'!$A:$Z,MATCH("Typical kWh",'Data Billing Quantities'!4:4,0),FALSE),IF(COUNTIF(A1,"*Average*")>0,VLOOKUP(B3,'Data Billing Quantities'!$A:$Z,MATCH("Average kWh",'Data Billing Quantities'!4:4,0),FALSE),IF(COUNTIF(A1,"*High*")>0,VLOOKUP(B3,'Data Billing Quantities'!$A:$Z,MATCH("High kWh",'Data Billing Quantities'!4:4,0),FALSE),"error")))) -> 350
A5: Peak (kW) | B5: =IF(COUNTIF(A1,"*Low*")>0,VLOOKUP(B3,'Data Billing Quantities'!$A:$Z,MATCH("Low kW",'Data Billing Quantities'!4:4,0),FALSE),IF(COUNTIF(A1,"*Typical*")>0,VLOOKUP(B3,'Data Billing Quantities'!$A:$Z,MATCH("Typical kW",'Data Billing Quantities'!4:4,0),FALSE),IF(COUNTIF(A1,"*Average*")>0,VLOOKUP(B3,'Data Billing Quantities'!$A:$Z,MATCH("Average kW",'Data Billing Quantities'!4:4,0),FALSE),IF(COUNTIF(A1,"*High*")>0,VLOOKUP(B3,'Data Billing Quantities'!$A:$Z,MATCH("High kW",'Data Billing Quantities'!4:4,0),FALSE),"error")))) -> 0
A6: Loss factor | B6: =VLOOKUP(B3,'Data Billing Quantities'!A:D,MATCH(A6,'Data Billing Quantities'!4:4,0),FALSE) -> 1.057
A7: Commodity Threshold | B7: =VLOOKUP(B3,'Data Billing Quantities'!A:D,MATCH(A7,'Data Billing Quantities'!4:4,0),FALSE) -> 600
A8: Monthly Consumption (kWh) - Uplifted | B8: =B4*B6 -> 369.95
A9: Charge determinant | B9: =VLOOKUP(B3,'Data Billing Quantities'!A:D,MATCH(A9,'Data Billing Quantities'!4:4,0),FALSE) -> kWh
B11: Volume | C11: Current Rate ($) | D11: Current Charge ($) | E11: Volume | F11: Proposed Rate ($) | G11: Proposed Charge ($) | H11: Change ($) | I11: Change (%) | J11: % of Total Bill on RPP | K11: % of Total Bill on TOU
A12: Energy First Tier | B12: =IF(B4>B7,B7,B4) -> 350 | C12: =VLOOKUP($A12,'Data Pass Through'!$A:$D,2,FALSE) -> 0.077 | D12: =B12*C12 -> 26.95 | E12: =B12 -> 350 | F12: =VLOOKUP($A12,'Data Pass Through'!$A:$D,3,FALSE) -> 0.077 | G12: =E12*F12 -> 26.95 | H12: =G12-D12 -> 0 | I12: =IF(ISERROR(H12/ABS(D12)),"N/A",(H12/ABS(D12))) -> 0 | J12: =G12/$G$48 -> 0.371554385
A13: Energy Second Tier | B13: =IF(B4>B7,(B4)-B7,0) -> 0 | C13: =VLOOKUP($A13,'Data Pass Through'!$A:$D,2,FALSE) -> 0.089 | D13: =B13*C13 -> 0 | E13: =B13 -> 0 | F13: =VLOOKUP($A13,'Data Pass Through'!$A:$D,3,FALSE) -> 0.089 | G13: =E13*F13 -> 0 | H13: 0 | I13: N/A | J13: =G13/$G$48 -> 0
A14: Sub-Total: Energy (RPP Tiered) | D14: =SUM(D12:D13) -> 26.95 | G14: =SUM(G12:G13) -> 26.95 | H14: 0 | I14: 0 | J14: =G14/$G$48 -> 0.371554385
A15: TOU-Off Peak | B15: =B$4*VLOOKUP($B$3,'Data Billing Quantities'!$A:$O,MATCH(BI_UR_Low!$A15,'Data Billing Quantities'!$4:$4,0),FALSE) -> 227.5 | C15: =VLOOKUP($A15,'Data Pass Through'!$A:$D,2,FALSE) -> 0.065 | D15: =B15*C15 -> 14.7875 | E15: 227.5 | F15: =VLOOKUP($A15,'Data Pass Through'!$A:$D,3,FALSE) -> 0.065 | G15: =E15*F15 -> 14.7875 | H15: 0 | I15: 0 | K15: =G15/$G$53 -> 0.1985659576
A16: TOU-Mid Peak | B16: =B$4*VLOOKUP($B$3,'Data Billing Quantities'!$A:$O,MATCH(BI_UR_Low!$A16,'Data Billing Quantities'!$4:$4,0),FALSE) -> 59.5 | C16: =VLOOKUP($A16,'Data Pass Through'!$A:$D,2,FALSE) -> 0.094 | D16: =B16*C16 -> 5.593 | E16: 59.5 | F16: =VLOOKUP($A16,'Data Pass Through'!$A:$D,3,FALSE) -> 0.094 | G16: =E16*F16 -> 5.593 | H16: 0 | I16: 0 | K16: 0.07510257994
A17: TOU-On Peak | B17: =B$4*VLOOKUP($B$3,'Data Billing Quantities'!$A:$O,MATCH(BI_UR_Low!$A17,'Data Billing Quantities'!$4:$4,0),FALSE) -> 63 | C17: =VLOOKUP($A17,'Data Pass Through'!$A:$D,2,FALSE) -> 0.132 | D17: =B17*C17 -> 8.316 | E17: 63 | F17: =VLOOKUP($A17,'Data Pass Through'!$A:$D,3,FALSE) -> 0.132 | G17: =E17*F17 -> 8.316 | H17: 0 | I17: 0 | K17: 0.1116669149
A18: Sub-Total: Energy (RPP TOU) | D18: =SUM(D15:D17) -> 28.6965 | G18: =SUM(G15:G17) -> 28.6965 | H18: 0 | I18: 0 | J18: =G18/$G$48 -> 0.3956330393 | K18: 0.3853354524
A19: Service Charge | B19: 1 | C19: =VLOOKUP($B$3,'Data Current Rates'!$A:$BA,MATCH(BI_UR_Low!$A19,CurrentHeader,0),FALSE) -> 24.78 | D19: =B19*C19 -> 24.78 | E19: 1 | F19: =VLOOKUP($B$3,'Data Proposed Rates'!$A:$BA,MATCH(BI_UR_Low!$A19,ProposedHeader,0),FALSE) -> 28.63 | G19: =E19*F19 -> 28.63 | H19: 3.85 | I19: 0.1553672316 | J19: 0.3947162168 | K19: 0.384442493
A20: Fixed Foregone Revenue Charge | B20: 1 | C20: =VLOOKUP($B$3,'Data Current Rates'!$A:$BA,MATCH(BI_UR_Low!$A20,CurrentHeader,0),FALSE) -> 0 | D20: 0 | E20: 1 | F20: =VLOOKUP($B$3,'Data Proposed Rates'!$A:$BA,MATCH(BI_UR_Low!$A20,ProposedHeader,0),FALSE) -> 1.46 | G20: 1.46 | H20: 1.46 | I20: N/A | J20: 0.02012873477 | K20: 0.01960482151
A21: Fixed Deferral/Variance Account Rider (General) | B21: 1 | C21: =VLOOKUP($B$3,'Data Current Rates'!$A:$BA,MATCH(BI_UR_Low!$A21,CurrentHeader,0),FALSE) -> 0 | D21: 0 | E21: 1 | F21: =VLOOKUP($B$3,'Data Proposed Rates'!$A:$BA,MATCH(BI_UR_Low!$A21,ProposedHeader,0),FALSE) -> 0.05 | G21: 0.05 | H21: 0.05 | I21: N/A | J21: 0.0006893402319 | K21: 0.0006713979969
A22: Distribution Volumetric Charge | B22: =IF($B$9="kWh",$B$4,$B$5) -> 350 | C22: =VLOOKUP($B$3,'Data Current Rates'!$A:$BA,MATCH(BI_UR_Low!$A22,CurrentHeader,0),FALSE) -> 0.0094 | D22: 3.29 | E22: 350 | F22: =VLOOKUP($B$3,'Data Proposed Rates'!$A:$BA,MATCH(BI_UR_Low!$A22,ProposedHeader,0),FALSE) -> 0.0075 | G22: 2.625 | H22: -0.665 | I22: -0.2021276596 | J22: 0.03619036217 | K22: 0.03524839484
A23: Volumetric Foregone Revenue Charge | B23: =IF($B$9="kWh",$B$4,$B$5) -> 350 | C23: =VLOOKUP($B$3,'Data Current Rates'!$A:$BA,MATCH(BI_UR_Low!$A23,CurrentHeader,0),FALSE) -> 0 | D23: 0 | E23: 350 | F23: =VLOOKUP($B$3,'Data Proposed Rates'!$A:$BA,MATCH(BI_UR_Low!$A23,ProposedHeader,0),FALSE) -> 0 | G23: 0 | H23: 0 | I23: N/A | J23: 0 | K23: 0
A24: Volumetric Deferral/Variance Account Rider (General) | B24: =IF($B$9="kWh",$B$4,$B$5) -> 350 | C24: =VLOOKUP($B$3,'Data Current Rates'!$A:$BA,MATCH(BI_UR_Low!$A24,CurrentHeader,0),FALSE) -> 0 | D24: 0 | E24: 350 | F24: =VLOOKUP($B$3,'Data Proposed Rates'!$A:$BA,MATCH(BI_UR_Low!$A24,ProposedHeader,0),FALSE) -> -0.0008 | G24: -0.28 | H24: -0.28 | I24: N/A | J24: -0.003860305299 | K24: -0.003759828783
A25: Volumetric Deferral/Variance Account Rider (Sub Account CBR) | B25: 350 | C25: =VLOOKUP($B$3,'Data Current Rates'!$A:$BA,MATCH(BI_UR_Low!$A25,CurrentHeader,0),FALSE) -> 0 | D25: 0 | E25: 350 | F25: =VLOOKUP($B$3,'Data Proposed Rates'!$A:$BA,MATCH(BI_UR_Low!$A25,ProposedHeader,0),FALSE) -> 0 | G25: 0 | H25: 0 | I25: N/A | J25: 0 | K25: 0
A26: Fair Hydro Plan - Distribution Rate Protection Savings* | D26: =IF(AND(B3<>"R1",B3<>"R2"),0,IF(VLOOKUP($A26,'Data Pass Through'!$A:$D,2,FALSE)=0,0,IF(SUM(D19:D20,D22:D23)<VLOOKUP($A26,'Data Pass Through'!$A:$D,2,FALSE),0,VLOOKUP($A26,'Data Pass Through'!$A:$D,2,FALSE)-SUM(D19:D20,D22:D23)))) -> 0 | G26: =IF(AND(B3<>"R1",B3<>"R2"),0,IF(VLOOKUP($A26,'Data Pass Through'!$A:$D,2,FALSE)=0,0,IF(SUM(G19:G20,G22:G23)<VLOOKUP($A26,'Data Pass Through'!$A:$D,2,FALSE),0,VLOOKUP($A26,'Data Pass Through'!$A:$D,2,FALSE)-SUM(G19:G20,G22:G23)))) -> 0 | H26: 0 | I26: N/A | J26: 0 | K26: 0
A27: Sub-Total: Distribution (excluding pass through) | D27: =SUM(INDIRECT("D19:D"&ROW()-1)) -> 28.07 | G27: =SUM(INDIRECT("g19:g"&ROW()-1)) -> 32.485 | H27: =G27-D27 -> 4.415 | I27: 0.157285358 | J27: 0.4478643487 | K27: 0.4362072786
A28: Smart Metering Entity Charge | B28: 1 | C28: =VLOOKUP($A28,'Data Pass Through'!$A:$D,2,FALSE) -> 0.57 | D28: =B28*C28 -> 0.57 | E28: 1 | F28: =VLOOKUP($A28,'Data Pass Through'!$A:$D,3,FALSE) -> 0.57 | G28: =E28*F28 -> 0.57 | H28: 0 | I28: 0 | J28: 0.007858478643 | K28: 0.007653937165
A29: Line Losses on Cost of Power (based on two-tier RPP prices) | B29: =B8-B4 -> 19.95 | C29: =IF(B4>B7,C13,C12) -> 0.077 | D29: =B29*C29 -> 1.53615 | E29: 19.95 | F29: =IF(B4>B7,F13,F12) -> 0.077 | G29: =E29*F29 -> 1.53615 | H29: 0 | I29: 0 | J29: 0.02117859994 | K29: 0.02062736066
A30: Line Losses on Cost of Power (based on TOU prices) | B30: =B8-B4 -> 19.95 | C30: =VLOOKUP($B$3,'Data Billing Quantities'!$A:$O,MATCH(BI_UR_Low!$A15,'Data Billing Quantities'!$4:$4,0),FALSE)*C15+VLOOKUP($B$3,'Data Billing Quantities'!$A:$O,MATCH(BI_UR_Low!$A16,'Data Billing Quantities'!$4:$4,0),FALSE)*C16+VLOOKUP($B$3,'Data Billing Quantities'!$A:$O,MATCH(BI_UR_Low!$A17,'Data Billing Quantities'!$4:$4,0),FALSE)*C17 -> 0.08199 | D30: =B30*C30 -> 1.6357005 | E30: 19.95 | F30: =VLOOKUP($B$3,'Data Billing Quantities'!$A:$O,MATCH(BI_UR_Low!$A15,'Data Billing Quantities'!$4:$4,0),FALSE)*F15+VLOOKUP($B$3,'Data Billing Quantities'!$A:$O,MATCH(BI_UR_Low!$A16,'Data Billing Quantities'!$4:$4,0),FALSE)*F16+VLOOKUP($B$3,'Data Billing Quantities'!$A:$O,MATCH(BI_UR_Low!$A17,'Data Billing Quantities'!$4:$4,0),FALSE)*F17 -> 0.08199 | G30: =E30*F30 -> 1.6357005 | H30: 0 | I30: 0 | J30: 0.02255108324 | K30: 0.02196412079
A31: Sub-Total: Distribution (based on two-tier RPP prices) | D31: =SUM(D27,D28:D29) -> 30.17615 | G31: =SUM(G27,G28:G29) -> 34.59115 | H31: 4.415 | I31: 0.1463075972 | J31: 0.4769014272 | K31: 0.4644885764
A32: Sub-Total: Distribution (based on TOU prices) | D32: =SUM(D27,D28,D30) -> 30.2757005 | G32: =SUM(G27,G28,G30) -> 34.6907005 | H32: 4.415 | I32: 0.1458265185 | J32: 0.4782739105 | K32: 0.4658253366
A33: Retail Transmission Rate – Network Service Rate | B33: =B8 -> 369.95 | C33: =VLOOKUP($B$3,'Data Current Rates'!$A:$BA,MATCH(BI_UR_Low!$A33,CurrentHeader,0),FALSE) -> 0.0067 | D33: =B33*C33 -> 2.478665 | E33: 369.95 | F33: =VLOOKUP($B$3,'Data Proposed Rates'!$A:$BA,MATCH(BI_UR_Low!$A33,ProposedHeader,0),FALSE) -> 0.0084 | G33: =E33*F33 -> 3.10758 | H33: =G33-D33 -> 0.628915 | I33: 0.2537313433 | J33: 0.04284359836 | K33: 0.04172845975
A34: Retail Transmission Rate – Line and Transformation Connection Service Rate | B34: =B8 -> 369.95 | C34: =VLOOKUP($B$3,'Data Current Rates'!$A:$BA,MATCH(BI_UR_Low!$A34,CurrentHeader,0),FALSE) -> 0.0047 | D34: =B34*C34 -> 1.738765 | E34: 369.95 | F34: =VLOOKUP($B$3,'Data Proposed Rates'!$A:$BA,MATCH(BI_UR_Low!$A34,ProposedHeader,0),FALSE) -> 0.0074 | G34: =E34*F34 -> 2.73763 | H34: =G34-D34 -> 0.998865 | I34: 0.5744680851 | J34: 0.03774316998 | K34: 0.03676078597
A35: Sub-Total: Retail Transmission | D35: =SUM(D33:D34) -> 4.21743 | G35: =SUM(G33:G34) -> 5.84521 | H35: =G35-D35 -> 1.62778 | I35: 0.3859649123 | J35: 0.08058676834 | K35: 0.07848924571
A36: Sub-Total: Delivery (based on two-tier RPP prices) | D36: =D31+D35 -> 34.39358 | G36: =G31+G35 -> 40.43636 | H36: =G36-D36 -> 6.04278 | I36: 0.1756949989 | J36: 0.5574881956 | K36: 0.5429778221
A37: Sub-Total: Delivery (based on TOU prices) | D37: =D32+D35 -> 34.4931305 | G37: =G32+G35 -> 40.5359105 | H37: =G37-D37 -> 6.04278 | I37: 0.1751879262 | J37: 0.5588606789 | K37: 0.5443145823
A38: Wholesale Market Service Rate (WMS) - not including CBR | B38: =B8 -> 369.95 | C38: =VLOOKUP($A38,'Data Pass Through'!$A:$D,2,FALSE) -> 0.003 | D38: =B38*C38 -> 1.10985 | E38: =$B$8 -> 369.95 | F38: =VLOOKUP($A38,'Data Pass Through'!$A:$D,3,FALSE) -> 0.003 | G38: =E38*F38 -> 1.10985 | H38: 0 | I38: 0 | J38: 0.01530128513 | K38: 0.01490302134
A39: Capacity Based Recovery (CBR) - Applicable for Class B Customers | B39: =B8 -> 369.95 | C39: =VLOOKUP($A39,'Data Pass Through'!$A:$D,2,FALSE) -> 0.0004 | D39: =B39*C39 -> 0.14798 | E39: =$B$8 -> 369.95 | F39: =VLOOKUP($A39,'Data Pass Through'!$A:$D,3,FALSE) -> 0.0004 | G39: =E39*F39 -> 0.14798 | H39: 0 | I39: 0 | J39: 0.00204017135 | K39: 0.001987069512
A40: Rural Rate Protection Charge | B40: =B8 -> 369.95 | C40: =VLOOKUP($A40,'Data Pass Through'!$A:$D,2,FALSE) -> 0.0005 | D40: 0.184975 | E40: 369.95 | F40: =VLOOKUP($A40,'Data Pass Through'!$A:$D,3,FALSE) -> 0.0005 | G40: 0.184975 | H40: 0 | I40: 0 | J40: 0.002550214188 | K40: 0.00248383689
A41: Standard Supply Service – Administration Charge (if applicable) | B41: 1 | C41: =VLOOKUP($A41,'Data Pass Through'!$A:$D,2,FALSE) -> 0.25 | D41: =B41*C41 -> 0.25 | E41: 1 | F41: =VLOOKUP($A41,'Data Pass Through'!$A:$D,3,FALSE) -> 0.25 | G41: 0.25 | H41: 0 | I41: 0 | J41: 0.003446701159 | K41: 0.003356989985
A42: Sub-Total: Regulatory | D42: =SUM(D38:D41) -> 1.692805 | G42: =SUM(G38:G41) -> 1.692805 | H42: 0 | I42: 0 | J42: 0.02333837182 | K42: 0.02273091772
A43: Debt Retirement Charge (DRC) | B43: =B4 -> 350 | C43: =VLOOKUP($A43,'Data Pass Through'!$A:$D,2,FALSE) -> 0 | D43: =B43*C43 -> 0 | E43: 350 | F43: =VLOOKUP($A43,'Data Pass Through'!$A:$D,3,FALSE) -> 0 | G43: =E43*F43 -> 0 | H43: 0 | I43: N/A | J43: 0 | K43: 0
A44: Total Electricty Charge on Two-Tier RPP | D44: =SUM(D14,D27,D28,D29,D35,D42,D43) -> 63.036385 | G44: =SUM(G14,G27,G28,G29,G35,G42,G43) -> 69.079165 | H44: 6.04278 | I44: 0.09586177888 | J44: 0.9523809524
A45: HST | C45: 0.13 | D45: =D44*C45 -> 8.19473005 | F45: =C45 -> 0.13 | G45: =G44*F45 -> 8.98029145 | H45: 0.7855614 | I45: 0.09586177888 | J45: 0.1238095238
A46: Total Electricity Charge on Two-Tier RPP (including HST) | D46: =SUM(D44:D45) -> 71.23111505 | G46: =SUM(G44:G45) -> 78.05945645 | H46: 6.8283414 | I46: 0.09586177888 | J46: 1.076190476
A47: Ontario Rebate for Electricity Consumers (OREC) | C47: -0.08 | D47: =D44*C47 -> -5.0429108 | F47: =C47 -> -0.08 | G47: =G44*F47 -> -5.5263332 | H47: -0.4834224 | I47: -0.09586177888 | J47: -0.07619047619
A48: Total Amount on Two-Tier RPP | D48: =SUM(D46:D47) -> 66.18820425 | G48: =SUM(G46:G47) -> 72.53312325 | H48: 6.344919 | I48: 0.09586177888 | J48: 1
A49: Total Electricty Charge on TOU (before HST) | D49: =SUM(D18,D27,D28,D30,D35,D42,D43) -> 64.8824355 | G49: =SUM(G18,G27,G28,G30,G35,G42,G43) -> 70.9252155 | H49: 6.04278 | I49: 0.09313429672 | K49: =G49/$G$53 -> 0.9523809524
A50: HST | C50: 0.13 | D50: =D49*C50 -> 8.434716615 | F50: =C50 -> 0.13 | G50: =G49*F50 -> 9.220278015 | H50: 0.7855614 | I50: 0.09313429672 | K50: =G50/$G$53 -> 0.1238095238
A51: Total Electricity Charge on TOU (including HST) | D51: =SUM(D49:D50) -> 73.31715211 | G51: =SUM(G49:G50) -> 80.14549352 | H51: 6.8283414 | I51: 0.09313429672 | K51: =G51/$G$53 -> 1.076190476
A52: Ontario Rebate for Electricity Consumers (OREC) | C52: -0.08 | D52: =D49*C52 -> -5.19059484 | F52: =C52 -> -0.08 | G52: =G49*F52 -> -5.67401724 | H52: -0.4834224 | I52: -0.09313429672 | K52: =G52/$G$53 -> -0.07619047619
A53: Total Amount on TOU | D53: =SUM(D51:D52) -> 68.12655727 | G53: =SUM(G51:G52) -> 74.47147628 | H53: 6.344919 | I53: 0.09313429672 | K53: =G53/$G$53 -> 1
A54: * Distribution rate protection applies to R1 and R2 customers

Sheet BI_UR_Typical
A1: 2019 Bill Impacts (Typical Consumption Level) - UR
A3: Rate Class | B3: =RIGHT(A1,LEN(A1)-FIND("- ",A1,1)-1) -> UR
A4: Monthly Consumption (kWh) | B4: =IF(COUNTIF(A1,"*Low*")>0,VLOOKUP(B3,'Data Billing Quantities'!$A:$Z,MATCH("Low kWh",'Data Billing Quantities'!4:4,0),FALSE),IF(COUNTIF(A1,"*Typical*")>0,VLOOKUP(B3,'Data Billing Quantities'!$A:$Z,MATCH("Typical kWh",'Data Billing Quantities'!4:4,0),FALSE),IF(COUNTIF(A1,"*Average*")>0,VLOOKUP(B3,'Data Billing Quantities'!$A:$Z,MATCH("Average kWh",'Data Billing Quantities'!4:4,0),FALSE),IF(COUNTIF(A1,"*High*")>0,VLOOKUP(B3,'Data Billing Quantities'!$A:$Z,MATCH("High kWh",'Data Billing Quantities'!4:4,0),FALSE),"error")))) -> 750
A5: Peak (kW) | B5: =IF(COUNTIF(A1,"*Low*")>0,VLOOKUP(B3,'Data Billing Quantities'!$A:$Z,MATCH("Low kW",'Data Billing Quantities'!4:4,0),FALSE),IF(COUNTIF(A1,"*Typical*")>0,VLOOKUP(B3,'Data Billing Quantities'!$A:$Z,MATCH("Typical kW",'Data Billing Quantities'!4:4,0),FALSE),IF(COUNTIF(A1,"*Average*")>0,VLOOKUP(B3,'Data Billing Quantities'!$A:$Z,MATCH("Average kW",'Data Billing Quantities'!4:4,0),FALSE),IF(COUNTIF(A1,"*High*")>0,VLOOKUP(B3,'Data Billing Quantities'!$A:$Z,MATCH("High kW",'Data Billing Quantities'!4:4,0),FALSE),"error")))) -> 0
A6: Loss factor | B6: =VLOOKUP(B3,'Data Billing Quantities'!A:D,MATCH(A6,'Data Billing Quantities'!4:4,0),FALSE) -> 1.057
A7: Commodity Threshold | B7: =VLOOKUP(B3,'Data Billing Quantities'!A:D,MATCH(A7,'Data Billing Quantities'!4:4,0),FALSE) -> 600
A8: Monthly Consumption (kWh) - Uplifted | B8: =B4*B6 -> 792.75
A9: Charge determinant | B9: =VLOOKUP(B3,'Data Billing Quantities'!A:D,MATCH(A9,'Data Billing Quantities'!4:4,0),FALSE) -> kWh
B11: Volume | C11: Current Rate ($) | D11: Current Charge ($) | E11: Volume | F11: Proposed Rate ($) | G11: Proposed Charge ($) | H11: Change ($) | I11: Change (%) | J11: % of Total Bill on RPP | K11: % of Total Bill on TOU
A12: Energy First Tier | B12: =IF(B4>B7,B7,B4) -> 600 | C12: =VLOOKUP($A12,'Data Pass Through'!$A:$D,2,FALSE) -> 0.077 | D12: =B12*C12 -> 46.2 | E12: =B12 -> 600 | F12: =VLOOKUP($A12,'Data Pass Through'!$A:$D,3,FALSE) -> 0.077 | G12: =E12*F12 -> 46.2 | H12: =G12-D12 -> 0 | I12: =IF(ISERROR(H12/ABS(D12)),"N/A",(H12/ABS(D12))) -> 0 | J12: =G12/$G$48 -> 0.3827520613
A13: Energy Second Tier | B13: =IF(B4>B7,(B4)-B7,0) -> 150 | C13: =VLOOKUP($A13,'Data Pass Through'!$A:$D,2,FALSE) -> 0.089 | D13: =B13*C13 -> 13.35 | E13: =B13 -> 150 | F13: =VLOOKUP($A13,'Data Pass Through'!$A:$D,3,FALSE) -> 0.089 | G13: =E13*F13 -> 13.35 | H13: 0 | I13: 0 | J13: =G13/$G$48 -> 0.1106004333
A14: Sub-Total: Energy (RPP Tiered) | D14: =SUM(D12:D13) -> 59.55 | G14: =SUM(G12:G13) -> 59.55 | H14: 0 | I14: 0 | J14: =G14/$G$48 -> 0.4933524945
A15: TOU-Off Peak | B15: =B$4*VLOOKUP($B$3,'Data Billing Quantities'!$A:$O,MATCH(BI_UR_Typical!$A15,'Data Billing Quantities'!$4:$4,0),FALSE) -> 487.5 | C15: =VLOOKUP($A15,'Data Pass Through'!$A:$D,2,FALSE) -> 0.065 | D15: =B15*C15 -> 31.6875 | E15: 487.5 | F15: =VLOOKUP($A15,'Data Pass Through'!$A:$D,3,FALSE) -> 0.065 | G15: =E15*F15 -> 31.6875 | H15: 0 | I15: 0 | K15: =G15/$G$53 -> 0.2588219278
A16: TOU-Mid Peak | B16: =B$4*VLOOKUP($B$3,'Data Billing Quantities'!$A:$O,MATCH(BI_UR_Typical!$A16,'Data Billing Quantities'!$4:$4,0),FALSE) -> 127.5 | C16: =VLOOKUP($A16,'Data Pass Through'!$A:$D,2,FALSE) -> 0.094 | D16: =B16*C16 -> 11.985 | E16: 127.5 | F16: =VLOOKUP($A16,'Data Pass Through'!$A:$D,3,FALSE) -> 0.094 | G16: =E16*F16 -> 11.985 | H16: 0 | I16: 0 | K16: 0.09789288535
A17: TOU-On Peak | B17: =B$4*VLOOKUP($B$3,'Data Billing Quantities'!$A:$O,MATCH(BI_UR_Typical!$A17,'Data Billing Quantities'!$4:$4,0),FALSE) -> 135 | C17: =VLOOKUP($A17,'Data Pass Through'!$A:$D,2,FALSE) -> 0.132 | D17: =B17*C17 -> 17.82 | E17: 135 | F17: =VLOOKUP($A17,'Data Pass Through'!$A:$D,3,FALSE) -> 0.132 | G17: =E17*F17 -> 17.82 | H17: 0 | I17: 0 | K17: 0.1455528758
A18: Sub-Total: Energy (RPP TOU) | D18: =SUM(D15:D17) -> 61.4925 | G18: =SUM(G15:G17) -> 61.4925 | H18: 0 | I18: 0 | J18: =G18/$G$48 -> 0.5094454789 | K18: 0.502267689
A19: Service Charge | B19: 1 | C19: =VLOOKUP($B$3,'Data Current Rates'!$A:$BA,MATCH(BI_UR_Typical!$A19,CurrentHeader,0),FALSE) -> 24.78 | D19: =B19*C19 -> 24.78 | E19: 1 | F19: =VLOOKUP($B$3,'Data Proposed Rates'!$A:$BA,MATCH(BI_UR_Typical!$A19,ProposedHeader,0),FALSE) -> 28.63 | G19: =E19*F19 -> 28.63 | H19: 3.85 | I19: 0.1553672316 | J19: 0.2371902925 | K19: 0.2338484195
A20: Fixed Foregone Revenue Charge | B20: 1 | C20: =VLOOKUP($B$3,'Data Current Rates'!$A:$BA,MATCH(BI_UR_Typical!$A20,CurrentHeader,0),FALSE) -> 0 | D20: 0 | E20: 1 | F20: =VLOOKUP($B$3,'Data Proposed Rates'!$A:$BA,MATCH(BI_UR_Typical!$A20,ProposedHeader,0),FALSE) -> 1.46 | G20: 1.46 | H20: 1.46 | I20: N/A | J20: 0.01209562791 | K20: 0.01192520756
A21: Fixed Deferral/Variance Account Rider (General) | B21: 1 | C21: =VLOOKUP($B$3,'Data Current Rates'!$A:$BA,MATCH(BI_UR_Typical!$A21,CurrentHeader,0),FALSE) -> 0 | D21: 0 | E21: 1 | F21: =VLOOKUP($B$3,'Data Proposed Rates'!$A:$BA,MATCH(BI_UR_Typical!$A21,ProposedHeader,0),FALSE) -> 0.05 | G21: 0.05 | H21: 0.05 | I21: N/A | J21: 0.0004142338325 | K21: 0.0004083975192
A22: Distribution Volumetric Charge | B22: =IF($B$9="kWh",$B$4,$B$5) -> 750 | C22: =VLOOKUP($B$3,'Data Current Rates'!$A:$BA,MATCH(BI_UR_Typical!$A22,CurrentHeader,0),FALSE) -> 0.0094 | D22: 7.05 | E22: 750 | F22: =VLOOKUP($B$3,'Data Proposed Rates'!$A:$BA,MATCH(BI_UR_Typical!$A22,ProposedHeader,0),FALSE) -> 0.0075 | G22: 5.625 | H22: -1.425 | I22: -0.2021276596 | J22: 0.04660130616 | K22: 0.04594472091
A23: Volumetric Foregone Revenue Charge | B23: =IF($B$9="kWh",$B$4,$B$5) -> 750 | C23: =VLOOKUP($B$3,'Data Current Rates'!$A:$BA,MATCH(BI_UR_Typical!$A23,CurrentHeader,0),FALSE) -> 0 | D23: 0 | E23: 750 | F23: =VLOOKUP($B$3,'Data Proposed Rates'!$A:$BA,MATCH(BI_UR_Typical!$A23,ProposedHeader,0),FALSE) -> 0 | G23: 0 | H23: 0 | I23: N/A | J23: 0 | K23: 0
A24: Volumetric Deferral/Variance Account Rider (General) | B24: =IF($B$9="kWh",$B$4,$B$5) -> 750 | C24: =VLOOKUP($B$3,'Data Current Rates'!$A:$BA,MATCH(BI_UR_Typical!$A24,CurrentHeader,0),FALSE) -> 0 | D24: 0 | E24: 750 | F24: =VLOOKUP($B$3,'Data Proposed Rates'!$A:$BA,MATCH(BI_UR_Typical!$A24,ProposedHeader,0),FALSE) -> -0.0008 | G24: -0.6 | H24: -0.6 | I24: N/A | J24: -0.00497080599 | K24: -0.00490077023
A25: Volumetric Deferral/Variance Account Rider (Sub Account CBR) | B25: 750 | C25: =VLOOKUP($B$3,'Data Current Rates'!$A:$BA,MATCH(BI_UR_Typical!$A25,CurrentHeader,0),FALSE) -> 0 | D25: 0 | E25: 750 | F25: =VLOOKUP($B$3,'Data Proposed Rates'!$A:$BA,MATCH(BI_UR_Typical!$A25,ProposedHeader,0),FALSE) -> 0 | G25: 0 | H25: 0 | I25: N/A | J25: 0 | K25: 0
A26: Fair Hydro Plan - Distribution Rate Protection Savings* | D26: =IF(AND(B3<>"R1",B3<>"R2"),0,IF(VLOOKUP($A26,'Data Pass Through'!$A:$D,2,FALSE)=0,0,IF(SUM(D19:D20,D22:D23)<VLOOKUP($A26,'Data Pass Through'!$A:$D,2,FALSE),0,VLOOKUP($A26,'Data Pass Through'!$A:$D,2,FALSE)-SUM(D19:D20,D22:D23)))) -> 0 | G26: =IF(AND(B3<>"R1",B3<>"R2"),0,IF(VLOOKUP($A26,'Data Pass Through'!$A:$D,2,FALSE)=0,0,IF(SUM(G19:G20,G22:G23)<VLOOKUP($A26,'Data Pass Through'!$A:$D,2,FALSE),0,VLOOKUP($A26,'Data Pass Through'!$A:$D,2,FALSE)-SUM(G19:G20,G22:G23)))) -> 0 | H26: 0 | I26: N/A | J26: 0 | K26: 0
A27: Sub-Total: Distribution (excluding pass through) | D27: =SUM(INDIRECT("D19:D"&ROW()-1)) -> 31.83 | G27: =SUM(INDIRECT("g19:g"&ROW()-1)) -> 35.165 | H27: =G27-D27 -> 3.335 | I27: 0.1047753691 | J27: 0.2913306544 | K27: 0.2872259753
A28: Smart Metering Entity Charge | B28: 1 | C28: =VLOOKUP($A28,'Data Pass Through'!$A:$D,2,FALSE) -> 0.57 | D28: =B28*C28 -> 0.57 | E28: 1 | F28: =VLOOKUP($A28,'Data Pass Through'!$A:$D,3,FALSE) -> 0.57 | G28: =E28*F28 -> 0.57 | H28: 0 | I28: 0 | J28: 0.004722265691 | K28: 0.004655731719
A29: Line Losses on Cost of Power (based on two-tier RPP prices) | B29: =B8-B4 -> 42.75 | C29: =IF(B4>B7,C13,C12) -> 0.089 | D29: =B29*C29 -> 3.80475 | E29: 42.75 | F29: =IF(B4>B7,F13,F12) -> 0.089 | G29: =E29*F29 -> 3.80475 | H29: 0 | I29: 0 | J29: 0.03152112349 | K29: 0.03107700922
A30: Line Losses on Cost of Power (based on TOU prices) | B30: =B8-B4 -> 42.75 | C30: =VLOOKUP($B$3,'Data Billing Quantities'!$A:$O,MATCH(BI_UR_Typical!$A15,'Data Billing Quantities'!$4:$4,0),FALSE)*C15+VLOOKUP($B$3,'Data Billing Quantities'!$A:$O,MATCH(BI_UR_Typical!$A16,'Data Billing Quantities'!$4:$4,0),FALSE)*C16+VLOOKUP($B$3,'Data Billing Quantities'!$A:$O,MATCH(BI_UR_Typical!$A17,'Data Billing Quantities'!$4:$4,0),FALSE)*C17 -> 0.08199 | D30: =B30*C30 -> 3.5050725 | E30: 42.75 | F30: =VLOOKUP($B$3,'Data Billing Quantities'!$A:$O,MATCH(BI_UR_Typical!$A15,'Data Billing Quantities'!$4:$4,0),FALSE)*F15+VLOOKUP($B$3,'Data Billing Quantities'!$A:$O,MATCH(BI_UR_Typical!$A16,'Data Billing Quantities'!$4:$4,0),FALSE)*F16+VLOOKUP($B$3,'Data Billing Quantities'!$A:$O,MATCH(BI_UR_Typical!$A17,'Data Billing Quantities'!$4:$4,0),FALSE)*F17 -> 0.08199 | G30: =E30*F30 -> 3.5050725 | H30: 0 | I30: 0 | J30: 0.0290383923 | K30: 0.02862925827
A31: Sub-Total: Distribution (based on two-tier RPP prices) | D31: =SUM(D27,D28:D29) -> 36.20475 | G31: =SUM(G27,G28:G29) -> 39.53975 | H31: 3.335 | I31: 0.09211498491 | J31: 0.3275740436 | K31: 0.3229587162
A32: Sub-Total: Distribution (based on TOU prices) | D32: =SUM(D27,D28,D30) -> 35.9050725 | G32: =SUM(G27,G28,G30) -> 39.2400725 | H32: 3.335 | I32: 0.09288381189 | J32: 0.3250913124 | K32: 0.3205109652
A33: Retail Transmission Rate – Network Service Rate | B33: =B8 -> 792.75 | C33: =VLOOKUP($B$3,'Data Current Rates'!$A:$BA,MATCH(BI_UR_Typical!$A33,CurrentHeader,0),FALSE) -> 0.0067 | D33: =B33*C33 -> 5.311425 | E33: 792.75 | F33: =VLOOKUP($B$3,'Data Proposed Rates'!$A:$BA,MATCH(BI_UR_Typical!$A33,ProposedHeader,0),FALSE) -> 0.0084 | G33: =E33*F33 -> 6.6591 | H33: =G33-D33 -> 1.347675 | I33: 0.2537313433 | J33: 0.05516849028 | K33: 0.0543911984
A34: Retail Transmission Rate – Line and Transformation Connection Service Rate | B34: =B8 -> 792.75 | C34: =VLOOKUP($B$3,'Data Current Rates'!$A:$BA,MATCH(BI_UR_Typical!$A34,CurrentHeader,0),FALSE) -> 0.0047 | D34: =B34*C34 -> 3.725925 | E34: 792.75 | F34: =VLOOKUP($B$3,'Data Proposed Rates'!$A:$BA,MATCH(BI_UR_Typical!$A34,ProposedHeader,0),FALSE) -> 0.0074 | G34: =E34*F34 -> 5.86635 | H34: =G34-D34 -> 2.140425 | I34: 0.5744680851 | J34: 0.04860081287 | K34: 0.04791605574
A35: Sub-Total: Retail Transmission | D35: =SUM(D33:D34) -> 9.03735 | G35: =SUM(G33:G34) -> 12.52545 | H35: =G35-D35 -> 3.4881 | I35: 0.3859649123 | J35: 0.1037693032 | K35: 0.1023072541
A36: Sub-Total: Delivery (based on two-tier RPP prices) | D36: =D31+D35 -> 45.2421 | G36: =G31+G35 -> 52.0652 | H36: =G36-D36 -> 6.8231 | I36: 0.1508130701 | J36: 0.4313433468 | K36: 0.4252659703
A37: Sub-Total: Delivery (based on TOU prices) | D37: =D32+D35 -> 44.9424225 | G37: =G32+G35 -> 51.7655225 | H37: =G37-D37 -> 6.8231 | I37: 0.1518186965 | J37: 0.4288606156 | K37: 0.4228182194
A38: Wholesale Market Service Rate (WMS) - not including CBR | B38: =B8 -> 792.75 | C38: =VLOOKUP($A38,'Data Pass Through'!$A:$D,2,FALSE) -> 0.003 | D38: =B38*C38 -> 2.37825 | E38: =$B$8 -> 792.75 | F38: =VLOOKUP($A38,'Data Pass Through'!$A:$D,3,FALSE) -> 0.003 | G38: =E38*F38 -> 2.37825 | H38: 0 | I38: 0 | J38: 0.01970303224 | K38: 0.019425428
A39: Capacity Based Recovery (CBR) - Applicable for Class B Customers | B39: =B8 -> 792.75 | C39: =VLOOKUP($A39,'Data Pass Through'!$A:$D,2,FALSE) -> 0.0004 | D39: =B39*C39 -> 0.3171 | E39: =$B$8 -> 792.75 | F39: =VLOOKUP($A39,'Data Pass Through'!$A:$D,3,FALSE) -> 0.0004 | G39: =E39*F39 -> 0.3171 | H39: 0 | I39: 0 | J39: 0.002627070966 | K39: 0.002590057067
A40: Rural Rate Protection Charge | B40: =B8 -> 792.75 | C40: =VLOOKUP($A40,'Data Pass Through'!$A:$D,2,FALSE) -> 0.0005 | D40: 0.396375 | E40: 792.75 | F40: =VLOOKUP($A40,'Data Pass Through'!$A:$D,3,FALSE) -> 0.0005 | G40: 0.396375 | H40: 0 | I40: 0 | J40: 0.003283838707 | K40: 0.003237571334
A41: Standard Supply Service – Administration Charge (if applicable) | B41: 1 | C41: =VLOOKUP($A41,'Data Pass Through'!$A:$D,2,FALSE) -> 0.25 | D41: =B41*C41 -> 0.25 | E41: 1 | F41: =VLOOKUP($A41,'Data Pass Through'!$A:$D,3,FALSE) -> 0.25 | G41: 0.25 | H41: 0 | I41: 0 | J41: 0.002071169163 | K41: 0.002041987596
A42: Sub-Total: Regulatory | D42: =SUM(D38:D41) -> 3.341725 | G42: =SUM(G38:G41) -> 3.341725 | H42: 0 | I42: 0 | J42: 0.02768511108 | K42: 0.027295044
A43: Debt Retirement Charge (DRC) | B43: =B4 -> 750 | C43: =VLOOKUP($A43,'Data Pass Through'!$A:$D,2,FALSE) -> 0 | D43: =B43*C43 -> 0 | E43: 750 | F43: =VLOOKUP($A43,'Data Pass Through'!$A:$D,3,FALSE) -> 0 | G43: =E43*F43 -> 0 | H43: 0 | I43: N/A | J43: 0 | K43: 0
A44: Total Electricty Charge on Two-Tier RPP | D44: =SUM(D14,D27,D28,D29,D35,D42,D43) -> 108.133825 | G44: =SUM(G14,G27,G28,G29,G35,G42,G43) -> 114.956925 | H44: 6.8231 | I44: 0.06309866501 | J44: 0.9523809524
A45: HST | C45: 0.13 | D45: =D44*C45 -> 14.05739725 | F45: =C45 -> 0.13 | G45: =G44*F45 -> 14.94440025 | H45: 0.887003 | I45: 0.06309866501 | J45: 0.1238095238
A46: Total Electricity Charge on Two-Tier RPP (including HST) | D46: =SUM(D44:D45) -> 122.1912223 | G46: =SUM(G44:G45) -> 129.9013252 | H46: 7.710103 | I46: 0.06309866501 | J46: 1.076190476
A47: Ontario Rebate for Electricity Consumers (OREC) | C47: -0.08 | D47: =D44*C47 -> -8.650706 | F47: =C47 -> -0.08 | G47: =G44*F47 -> -9.196554 | H47: -0.545848 | I47: -0.06309866501 | J47: -0.07619047619
A48: Total Amount on Two-Tier RPP | D48: =SUM(D46:D47) -> 113.5405163 | G48: =SUM(G46:G47) -> 120.7047712 | H48: 7.164255 | I48: 0.06309866501 | J48: 1
A49: Total Electricty Charge on TOU (before HST) | D49: =SUM(D18,D27,D28,D30,D35,D42,D43) -> 109.7766475 | G49: =SUM(G18,G27,G28,G30,G35,G42,G43) -> 116.5997475 | H49: 6.8231 | I49: 0.06215438488 | K49: =G49/$G$53 -> 0.9523809524
A50: HST | C50: 0.13 | D50: =D49*C50 -> 14.27096417 | F50: =C50 -> 0.13 | G50: =G49*F50 -> 15.15796717 | H50: 0.887003 | I50: 0.06215438488 | K50: =G50/$G$53 -> 0.1238095238
A51: Total Electricity Charge on TOU (including HST) | D51: =SUM(D49:D50) -> 124.0476117 | G51: =SUM(G49:G50) -> 131.7577147 | H51: 7.710103 | I51: 0.06215438488 | K51: =G51/$G$53 -> 1.076190476
A52: Ontario Rebate for Electricity Consumers (OREC) | C52: -0.08 | D52: =D49*C52 -> -8.7821318 | F52: =C52 -> -0.08 | G52: =G49*F52 -> -9.3279798 | H52: -0.545848 | I52: -0.06215438488 | K52: =G52/$G$53 -> -0.07619047619
A53: Total Amount on TOU | D53: =SUM(D51:D52) -> 115.2654799 | G53: =SUM(G51:G52) -> 122.4297349 | H53: 7.164255 | I53: 0.06215438488 | K53: =G53/$G$53 -> 1
A54: * Distribution rate protection applies to R1 and R2 customers

Sheet BI_UR_Avg
A1: 2019 Bill Impacts (Average Consumption Level) - UR
A3: Rate Class | B3: =RIGHT(A1,LEN(A1)-FIND("- ",A1,1)-1) -> UR
A4: Monthly Consumption (kWh) | B4: =IF(COUNTIF(A1,"*Low*")>0,VLOOKUP(B3,'Data Billing Quantities'!$A:$Z,MATCH("Low kWh",'Data Billing Quantities'!4:4,0),FALSE),IF(COUNTIF(A1,"*Typical*")>0,VLOOKUP(B3,'Data Billing Quantities'!$A:$Z,MATCH("Typical kWh",'Data Billing Quantities'!4:4,0),FALSE),IF(COUNTIF(A1,"*Average*")>0,VLOOKUP(B3,'Data Billing Quantities'!$A:$Z,MATCH("Average kWh",'Data Billing Quantities'!4:4,0),FALSE),IF(COUNTIF(A1,"*High*")>0,VLOOKUP(B3,'Data Billing Quantities'!$A:$Z,MATCH("High kWh",'Data Billing Quantities'!4:4,0),FALSE),"error")))) -> 755
A5: Peak (kW) | B5: =IF(COUNTIF(A1,"*Low*")>0,VLOOKUP(B3,'Data Billing Quantities'!$A:$Z,MATCH("Low kW",'Data Billing Quantities'!4:4,0),FALSE),IF(COUNTIF(A1,"*Typical*")>0,VLOOKUP(B3,'Data Billing Quantities'!$A:$Z,MATCH("Typical kW",'Data Billing Quantities'!4:4,0),FALSE),IF(COUNTIF(A1,"*Average*")>0,VLOOKUP(B3,'Data Billing Quantities'!$A:$Z,MATCH("Average kW",'Data Billing Quantities'!4:4,0),FALSE),IF(COUNTIF(A1,"*High*")>0,VLOOKUP(B3,'Data Billing Quantities'!$A:$Z,MATCH("High kW",'Data Billing Quantities'!4:4,0),FALSE),"error")))) -> 0
A6: Loss factor | B6: =VLOOKUP(B3,'Data Billing Quantities'!A:D,MATCH(A6,'Data Billing Quantities'!4:4,0),FALSE) -> 1.057
A7: Commodity Threshold | B7: =VLOOKUP(B3,'Data Billing Quantities'!A:D,MATCH(A7,'Data Billing Quantities'!4:4,0),FALSE) -> 600
A8: Monthly Consumption (kWh) - Uplifted | B8: =B4*B6 -> 798.035
A9: Charge determinant | B9: =VLOOKUP(B3,'Data Billing Quantities'!A:D,MATCH(A9,'Data Billing Quantities'!4:4,0),FALSE) -> kWh
B11: Volume | C11: Current Rate ($) | D11: Current Charge ($) | E11: Volume | F11: Proposed Rate ($) | G11: Proposed Charge ($) | H11: Change ($) | I11: Change (%) | J11: % of Total Bill on RPP | K11: % of Total Bill on TOU
A12: Energy First Tier | B12: =IF(B4>B7,B7,B4) -> 600 | C12: =VLOOKUP($A12,'Data Pass Through'!$A:$D,2,FALSE) -> 0.077 | D12: =B12*C12 -> 46.2 | E12: =B12 -> 600 | F12: =VLOOKUP($A12,'Data Pass Through'!$A:$D,3,FALSE) -> 0.077 | G12: =E12*F12 -> 46.2 | H12: =G12-D12 -> 0 | I12: =IF(ISERROR(H12/ABS(D12)),"N/A",(H12/ABS(D12))) -> 0 | J12: =G12/$G$48 -> 0.3807384274
A13: Energy Second Tier | B13: =IF(B4>B7,(B4)-B7,0) -> 155 | C13: =VLOOKUP($A13,'Data Pass Through'!$A:$D,2,FALSE) -> 0.089 | D13: =B13*C13 -> 13.795 | E13: =B13 -> 155 | F13: =VLOOKUP($A13,'Data Pass Through'!$A:$D,3,FALSE) -> 0.089 | G13: =E13*F13 -> 13.795 | H13: 0 | I13: 0 | J13: =G13/$G$48 -> 0.1136858573
A14: Sub-Total: Energy (RPP Tiered) | D14: =SUM(D12:D13) -> 59.995 | G14: =SUM(G12:G13) -> 59.995 | H14: 0 | I14: 0 | J14: =G14/$G$48 -> 0.4944242847
A15: TOU-Off Peak | B15: =B$4*VLOOKUP($B$3,'Data Billing Quantities'!$A:$O,MATCH(BI_UR_Avg!$A15,'Data Billing Quantities'!$4:$4,0),FALSE) -> 490.75 | C15: =VLOOKUP($A15,'Data Pass Through'!$A:$D,2,FALSE) -> 0.065 | D15: =B15*C15 -> 31.89875 | E15: 490.75 | F15: =VLOOKUP($A15,'Data Pass Through'!$A:$D,3,FALSE) -> 0.065 | G15: =E15*F15 -> 31.89875 | H15: 0 | I15: 0 | K15: =G15/$G$53 -> 0.2592778511
A16: TOU-Mid Peak | B16: =B$4*VLOOKUP($B$3,'Data Billing Quantities'!$A:$O,MATCH(BI_UR_Avg!$A16,'Data Billing Quantities'!$4:$4,0),FALSE) -> 128.35 | C16: =VLOOKUP($A16,'Data Pass Through'!$A:$D,2,FALSE) -> 0.094 | D16: =B16*C16 -> 12.0649 | E16: 128.35 | F16: =VLOOKUP($A16,'Data Pass Through'!$A:$D,3,FALSE) -> 0.094 | G16: =E16*F16 -> 12.0649 | H16: 0 | I16: 0 | K16: 0.09806532689
A17: TOU-On Peak | B17: =B$4*VLOOKUP($B$3,'Data Billing Quantities'!$A:$O,MATCH(BI_UR_Avg!$A17,'Data Billing Quantities'!$4:$4,0),FALSE) -> 135.9 | C17: =VLOOKUP($A17,'Data Pass Through'!$A:$D,2,FALSE) -> 0.132 | D17: =B17*C17 -> 17.9388 | E17: 135.9 | F17: =VLOOKUP($A17,'Data Pass Through'!$A:$D,3,FALSE) -> 0.132 | G17: =E17*F17 -> 17.9388 | H17: 0 | I17: 0 | K17: 0.145809272
A18: Sub-Total: Energy (RPP TOU) | D18: =SUM(D15:D17) -> 61.90245 | G18: =SUM(G15:G17) -> 61.90245 | H18: 0 | I18: 0 | J18: =G18/$G$48 -> 0.5101437546 | K18: 0.50315245
A19: Service Charge | B19: 1 | C19: =VLOOKUP($B$3,'Data Current Rates'!$A:$BA,MATCH(BI_UR_Avg!$A19,CurrentHeader,0),FALSE) -> 24.78 | D19: =B19*C19 -> 24.78 | E19: 1 | F19: =VLOOKUP($B$3,'Data Proposed Rates'!$A:$BA,MATCH(BI_UR_Avg!$A19,ProposedHeader,0),FALSE) -> 28.63 | G19: =E19*F19 -> 28.63 | H19: 3.85 | I19: 0.1553672316 | J19: 0.2359424497 | K19: 0.2327089581
A20: Fixed Foregone Revenue Charge | B20: 1 | C20: =VLOOKUP($B$3,'Data Current Rates'!$A:$BA,MATCH(BI_UR_Avg!$A20,CurrentHeader,0),FALSE) -> 0 | D20: 0 | E20: 1 | F20: =VLOOKUP($B$3,'Data Proposed Rates'!$A:$BA,MATCH(BI_UR_Avg!$A20,ProposedHeader,0),FALSE) -> 1.46 | G20: 1.46 | H20: 1.46 | I20: N/A | J20: 0.01203199359 | K20: 0.0118671002
A21: Fixed Deferral/Variance Account Rider (General) | B21: 1 | C21: =VLOOKUP($B$3,'Data Current Rates'!$A:$BA,MATCH(BI_UR_Avg!$A21,CurrentHeader,0),FALSE) -> 0 | D21: 0 | E21: 1 | F21: =VLOOKUP($B$3,'Data Proposed Rates'!$A:$BA,MATCH(BI_UR_Avg!$A21,ProposedHeader,0),FALSE) -> 0.05 | G21: 0.05 | H21: 0.05 | I21: N/A | J21: 0.0004120545751 | K21: 0.0004064075412
A22: Distribution Volumetric Charge | B22: =IF($B$9="kWh",$B$4,$B$5) -> 755 | C22: =VLOOKUP($B$3,'Data Current Rates'!$A:$BA,MATCH(BI_UR_Avg!$A22,CurrentHeader,0),FALSE) -> 0.0094 | D22: 7.097 | E22: 755 | F22: =VLOOKUP($B$3,'Data Proposed Rates'!$A:$BA,MATCH(BI_UR_Avg!$A22,ProposedHeader,0),FALSE) -> 0.0075 | G22: 5.6625 | H22: -1.4345 | I22: -0.2021276596 | J22: 0.04666518063 | K22: 0.04602565405
A23: Volumetric Foregone Revenue Charge | B23: =IF($B$9="kWh",$B$4,$B$5) -> 755 | C23: =VLOOKUP($B$3,'Data Current Rates'!$A:$BA,MATCH(BI_UR_Avg!$A23,CurrentHeader,0),FALSE) -> 0 | D23: 0 | E23: 755 | F23: =VLOOKUP($B$3,'Data Proposed Rates'!$A:$BA,MATCH(BI_UR_Avg!$A23,ProposedHeader,0),FALSE) -> 0 | G23: 0 | H23: 0 | I23: N/A | J23: 0 | K23: 0
A24: Volumetric Deferral/Variance Account Rider (General) | B24: =IF($B$9="kWh",$B$4,$B$5) -> 755 | C24: =VLOOKUP($B$3,'Data Current Rates'!$A:$BA,MATCH(BI_UR_Avg!$A24,CurrentHeader,0),FALSE) -> 0 | D24: 0 | E24: 755 | F24: =VLOOKUP($B$3,'Data Proposed Rates'!$A:$BA,MATCH(BI_UR_Avg!$A24,ProposedHeader,0),FALSE) -> -0.0008 | G24: -0.604 | H24: -0.604 | I24: N/A | J24: -0.004977619267 | K24: -0.004909403098
A25: Volumetric Deferral/Variance Account Rider (Sub Account CBR) | B25: 755 | C25: =VLOOKUP($B$3,'Data Current Rates'!$A:$BA,MATCH(BI_UR_Avg!$A25,CurrentHeader,0),FALSE) -> 0 | D25: 0 | E25: 755 | F25: =VLOOKUP($B$3,'Data Proposed Rates'!$A:$BA,MATCH(BI_UR_Avg!$A25,ProposedHeader,0),FALSE) -> 0 | G25: 0 | H25: 0 | I25: N/A | J25: 0 | K25: 0
A26: Fair Hydro Plan - Distribution Rate Protection Savings* | D26: =IF(AND(B3<>"R1",B3<>"R2"),0,IF(VLOOKUP($A26,'Data Pass Through'!$A:$D,2,FALSE)=0,0,IF(SUM(D19:D20,D22:D23)<VLOOKUP($A26,'Data Pass Through'!$A:$D,2,FALSE),0,VLOOKUP($A26,'Data Pass Through'!$A:$D,2,FALSE)-SUM(D19:D20,D22:D23)))) -> 0 | G26: =IF(AND(B3<>"R1",B3<>"R2"),0,IF(VLOOKUP($A26,'Data Pass Through'!$A:$D,2,FALSE)=0,0,IF(SUM(G19:G20,G22:G23)<VLOOKUP($A26,'Data Pass Through'!$A:$D,2,FALSE),0,VLOOKUP($A26,'Data Pass Through'!$A:$D,2,FALSE)-SUM(G19:G20,G22:G23)))) -> 0 | H26: 0 | I26: N/A | J26: 0 | K26: 0
A27: Sub-Total: Distribution (excluding pass through) | D27: =SUM(INDIRECT("D19:D"&ROW()-1)) -> 31.877 | G27: =SUM(INDIRECT("g19:g"&ROW()-1)) -> 35.1985 | H27: =G27-D27 -> 3.3215 | I27: 0.1041973837 | J27: 0.2900740592 | K27: 0.2860987168
A28: Smart Metering Entity Charge | B28: 1 | C28: =VLOOKUP($A28,'Data Pass Through'!$A:$D,2,FALSE) -> 0.57 | D28: =B28*C28 -> 0.57 | E28: 1 | F28: =VLOOKUP($A28,'Data Pass Through'!$A:$D,3,FALSE) -> 0.57 | G28: =E28*F28 -> 0.57 | H28: 0 | I28: 0 | J28: 0.004697422156 | K28: 0.00463304597
A29: Line Losses on Cost of Power (based on two-tier RPP prices) | B29: =B8-B4 -> 43.035 | C29: =IF(B4>B7,C13,C12) -> 0.089 | D29: =B29*C29 -> 3.830115 | E29: 43.035 | F29: =IF(B4>B7,F13,F12) -> 0.089 | G29: =E29*F29 -> 3.830115 | H29: 0 | I29: 0 | J29: 0.03156432818 | K29: 0.0311317524
A30: Line Losses on Cost of Power (based on TOU prices) | B30: =B8-B4 -> 43.035 | C30: =VLOOKUP($B$3,'Data Billing Quantities'!$A:$O,MATCH(BI_UR_Avg!$A15,'Data Billing Quantities'!$4:$4,0),FALSE)*C15+VLOOKUP($B$3,'Data Billing Quantities'!$A:$O,MATCH(BI_UR_Avg!$A16,'Data Billing Quantities'!$4:$4,0),FALSE)*C16+VLOOKUP($B$3,'Data Billing Quantities'!$A:$O,MATCH(BI_UR_Avg!$A17,'Data Billing Quantities'!$4:$4,0),FALSE)*C17 -> 0.08199 | D30: =B30*C30 -> 3.52843965 | E30: 43.035 | F30: =VLOOKUP($B$3,'Data Billing Quantities'!$A:$O,MATCH(BI_UR_Avg!$A15,'Data Billing Quantities'!$4:$4,0),FALSE)*F15+VLOOKUP($B$3,'Data Billing Quantities'!$A:$O,MATCH(BI_UR_Avg!$A16,'Data Billing Quantities'!$4:$4,0),FALSE)*F16+VLOOKUP($B$3,'Data Billing Quantities'!$A:$O,MATCH(BI_UR_Avg!$A17,'Data Billing Quantities'!$4:$4,0),FALSE)*F17 -> 0.08199 | G30: =E30*F30 -> 3.52843965 | H30: 0 | I30: 0 | J30: 0.02907819401 | K30: 0.02867968965
A31: Sub-Total: Distribution (based on two-tier RPP prices) | D31: =SUM(D27,D28:D29) -> 36.277115 | G31: =SUM(G27,G28:G29) -> 39.598615 | H31: 3.3215 | I31: 0.0915591 | J31: 0.3263358096 | K31: 0.3218635152
A32: Sub-Total: Distribution (based on TOU prices) | D32: =SUM(D27,D28,D30) -> 35.97543965 | G32: =SUM(G27,G28,G30) -> 39.29693965 | H32: 3.3215 | I32: 0.09232687723 | J32: 0.3238496754 | K32: 0.3194114524
A33: Retail Transmission Rate – Network Service Rate | B33: =B8 -> 798.035 | C33: =VLOOKUP($B$3,'Data Current Rates'!$A:$BA,MATCH(BI_UR_Avg!$A33,CurrentHeader,0),FALSE) -> 0.0067 | D33: =B33*C33 -> 5.3468345 | E33: 798.035 | F33: =VLOOKUP($B$3,'Data Proposed Rates'!$A:$BA,MATCH(BI_UR_Avg!$A33,ProposedHeader,0),FALSE) -> 0.0084 | G33: =E33*F33 -> 6.703494 | H33: =G33-D33 -> 1.3566595 | I33: 0.2537313433 | J33: 0.05524410744 | K33: 0.05448701029
A34: Retail Transmission Rate – Line and Transformation Connection Service Rate | B34: =B8 -> 798.035 | C34: =VLOOKUP($B$3,'Data Current Rates'!$A:$BA,MATCH(BI_UR_Avg!$A34,CurrentHeader,0),FALSE) -> 0.0047 | D34: =B34*C34 -> 3.7507645 | E34: 798.035 | F34: =VLOOKUP($B$3,'Data Proposed Rates'!$A:$BA,MATCH(BI_UR_Avg!$A34,ProposedHeader,0),FALSE) -> 0.0074 | G34: =E34*F34 -> 5.905459 | H34: =G34-D34 -> 2.1546945 | I34: 0.5744680851 | J34: 0.04866742798 | K34: 0.04800046144
A35: Sub-Total: Retail Transmission | D35: =SUM(D33:D34) -> 9.097599 | G35: =SUM(G33:G34) -> 12.608953 | H35: =G35-D35 -> 3.511354 | I35: 0.3859649123 | J35: 0.1039115354 | K35: 0.1024874717
A36: Sub-Total: Delivery (based on two-tier RPP prices) | D36: =D31+D35 -> 45.374714 | G36: =G31+G35 -> 52.207568 | H36: =G36-D36 -> 6.832854 | I36: 0.1505872632 | J36: 0.430247345 | K36: 0.4243509869
A37: Sub-Total: Delivery (based on TOU prices) | D37: =D32+D35 -> 45.07303865 | G37: =G32+G35 -> 51.90589265 | H37: =G37-D37 -> 6.832854 | I37: 0.1515951488 | J37: 0.4277612108 | K37: 0.4218989242
A38: Wholesale Market Service Rate (WMS) - not including CBR | B38: =B8 -> 798.035 | C38: =VLOOKUP($A38,'Data Pass Through'!$A:$D,2,FALSE) -> 0.003 | D38: =B38*C38 -> 2.394105 | E38: =$B$8 -> 798.035 | F38: =VLOOKUP($A38,'Data Pass Through'!$A:$D,3,FALSE) -> 0.003 | G38: =E38*F38 -> 2.394105 | H38: 0 | I38: 0 | J38: 0.01973003837 | K38: 0.01945964653
A39: Capacity Based Recovery (CBR) - Applicable for Class B Customers | B39: =B8 -> 798.035 | C39: =VLOOKUP($A39,'Data Pass Through'!$A:$D,2,FALSE) -> 0.0004 | D39: =B39*C39 -> 0.319214 | E39: =$B$8 -> 798.035 | F39: =VLOOKUP($A39,'Data Pass Through'!$A:$D,3,FALSE) -> 0.0004 | G39: =E39*F39 -> 0.319214 | H39: 0 | I39: 0 | J39: 0.002630671783 | K39: 0.002594619537
A40: Rural Rate Protection Charge | B40: =B8 -> 798.035 | C40: =VLOOKUP($A40,'Data Pass Through'!$A:$D,2,FALSE) -> 0.0005 | D40: 0.3990175 | E40: 798.035 | F40: =VLOOKUP($A40,'Data Pass Through'!$A:$D,3,FALSE) -> 0.0005 | G40: 0.3990175 | H40: 0 | I40: 0 | J40: 0.003288339728 | K40: 0.003243274422
A41: Standard Supply Service – Administration Charge (if applicable) | B41: 1 | C41: =VLOOKUP($A41,'Data Pass Through'!$A:$D,2,FALSE) -> 0.25 | D41: =B41*C41 -> 0.25 | E41: 1 | F41: =VLOOKUP($A41,'Data Pass Through'!$A:$D,3,FALSE) -> 0.25 | G41: 0.25 | H41: 0 | I41: 0 | J41: 0.002060272875 | K41: 0.002032037706
A42: Sub-Total: Regulatory | D42: =SUM(D38:D41) -> 3.3623365 | G42: =SUM(G38:G41) -> 3.3623365 | H42: 0 | I42: 0 | J42: 0.02770932276 | K42: 0.0273295782
A43: Debt Retirement Charge (DRC) | B43: =B4 -> 755 | C43: =VLOOKUP($A43,'Data Pass Through'!$A:$D,2,FALSE) -> 0 | D43: =B43*C43 -> 0 | E43: 755 | F43: =VLOOKUP($A43,'Data Pass Through'!$A:$D,3,FALSE) -> 0 | G43: =E43*F43 -> 0 | H43: 0 | I43: N/A | J43: 0 | K43: 0
A44: Total Electricty Charge on Two-Tier RPP | D44: =SUM(D14,D27,D28,D29,D35,D42,D43) -> 108.7320505 | G44: =SUM(G14,G27,G28,G29,G35,G42,G43) -> 115.5649045 | H44: 6.832854 | I44: 0.0628412135 | J44: 0.9523809524
A45: HST | C45: 0.13 | D45: =D44*C45 -> 14.13516657 | F45: =C45 -> 0.13 | G45: =G44*F45 -> 15.02343758 | H45: 0.88827102 | I45: 0.0628412135 | J45: 0.1238095238
A46: Total Electricity Charge on Two-Tier RPP (including HST) | D46: =SUM(D44:D45) -> 122.8672171 | G46: =SUM(G44:G45) -> 130.5883421 | H46: 7.72112502 | I46: 0.0628412135 | J46: 1.076190476
A47: Ontario Rebate for Electricity Consumers (OREC) | C47: -0.08 | D47: =D44*C47 -> -8.69856404 | F47: =C47 -> -0.08 | G47: =G44*F47 -> -9.24519236 | H47: -0.54662832 | I47: -0.0628412135 | J47: -0.07619047619
A48: Total Amount on Two-Tier RPP | D48: =SUM(D46:D47) -> 114.168653 | G48: =SUM(G46:G47) -> 121.3431497 | H48: 7.1744967 | I48: 0.0628412135 | J48: 1
A49: Total Electricty Charge on TOU (before HST) | D49: =SUM(D18,D27,D28,D30,D35,D42,D43) -> 110.3378251 | G49: =SUM(G18,G27,G28,G30,G35,G42,G43) -> 117.1706791 | H49: 6.832854 | I49: 0.06192666922 | K49: =G49/$G$53 -> 0.9523809524
A50: HST | C50: 0.13 | D50: =D49*C50 -> 14.34391727 | F50: =C50 -> 0.13 | G50: =G49*F50 -> 15.23218829 | H50: 0.88827102 | I50: 0.06192666922 | K50: =G50/$G$53 -> 0.1238095238
A51: Total Electricity Charge on TOU (including HST) | D51: =SUM(D49:D50) -> 124.6817424 | G51: =SUM(G49:G50) -> 132.4028674 | H51: 7.72112502 | I51: 0.06192666922 | K51: =G51/$G$53 -> 1.076190476
A52: Ontario Rebate for Electricity Consumers (OREC) | C52: -0.08 | D52: =D49*C52 -> -8.827026012 | F52: =C52 -> -0.08 | G52: =G49*F52 -> -9.373654332 | H52: -0.54662832 | I52: -0.06192666922 | K52: =G52/$G$53 -> -0.07619047619
A53: Total Amount on TOU | D53: =SUM(D51:D52) -> 115.8547164 | G53: =SUM(G51:G52) -> 123.0292131 | H53: 7.1744967 | I53: 0.06192666922 | K53: =G53/$G$53 -> 1
A54: * Distribution rate protection applies to R1 and R2 customers

Sheet BI_UR_High
A1: 2019 Bill Impacts (High Consumption Level) - UR
A3: Rate Class | B3: =RIGHT(A1,LEN(A1)-FIND("- ",A1,1)-1) -> UR
A4: Monthly Consumption (kWh) | B4: =IF(COUNTIF(A1,"*Low*")>0,VLOOKUP(B3,'Data Billing Quantities'!$A:$Z,MATCH("Low kWh",'Data Billing Quantities'!4:4,0),FALSE),IF(COUNTIF(A1,"*Typical*")>0,VLOOKUP(B3,'Data Billing Quantities'!$A:$Z,MATCH("Typical kWh",'Data Billing Quantities'!4:4,0),FALSE),IF(COUNTIF(A1,"*Average*")>0,VLOOKUP(B3,'Data Billing Quantities'!$A:$Z,MATCH("Average kWh",'Data Billing Quantities'!4:4,0),FALSE),IF(COUNTIF(A1,"*High*")>0,VLOOKUP(B3,'Data Billing Quantities'!$A:$Z,MATCH("High kWh",'Data Billing Quantities'!4:4,0),FALSE),"error")))) -> 1400
A5: Peak (kW) | B5: =IF(COUNTIF(A1,"*Low*")>0,VLOOKUP(B3,'Data Billing Quantities'!$A:$Z,MATCH("Low kW",'Data Billing Quantities'!4:4,0),FALSE),IF(COUNTIF(A1,"*Typical*")>0,VLOOKUP(B3,'Data Billing Quantities'!$A:$Z,MATCH("Typical kW",'Data Billing Quantities'!4:4,0),FALSE),IF(COUNTIF(A1,"*Average*")>0,VLOOKUP(B3,'Data Billing Quantities'!$A:$Z,MATCH("Average kW",'Data Billing Quantities'!4:4,0),FALSE),IF(COUNTIF(A1,"*High*")>0,VLOOKUP(B3,'Data Billing Quantities'!$A:$Z,MATCH("High kW",'Data Billing Quantities'!4:4,0),FALSE),"error")))) -> 0
A6: Loss factor | B6: =VLOOKUP(B3,'Data Billing Quantities'!A:D,MATCH(A6,'Data Billing Quantities'!4:4,0),FALSE) -> 1.057
A7: Commodity Threshold | B7: =VLOOKUP(B3,'Data Billing Quantities'!A:D,MATCH(A7,'Data Billing Quantities'!4:4,0),FALSE) -> 600
A8: Monthly Consumption (kWh) - Uplifted | B8: =B4*B6 -> 1479.8
A9: Charge determinant | B9: =VLOOKUP(B3,'Data Billing Quantities'!A:D,MATCH(A9,'Data Billing Quantities'!4:4,0),FALSE) -> kWh
B11: Volume | C11: Current Rate ($) | D11: Current Charge ($) | E11: Volume | F11: Proposed Rate ($) | G11: Proposed Charge ($) | H11: Change ($) | I11: Change (%) | J11: % of Total Bill on RPP | K11: % of Total Bill on TOU
A12: Energy First Tier | B12: =IF(B4>B7,B7,B4) -> 600 | C12: =VLOOKUP($A12,'Data Pass Through'!$A:$D,2,FALSE) -> 0.077 | D12: =B12*C12 -> 46.2 | E12: =B12 -> 600 | F12: =VLOOKUP($A12,'Data Pass Through'!$A:$D,3,FALSE) -> 0.077 | G12: =E12*F12 -> 46.2 | H12: =G12-D12 -> 0 | I12: =IF(ISERROR(H12/ABS(D12)),"N/A",(H12/ABS(D12))) -> 0 | J12: =G12/$G$48 -> 0.2268108345
A13: Energy Second Tier | B13: =IF(B4>B7,(B4)-B7,0) -> 800 | C13: =VLOOKUP($A13,'Data Pass Through'!$A:$D,2,FALSE) -> 0.089 | D13: =B13*C13 -> 71.2 | E13: =B13 -> 800 | F13: =VLOOKUP($A13,'Data Pass Through'!$A:$D,3,FALSE) -> 0.089 | G13: =E13*F13 -> 71.2 | H13: 0 | I13: 0 | J13: =G13/$G$48 -> 0.3495439701
A14: Sub-Total: Energy (RPP Tiered) | D14: =SUM(D12:D13) -> 117.4 | G14: =SUM(G12:G13) -> 117.4 | H14: 0 | I14: 0 | J14: =G14/$G$48 -> 0.5763548046
A15: TOU-Off Peak | B15: =B$4*VLOOKUP($B$3,'Data Billing Quantities'!$A:$O,MATCH(BI_UR_High!$A15,'Data Billing Quantities'!$4:$4,0),FALSE) -> 910 | C15: =VLOOKUP($A15,'Data Pass Through'!$A:$D,2,FALSE) -> 0.065 | D15: =B15*C15 -> 59.15 | E15: 910 | F15: =VLOOKUP($A15,'Data Pass Through'!$A:$D,3,FALSE) -> 0.065 | G15: =E15*F15 -> 59.15 | H15: 0 | I15: 0 | K15: =G15/$G$53 -> 0.2952157995
A16: TOU-Mid Peak | B16: =B$4*VLOOKUP($B$3,'Data Billing Quantities'!$A:$O,MATCH(BI_UR_High!$A16,'Data Billing Quantities'!$4:$4,0),FALSE) -> 238 | C16: =VLOOKUP($A16,'Data Pass Through'!$A:$D,2,FALSE) -> 0.094 | D16: =B16*C16 -> 22.372 | E16: 238 | F16: =VLOOKUP($A16,'Data Pass Through'!$A:$D,3,FALSE) -> 0.094 | G16: =E16*F16 -> 22.372 | H16: 0 | I16: 0 | K16: 0.1116579521
A17: TOU-On Peak | B17: =B$4*VLOOKUP($B$3,'Data Billing Quantities'!$A:$O,MATCH(BI_UR_High!$A17,'Data Billing Quantities'!$4:$4,0),FALSE) -> 252 | C17: =VLOOKUP($A17,'Data Pass Through'!$A:$D,2,FALSE) -> 0.132 | D17: =B17*C17 -> 33.264 | E17: 252 | F17: =VLOOKUP($A17,'Data Pass Through'!$A:$D,3,FALSE) -> 0.132 | G17: =E17*F17 -> 33.264 | H17: 0 | I17: 0 | K17: 0.1660195833
A18: Sub-Total: Energy (RPP TOU) | D18: =SUM(D15:D17) -> 114.786 | G18: =SUM(G15:G17) -> 114.786 | H18: 0 | I18: 0 | J18: =G18/$G$48 -> 0.5635218279 | K18: 0.5728933349
A19: Service Charge | B19: 1 | C19: =VLOOKUP($B$3,'Data Current Rates'!$A:$BA,MATCH(BI_UR_High!$A19,CurrentHeader,0),FALSE) -> 24.78 | D19: =B19*C19 -> 24.78 | E19: 1 | F19: =VLOOKUP($B$3,'Data Proposed Rates'!$A:$BA,MATCH(BI_UR_High!$A19,ProposedHeader,0),FALSE) -> 28.63 | G19: =E19*F19 -> 28.63 | H19: 3.85 | I19: 0.1553672316 | J19: 0.1405539868 | K19: 0.1428914343
A20: Fixed Foregone Revenue Charge | B20: 1 | C20: =VLOOKUP($B$3,'Data Current Rates'!$A:$BA,MATCH(BI_UR_High!$A20,CurrentHeader,0),FALSE) -> 0 | D20: 0 | E20: 1 | F20: =VLOOKUP($B$3,'Data Proposed Rates'!$A:$BA,MATCH(BI_UR_High!$A20,ProposedHeader,0),FALSE) -> 1.46 | G20: 1.46 | H20: 1.46 | I20: N/A | J20: 0.007167615116 | K20: 0.007286814324
A21: Fixed Deferral/Variance Account Rider (General) | B21: 1 | C21: =VLOOKUP($B$3,'Data Current Rates'!$A:$BA,MATCH(BI_UR_High!$A21,CurrentHeader,0),FALSE) -> 0 | D21: 0 | E21: 1 | F21: =VLOOKUP($B$3,'Data Proposed Rates'!$A:$BA,MATCH(BI_UR_High!$A21,ProposedHeader,0),FALSE) -> 0.05 | G21: 0.05 | H21: 0.05 | I21: N/A | J21: 0.0002454662711 | K21: 0.0002495484357
A22: Distribution Volumetric Charge | B22: =IF($B$9="kWh",$B$4,$B$5) -> 1400 | C22: =VLOOKUP($B$3,'Data Current Rates'!$A:$BA,MATCH(BI_UR_High!$A22,CurrentHeader,0),FALSE) -> 0.0094 | D22: 13.16 | E22: 1400 | F22: =VLOOKUP($B$3,'Data Proposed Rates'!$A:$BA,MATCH(BI_UR_High!$A22,ProposedHeader,0),FALSE) -> 0.0075 | G22: 10.5 | H22: -2.66 | I22: -0.2021276596 | J22: 0.05154791693 | K22: 0.05240517151
A23: Volumetric Foregone Revenue Charge | B23: =IF($B$9="kWh",$B$4,$B$5) -> 1400 | C23: =VLOOKUP($B$3,'Data Current Rates'!$A:$BA,MATCH(BI_UR_High!$A23,CurrentHeader,0),FALSE) -> 0 | D23: 0 | E23: 1400 | F23: =VLOOKUP($B$3,'Data Proposed Rates'!$A:$BA,MATCH(BI_UR_High!$A23,ProposedHeader,0),FALSE) -> 0 | G23: 0 | H23: 0 | I23: N/A | J23: 0 | K23: 0
A24: Volumetric Deferral/Variance Account Rider (General) | B24: =IF($B$9="kWh",$B$4,$B$5) -> 1400 | C24: =VLOOKUP($B$3,'Data Current Rates'!$A:$BA,MATCH(BI_UR_High!$A24,CurrentHeader,0),FALSE) -> 0 | D24: 0 | E24: 1400 | F24: =VLOOKUP($B$3,'Data Proposed Rates'!$A:$BA,MATCH(BI_UR_High!$A24,ProposedHeader,0),FALSE) -> -0.0008 | G24: -1.12 | H24: -1.12 | I24: N/A | J24: -0.005498444473 | K24: -0.005589884961
A25: Volumetric Deferral/Variance Account Rider (Sub Account CBR) | B25: 1400 | C25: =VLOOKUP($B$3,'Data Current Rates'!$A:$BA,MATCH(BI_UR_High!$A25,CurrentHeader,0),FALSE) -> 0 | D25: 0 | E25: 1400 | F25: =VLOOKUP($B$3,'Data Proposed Rates'!$A:$BA,MATCH(BI_UR_High!$A25,ProposedHeader,0),FALSE) -> 0 | G25: 0 | H25: 0 | I25: N/A | J25: 0 | K25: 0
A26: Fair Hydro Plan - Distribution Rate Protection Savings* | D26: =IF(AND(B3<>"R1",B3<>"R2"),0,IF(VLOOKUP($A26,'Data Pass Through'!$A:$D,2,FALSE)=0,0,IF(SUM(D19:D20,D22:D23)<VLOOKUP($A26,'Data Pass Through'!$A:$D,2,FALSE),0,VLOOKUP($A26,'Data Pass Through'!$A:$D,2,FALSE)-SUM(D19:D20,D22:D23)))) -> 0 | G26: =IF(AND(B3<>"R1",B3<>"R2"),0,IF(VLOOKUP($A26,'Data Pass Through'!$A:$D,2,FALSE)=0,0,IF(SUM(G19:G20,G22:G23)<VLOOKUP($A26,'Data Pass Through'!$A:$D,2,FALSE),0,VLOOKUP($A26,'Data Pass Through'!$A:$D,2,FALSE)-SUM(G19:G20,G22:G23)))) -> 0 | H26: 0 | I26: N/A | J26: 0 | K26: 0
A27: Sub-Total: Distribution (excluding pass through) | D27: =SUM(INDIRECT("D19:D"&ROW()-1)) -> 37.94 | G27: =SUM(INDIRECT("g19:g"&ROW()-1)) -> 39.52 | H27: =G27-D27 -> 1.58 | I27: 0.04164470216 | J27: 0.1940165407 | K27: 0.1972430836
A28: Smart Metering Entity Charge | B28: 1 | C28: =VLOOKUP($A28,'Data Pass Through'!$A:$D,2,FALSE) -> 0.57 | D28: =B28*C28 -> 0.57 | E28: 1 | F28: =VLOOKUP($A28,'Data Pass Through'!$A:$D,3,FALSE) -> 0.57 | G28: =E28*F28 -> 0.57 | H28: 0 | I28: 0 | J28: 0.002798315491 | K28: 0.002844852167
A29: Line Losses on Cost of Power (based on two-tier RPP prices) | B29: =B8-B4 -> 79.8 | C29: =IF(B4>B7,C13,C12) -> 0.089 | D29: =B29*C29 -> 7.1022 | E29: 79.8 | F29: =IF(B4>B7,F13,F12) -> 0.089 | G29: =E29*F29 -> 7.1022 | H29: 0 | I29: 0 | J29: 0.03486701101 | K29: 0.03544685801
A30: Line Losses on Cost of Power (based on TOU prices) | B30: =B8-B4 -> 79.8 | C30: =VLOOKUP($B$3,'Data Billing Quantities'!$A:$O,MATCH(BI_UR_High!$A15,'Data Billing Quantities'!$4:$4,0),FALSE)*C15+VLOOKUP($B$3,'Data Billing Quantities'!$A:$O,MATCH(BI_UR_High!$A16,'Data Billing Quantities'!$4:$4,0),FALSE)*C16+VLOOKUP($B$3,'Data Billing Quantities'!$A:$O,MATCH(BI_UR_High!$A17,'Data Billing Quantities'!$4:$4,0),FALSE)*C17 -> 0.08199 | D30: =B30*C30 -> 6.542802 | E30: 79.8 | F30: =VLOOKUP($B$3,'Data Billing Quantities'!$A:$O,MATCH(BI_UR_High!$A15,'Data Billing Quantities'!$4:$4,0),FALSE)*F15+VLOOKUP($B$3,'Data Billing Quantities'!$A:$O,MATCH(BI_UR_High!$A16,'Data Billing Quantities'!$4:$4,0),FALSE)*F16+VLOOKUP($B$3,'Data Billing Quantities'!$A:$O,MATCH(BI_UR_High!$A17,'Data Billing Quantities'!$4:$4,0),FALSE)*F17 -> 0.08199 | G30: =E30*F30 -> 6.542802 | H30: 0 | I30: 0 | J30: 0.03212074419 | K30: 0.03265492009
A31: Sub-Total: Distribution (based on two-tier RPP prices) | D31: =SUM(D27,D28:D29) -> 45.6122 | G31: =SUM(G27,G28:G29) -> 47.1922 | H31: 1.58 | I31: 0.03463985513 | J31: 0.2316818672 | K31: 0.2355347938
A32: Sub-Total: Distribution (based on TOU prices) | D32: =SUM(D27,D28,D30) -> 45.052802 | G32: =SUM(G27,G28,G30) -> 46.632802 | H32: 1.58 | I32: 0.0350699608 | J32: 0.2289356004 | K32: 0.2327428559
A33: Retail Transmission Rate – Network Service Rate | B33: =B8 -> 1479.8 | C33: =VLOOKUP($B$3,'Data Current Rates'!$A:$BA,MATCH(BI_UR_High!$A33,CurrentHeader,0),FALSE) -> 0.0067 | D33: =B33*C33 -> 9.91466 | E33: 1479.8 | F33: =VLOOKUP($B$3,'Data Proposed Rates'!$A:$BA,MATCH(BI_UR_High!$A33,ProposedHeader,0),FALSE) -> 0.0084 | G33: =E33*F33 -> 12.43032 | H33: =G33-D33 -> 2.51566 | I33: 0.2537313433 | J33: 0.06102448598 | K33: 0.06203933824
A34: Retail Transmission Rate – Line and Transformation Connection Service Rate | B34: =B8 -> 1479.8 | C34: =VLOOKUP($B$3,'Data Current Rates'!$A:$BA,MATCH(BI_UR_High!$A34,CurrentHeader,0),FALSE) -> 0.0047 | D34: =B34*C34 -> 6.95506 | E34: 1479.8 | F34: =VLOOKUP($B$3,'Data Proposed Rates'!$A:$BA,MATCH(BI_UR_High!$A34,ProposedHeader,0),FALSE) -> 0.0074 | G34: =E34*F34 -> 10.95052 | H34: =G34-D34 -> 3.99546 | I34: 0.5744680851 | J34: 0.05375966622 | K34: 0.05465370273
A35: Sub-Total: Retail Transmission | D35: =SUM(D33:D34) -> 16.86972 | G35: =SUM(G33:G34) -> 23.38084 | H35: =G35-D35 -> 6.51112 | I35: 0.3859649123 | J35: 0.1147841522 | K35: 0.116693041
A36: Sub-Total: Delivery (based on two-tier RPP prices) | D36: =D31+D35 -> 62.48192 | G36: =G31+G35 -> 70.57304 | H36: =G36-D36 -> 8.09112 | I36: 0.1294953804 | J36: 0.3464660194 | K36: 0.3522278348
A37: Sub-Total: Delivery (based on TOU prices) | D37: =D32+D35 -> 61.922522 | G37: =G32+G35 -> 70.013642 | H37: =G37-D37 -> 8.09112 | I37: 0.1306652206 | J37: 0.3437197526 | K37: 0.3494358968
A38: Wholesale Market Service Rate (WMS) - not including CBR | B38: =B8 -> 1479.8 | C38: =VLOOKUP($A38,'Data Pass Through'!$A:$D,2,FALSE) -> 0.003 | D38: =B38*C38 -> 4.4394 | E38: =$B$8 -> 1479.8 | F38: =VLOOKUP($A38,'Data Pass Through'!$A:$D,3,FALSE) -> 0.003 | G38: =E38*F38 -> 4.4394 | H38: 0 | I38: 0 | J38: 0.02179445928 | K38: 0.02215690651
A39: Capacity Based Recovery (CBR) - Applicable for Class B Customers | B39: =B8 -> 1479.8 | C39: =VLOOKUP($A39,'Data Pass Through'!$A:$D,2,FALSE) -> 0.0004 | D39: =B39*C39 -> 0.59192 | E39: =$B$8 -> 1479.8 | F39: =VLOOKUP($A39,'Data Pass Through'!$A:$D,3,FALSE) -> 0.0004 | G39: =E39*F39 -> 0.59192 | H39: 0 | I39: 0 | J39: 0.002905927904 | K39: 0.002954254202
A40: Rural Rate Protection Charge | B40: =B8 -> 1479.8 | C40: =VLOOKUP($A40,'Data Pass Through'!$A:$D,2,FALSE) -> 0.0005 | D40: 0.7399 | E40: 1479.8 | F40: =VLOOKUP($A40,'Data Pass Through'!$A:$D,3,FALSE) -> 0.0005 | G40: 0.7399 | H40: 0 | I40: 0 | J40: 0.00363240988 | K40: 0.003692817752
A41: Standard Supply Service – Administration Charge (if applicable) | B41: 1 | C41: =VLOOKUP($A41,'Data Pass Through'!$A:$D,2,FALSE) -> 0.25 | D41: =B41*C41 -> 0.25 | E41: 1 | F41: =VLOOKUP($A41,'Data Pass Through'!$A:$D,3,FALSE) -> 0.25 | G41: 0.25 | H41: 0 | I41: 0 | J41: 0.001227331356 | K41: 0.001247742179
A42: Sub-Total: Regulatory | D42: =SUM(D38:D41) -> 6.02122 | G42: =SUM(G38:G41) -> 6.02122 | H42: 0 | I42: 0 | J42: 0.02956012842 | K42: 0.03005172065
A43: Debt Retirement Charge (DRC) | B43: =B4 -> 1400 | C43: =VLOOKUP($A43,'Data Pass Through'!$A:$D,2,FALSE) -> 0 | D43: =B43*C43 -> 0 | E43: 1400 | F43: =VLOOKUP($A43,'Data Pass Through'!$A:$D,3,FALSE) -> 0 | G43: =E43*F43 -> 0 | H43: 0 | I43: N/A | J43: 0 | K43: 0
A44: Total Electricty Charge on Two-Tier RPP | D44: =SUM(D14,D27,D28,D29,D35,D42,D43) -> 185.90314 | G44: =SUM(G14,G27,G28,G29,G35,G42,G43) -> 193.99426 | H44: 8.09112 | I44: 0.04352331004 | J44: 0.9523809524
A45: HST | C45: 0.13 | D45: =D44*C45 -> 24.1674082 | F45: =C45 -> 0.13 | G45: =G44*F45 -> 25.2192538 | H45: 1.0518456 | I45: 0.04352331004 | J45: 0.1238095238
A46: Total Electricity Charge on Two-Tier RPP (including HST) | D46: =SUM(D44:D45) -> 210.0705482 | G46: =SUM(G44:G45) -> 219.2135138 | H46: 9.1429656 | I46: 0.04352331004 | J46: 1.076190476
A47: Ontario Rebate for Electricity Consumers (OREC) | C47: -0.08 | D47: =D44*C47 -> -14.8722512 | F47: =C47 -> -0.08 | G47: =G44*F47 -> -15.5195408 | H47: -0.6472896 | I47: -0.04352331004 | J47: -0.07619047619
A48: Total Amount on Two-Tier RPP | D48: =SUM(D46:D47) -> 195.198297 | G48: =SUM(G46:G47) -> 203.693973 | H48: 8.495676 | I48: 0.04352331004 | J48: 1
A49: Total Electricty Charge on TOU (before HST) | D49: =SUM(D18,D27,D28,D30,D35,D42,D43) -> 182.729742 | G49: =SUM(G18,G27,G28,G30,G35,G42,G43) -> 190.820862 | H49: 8.09112 | I49: 0.04427916283 | K49: =G49/$G$53 -> 0.9523809524
A50: HST | C50: 0.13 | D50: =D49*C50 -> 23.75486646 | F50: =C50 -> 0.13 | G50: =G49*F50 -> 24.80671206 | H50: 1.0518456 | I50: 0.04427916283 | K50: =G50/$G$53 -> 0.1238095238
A51: Total Electricity Charge on TOU (including HST) | D51: =SUM(D49:D50) -> 206.4846085 | G51: =SUM(G49:G50) -> 215.6275741 | H51: 9.1429656 | I51: 0.04427916283 | K51: =G51/$G$53 -> 1.076190476
A52: Ontario Rebate for Electricity Consumers (OREC) | C52: -0.08 | D52: =D49*C52 -> -14.61837936 | F52: =C52 -> -0.08 | G52: =G49*F52 -> -15.26566896 | H52: -0.6472896 | I52: -0.04427916283 | K52: =G52/$G$53 -> -0.07619047619
A53: Total Amount on TOU | D53: =SUM(D51:D52) -> 191.8662291 | G53: =SUM(G51:G52) -> 200.3619051 | H53: 8.495676 | I53: 0.04427916283 | K53: =G53/$G$53 -> 1
A54: * Distribution rate protection applies to R1 and R2 customers

Sheet BI_R1_Low
A1: 2019 Bill Impacts (Low Consumption Level) - R1
A3: Rate Class | B3: =RIGHT(A1,LEN(A1)-FIND("- ",A1,1)-1) -> R1
A4: Monthly Consumption (kWh) | B4: =IF(COUNTIF(A1,"*Low*")>0,VLOOKUP(B3,'Data Billing Quantities'!$A:$Z,MATCH("Low kWh",'Data Billing Quantities'!4:4,0),FALSE),IF(COUNTIF(A1,"*Typical*")>0,VLOOKUP(B3,'Data Billing Quantities'!$A:$Z,MATCH("Typical kWh",'Data Billing Quantities'!4:4,0),FALSE),IF(COUNTIF(A1,"*Average*")>0,VLOOKUP(B3,'Data Billing Quantities'!$A:$Z,MATCH("Average kWh",'Data Billing Quantities'!4:4,0),FALSE),IF(COUNTIF(A1,"*High*")>0,VLOOKUP(B3,'Data Billing Quantities'!$A:$Z,MATCH("High kWh",'Data Billing Quantities'!4:4,0),FALSE),"error")))) -> 400
A5: Peak (kW) | B5: =IF(COUNTIF(A1,"*Low*")>0,VLOOKUP(B3,'Data Billing Quantities'!$A:$Z,MATCH("Low kW",'Data Billing Quantities'!4:4,0),FALSE),IF(COUNTIF(A1,"*Typical*")>0,VLOOKUP(B3,'Data Billing Quantities'!$A:$Z,MATCH("Typical kW",'Data Billing Quantities'!4:4,0),FALSE),IF(COUNTIF(A1,"*Average*")>0,VLOOKUP(B3,'Data Billing Quantities'!$A:$Z,MATCH("Average kW",'Data Billing Quantities'!4:4,0),FALSE),IF(COUNTIF(A1,"*High*")>0,VLOOKUP(B3,'Data Billing Quantities'!$A:$Z,MATCH("High kW",'Data Billing Quantities'!4:4,0),FALSE),"error")))) -> 0
A6: Loss factor | B6: =VLOOKUP(B3,'Data Billing Quantities'!A:D,MATCH(A6,'Data Billing Quantities'!4:4,0),FALSE) -> 1.076
A7: Commodity Threshold | B7: =VLOOKUP(B3,'Data Billing Quantities'!A:D,MATCH(A7,'Data Billing Quantities'!4:4,0),FALSE) -> 600
A8: Monthly Consumption (kWh) - Uplifted | B8: =B4*B6 -> 430.4
A9: Charge determinant | B9: =VLOOKUP(B3,'Data Billing Quantities'!A:D,MATCH(A9,'Data Billing Quantities'!4:4,0),FALSE) -> kWh
B11: Volume | C11: Current Rate ($) | D11: Current Charge ($) | E11: Volume | F11: Proposed Rate ($) | G11: Proposed Charge ($) | H11: Change ($) | I11: Change (%) | J11: % of Total Bill on RPP | K11: % of Total Bill on TOU
A12: Energy First Tier | B12: =IF(B4>B7,B7,B4) -> 400 | C12: =VLOOKUP($A12,'Data Pass Through'!$A:$D,2,FALSE) -> 0.077 | D12: =B12*C12 -> 30.8 | E12: =B12 -> 400 | F12: =VLOOKUP($A12,'Data Pass Through'!$A:$D,3,FALSE) -> 0.077 | G12: =E12*F12 -> 30.8 | H12: =G12-D12 -> 0 | I12: =IF(ISERROR(H12/ABS(D12)),"N/A",(H12/ABS(D12))) -> 0 | J12: =G12/$G$48 -> 0.3732485313
A13: Energy Second Tier | B13: =IF(B4>B7,(B4)-B7,0) -> 0 | C13: =VLOOKUP($A13,'Data Pass Through'!$A:$D,2,FALSE) -> 0.089 | D13: =B13*C13 -> 0 | E13: =B13 -> 0 | F13: =VLOOKUP($A13,'Data Pass Through'!$A:$D,3,FALSE) -> 0.089 | G13: =E13*F13 -> 0 | H13: 0 | I13: N/A | J13: =G13/$G$48 -> 0
A14: Sub-Total: Energy (RPP Tiered) | D14: =SUM(D12:D13) -> 30.8 | G14: =SUM(G12:G13) -> 30.8 | H14: 0 | I14: 0 | J14: =G14/$G$48 -> 0.3732485313
A15: TOU-Off Peak | B15: =B$4*VLOOKUP($B$3,'Data Billing Quantities'!$A:$O,MATCH(BI_R1_Low!$A15,'Data Billing Quantities'!$4:$4,0),FALSE) -> 260 | C15: =VLOOKUP($A15,'Data Pass Through'!$A:$D,2,FALSE) -> 0.065 | D15: =B15*C15 -> 16.9 | E15: 260 | F15: =VLOOKUP($A15,'Data Pass Through'!$A:$D,3,FALSE) -> 0.065 | G15: =E15*F15 -> 16.9 | H15: 0 | I15: 0 | K15: =G15/$G$53 -> 0.1993539874
A16: TOU-Mid Peak | B16: =B$4*VLOOKUP($B$3,'Data Billing Quantities'!$A:$O,MATCH(BI_R1_Low!$A16,'Data Billing Quantities'!$4:$4,0),FALSE) -> 68 | C16: =VLOOKUP($A16,'Data Pass Through'!$A:$D,2,FALSE) -> 0.094 | D16: =B16*C16 -> 6.392 | E16: 68 | F16: =VLOOKUP($A16,'Data Pass Through'!$A:$D,3,FALSE) -> 0.094 | G16: =E16*F16 -> 6.392 | H16: 0 | I16: 0 | K16: 0.07540063239
A17: TOU-On Peak | B17: =B$4*VLOOKUP($B$3,'Data Billing Quantities'!$A:$O,MATCH(BI_R1_Low!$A17,'Data Billing Quantities'!$4:$4,0),FALSE) -> 72 | C17: =VLOOKUP($A17,'Data Pass Through'!$A:$D,2,FALSE) -> 0.132 | D17: =B17*C17 -> 9.504 | E17: 72 | F17: =VLOOKUP($A17,'Data Pass Through'!$A:$D,3,FALSE) -> 0.132 | G17: =E17*F17 -> 9.504 | H17: 0 | I17: 0 | K17: 0.1121100767
A18: Sub-Total: Energy (RPP TOU) | D18: =SUM(D15:D17) -> 32.796 | G18: =SUM(G15:G17) -> 32.796 | H18: 0 | I18: 0 | J18: =G18/$G$48 -> 0.397436975 | K18: 0.3868646965
A19: Service Charge | B19: 1 | C19: =VLOOKUP($B$3,'Data Current Rates'!$A:$BA,MATCH(BI_R1_Low!$A19,CurrentHeader,0),FALSE) -> 33.77 | D19: =B19*C19 -> 33.77 | E19: 1 | F19: =VLOOKUP($B$3,'Data Proposed Rates'!$A:$BA,MATCH(BI_R1_Low!$A19,ProposedHeader,0),FALSE) -> 38.74 | G19: =E19*F19 -> 38.74 | H19: 4.97 | I19: 0.1471720462 | J19: 0.4694690942 | K19: 0.4569806788
A20: Fixed Foregone Revenue Charge | B20: 1 | C20: =VLOOKUP($B$3,'Data Current Rates'!$A:$BA,MATCH(BI_R1_Low!$A20,CurrentHeader,0),FALSE) -> 0 | D20: 0 | E20: 1 | F20: =VLOOKUP($B$3,'Data Proposed Rates'!$A:$BA,MATCH(BI_R1_Low!$A20,ProposedHeader,0),FALSE) -> 1.71 | G20: 1.71 | H20: 1.71 | I20: N/A | J20: 0.02072256456 | K20: 0.02017132062
A21: Fixed Deferral/Variance Account Rider (General) | B21: 1 | C21: =VLOOKUP($B$3,'Data Current Rates'!$A:$BA,MATCH(BI_R1_Low!$A21,CurrentHeader,0),FALSE) -> 0 | D21: 0 | E21: 1 | F21: =VLOOKUP($B$3,'Data Proposed Rates'!$A:$BA,MATCH(BI_R1_Low!$A21,ProposedHeader,0),FALSE) -> 0.04 | G21: 0.04 | H21: 0.04 | I21: N/A | J21: 0.0004847383523 | K21: 0.0004718437571
A22: Distribution Volumetric Charge | B22: =IF($B$9="kWh",$B$4,$B$5) -> 400 | C22: =VLOOKUP($B$3,'Data Current Rates'!$A:$BA,MATCH(BI_R1_Low!$A22,CurrentHeader,0),FALSE) -> 0.023 | D22: 9.2 | E22: 400 | F22: =VLOOKUP($B$3,'Data Proposed Rates'!$A:$BA,MATCH(BI_R1_Low!$A22,ProposedHeader,0),FALSE) -> 0.0222 | G22: 8.88 | H22: -0.32 | I22: -0.0347826087 | J22: 0.1076119142 | K22: 0.1047493141
A23: Volumetric Foregone Revenue Charge | B23: =IF($B$9="kWh",$B$4,$B$5) -> 400 | C23: =VLOOKUP($B$3,'Data Current Rates'!$A:$BA,MATCH(BI_R1_Low!$A23,CurrentHeader,0),FALSE) -> 0 | D23: 0 | E23: 400 | F23: =VLOOKUP($B$3,'Data Proposed Rates'!$A:$BA,MATCH(BI_R1_Low!$A23,ProposedHeader,0),FALSE) -> 0.0009 | G23: 0.36 | H23: 0.36 | I23: N/A | J23: 0.004362645171 | K23: 0.004246593814
A24: Volumetric Deferral/Variance Account Rider (General) | B24: =IF($B$9="kWh",$B$4,$B$5) -> 400 | C24: =VLOOKUP($B$3,'Data Current Rates'!$A:$BA,MATCH(BI_R1_Low!$A24,CurrentHeader,0),FALSE) -> 0 | D24: 0 | E24: 400 | F24: =VLOOKUP($B$3,'Data Proposed Rates'!$A:$BA,MATCH(BI_R1_Low!$A24,ProposedHeader,0),FALSE) -> -0.0008 | G24: -0.32 | H24: -0.32 | I24: N/A | J24: -0.003877906818 | K24: -0.003774750057
A25: Volumetric Deferral/Variance Account Rider (Sub Account CBR) | B25: 400 | C25: =VLOOKUP($B$3,'Data Current Rates'!$A:$BA,MATCH(BI_R1_Low!$A25,CurrentHeader,0),FALSE) -> 0 | D25: 0 | E25: 400 | F25: =VLOOKUP($B$3,'Data Proposed Rates'!$A:$BA,MATCH(BI_R1_Low!$A25,ProposedHeader,0),FALSE) -> 0 | G25: 0 | H25: 0 | I25: N/A | J25: 0 | K25: 0
A26: Fair Hydro Plan - Distribution Rate Protection Savings* | D26: =IF(AND(B3<>"R1",B3<>"R2"),0,IF(VLOOKUP($A26,'Data Pass Through'!$A:$D,2,FALSE)=0,0,IF(SUM(D19:D20,D22:D23)<VLOOKUP($A26,'Data Pass Through'!$A:$D,2,FALSE),0,VLOOKUP($A26,'Data Pass Through'!$A:$D,2,FALSE)-SUM(D19:D20,D22:D23)))) -> -6.11 | G26: =IF(AND(B3<>"R1",B3<>"R2"),0,IF(VLOOKUP($A26,'Data Pass Through'!$A:$D,2,FALSE)=0,0,IF(SUM(G19:G20,G22:G23)<VLOOKUP($A26,'Data Pass Through'!$A:$D,2,FALSE),0,VLOOKUP($A26,'Data Pass Through'!$A:$D,2,FALSE)-SUM(G19:G20,G22:G23)))) -> -12.83 | H26: -6.72 | I26: -1.099836334 | J26: -0.1554798265 | K26: -0.1513438851
A27: Sub-Total: Distribution (excluding pass through) | D27: =SUM(INDIRECT("D19:D"&ROW()-1)) -> 36.86 | G27: =SUM(INDIRECT("g19:g"&ROW()-1)) -> 36.58 | H27: =G27-D27 -> -0.28 | I27: -0.007596310364 | J27: 0.4432932232 | K27: 0.4315011159
A28: Smart Metering Entity Charge | B28: 1 | C28: =VLOOKUP($A28,'Data Pass Through'!$A:$D,2,FALSE) -> 0.57 | D28: =B28*C28 -> 0.57 | E28: 1 | F28: =VLOOKUP($A28,'Data Pass Through'!$A:$D,3,FALSE) -> 0.57 | G28: =E28*F28 -> 0.57 | H28: 0 | I28: 0 | J28: 0.00690752152 | K28: 0.006723773539
A29: Line Losses on Cost of Power (based on two-tier RPP prices) | B29: =B8-B4 -> 30.4 | C29: =IF(B4>B7,C13,C12) -> 0.077 | D29: =B29*C29 -> 2.3408 | E29: 30.4 | F29: =IF(B4>B7,F13,F12) -> 0.077 | G29: =E29*F29 -> 2.3408 | H29: 0 | I29: 0 | J29: 0.02836688838 | K29: 0.02761229667
A30: Line Losses on Cost of Power (based on TOU prices) | B30: =B8-B4 -> 30.4 | C30: =VLOOKUP($B$3,'Data Billing Quantities'!$A:$O,MATCH(BI_R1_Low!$A15,'Data Billing Quantities'!$4:$4,0),FALSE)*C15+VLOOKUP($B$3,'Data Billing Quantities'!$A:$O,MATCH(BI_R1_Low!$A16,'Data Billing Quantities'!$4:$4,0),FALSE)*C16+VLOOKUP($B$3,'Data Billing Quantities'!$A:$O,MATCH(BI_R1_Low!$A17,'Data Billing Quantities'!$4:$4,0),FALSE)*C17 -> 0.08199 | D30: =B30*C30 -> 2.492496 | E30: 30.4 | F30: =VLOOKUP($B$3,'Data Billing Quantities'!$A:$O,MATCH(BI_R1_Low!$A15,'Data Billing Quantities'!$4:$4,0),FALSE)*F15+VLOOKUP($B$3,'Data Billing Quantities'!$A:$O,MATCH(BI_R1_Low!$A16,'Data Billing Quantities'!$4:$4,0),FALSE)*F16+VLOOKUP($B$3,'Data Billing Quantities'!$A:$O,MATCH(BI_R1_Low!$A17,'Data Billing Quantities'!$4:$4,0),FALSE)*F17 -> 0.08199 | G30: =E30*F30 -> 2.492496 | H30: 0 | I30: 0 | J30: 0.0302052101 | K30: 0.02940171693
A31: Sub-Total: Distribution (based on two-tier RPP prices) | D31: =SUM(D27,D28:D29) -> 39.7708 | G31: =SUM(G27,G28:G29) -> 39.4908 | H31: -0.28 | I31: -0.007040341155 | J31: 0.4785676331 | K31: 0.4658371861
A32: Sub-Total: Distribution (based on TOU prices) | D32: =SUM(D27,D28,D30) -> 39.922496 | G32: =SUM(G27,G28,G30) -> 39.642496 | H32: -0.28 | I32: -0.007013589531 | J32: 0.4804059548 | K32: 0.4676266064
A33: Retail Transmission Rate – Network Service Rate | B33: =B8 -> 430.4 | C33: =VLOOKUP($B$3,'Data Current Rates'!$A:$BA,MATCH(BI_R1_Low!$A33,CurrentHeader,0),FALSE) -> 0.0064 | D33: =B33*C33 -> 2.75456 | E33: 430.4 | F33: =VLOOKUP($B$3,'Data Proposed Rates'!$A:$BA,MATCH(BI_R1_Low!$A33,ProposedHeader,0),FALSE) -> 0.0078 | G33: =E33*F33 -> 3.35712 | H33: =G33-D33 -> 0.60256 | I33: 0.21875 | J33: 0.04068312043 | K33: 0.03960090285
A34: Retail Transmission Rate – Line and Transformation Connection Service Rate | B34: =B8 -> 430.4 | C34: =VLOOKUP($B$3,'Data Current Rates'!$A:$BA,MATCH(BI_R1_Low!$A34,CurrentHeader,0),FALSE) -> 0.0047 | D34: =B34*C34 -> 2.02288 | E34: 430.4 | F34: =VLOOKUP($B$3,'Data Proposed Rates'!$A:$BA,MATCH(BI_R1_Low!$A34,ProposedHeader,0),FALSE) -> 0.007 | G34: =E34*F34 -> 3.0128 | H34: =G34-D34 -> 0.98992 | I34: 0.4893617021 | J34: 0.03651049269 | K34: 0.03553927179
A35: Sub-Total: Retail Transmission | D35: =SUM(D33:D34) -> 4.77744 | G35: =SUM(G33:G34) -> 6.36992 | H35: =G35-D35 -> 1.59248 | I35: 0.3333333333 | J35: 0.07719361313 | K35: 0.07514017464
A36: Sub-Total: Delivery (based on two-tier RPP prices) | D36: =D31+D35 -> 44.54824 | G36: =G31+G35 -> 45.86072 | H36: =G36-D36 -> 1.31248 | I36: 0.02946199446 | J36: 0.5557612462 | K36: 0.5409773607
A37: Sub-Total: Delivery (based on TOU prices) | D37: =D32+D35 -> 44.699936 | G37: =G32+G35 -> 46.012416 | H37: =G37-D37 -> 1.31248 | I37: 0.02936201072 | J37: 0.5575995679 | K37: 0.542766781
A38: Wholesale Market Service Rate (WMS) - not including CBR | B38: =B8 -> 430.4 | C38: =VLOOKUP($A38,'Data Pass Through'!$A:$D,2,FALSE) -> 0.003 | D38: =B38*C38 -> 1.2912 | E38: =$B$8 -> 430.4 | F38: =VLOOKUP($A38,'Data Pass Through'!$A:$D,3,FALSE) -> 0.003 | G38: =E38*F38 -> 1.2912 | H38: 0 | I38: 0 | J38: 0.01564735401 | K38: 0.01523111648
A39: Capacity Based Recovery (CBR) - Applicable for Class B Customers | B39: =B8 -> 430.4 | C39: =VLOOKUP($A39,'Data Pass Through'!$A:$D,2,FALSE) -> 0.0004 | D39: =B39*C39 -> 0.17216 | E39: =$B$8 -> 430.4 | F39: =VLOOKUP($A39,'Data Pass Through'!$A:$D,3,FALSE) -> 0.0004 | G39: =E39*F39 -> 0.17216 | H39: 0 | I39: 0 | J39: 0.002086313868 | K39: 0.002030815531
A40: Rural Rate Protection Charge | B40: =B8 -> 430.4 | C40: =VLOOKUP($A40,'Data Pass Through'!$A:$D,2,FALSE) -> 0.0005 | D40: 0.2152 | E40: 430.4 | F40: =VLOOKUP($A40,'Data Pass Through'!$A:$D,3,FALSE) -> 0.0005 | G40: 0.2152 | H40: 0 | I40: 0 | J40: 0.002607892335 | K40: 0.002538519413
A41: Standard Supply Service – Administration Charge (if applicable) | B41: 1 | C41: =VLOOKUP($A41,'Data Pass Through'!$A:$D,2,FALSE) -> 0.25 | D41: =B41*C41 -> 0.25 | E41: 1 | F41: =VLOOKUP($A41,'Data Pass Through'!$A:$D,3,FALSE) -> 0.25 | G41: 0.25 | H41: 0 | I41: 0 | J41: 0.003029614702 | K41: 0.002949023482
A42: Sub-Total: Regulatory | D42: =SUM(D38:D41) -> 1.92856 | G42: =SUM(G38:G41) -> 1.92856 | H42: 0 | I42: 0 | J42: 0.02337117492 | K42: 0.02274947491
A43: Debt Retirement Charge (DRC) | B43: =B4 -> 400 | C43: =VLOOKUP($A43,'Data Pass Through'!$A:$D,2,FALSE) -> 0 | D43: =B43*C43 -> 0 | E43: 400 | F43: =VLOOKUP($A43,'Data Pass Through'!$A:$D,3,FALSE) -> 0 | G43: =E43*F43 -> 0 | H43: 0 | I43: N/A | J43: 0 | K43: 0
A44: Total Electricty Charge on Two-Tier RPP | D44: =SUM(D14,D27,D28,D29,D35,D42,D43) -> 77.2768 | G44: =SUM(G14,G27,G28,G29,G35,G42,G43) -> 78.58928 | H44: 1.31248 | I44: 0.01698414013 | J44: 0.9523809524
A45: HST | C45: 0.13 | D45: =D44*C45 -> 10.045984 | F45: =C45 -> 0.13 | G45: =G44*F45 -> 10.2166064 | H45: 0.1706224 | I45: 0.01698414013 | J45: 0.1238095238
A46: Total Electricity Charge on Two-Tier RPP (including HST) | D46: =SUM(D44:D45) -> 87.322784 | G46: =SUM(G44:G45) -> 88.8058864 | H46: 1.4831024 | I46: 0.01698414013 | J46: 1.076190476
A47: Ontario Rebate for Electricity Consumers (OREC) | C47: -0.08 | D47: =D44*C47 -> -6.182144 | F47: =C47 -> -0.08 | G47: =G44*F47 -> -6.2871424 | H47: -0.1049984 | I47: -0.01698414013 | J47: -0.07619047619
A48: Total Amount on Two-Tier RPP | D48: =SUM(D46:D47) -> 81.14064 | G48: =SUM(G46:G47) -> 82.518744 | H48: 1.378104 | I48: 0.01698414013 | J48: 1
A49: Total Electricty Charge on TOU (before HST) | D49: =SUM(D18,D27,D28,D30,D35,D42,D43) -> 79.424496 | G49: =SUM(G18,G27,G28,G30,G35,G42,G43) -> 80.736976 | H49: 1.31248 | I49: 0.01652487666 | K49: =G49/$G$53 -> 0.9523809524
A50: HST | C50: 0.13 | D50: =D49*C50 -> 10.32518448 | F50: =C50 -> 0.13 | G50: =G49*F50 -> 10.49580688 | H50: 0.1706224 | I50: 0.01652487666 | K50: =G50/$G$53 -> 0.1238095238
A51: Total Electricity Charge on TOU (including HST) | D51: =SUM(D49:D50) -> 89.74968048 | G51: =SUM(G49:G50) -> 91.23278288 | H51: 1.4831024 | I51: 0.01652487666 | K51: =G51/$G$53 -> 1.076190476
A52: Ontario Rebate for Electricity Consumers (OREC) | C52: -0.08 | D52: =D49*C52 -> -6.35395968 | F52: =C52 -> -0.08 | G52: =G49*F52 -> -6.45895808 | H52: -0.1049984 | I52: -0.01652487666 | K52: =G52/$G$53 -> -0.07619047619
A53: Total Amount on TOU | D53: =SUM(D51:D52) -> 83.3957208 | G53: =SUM(G51:G52) -> 84.7738248 | H53: 1.378104 | I53: 0.01652487666 | K53: =G53/$G$53 -> 1
A54: * Distribution rate protection applies to R1 and R2 customers

Sheet BI_R1_Typical
A1: 2019 Bill Impacts (Typical Consumption Level) - R1
A3: Rate Class | B3: =RIGHT(A1,LEN(A1)-FIND("- ",A1,1)-1) -> R1
A4: Monthly Consumption (kWh) | B4: =IF(COUNTIF(A1,"*Low*")>0,VLOOKUP(B3,'Data Billing Quantities'!$A:$Z,MATCH("Low kWh",'Data Billing Quantities'!4:4,0),FALSE),IF(COUNTIF(A1,"*Typical*")>0,VLOOKUP(B3,'Data Billing Quantities'!$A:$Z,MATCH("Typical kWh",'Data Billing Quantities'!4:4,0),FALSE),IF(COUNTIF(A1,"*Average*")>0,VLOOKUP(B3,'Data Billing Quantities'!$A:$Z,MATCH("Average kWh",'Data Billing Quantities'!4:4,0),FALSE),IF(COUNTIF(A1,"*High*")>0,VLOOKUP(B3,'Data Billing Quantities'!$A:$Z,MATCH("High kWh",'Data Billing Quantities'!4:4,0),FALSE),"error")))) -> 750
A5: Peak (kW) | B5: =IF(COUNTIF(A1,"*Low*")>0,VLOOKUP(B3,'Data Billing Quantities'!$A:$Z,MATCH("Low kW",'Data Billing Quantities'!4:4,0),FALSE),IF(COUNTIF(A1,"*Typical*")>0,VLOOKUP(B3,'Data Billing Quantities'!$A:$Z,MATCH("Typical kW",'Data Billing Quantities'!4:4,0),FALSE),IF(COUNTIF(A1,"*Average*")>0,VLOOKUP(B3,'Data Billing Quantities'!$A:$Z,MATCH("Average kW",'Data Billing Quantities'!4:4,0),FALSE),IF(COUNTIF(A1,"*High*")>0,VLOOKUP(B3,'Data Billing Quantities'!$A:$Z,MATCH("High kW",'Data Billing Quantities'!4:4,0),FALSE),"error")))) -> 0
A6: Loss factor | B6: =VLOOKUP(B3,'Data Billing Quantities'!A:D,MATCH(A6,'Data Billing Quantities'!4:4,0),FALSE) -> 1.076
A7: Commodity Threshold | B7: =VLOOKUP(B3,'Data Billing Quantities'!A:D,MATCH(A7,'Data Billing Quantities'!4:4,0),FALSE) -> 600
A8: Monthly Consumption (kWh) - Uplifted | B8: =B4*B6 -> 807
A9: Charge determinant | B9: =VLOOKUP(B3,'Data Billing Quantities'!A:D,MATCH(A9,'Data Billing Quantities'!4:4,0),FALSE) -> kWh
B11: Volume | C11: Current Rate ($) | D11: Current Charge ($) | E11: Volume | F11: Proposed Rate ($) | G11: Proposed Charge ($) | H11: Change ($) | I11: Change (%) | J11: % of Total Bill on RPP | K11: % of Total Bill on TOU
A12: Energy First Tier | B12: =IF(B4>B7,B7,B4) -> 600 | C12: =VLOOKUP($A12,'Data Pass Through'!$A:$D,2,FALSE) -> 0.077 | D12: =B12*C12 -> 46.2 | E12: =B12 -> 600 | F12: =VLOOKUP($A12,'Data Pass Through'!$A:$D,3,FALSE) -> 0.077 | G12: =E12*F12 -> 46.2 | H12: =G12-D12 -> 0 | I12: =IF(ISERROR(H12/ABS(D12)),"N/A",(H12/ABS(D12))) -> 0 | J12: =G12/$G$48 -> 0.3766030236
A13: Energy Second Tier | B13: =IF(B4>B7,(B4)-B7,0) -> 150 | C13: =VLOOKUP($A13,'Data Pass Through'!$A:$D,2,FALSE) -> 0.089 | D13: =B13*C13 -> 13.35 | E13: =B13 -> 150 | F13: =VLOOKUP($A13,'Data Pass Through'!$A:$D,3,FALSE) -> 0.089 | G13: =E13*F13 -> 13.35 | H13: 0 | I13: 0 | J13: =G13/$G$48 -> 0.108823601
A14: Sub-Total: Energy (RPP Tiered) | D14: =SUM(D12:D13) -> 59.55 | G14: =SUM(G12:G13) -> 59.55 | H14: 0 | I14: 0 | J14: =G14/$G$48 -> 0.4854266246
A15: TOU-Off Peak | B15: =B$4*VLOOKUP($B$3,'Data Billing Quantities'!$A:$O,MATCH(BI_R1_Typical!$A15,'Data Billing Quantities'!$4:$4,0),FALSE) -> 487.5 | C15: =VLOOKUP($A15,'Data Pass Through'!$A:$D,2,FALSE) -> 0.065 | D15: =B15*C15 -> 31.6875 | E15: 487.5 | F15: =VLOOKUP($A15,'Data Pass Through'!$A:$D,3,FALSE) -> 0.065 | G15: =E15*F15 -> 31.6875 | H15: 0 | I15: 0 | K15: =G15/$G$53 -> 0.2549364722
A16: TOU-Mid Peak | B16: =B$4*VLOOKUP($B$3,'Data Billing Quantities'!$A:$O,MATCH(BI_R1_Typical!$A16,'Data Billing Quantities'!$4:$4,0),FALSE) -> 127.5 | C16: =VLOOKUP($A16,'Data Pass Through'!$A:$D,2,FALSE) -> 0.094 | D16: =B16*C16 -> 11.985 | E16: 127.5 | F16: =VLOOKUP($A16,'Data Pass Through'!$A:$D,3,FALSE) -> 0.094 | G16: =E16*F16 -> 11.985 | H16: 0 | I16: 0 | K16: 0.09642330948
A17: TOU-On Peak | B17: =B$4*VLOOKUP($B$3,'Data Billing Quantities'!$A:$O,MATCH(BI_R1_Typical!$A17,'Data Billing Quantities'!$4:$4,0),FALSE) -> 135 | C17: =VLOOKUP($A17,'Data Pass Through'!$A:$D,2,FALSE) -> 0.132 | D17: =B17*C17 -> 17.82 | E17: 135 | F17: =VLOOKUP($A17,'Data Pass Through'!$A:$D,3,FALSE) -> 0.132 | G17: =E17*F17 -> 17.82 | H17: 0 | I17: 0 | K17: 0.1433678244
A18: Sub-Total: Energy (RPP TOU) | D18: =SUM(D15:D17) -> 61.4925 | G18: =SUM(G15:G17) -> 61.4925 | H18: 0 | I18: 0 | J18: =G18/$G$48 -> 0.5012610699 | K18: 0.494727606
A19: Service Charge | B19: 1 | C19: =VLOOKUP($B$3,'Data Current Rates'!$A:$BA,MATCH(BI_R1_Typical!$A19,CurrentHeader,0),FALSE) -> 33.77 | D19: =B19*C19 -> 33.77 | E19: 1 | F19: =VLOOKUP($B$3,'Data Proposed Rates'!$A:$BA,MATCH(BI_R1_Typical!$A19,ProposedHeader,0),FALSE) -> 38.74 | G19: =E19*F19 -> 38.74 | H19: 4.97 | I19: 0.1471720462 | J19: 0.3157922324 | K19: 0.3116761793
A20: Fixed Foregone Revenue Charge | B20: 1 | C20: =VLOOKUP($B$3,'Data Current Rates'!$A:$BA,MATCH(BI_R1_Typical!$A20,CurrentHeader,0),FALSE) -> 0 | D20: 0 | E20: 1 | F20: =VLOOKUP($B$3,'Data Proposed Rates'!$A:$BA,MATCH(BI_R1_Typical!$A20,ProposedHeader,0),FALSE) -> 1.71 | G20: 1.71 | H20: 1.71 | I20: N/A | J20: 0.01393920282 | K20: 0.0137575185
A21: Fixed Deferral/Variance Account Rider (General) | B21: 1 | C21: =VLOOKUP($B$3,'Data Current Rates'!$A:$BA,MATCH(BI_R1_Typical!$A21,CurrentHeader,0),FALSE) -> 0 | D21: 0 | E21: 1 | F21: =VLOOKUP($B$3,'Data Proposed Rates'!$A:$BA,MATCH(BI_R1_Typical!$A21,ProposedHeader,0),FALSE) -> 0.04 | G21: 0.04 | H21: 0.04 | I21: N/A | J21: 0.0003260632239 | K21: 0.0003218132982
A22: Distribution Volumetric Charge | B22: =IF($B$9="kWh",$B$4,$B$5) -> 750 | C22: =VLOOKUP($B$3,'Data Current Rates'!$A:$BA,MATCH(BI_R1_Typical!$A22,CurrentHeader,0),FALSE) -> 0.023 | D22: 17.25 | E22: 750 | F22: =VLOOKUP($B$3,'Data Proposed Rates'!$A:$BA,MATCH(BI_R1_Typical!$A22,ProposedHeader,0),FALSE) -> 0.0222 | G22: 16.65 | H22: -0.6 | I22: -0.0347826087 | J22: 0.1357238169 | K22: 0.1339547854
A23: Volumetric Foregone Revenue Charge | B23: =IF($B$9="kWh",$B$4,$B$5) -> 750 | C23: =VLOOKUP($B$3,'Data Current Rates'!$A:$BA,MATCH(BI_R1_Typical!$A23,CurrentHeader,0),FALSE) -> 0 | D23: 0 | E23: 750 | F23: =VLOOKUP($B$3,'Data Proposed Rates'!$A:$BA,MATCH(BI_R1_Typical!$A23,ProposedHeader,0),FALSE) -> 0.0009 | G23: 0.675 | H23: 0.675 | I23: N/A | J23: 0.005502316903 | K23: 0.005430599407
A24: Volumetric Deferral/Variance Account Rider (General) | B24: =IF($B$9="kWh",$B$4,$B$5) -> 750 | C24: =VLOOKUP($B$3,'Data Current Rates'!$A:$BA,MATCH(BI_R1_Typical!$A24,CurrentHeader,0),FALSE) -> 0 | D24: 0 | E24: 750 | F24: =VLOOKUP($B$3,'Data Proposed Rates'!$A:$BA,MATCH(BI_R1_Typical!$A24,ProposedHeader,0),FALSE) -> -0.0008 | G24: -0.6 | H24: -0.6 | I24: N/A | J24: -0.004890948359 | K24: -0.004827199473
A25: Volumetric Deferral/Variance Account Rider (Sub Account CBR) | B25: 750 | C25: =VLOOKUP($B$3,'Data Current Rates'!$A:$BA,MATCH(BI_R1_Typical!$A25,CurrentHeader,0),FALSE) -> 0 | D25: 0 | E25: 750 | F25: =VLOOKUP($B$3,'Data Proposed Rates'!$A:$BA,MATCH(BI_R1_Typical!$A25,ProposedHeader,0),FALSE) -> 0 | G25: 0 | H25: 0 | I25: N/A | J25: 0 | K25: 0
A26: Fair Hydro Plan - Distribution Rate Protection Savings* | D26: =IF(AND(B3<>"R1",B3<>"R2"),0,IF(VLOOKUP($A26,'Data Pass Through'!$A:$D,2,FALSE)=0,0,IF(SUM(D19:D20,D22:D23)<VLOOKUP($A26,'Data Pass Through'!$A:$D,2,FALSE),0,VLOOKUP($A26,'Data Pass Through'!$A:$D,2,FALSE)-SUM(D19:D20,D22:D23)))) -> -14.16 | G26: =IF(AND(B3<>"R1",B3<>"R2"),0,IF(VLOOKUP($A26,'Data Pass Through'!$A:$D,2,FALSE)=0,0,IF(SUM(G19:G20,G22:G23)<VLOOKUP($A26,'Data Pass Through'!$A:$D,2,FALSE),0,VLOOKUP($A26,'Data Pass Through'!$A:$D,2,FALSE)-SUM(G19:G20,G22:G23)))) -> -20.915 | H26: -6.755 | I26: -0.4770480226 | J26: -0.1704903082 | K26: -0.1682681283
A27: Sub-Total: Distribution (excluding pass through) | D27: =SUM(INDIRECT("D19:D"&ROW()-1)) -> 36.86 | G27: =SUM(INDIRECT("g19:g"&ROW()-1)) -> 36.3 | H27: =G27-D27 -> -0.56 | I27: -0.01519262073 | J27: 0.2959023757 | K27: 0.2920455681
A28: Smart Metering Entity Charge | B28: 1 | C28: =VLOOKUP($A28,'Data Pass Through'!$A:$D,2,FALSE) -> 0.57 | D28: =B28*C28 -> 0.57 | E28: 1 | F28: =VLOOKUP($A28,'Data Pass Through'!$A:$D,3,FALSE) -> 0.57 | G28: =E28*F28 -> 0.57 | H28: 0 | I28: 0 | J28: 0.004646400941 | K28: 0.0045858395
A29: Line Losses on Cost of Power (based on two-tier RPP prices) | B29: =B8-B4 -> 57 | C29: =IF(B4>B7,C13,C12) -> 0.089 | D29: =B29*C29 -> 5.073 | E29: 57 | F29: =IF(B4>B7,F13,F12) -> 0.089 | G29: =E29*F29 -> 5.073 | H29: 0 | I29: 0 | J29: 0.04135296837 | K29: 0.04081397155
A30: Line Losses on Cost of Power (based on TOU prices) | B30: =B8-B4 -> 57 | C30: =VLOOKUP($B$3,'Data Billing Quantities'!$A:$O,MATCH(BI_R1_Typical!$A15,'Data Billing Quantities'!$4:$4,0),FALSE)*C15+VLOOKUP($B$3,'Data Billing Quantities'!$A:$O,MATCH(BI_R1_Typical!$A16,'Data Billing Quantities'!$4:$4,0),FALSE)*C16+VLOOKUP($B$3,'Data Billing Quantities'!$A:$O,MATCH(BI_R1_Typical!$A17,'Data Billing Quantities'!$4:$4,0),FALSE)*C17 -> 0.08199 | D30: =B30*C30 -> 4.67343 | E30: 57 | F30: =VLOOKUP($B$3,'Data Billing Quantities'!$A:$O,MATCH(BI_R1_Typical!$A15,'Data Billing Quantities'!$4:$4,0),FALSE)*F15+VLOOKUP($B$3,'Data Billing Quantities'!$A:$O,MATCH(BI_R1_Typical!$A16,'Data Billing Quantities'!$4:$4,0),FALSE)*F16+VLOOKUP($B$3,'Data Billing Quantities'!$A:$O,MATCH(BI_R1_Typical!$A17,'Data Billing Quantities'!$4:$4,0),FALSE)*F17 -> 0.08199 | G30: =E30*F30 -> 4.67343 | H30: 0 | I30: 0 | J30: 0.03809584131 | K30: 0.03759929806
A31: Sub-Total: Distribution (based on two-tier RPP prices) | D31: =SUM(D27,D28:D29) -> 42.503 | G31: =SUM(G27,G28:G29) -> 41.943 | H31: -0.56 | I31: -0.01317554055 | J31: 0.341901745 | K31: 0.3374453792
A32: Sub-Total: Distribution (based on TOU prices) | D32: =SUM(D27,D28,D30) -> 42.10343 | G32: =SUM(G27,G28,G30) -> 41.54343 | H32: -0.56 | I32: -0.01330057907 | J32: 0.3386446179 | K32: 0.3342307057
A33: Retail Transmission Rate – Network Service Rate | B33: =B8 -> 807 | C33: =VLOOKUP($B$3,'Data Current Rates'!$A:$BA,MATCH(BI_R1_Typical!$A33,CurrentHeader,0),FALSE) -> 0.0064 | D33: =B33*C33 -> 5.1648 | E33: 807 | F33: =VLOOKUP($B$3,'Data Proposed Rates'!$A:$BA,MATCH(BI_R1_Typical!$A33,ProposedHeader,0),FALSE) -> 0.0078 | G33: =E33*F33 -> 6.2946 | H33: =G33-D33 -> 1.1298 | I33: 0.21875 | J33: 0.05131093923 | K33: 0.05064214967
A34: Retail Transmission Rate – Line and Transformation Connection Service Rate | B34: =B8 -> 807 | C34: =VLOOKUP($B$3,'Data Current Rates'!$A:$BA,MATCH(BI_R1_Typical!$A34,CurrentHeader,0),FALSE) -> 0.0047 | D34: =B34*C34 -> 3.7929 | E34: 807 | F34: =VLOOKUP($B$3,'Data Proposed Rates'!$A:$BA,MATCH(BI_R1_Typical!$A34,ProposedHeader,0),FALSE) -> 0.007 | G34: =E34*F34 -> 5.649 | H34: =G34-D34 -> 1.8561 | I34: 0.4893617021 | J34: 0.0460482788 | K34: 0.04544808304
A35: Sub-Total: Retail Transmission | D35: =SUM(D33:D34) -> 8.9577 | G35: =SUM(G33:G34) -> 11.9436 | H35: =G35-D35 -> 2.9859 | I35: 0.3333333333 | J35: 0.09735921803 | K35: 0.09609023272
A36: Sub-Total: Delivery (based on two-tier RPP prices) | D36: =D31+D35 -> 51.4607 | G36: =G31+G35 -> 53.8866 | H36: =G36-D36 -> 2.4259 | I36: 0.04714082786 | J36: 0.439260963 | K36: 0.4335356119
A37: Sub-Total: Delivery (based on TOU prices) | D37: =D32+D35 -> 51.06113 | G37: =G32+G35 -> 53.48703 | H37: =G37-D37 -> 2.4259 | I37: 0.04750972021 | J37: 0.436003836 | K37: 0.4303209384
A38: Wholesale Market Service Rate (WMS) - not including CBR | B38: =B8 -> 807 | C38: =VLOOKUP($A38,'Data Pass Through'!$A:$D,2,FALSE) -> 0.003 | D38: =B38*C38 -> 2.421 | E38: =$B$8 -> 807 | F38: =VLOOKUP($A38,'Data Pass Through'!$A:$D,3,FALSE) -> 0.003 | G38: =E38*F38 -> 2.421 | H38: 0 | I38: 0 | J38: 0.01973497663 | K38: 0.01947774987
A39: Capacity Based Recovery (CBR) - Applicable for Class B Customers | B39: =B8 -> 807 | C39: =VLOOKUP($A39,'Data Pass Through'!$A:$D,2,FALSE) -> 0.0004 | D39: =B39*C39 -> 0.3228 | E39: =$B$8 -> 807 | F39: =VLOOKUP($A39,'Data Pass Through'!$A:$D,3,FALSE) -> 0.0004 | G39: =E39*F39 -> 0.3228 | H39: 0 | I39: 0 | J39: 0.002631330217 | K39: 0.002597033317
A40: Rural Rate Protection Charge | B40: =B8 -> 807 | C40: =VLOOKUP($A40,'Data Pass Through'!$A:$D,2,FALSE) -> 0.0005 | D40: 0.4035 | E40: 807 | F40: =VLOOKUP($A40,'Data Pass Through'!$A:$D,3,FALSE) -> 0.0005 | G40: 0.4035 | H40: 0 | I40: 0 | J40: 0.003289162771 | K40: 0.003246291646
A41: Standard Supply Service – Administration Charge (if applicable) | B41: 1 | C41: =VLOOKUP($A41,'Data Pass Through'!$A:$D,2,FALSE) -> 0.25 | D41: =B41*C41 -> 0.25 | E41: 1 | F41: =VLOOKUP($A41,'Data Pass Through'!$A:$D,3,FALSE) -> 0.25 | G41: 0.25 | H41: 0 | I41: 0 | J41: 0.002037895149 | K41: 0.002011333114
A42: Sub-Total: Regulatory | D42: =SUM(D38:D41) -> 3.3973 | G42: =SUM(G38:G41) -> 3.3973 | H42: 0 | I42: 0 | J42: 0.02769336476 | K42: 0.02733240795
A43: Debt Retirement Charge (DRC) | B43: =B4 -> 750 | C43: =VLOOKUP($A43,'Data Pass Through'!$A:$D,2,FALSE) -> 0 | D43: =B43*C43 -> 0 | E43: 750 | F43: =VLOOKUP($A43,'Data Pass Through'!$A:$D,3,FALSE) -> 0 | G43: =E43*F43 -> 0 | H43: 0 | I43: N/A | J43: 0 | K43: 0
A44: Total Electricty Charge on Two-Tier RPP | D44: =SUM(D14,D27,D28,D29,D35,D42,D43) -> 114.408 | G44: =SUM(G14,G27,G28,G29,G35,G42,G43) -> 116.8339 | H44: 2.4259 | I44: 0.02120393679 | J44: 0.9523809524
A45: HST | C45: 0.13 | D45: =D44*C45 -> 14.87304 | F45: =C45 -> 0.13 | G45: =G44*F45 -> 15.188407 | H45: 0.315367 | I45: 0.02120393679 | J45: 0.1238095238
A46: Total Electricity Charge on Two-Tier RPP (including HST) | D46: =SUM(D44:D45) -> 129.28104 | G46: =SUM(G44:G45) -> 132.022307 | H46: 2.741267 | I46: 0.02120393679 | J46: 1.076190476
A47: Ontario Rebate for Electricity Consumers (OREC) | C47: -0.08 | D47: =D44*C47 -> -9.15264 | F47: =C47 -> -0.08 | G47: =G44*F47 -> -9.346712 | H47: -0.194072 | I47: -0.02120393679 | J47: -0.07619047619
A48: Total Amount on Two-Tier RPP | D48: =SUM(D46:D47) -> 120.1284 | G48: =SUM(G46:G47) -> 122.675595 | H48: 2.547195 | I48: 0.02120393679 | J48: 1
A49: Total Electricty Charge on TOU (before HST) | D49: =SUM(D18,D27,D28,D30,D35,D42,D43) -> 115.95093 | G49: =SUM(G18,G27,G28,G30,G35,G42,G43) -> 118.37683 | H49: 2.4259 | I49: 0.02092178131 | K49: =G49/$G$53 -> 0.9523809524
A50: HST | C50: 0.13 | D50: =D49*C50 -> 15.0736209 | F50: =C50 -> 0.13 | G50: =G49*F50 -> 15.3889879 | H50: 0.315367 | I50: 0.02092178131 | K50: =G50/$G$53 -> 0.1238095238
A51: Total Electricity Charge on TOU (including HST) | D51: =SUM(D49:D50) -> 131.0245509 | G51: =SUM(G49:G50) -> 133.7658179 | H51: 2.741267 | I51: 0.02092178131 | K51: =G51/$G$53 -> 1.076190476
A52: Ontario Rebate for Electricity Consumers (OREC) | C52: -0.08 | D52: =D49*C52 -> -9.2760744 | F52: =C52 -> -0.08 | G52: =G49*F52 -> -9.4701464 | H52: -0.194072 | I52: -0.02092178131 | K52: =G52/$G$53 -> -0.07619047619
A53: Total Amount on TOU | D53: =SUM(D51:D52) -> 121.7484765 | G53: =SUM(G51:G52) -> 124.2956715 | H53: 2.547195 | I53: 0.02092178131 | K53: =G53/$G$53 -> 1
A54: * Distribution rate protection applies to R1 and R2 customers

Sheet BI_R1_Avg
A1: 2019 Bill Impacts (Average Consumption Level) - R1
A3: Rate Class | B3: =RIGHT(A1,LEN(A1)-FIND("- ",A1,1)-1) -> R1
A4: Monthly Consumption (kWh) | B4: =IF(COUNTIF(A1,"*Low*")>0,VLOOKUP(B3,'Data Billing Quantities'!$A:$Z,MATCH("Low kWh",'Data Billing Quantities'!4:4,0),FALSE),IF(COUNTIF(A1,"*Typical*")>0,VLOOKUP(B3,'Data Billing Quantities'!$A:$Z,MATCH("Typical kWh",'Data Billing Quantities'!4:4,0),FALSE),IF(COUNTIF(A1,"*Average*")>0,VLOOKUP(B3,'Data Billing Quantities'!$A:$Z,MATCH("Average kWh",'Data Billing Quantities'!4:4,0),FALSE),IF(COUNTIF(A1,"*High*")>0,VLOOKUP(B3,'Data Billing Quantities'!$A:$Z,MATCH("High kWh",'Data Billing Quantities'!4:4,0),FALSE),"error")))) -> 920
A5: Peak (kW) | B5: =IF(COUNTIF(A1,"*Low*")>0,VLOOKUP(B3,'Data Billing Quantities'!$A:$Z,MATCH("Low kW",'Data Billing Quantities'!4:4,0),FALSE),IF(COUNTIF(A1,"*Typical*")>0,VLOOKUP(B3,'Data Billing Quantities'!$A:$Z,MATCH("Typical kW",'Data Billing Quantities'!4:4,0),FALSE),IF(COUNTIF(A1,"*Average*")>0,VLOOKUP(B3,'Data Billing Quantities'!$A:$Z,MATCH("Average kW",'Data Billing Quantities'!4:4,0),FALSE),IF(COUNTIF(A1,"*High*")>0,VLOOKUP(B3,'Data Billing Quantities'!$A:$Z,MATCH("High kW",'Data Billing Quantities'!4:4,0),FALSE),"error")))) -> 0
A6: Loss factor | B6: =VLOOKUP(B3,'Data Billing Quantities'!A:D,MATCH(A6,'Data Billing Quantities'!4:4,0),FALSE) -> 1.076
A7: Commodity Threshold | B7: =VLOOKUP(B3,'Data Billing Quantities'!A:D,MATCH(A7,'Data Billing Quantities'!4:4,0),FALSE) -> 600
A8: Monthly Consumption (kWh) - Uplifted | B8: =B4*B6 -> 989.92
A9: Charge determinant | B9: =VLOOKUP(B3,'Data Billing Quantities'!A:D,MATCH(A9,'Data Billing Quantities'!4:4,0),FALSE) -> kWh
B11: Volume | C11: Current Rate ($) | D11: Current Charge ($) | E11: Volume | F11: Proposed Rate ($) | G11: Proposed Charge ($) | H11: Change ($) | I11: Change (%) | J11: % of Total Bill on RPP | K11: % of Total Bill on TOU
A12: Energy First Tier | B12: =IF(B4>B7,B7,B4) -> 600 | C12: =VLOOKUP($A12,'Data Pass Through'!$A:$D,2,FALSE) -> 0.077 | D12: =B12*C12 -> 46.2 | E12: =B12 -> 600 | F12: =VLOOKUP($A12,'Data Pass Through'!$A:$D,3,FALSE) -> 0.077 | G12: =E12*F12 -> 46.2 | H12: =G12-D12 -> 0 | I12: =IF(ISERROR(H12/ABS(D12)),"N/A",(H12/ABS(D12))) -> 0 | J12: =G12/$G$48 -> 0.322584467
A13: Energy Second Tier | B13: =IF(B4>B7,(B4)-B7,0) -> 320 | C13: =VLOOKUP($A13,'Data Pass Through'!$A:$D,2,FALSE) -> 0.089 | D13: =B13*C13 -> 28.48 | E13: =B13 -> 320 | F13: =VLOOKUP($A13,'Data Pass Through'!$A:$D,3,FALSE) -> 0.089 | G13: =E13*F13 -> 28.48 | H13: 0 | I13: 0 | J13: =G13/$G$48 -> 0.1988572645
A14: Sub-Total: Energy (RPP Tiered) | D14: =SUM(D12:D13) -> 74.68 | G14: =SUM(G12:G13) -> 74.68 | H14: 0 | I14: 0 | J14: =G14/$G$48 -> 0.5214417315
A15: TOU-Off Peak | B15: =B$4*VLOOKUP($B$3,'Data Billing Quantities'!$A:$O,MATCH(BI_R1_Avg!$A15,'Data Billing Quantities'!$4:$4,0),FALSE) -> 598 | C15: =VLOOKUP($A15,'Data Pass Through'!$A:$D,2,FALSE) -> 0.065 | D15: =B15*C15 -> 38.87 | E15: 598 | F15: =VLOOKUP($A15,'Data Pass Through'!$A:$D,3,FALSE) -> 0.065 | G15: =E15*F15 -> 38.87 | H15: 0 | I15: 0 | K15: =G15/$G$53 -> 0.2708861874
A16: TOU-Mid Peak | B16: =B$4*VLOOKUP($B$3,'Data Billing Quantities'!$A:$O,MATCH(BI_R1_Avg!$A16,'Data Billing Quantities'!$4:$4,0),FALSE) -> 156.4 | C16: =VLOOKUP($A16,'Data Pass Through'!$A:$D,2,FALSE) -> 0.094 | D16: =B16*C16 -> 14.7016 | E16: 156.4 | F16: =VLOOKUP($A16,'Data Pass Through'!$A:$D,3,FALSE) -> 0.094 | G16: =E16*F16 -> 14.7016 | H16: 0 | I16: 0 | K16: 0.1024558882
A17: TOU-On Peak | B17: =B$4*VLOOKUP($B$3,'Data Billing Quantities'!$A:$O,MATCH(BI_R1_Avg!$A17,'Data Billing Quantities'!$4:$4,0),FALSE) -> 165.6 | C17: =VLOOKUP($A17,'Data Pass Through'!$A:$D,2,FALSE) -> 0.132 | D17: =B17*C17 -> 21.8592 | E17: 165.6 | F17: =VLOOKUP($A17,'Data Pass Through'!$A:$D,3,FALSE) -> 0.132 | G17: =E17*F17 -> 21.8592 | H17: 0 | I17: 0 | K17: 0.1523374157
A18: Sub-Total: Energy (RPP TOU) | D18: =SUM(D15:D17) -> 75.4308 | G18: =SUM(G15:G17) -> 75.4308 | H18: 0 | I18: 0 | J18: =G18/$G$48 -> 0.5266840782 | K18: 0.5256794912
A19: Service Charge | B19: 1 | C19: =VLOOKUP($B$3,'Data Current Rates'!$A:$BA,MATCH(BI_R1_Avg!$A19,CurrentHeader,0),FALSE) -> 33.77 | D19: =B19*C19 -> 33.77 | E19: 1 | F19: =VLOOKUP($B$3,'Data Proposed Rates'!$A:$BA,MATCH(BI_R1_Avg!$A19,ProposedHeader,0),FALSE) -> 38.74 | G19: =E19*F19 -> 38.74 | H19: 4.97 | I19: 0.1471720462 | J19: 0.2704961526 | K19: 0.2699802135
A20: Fixed Foregone Revenue Charge | B20: 1 | C20: =VLOOKUP($B$3,'Data Current Rates'!$A:$BA,MATCH(BI_R1_Avg!$A20,CurrentHeader,0),FALSE) -> 0 | D20: 0 | E20: 1 | F20: =VLOOKUP($B$3,'Data Proposed Rates'!$A:$BA,MATCH(BI_R1_Avg!$A20,ProposedHeader,0),FALSE) -> 1.71 | G20: 1.71 | H20: 1.71 | I20: N/A | J20: 0.01193981469 | K20: 0.01191704092
A21: Fixed Deferral/Variance Account Rider (General) | B21: 1 | C21: =VLOOKUP($B$3,'Data Current Rates'!$A:$BA,MATCH(BI_R1_Avg!$A21,CurrentHeader,0),FALSE) -> 0 | D21: 0 | E21: 1 | F21: =VLOOKUP($B$3,'Data Proposed Rates'!$A:$BA,MATCH(BI_R1_Avg!$A21,ProposedHeader,0),FALSE) -> 0.04 | G21: 0.04 | H21: 0.04 | I21: N/A | J21: 0.0002792939108 | K21: 0.000278761191
A22: Distribution Volumetric Charge | B22: =IF($B$9="kWh",$B$4,$B$5) -> 920 | C22: =VLOOKUP($B$3,'Data Current Rates'!$A:$BA,MATCH(BI_R1_Avg!$A22,CurrentHeader,0),FALSE) -> 0.023 | D22: 21.16 | E22: 920 | F22: =VLOOKUP($B$3,'Data Proposed Rates'!$A:$BA,MATCH(BI_R1_Avg!$A22,ProposedHeader,0),FALSE) -> 0.0222 | G22: 20.424 | H22: -0.736 | I22: -0.0347826087 | J22: 0.1426074709 | K22: 0.1423354641
A23: Volumetric Foregone Revenue Charge | B23: =IF($B$9="kWh",$B$4,$B$5) -> 920 | C23: =VLOOKUP($B$3,'Data Current Rates'!$A:$BA,MATCH(BI_R1_Avg!$A23,CurrentHeader,0),FALSE) -> 0 | D23: 0 | E23: 920 | F23: =VLOOKUP($B$3,'Data Proposed Rates'!$A:$BA,MATCH(BI_R1_Avg!$A23,ProposedHeader,0),FALSE) -> 0.0009 | G23: 0.828 | H23: 0.828 | I23: N/A | J23: 0.005781383954 | K23: 0.005770356655
A24: Volumetric Deferral/Variance Account Rider (General) | B24: =IF($B$9="kWh",$B$4,$B$5) -> 920 | C24: =VLOOKUP($B$3,'Data Current Rates'!$A:$BA,MATCH(BI_R1_Avg!$A24,CurrentHeader,0),FALSE) -> 0 | D24: 0 | E24: 920 | F24: =VLOOKUP($B$3,'Data Proposed Rates'!$A:$BA,MATCH(BI_R1_Avg!$A24,ProposedHeader,0),FALSE) -> -0.0008 | G24: -0.736 | H24: -0.736 | I24: N/A | J24: -0.005139007959 | K24: -0.005129205915
A25: Volumetric Deferral/Variance Account Rider (Sub Account CBR) | B25: 920 | C25: =VLOOKUP($B$3,'Data Current Rates'!$A:$BA,MATCH(BI_R1_Avg!$A25,CurrentHeader,0),FALSE) -> 0 | D25: 0 | E25: 920 | F25: =VLOOKUP($B$3,'Data Proposed Rates'!$A:$BA,MATCH(BI_R1_Avg!$A25,ProposedHeader,0),FALSE) -> 0 | G25: 0 | H25: 0 | I25: N/A | J25: 0 | K25: 0
A26: Fair Hydro Plan - Distribution Rate Protection Savings* | D26: =IF(AND(B3<>"R1",B3<>"R2"),0,IF(VLOOKUP($A26,'Data Pass Through'!$A:$D,2,FALSE)=0,0,IF(SUM(D19:D20,D22:D23)<VLOOKUP($A26,'Data Pass Through'!$A:$D,2,FALSE),0,VLOOKUP($A26,'Data Pass Through'!$A:$D,2,FALSE)-SUM(D19:D20,D22:D23)))) -> -18.07 | G26: =IF(AND(B3<>"R1",B3<>"R2"),0,IF(VLOOKUP($A26,'Data Pass Through'!$A:$D,2,FALSE)=0,0,IF(SUM(G19:G20,G22:G23)<VLOOKUP($A26,'Data Pass Through'!$A:$D,2,FALSE),0,VLOOKUP($A26,'Data Pass Through'!$A:$D,2,FALSE)-SUM(G19:G20,G22:G23)))) -> -24.842 | H26: -6.772 | I26: -0.3747648035 | J26: -0.1734554833 | K26: -0.1731246377
A27: Sub-Total: Distribution (excluding pass through) | D27: =SUM(INDIRECT("D19:D"&ROW()-1)) -> 36.86 | G27: =SUM(INDIRECT("g19:g"&ROW()-1)) -> 36.164 | H27: =G27-D27 -> -0.696 | I27: -0.01888225719 | J27: 0.2525096248 | K27: 0.2520279928
A28: Smart Metering Entity Charge | B28: 1 | C28: =VLOOKUP($A28,'Data Pass Through'!$A:$D,2,FALSE) -> 0.57 | D28: =B28*C28 -> 0.57 | E28: 1 | F28: =VLOOKUP($A28,'Data Pass Through'!$A:$D,3,FALSE) -> 0.57 | G28: =E28*F28 -> 0.57 | H28: 0 | I28: 0 | J28: 0.003979938229 | K28: 0.003972346972
A29: Line Losses on Cost of Power (based on two-tier RPP prices) | B29: =B8-B4 -> 69.92 | C29: =IF(B4>B7,C13,C12) -> 0.089 | D29: =B29*C29 -> 6.22288 | E29: 69.92 | F29: =IF(B4>B7,F13,F12) -> 0.089 | G29: =E29*F29 -> 6.22288 | H29: 0 | I29: 0 | J29: 0.04345031229 | K29: 0.04336743601
A30: Line Losses on Cost of Power (based on TOU prices) | B30: =B8-B4 -> 69.92 | C30: =VLOOKUP($B$3,'Data Billing Quantities'!$A:$O,MATCH(BI_R1_Avg!$A15,'Data Billing Quantities'!$4:$4,0),FALSE)*C15+VLOOKUP($B$3,'Data Billing Quantities'!$A:$O,MATCH(BI_R1_Avg!$A16,'Data Billing Quantities'!$4:$4,0),FALSE)*C16+VLOOKUP($B$3,'Data Billing Quantities'!$A:$O,MATCH(BI_R1_Avg!$A17,'Data Billing Quantities'!$4:$4,0),FALSE)*C17 -> 0.08199 | D30: =B30*C30 -> 5.7327408 | E30: 69.92 | F30: =VLOOKUP($B$3,'Data Billing Quantities'!$A:$O,MATCH(BI_R1_Avg!$A15,'Data Billing Quantities'!$4:$4,0),FALSE)*F15+VLOOKUP($B$3,'Data Billing Quantities'!$A:$O,MATCH(BI_R1_Avg!$A16,'Data Billing Quantities'!$4:$4,0),FALSE)*F16+VLOOKUP($B$3,'Data Billing Quantities'!$A:$O,MATCH(BI_R1_Avg!$A17,'Data Billing Quantities'!$4:$4,0),FALSE)*F17 -> 0.08199 | G30: =E30*F30 -> 5.7327408 | H30: 0 | I30: 0 | J30: 0.04002798994 | K30: 0.03995164133
A31: Sub-Total: Distribution (based on two-tier RPP prices) | D31: =SUM(D27,D28:D29) -> 43.65288 | G31: =SUM(G27,G28:G29) -> 42.95688 | H31: -0.696 | I31: -0.01594396521 | J31: 0.2999398753 | K31: 0.2993677758
A32: Sub-Total: Distribution (based on TOU prices) | D32: =SUM(D27,D28,D30) -> 43.1627408 | G32: =SUM(G27,G28,G30) -> 42.4667408 | H32: -0.696 | I32: -0.01612501864 | J32: 0.2965175529 | K32: 0.2959519811
A33: Retail Transmission Rate – Network Service Rate | B33: =B8 -> 989.92 | C33: =VLOOKUP($B$3,'Data Current Rates'!$A:$BA,MATCH(BI_R1_Avg!$A33,CurrentHeader,0),FALSE) -> 0.0064 | D33: =B33*C33 -> 6.335488 | E33: 989.92 | F33: =VLOOKUP($B$3,'Data Proposed Rates'!$A:$BA,MATCH(BI_R1_Avg!$A33,ProposedHeader,0),FALSE) -> 0.0078 | G33: =E33*F33 -> 7.721376 | H33: =G33-D33 -> 1.385888 | I33: 0.21875 | J33: 0.0539133325 | K33: 0.05381049926
A34: Retail Transmission Rate – Line and Transformation Connection Service Rate | B34: =B8 -> 989.92 | C34: =VLOOKUP($B$3,'Data Current Rates'!$A:$BA,MATCH(BI_R1_Avg!$A34,CurrentHeader,0),FALSE) -> 0.0047 | D34: =B34*C34 -> 4.652624 | E34: 989.92 | F34: =VLOOKUP($B$3,'Data Proposed Rates'!$A:$BA,MATCH(BI_R1_Avg!$A34,ProposedHeader,0),FALSE) -> 0.007 | G34: =E34*F34 -> 6.92944 | H34: =G34-D34 -> 2.276816 | I34: 0.4893617021 | J34: 0.04838375993 | K34: 0.04829147369
A35: Sub-Total: Retail Transmission | D35: =SUM(D33:D34) -> 10.988112 | G35: =SUM(G33:G34) -> 14.650816 | H35: =G35-D35 -> 3.662704 | I35: 0.3333333333 | J35: 0.1022970924 | K35: 0.1021019729
A36: Sub-Total: Delivery (based on two-tier RPP prices) | D36: =D31+D35 -> 54.640992 | G36: =G31+G35 -> 57.607696 | H36: =G36-D36 -> 2.966704 | I36: 0.05429447547 | J36: 0.4022369677 | K36: 0.4014697488
A37: Sub-Total: Delivery (based on TOU prices) | D37: =D32+D35 -> 54.1508528 | G37: =G32+G35 -> 57.1175568 | H37: =G37-D37 -> 2.966704 | I37: 0.05478591466 | J37: 0.3988146454 | K37: 0.3980539541
A38: Wholesale Market Service Rate (WMS) - not including CBR | B38: =B8 -> 989.92 | C38: =VLOOKUP($A38,'Data Pass Through'!$A:$D,2,FALSE) -> 0.003 | D38: =B38*C38 -> 2.96976 | E38: =$B$8 -> 989.92 | F38: =VLOOKUP($A38,'Data Pass Through'!$A:$D,3,FALSE) -> 0.003 | G38: =E38*F38 -> 2.96976 | H38: 0 | I38: 0 | J38: 0.02073589711 | K38: 0.02069634587
A39: Capacity Based Recovery (CBR) - Applicable for Class B Customers | B39: =B8 -> 989.92 | C39: =VLOOKUP($A39,'Data Pass Through'!$A:$D,2,FALSE) -> 0.0004 | D39: =B39*C39 -> 0.395968 | E39: =$B$8 -> 989.92 | F39: =VLOOKUP($A39,'Data Pass Through'!$A:$D,3,FALSE) -> 0.0004 | G39: =E39*F39 -> 0.395968 | H39: 0 | I39: 0 | J39: 0.002764786282 | K39: 0.002759512782
A40: Rural Rate Protection Charge | B40: =B8 -> 989.92 | C40: =VLOOKUP($A40,'Data Pass Through'!$A:$D,2,FALSE) -> 0.0005 | D40: 0.49496 | E40: 989.92 | F40: =VLOOKUP($A40,'Data Pass Through'!$A:$D,3,FALSE) -> 0.0005 | G40: 0.49496 | H40: 0 | I40: 0 | J40: 0.003455982852 | K40: 0.003449390978
A41: Standard Supply Service – Administration Charge (if applicable) | B41: 1 | C41: =VLOOKUP($A41,'Data Pass Through'!$A:$D,2,FALSE) -> 0.25 | D41: =B41*C41 -> 0.25 | E41: 1 | F41: =VLOOKUP($A41,'Data Pass Through'!$A:$D,3,FALSE) -> 0.25 | G41: 0.25 | H41: 0 | I41: 0 | J41: 0.001745586943 | K41: 0.001742257444
A42: Sub-Total: Regulatory | D42: =SUM(D38:D41) -> 4.110688 | G42: =SUM(G38:G41) -> 4.110688 | H42: 0 | I42: 0 | J42: 0.02870225319 | K42: 0.02864750707
A43: Debt Retirement Charge (DRC) | B43: =B4 -> 920 | C43: =VLOOKUP($A43,'Data Pass Through'!$A:$D,2,FALSE) -> 0 | D43: =B43*C43 -> 0 | E43: 920 | F43: =VLOOKUP($A43,'Data Pass Through'!$A:$D,3,FALSE) -> 0 | G43: =E43*F43 -> 0 | H43: 0 | I43: N/A | J43: 0 | K43: 0
A44: Total Electricty Charge on Two-Tier RPP | D44: =SUM(D14,D27,D28,D29,D35,D42,D43) -> 133.43168 | G44: =SUM(G14,G27,G28,G29,G35,G42,G43) -> 136.398384 | H44: 2.966704 | I44: 0.02223388029 | J44: 0.9523809524
A45: HST | C45: 0.13 | D45: =D44*C45 -> 17.3461184 | F45: =C45 -> 0.13 | G45: =G44*F45 -> 17.73178992 | H45: 0.38567152 | I45: 0.02223388029 | J45: 0.1238095238
A46: Total Electricity Charge on Two-Tier RPP (including HST) | D46: =SUM(D44:D45) -> 150.7777984 | G46: =SUM(G44:G45) -> 154.1301739 | H46: 3.35237552 | I46: 0.02223388029 | J46: 1.076190476
A47: Ontario Rebate for Electricity Consumers (OREC) | C47: -0.08 | D47: =D44*C47 -> -10.6745344 | F47: =C47 -> -0.08 | G47: =G44*F47 -> -10.91187072 | H47: -0.23733632 | I47: -0.02223388029 | J47: -0.07619047619
A48: Total Amount on Two-Tier RPP | D48: =SUM(D46:D47) -> 140.103264 | G48: =SUM(G46:G47) -> 143.2183032 | H48: 3.1150392 | I48: 0.02223388029 | J48: 1
A49: Total Electricty Charge on TOU (before HST) | D49: =SUM(D18,D27,D28,D30,D35,D42,D43) -> 133.6923408 | G49: =SUM(G18,G27,G28,G30,G35,G42,G43) -> 136.6590448 | H49: 2.966704 | I49: 0.02219053075 | K49: =G49/$G$53 -> 0.9523809524
A50: HST | C50: 0.13 | D50: =D49*C50 -> 17.3800043 | F50: =C50 -> 0.13 | G50: =G49*F50 -> 17.76567582 | H50: 0.38567152 | I50: 0.02219053075 | K50: =G50/$G$53 -> 0.1238095238
A51: Total Electricity Charge on TOU (including HST) | D51: =SUM(D49:D50) -> 151.0723451 | G51: =SUM(G49:G50) -> 154.4247206 | H51: 3.35237552 | I51: 0.02219053075 | K51: =G51/$G$53 -> 1.076190476
A52: Ontario Rebate for Electricity Consumers (OREC) | C52: -0.08 | D52: =D49*C52 -> -10.69538726 | F52: =C52 -> -0.08 | G52: =G49*F52 -> -10.93272358 | H52: -0.23733632 | I52: -0.02219053075 | K52: =G52/$G$53 -> -0.07619047619
A53: Total Amount on TOU | D53: =SUM(D51:D52) -> 140.3769578 | G53: =SUM(G51:G52) -> 143.491997 | H53: 3.1150392 | I53: 0.02219053075 | K53: =G53/$G$53 -> 1
A54: * Distribution rate protection applies to R1 and R2 customers

Sheet BI_R1_High
A1: 2019 Bill Impacts (High Consumption Level) - R1
A3: Rate Class | B3: =RIGHT(A1,LEN(A1)-FIND("- ",A1,1)-1) -> R1
A4: Monthly Consumption (kWh) | B4: =IF(COUNTIF(A1,"*Low*")>0,VLOOKUP(B3,'Data Billing Quantities'!$A:$Z,MATCH("Low kWh",'Data Billing Quantities'!4:4,0),FALSE),IF(COUNTIF(A1,"*Typical*")>0,VLOOKUP(B3,'Data Billing Quantities'!$A:$Z,MATCH("Typical kWh",'Data Billing Quantities'!4:4,0),FALSE),IF(COUNTIF(A1,"*Average*")>0,VLOOKUP(B3,'Data Billing Quantities'!$A:$Z,MATCH("Average kWh",'Data Billing Quantities'!4:4,0),FALSE),IF(COUNTIF(A1,"*High*")>0,VLOOKUP(B3,'Data Billing Quantities'!$A:$Z,MATCH("High kWh",'Data Billing Quantities'!4:4,0),FALSE),"error")))) -> 1800
A5: Peak (kW) | B5: =IF(COUNTIF(A1,"*Low*")>0,VLOOKUP(B3,'Data Billing Quantities'!$A:$Z,MATCH("Low kW",'Data Billing Quantities'!4:4,0),FALSE),IF(COUNTIF(A1,"*Typical*")>0,VLOOKUP(B3,'Data Billing Quantities'!$A:$Z,MATCH("Typical kW",'Data Billing Quantities'!4:4,0),FALSE),IF(COUNTIF(A1,"*Average*")>0,VLOOKUP(B3,'Data Billing Quantities'!$A:$Z,MATCH("Average kW",'Data Billing Quantities'!4:4,0),FALSE),IF(COUNTIF(A1,"*High*")>0,VLOOKUP(B3,'Data Billing Quantities'!$A:$Z,MATCH("High kW",'Data Billing Quantities'!4:4,0),FALSE),"error")))) -> 0
A6: Loss factor | B6: =VLOOKUP(B3,'Data Billing Quantities'!A:D,MATCH(A6,'Data Billing Quantities'!4:4,0),FALSE) -> 1.076
A7: Commodity Threshold | B7: =VLOOKUP(B3,'Data Billing Quantities'!A:D,MATCH(A7,'Data Billing Quantities'!4:4,0),FALSE) -> 600
A8: Monthly Consumption (kWh) - Uplifted | B8: =B4*B6 -> 1936.8
A9: Charge determinant | B9: =VLOOKUP(B3,'Data Billing Quantities'!A:D,MATCH(A9,'Data Billing Quantities'!4:4,0),FALSE) -> kWh
B11: Volume | C11: Current Rate ($) | D11: Current Charge ($) | E11: Volume | F11: Proposed Rate ($) | G11: Proposed Charge ($) | H11: Change ($) | I11: Change (%) | J11: % of Total Bill on RPP | K11: % of Total Bill on TOU
A12: Energy First Tier | B12: =IF(B4>B7,B7,B4) -> 600 | C12: =VLOOKUP($A12,'Data Pass Through'!$A:$D,2,FALSE) -> 0.077 | D12: =B12*C12 -> 46.2 | E12: =B12 -> 600 | F12: =VLOOKUP($A12,'Data Pass Through'!$A:$D,3,FALSE) -> 0.077 | G12: =E12*F12 -> 46.2 | H12: =G12-D12 -> 0 | I12: =IF(ISERROR(H12/ABS(D12)),"N/A",(H12/ABS(D12))) -> 0 | J12: =G12/$G$48 -> 0.1851280261
A13: Energy Second Tier | B13: =IF(B4>B7,(B4)-B7,0) -> 1200 | C13: =VLOOKUP($A13,'Data Pass Through'!$A:$D,2,FALSE) -> 0.089 | D13: =B13*C13 -> 106.8 | E13: =B13 -> 1200 | F13: =VLOOKUP($A13,'Data Pass Through'!$A:$D,3,FALSE) -> 0.089 | G13: =E13*F13 -> 106.8 | H13: 0 | I13: 0 | J13: =G13/$G$48 -> 0.4279582942
A14: Sub-Total: Energy (RPP Tiered) | D14: =SUM(D12:D13) -> 153 | G14: =SUM(G12:G13) -> 153 | H14: 0 | I14: 0 | J14: =G14/$G$48 -> 0.6130863203
A15: TOU-Off Peak | B15: =B$4*VLOOKUP($B$3,'Data Billing Quantities'!$A:$O,MATCH(BI_R1_High!$A15,'Data Billing Quantities'!$4:$4,0),FALSE) -> 1170 | C15: =VLOOKUP($A15,'Data Pass Through'!$A:$D,2,FALSE) -> 0.065 | D15: =B15*C15 -> 76.05 | E15: 1170 | F15: =VLOOKUP($A15,'Data Pass Through'!$A:$D,3,FALSE) -> 0.065 | G15: =E15*F15 -> 76.05 | H15: 0 | I15: 0 | K15: =G15/$G$53 -> 0.3131418126
A16: TOU-Mid Peak | B16: =B$4*VLOOKUP($B$3,'Data Billing Quantities'!$A:$O,MATCH(BI_R1_High!$A16,'Data Billing Quantities'!$4:$4,0),FALSE) -> 306 | C16: =VLOOKUP($A16,'Data Pass Through'!$A:$D,2,FALSE) -> 0.094 | D16: =B16*C16 -> 28.764 | E16: 306 | F16: =VLOOKUP($A16,'Data Pass Through'!$A:$D,3,FALSE) -> 0.094 | G16: =E16*F16 -> 28.764 | H16: 0 | I16: 0 | K16: 0.1184380157
A17: TOU-On Peak | B17: =B$4*VLOOKUP($B$3,'Data Billing Quantities'!$A:$O,MATCH(BI_R1_High!$A17,'Data Billing Quantities'!$4:$4,0),FALSE) -> 324 | C17: =VLOOKUP($A17,'Data Pass Through'!$A:$D,2,FALSE) -> 0.132 | D17: =B17*C17 -> 42.768 | E17: 324 | F17: =VLOOKUP($A17,'Data Pass Through'!$A:$D,3,FALSE) -> 0.132 | G17: =E17*F17 -> 42.768 | H17: 0 | I17: 0 | K17: 0.1761005791
A18: Sub-Total: Energy (RPP TOU) | D18: =SUM(D15:D17) -> 147.582 | G18: =SUM(G15:G17) -> 147.582 | H18: 0 | I18: 0 | J18: =G18/$G$48 -> 0.5913758518 | K18: 0.6076804074
A19: Service Charge | B19: 1 | C19: =VLOOKUP($B$3,'Data Current Rates'!$A:$BA,MATCH(BI_R1_High!$A19,CurrentHeader,0),FALSE) -> 33.77 | D19: =B19*C19 -> 33.77 | E19: 1 | F19: =VLOOKUP($B$3,'Data Proposed Rates'!$A:$BA,MATCH(BI_R1_High!$A19,ProposedHeader,0),FALSE) -> 38.74 | G19: =E19*F19 -> 38.74 | H19: 4.97 | I19: 0.1471720462 | J19: 0.1552350591 | K19: 0.1595149746
A20: Fixed Foregone Revenue Charge | B20: 1 | C20: =VLOOKUP($B$3,'Data Current Rates'!$A:$BA,MATCH(BI_R1_High!$A20,CurrentHeader,0),FALSE) -> 0 | D20: 0 | E20: 1 | F20: =VLOOKUP($B$3,'Data Proposed Rates'!$A:$BA,MATCH(BI_R1_High!$A20,ProposedHeader,0),FALSE) -> 1.71 | G20: 1.71 | H20: 1.71 | I20: N/A | J20: 0.006852141227 | K20: 0.007041058507
A21: Fixed Deferral/Variance Account Rider (General) | B21: 1 | C21: =VLOOKUP($B$3,'Data Current Rates'!$A:$BA,MATCH(BI_R1_High!$A21,CurrentHeader,0),FALSE) -> 0 | D21: 0 | E21: 1 | F21: =VLOOKUP($B$3,'Data Proposed Rates'!$A:$BA,MATCH(BI_R1_High!$A21,ProposedHeader,0),FALSE) -> 0.04 | G21: 0.04 | H21: 0.04 | I21: N/A | J21: 0.0001602840053 | K21: 0.000164703123
A22: Distribution Volumetric Charge | B22: =IF($B$9="kWh",$B$4,$B$5) -> 1800 | C22: =VLOOKUP($B$3,'Data Current Rates'!$A:$BA,MATCH(BI_R1_High!$A22,CurrentHeader,0),FALSE) -> 0.023 | D22: 41.4 | E22: 1800 | F22: =VLOOKUP($B$3,'Data Proposed Rates'!$A:$BA,MATCH(BI_R1_High!$A22,ProposedHeader,0),FALSE) -> 0.0222 | G22: 39.96 | H22: -1.44 | I22: -0.0347826087 | J22: 0.1601237213 | K22: 0.1645384199
A23: Volumetric Foregone Revenue Charge | B23: =IF($B$9="kWh",$B$4,$B$5) -> 1800 | C23: =VLOOKUP($B$3,'Data Current Rates'!$A:$BA,MATCH(BI_R1_High!$A23,CurrentHeader,0),FALSE) -> 0 | D23: 0 | E23: 1800 | F23: =VLOOKUP($B$3,'Data Proposed Rates'!$A:$BA,MATCH(BI_R1_High!$A23,ProposedHeader,0),FALSE) -> 0.0009 | G23: 1.62 | H23: 1.62 | I23: N/A | J23: 0.006491502215 | K23: 0.00667047648
A24: Volumetric Deferral/Variance Account Rider (General) | B24: =IF($B$9="kWh",$B$4,$B$5) -> 1800 | C24: =VLOOKUP($B$3,'Data Current Rates'!$A:$BA,MATCH(BI_R1_High!$A24,CurrentHeader,0),FALSE) -> 0 | D24: 0 | E24: 1800 | F24: =VLOOKUP($B$3,'Data Proposed Rates'!$A:$BA,MATCH(BI_R1_High!$A24,ProposedHeader,0),FALSE) -> -0.0008 | G24: -1.44 | H24: -1.44 | I24: N/A | J24: -0.005770224191 | K24: -0.005929312427
A25: Volumetric Deferral/Variance Account Rider (Sub Account CBR) | B25: 1800 | C25: =VLOOKUP($B$3,'Data Current Rates'!$A:$BA,MATCH(BI_R1_High!$A25,CurrentHeader,0),FALSE) -> 0 | D25: 0 | E25: 1800 | F25: =VLOOKUP($B$3,'Data Proposed Rates'!$A:$BA,MATCH(BI_R1_High!$A25,ProposedHeader,0),FALSE) -> 0 | G25: 0 | H25: 0 | I25: N/A | J25: 0 | K25: 0
A26: Fair Hydro Plan - Distribution Rate Protection Savings* | D26: =IF(AND(B3<>"R1",B3<>"R2"),0,IF(VLOOKUP($A26,'Data Pass Through'!$A:$D,2,FALSE)=0,0,IF(SUM(D19:D20,D22:D23)<VLOOKUP($A26,'Data Pass Through'!$A:$D,2,FALSE),0,VLOOKUP($A26,'Data Pass Through'!$A:$D,2,FALSE)-SUM(D19:D20,D22:D23)))) -> -38.31 | G26: =IF(AND(B3<>"R1",B3<>"R2"),0,IF(VLOOKUP($A26,'Data Pass Through'!$A:$D,2,FALSE)=0,0,IF(SUM(G19:G20,G22:G23)<VLOOKUP($A26,'Data Pass Through'!$A:$D,2,FALSE),0,VLOOKUP($A26,'Data Pass Through'!$A:$D,2,FALSE)-SUM(G19:G20,G22:G23)))) -> -45.17 | H26: -6.86 | I26: -0.1790655181 | J26: -0.181000713 | K26: -0.1859910016
A27: Sub-Total: Distribution (excluding pass through) | D27: =SUM(INDIRECT("D19:D"&ROW()-1)) -> 36.86 | G27: =SUM(INDIRECT("g19:g"&ROW()-1)) -> 35.46 | H27: =G27-D27 -> -1.4 | I27: -0.03798155182 | J27: 0.1420917707 | K27: 0.1460093185
A28: Smart Metering Entity Charge | B28: 1 | C28: =VLOOKUP($A28,'Data Pass Through'!$A:$D,2,FALSE) -> 0.57 | D28: =B28*C28 -> 0.57 | E28: 1 | F28: =VLOOKUP($A28,'Data Pass Through'!$A:$D,3,FALSE) -> 0.57 | G28: =E28*F28 -> 0.57 | H28: 0 | I28: 0 | J28: 0.002284047076 | K28: 0.002347019502
A29: Line Losses on Cost of Power (based on two-tier RPP prices) | B29: =B8-B4 -> 136.8 | C29: =IF(B4>B7,C13,C12) -> 0.089 | D29: =B29*C29 -> 12.1752 | E29: 136.8 | F29: =IF(B4>B7,F13,F12) -> 0.089 | G29: =E29*F29 -> 12.1752 | H29: 0 | I29: 0 | J29: 0.04878724553 | K29: 0.05013233657
A30: Line Losses on Cost of Power (based on TOU prices) | B30: =B8-B4 -> 136.8 | C30: =VLOOKUP($B$3,'Data Billing Quantities'!$A:$O,MATCH(BI_R1_High!$A15,'Data Billing Quantities'!$4:$4,0),FALSE)*C15+VLOOKUP($B$3,'Data Billing Quantities'!$A:$O,MATCH(BI_R1_High!$A16,'Data Billing Quantities'!$4:$4,0),FALSE)*C16+VLOOKUP($B$3,'Data Billing Quantities'!$A:$O,MATCH(BI_R1_High!$A17,'Data Billing Quantities'!$4:$4,0),FALSE)*C17 -> 0.08199 | D30: =B30*C30 -> 11.216232 | E30: 136.8 | F30: =VLOOKUP($B$3,'Data Billing Quantities'!$A:$O,MATCH(BI_R1_High!$A15,'Data Billing Quantities'!$4:$4,0),FALSE)*F15+VLOOKUP($B$3,'Data Billing Quantities'!$A:$O,MATCH(BI_R1_High!$A16,'Data Billing Quantities'!$4:$4,0),FALSE)*F16+VLOOKUP($B$3,'Data Billing Quantities'!$A:$O,MATCH(BI_R1_High!$A17,'Data Billing Quantities'!$4:$4,0),FALSE)*F17 -> 0.08199 | G30: =E30*F30 -> 11.216232 | H30: 0 | I30: 0 | J30: 0.04494456473 | K30: 0.04618371096
A31: Sub-Total: Distribution (based on two-tier RPP prices) | D31: =SUM(D27,D28:D29) -> 49.6052 | G31: =SUM(G27,G28:G29) -> 48.2052 | H31: -1.4 | I31: -0.0282228476 | J31: 0.1931630633 | K31: 0.1984886746
A32: Sub-Total: Distribution (based on TOU prices) | D32: =SUM(D27,D28,D30) -> 48.646232 | G32: =SUM(G27,G28,G30) -> 47.246232 | H32: -1.4 | I32: -0.0287792074 | J32: 0.1893203825 | K32: 0.194540049
A33: Retail Transmission Rate – Network Service Rate | B33: =B8 -> 1936.8 | C33: =VLOOKUP($B$3,'Data Current Rates'!$A:$BA,MATCH(BI_R1_High!$A33,CurrentHeader,0),FALSE) -> 0.0064 | D33: =B33*C33 -> 12.39552 | E33: 1936.8 | F33: =VLOOKUP($B$3,'Data Proposed Rates'!$A:$BA,MATCH(BI_R1_High!$A33,ProposedHeader,0),FALSE) -> 0.0078 | G33: =E33*F33 -> 15.10704 | H33: =G33-D33 -> 2.71152 | I33: 0.21875 | J33: 0.06053542199 | K33: 0.06220441667
A34: Retail Transmission Rate – Line and Transformation Connection Service Rate | B34: =B8 -> 1936.8 | C34: =VLOOKUP($B$3,'Data Current Rates'!$A:$BA,MATCH(BI_R1_High!$A34,CurrentHeader,0),FALSE) -> 0.0047 | D34: =B34*C34 -> 9.10296 | E34: 1936.8 | F34: =VLOOKUP($B$3,'Data Proposed Rates'!$A:$BA,MATCH(BI_R1_High!$A34,ProposedHeader,0),FALSE) -> 0.007 | G34: =E34*F34 -> 13.5576 | H34: =G34-D34 -> 4.45464 | I34: 0.4893617021 | J34: 0.05432666076 | K34: 0.0558244765
A35: Sub-Total: Retail Transmission | D35: =SUM(D33:D34) -> 21.49848 | G35: =SUM(G33:G34) -> 28.66464 | H35: =G35-D35 -> 7.16616 | I35: 0.3333333333 | J35: 0.1148620827 | K35: 0.1180288932
A36: Sub-Total: Delivery (based on two-tier RPP prices) | D36: =D31+D35 -> 71.10368 | G36: =G31+G35 -> 76.86984 | H36: =G36-D36 -> 5.76616 | I36: 0.08109509944 | J36: 0.3080251461 | K36: 0.3165175678
A37: Sub-Total: Delivery (based on TOU prices) | D37: =D32+D35 -> 70.144712 | G37: =G32+G35 -> 75.910872 | H37: =G37-D37 -> 5.76616 | I37: 0.08220377325 | J37: 0.3041824653 | K37: 0.3125689422
A38: Wholesale Market Service Rate (WMS) - not including CBR | B38: =B8 -> 1936.8 | C38: =VLOOKUP($A38,'Data Pass Through'!$A:$D,2,FALSE) -> 0.003 | D38: =B38*C38 -> 5.8104 | E38: =$B$8 -> 1936.8 | F38: =VLOOKUP($A38,'Data Pass Through'!$A:$D,3,FALSE) -> 0.003 | G38: =E38*F38 -> 5.8104 | H38: 0 | I38: 0 | J38: 0.02328285461 | K38: 0.02392477564
A39: Capacity Based Recovery (CBR) - Applicable for Class B Customers | B39: =B8 -> 1936.8 | C39: =VLOOKUP($A39,'Data Pass Through'!$A:$D,2,FALSE) -> 0.0004 | D39: =B39*C39 -> 0.77472 | E39: =$B$8 -> 1936.8 | F39: =VLOOKUP($A39,'Data Pass Through'!$A:$D,3,FALSE) -> 0.0004 | G39: =E39*F39 -> 0.77472 | H39: 0 | I39: 0 | J39: 0.003104380615 | K39: 0.003189970086
A40: Rural Rate Protection Charge | B40: =B8 -> 1936.8 | C40: =VLOOKUP($A40,'Data Pass Through'!$A:$D,2,FALSE) -> 0.0005 | D40: 0.9684 | E40: 1936.8 | F40: =VLOOKUP($A40,'Data Pass Through'!$A:$D,3,FALSE) -> 0.0005 | G40: 0.9684 | H40: 0 | I40: 0 | J40: 0.003880475768 | K40: 0.003987462607
A41: Standard Supply Service – Administration Charge (if applicable) | B41: 1 | C41: =VLOOKUP($A41,'Data Pass Through'!$A:$D,2,FALSE) -> 0.25 | D41: =B41*C41 -> 0.25 | E41: 1 | F41: =VLOOKUP($A41,'Data Pass Through'!$A:$D,3,FALSE) -> 0.25 | G41: 0.25 | H41: 0 | I41: 0 | J41: 0.001001775033 | K41: 0.001029394519
A42: Sub-Total: Regulatory | D42: =SUM(D38:D41) -> 7.80352 | G42: =SUM(G38:G41) -> 7.80352 | H42: 0 | I42: 0 | J42: 0.03126948603 | K42: 0.03213160285
A43: Debt Retirement Charge (DRC) | B43: =B4 -> 1800 | C43: =VLOOKUP($A43,'Data Pass Through'!$A:$D,2,FALSE) -> 0 | D43: =B43*C43 -> 0 | E43: 1800 | F43: =VLOOKUP($A43,'Data Pass Through'!$A:$D,3,FALSE) -> 0 | G43: =E43*F43 -> 0 | H43: 0 | I43: N/A | J43: 0 | K43: 0
A44: Total Electricty Charge on Two-Tier RPP | D44: =SUM(D14,D27,D28,D29,D35,D42,D43) -> 231.9072 | G44: =SUM(G14,G27,G28,G29,G35,G42,G43) -> 237.67336 | H44: 5.76616 | I44: 0.02486408356 | J44: 0.9523809524
A45: HST | C45: 0.13 | D45: =D44*C45 -> 30.147936 | F45: =C45 -> 0.13 | G45: =G44*F45 -> 30.8975368 | H45: 0.7496008 | I45: 0.02486408356 | J45: 0.1238095238
A46: Total Electricity Charge on Two-Tier RPP (including HST) | D46: =SUM(D44:D45) -> 262.055136 | G46: =SUM(G44:G45) -> 268.5708968 | H46: 6.5157608 | I46: 0.02486408356 | J46: 1.076190476
A47: Ontario Rebate for Electricity Consumers (OREC) | C47: -0.08 | D47: =D44*C47 -> -18.552576 | F47: =C47 -> -0.08 | G47: =G44*F47 -> -19.0138688 | H47: -0.4612928 | I47: -0.02486408356 | J47: -0.07619047619
A48: Total Amount on Two-Tier RPP | D48: =SUM(D46:D47) -> 243.50256 | G48: =SUM(G46:G47) -> 249.557028 | H48: 6.054468 | I48: 0.02486408356 | J48: 1
A49: Total Electricty Charge on TOU (before HST) | D49: =SUM(D18,D27,D28,D30,D35,D42,D43) -> 225.530232 | G49: =SUM(G18,G27,G28,G30,G35,G42,G43) -> 231.296392 | H49: 5.76616 | I49: 0.02556712663 | K49: =G49/$G$53 -> 0.9523809524
A50: HST | C50: 0.13 | D50: =D49*C50 -> 29.31893016 | F50: =C50 -> 0.13 | G50: =G49*F50 -> 30.06853096 | H50: 0.7496008 | I50: 0.02556712663 | K50: =G50/$G$53 -> 0.1238095238
A51: Total Electricity Charge on TOU (including HST) | D51: =SUM(D49:D50) -> 254.8491622 | G51: =SUM(G49:G50) -> 261.364923 | H51: 6.5157608 | I51: 0.02556712663 | K51: =G51/$G$53 -> 1.076190476
A52: Ontario Rebate for Electricity Consumers (OREC) | C52: -0.08 | D52: =D49*C52 -> -18.04241856 | F52: =C52 -> -0.08 | G52: =G49*F52 -> -18.50371136 | H52: -0.4612928 | I52: -0.02556712663 | K52: =G52/$G$53 -> -0.07619047619
A53: Total Amount on TOU | D53: =SUM(D51:D52) -> 236.8067436 | G53: =SUM(G51:G52) -> 242.8612116 | H53: 6.054468 | I53: 0.02556712663 | K53: =G53/$G$53 -> 1
A54: * Distribution rate protection applies to R1 and R2 customers

Sheet BI_R2_Low
A1: 2019 Bill Impacts (Low Consumption Level) - R2
A3: Rate Class | B3: =RIGHT(A1,LEN(A1)-FIND("- ",A1,1)-1) -> R2
A4: Monthly Consumption (kWh) | B4: =IF(COUNTIF(A1,"*Low*")>0,VLOOKUP(B3,'Data Billing Quantities'!$A:$Z,MATCH("Low kWh",'Data Billing Quantities'!4:4,0),FALSE),IF(COUNTIF(A1,"*Typical*")>0,VLOOKUP(B3,'Data Billing Quantities'!$A:$Z,MATCH("Typical kWh",'Data Billing Quantities'!4:4,0),FALSE),IF(COUNTIF(A1,"*Average*")>0,VLOOKUP(B3,'Data Billing Quantities'!$A:$Z,MATCH("Average kWh",'Data Billing Quantities'!4:4,0),FALSE),IF(COUNTIF(A1,"*High*")>0,VLOOKUP(B3,'Data Billing Quantities'!$A:$Z,MATCH("High kWh",'Data Billing Quantities'!4:4,0),FALSE),"error")))) -> 450
A5: Peak (kW) | B5: =IF(COUNTIF(A1,"*Low*")>0,VLOOKUP(B3,'Data Billing Quantities'!$A:$Z,MATCH("Low kW",'Data Billing Quantities'!4:4,0),FALSE),IF(COUNTIF(A1,"*Typical*")>0,VLOOKUP(B3,'Data Billing Quantities'!$A:$Z,MATCH("Typical kW",'Data Billing Quantities'!4:4,0),FALSE),IF(COUNTIF(A1,"*Average*")>0,VLOOKUP(B3,'Data Billing Quantities'!$A:$Z,MATCH("Average kW",'Data Billing Quantities'!4:4,0),FALSE),IF(COUNTIF(A1,"*High*")>0,VLOOKUP(B3,'Data Billing Quantities'!$A:$Z,MATCH("High kW",'Data Billing Quantities'!4:4,0),FALSE),"error")))) -> 0
A6: Loss factor | B6: =VLOOKUP(B3,'Data Billing Quantities'!A:D,MATCH(A6,'Data Billing Quantities'!4:4,0),FALSE) -> 1.105
A7: Commodity Threshold | B7: =VLOOKUP(B3,'Data Billing Quantities'!A:D,MATCH(A7,'Data Billing Quantities'!4:4,0),FALSE) -> 600
A8: Monthly Consumption (kWh) - Uplifted | B8: =B4*B6 -> 497.25
A9: Charge determinant | B9: =VLOOKUP(B3,'Data Billing Quantities'!A:D,MATCH(A9,'Data Billing Quantities'!4:4,0),FALSE) -> kWh
B11: Volume | C11: Current Rate ($) | D11: Current Charge ($) | E11: Volume | F11: Proposed Rate ($) | G11: Proposed Charge ($) | H11: Change ($) | I11: Change (%) | J11: % of Total Bill on RPP | K11: % of Total Bill on TOU
A12: Energy First Tier | B12: =IF(B4>B7,B7,B4) -> 450 | C12: =VLOOKUP($A12,'Data Pass Through'!$A:$D,2,FALSE) -> 0.077 | D12: =B12*C12 -> 34.65 | E12: =B12 -> 450 | F12: =VLOOKUP($A12,'Data Pass Through'!$A:$D,3,FALSE) -> 0.077 | G12: =E12*F12 -> 34.65 | H12: =G12-D12 -> 0 | I12: =IF(ISERROR(H12/ABS(D12)),"N/A",(H12/ABS(D12))) -> 0 | J12: =G12/$G$48 -> 0.3908595713
A13: Energy Second Tier | B13: =IF(B4>B7,(B4)-B7,0) -> 0 | C13: =VLOOKUP($A13,'Data Pass Through'!$A:$D,2,FALSE) -> 0.089 | D13: =B13*C13 -> 0 | E13: =B13 -> 0 | F13: =VLOOKUP($A13,'Data Pass Through'!$A:$D,3,FALSE) -> 0.089 | G13: =E13*F13 -> 0 | H13: 0 | I13: N/A | J13: =G13/$G$48 -> 0
A14: Sub-Total: Energy (RPP Tiered) | D14: =SUM(D12:D13) -> 34.65 | G14: =SUM(G12:G13) -> 34.65 | H14: 0 | I14: 0 | J14: =G14/$G$48 -> 0.3908595713
A15: TOU-Off Peak | B15: =B$4*VLOOKUP($B$3,'Data Billing Quantities'!$A:$O,MATCH(BI_R2_Low!$A15,'Data Billing Quantities'!$4:$4,0),FALSE) -> 292.5 | C15: =VLOOKUP($A15,'Data Pass Through'!$A:$D,2,FALSE) -> 0.065 | D15: =B15*C15 -> 19.0125 | E15: 292.5 | F15: =VLOOKUP($A15,'Data Pass Through'!$A:$D,3,FALSE) -> 0.065 | G15: =E15*F15 -> 19.0125 | H15: 0 | I15: 0 | K15: =G15/$G$53 -> 0.2083422223
A16: TOU-Mid Peak | B16: =B$4*VLOOKUP($B$3,'Data Billing Quantities'!$A:$O,MATCH(BI_R2_Low!$A16,'Data Billing Quantities'!$4:$4,0),FALSE) -> 76.5 | C16: =VLOOKUP($A16,'Data Pass Through'!$A:$D,2,FALSE) -> 0.094 | D16: =B16*C16 -> 7.191 | E16: 76.5 | F16: =VLOOKUP($A16,'Data Pass Through'!$A:$D,3,FALSE) -> 0.094 | G16: =E16*F16 -> 7.191 | H16: 0 | I16: 0 | K16: 0.07880020621
A17: TOU-On Peak | B17: =B$4*VLOOKUP($B$3,'Data Billing Quantities'!$A:$O,MATCH(BI_R2_Low!$A17,'Data Billing Quantities'!$4:$4,0),FALSE) -> 81 | C17: =VLOOKUP($A17,'Data Pass Through'!$A:$D,2,FALSE) -> 0.132 | D17: =B17*C17 -> 10.692 | E17: 81 | F17: =VLOOKUP($A17,'Data Pass Through'!$A:$D,3,FALSE) -> 0.132 | G17: =E17*F17 -> 10.692 | H17: 0 | I17: 0 | K17: 0.1171647622
A18: Sub-Total: Energy (RPP TOU) | D18: =SUM(D15:D17) -> 36.8955 | G18: =SUM(G15:G17) -> 36.8955 | H18: 0 | I18: 0 | J18: =G18/$G$48 -> 0.4161893019 | K18: 0.4043071907
A19: Service Charge | B19: 1 | C19: =VLOOKUP($B$3,'Data Current Rates'!$A:$BA,MATCH(BI_R2_Low!$A19,CurrentHeader,0),FALSE) -> 19.83 | D19: =B19*C19 -> 19.83 | E19: 1 | F19: =VLOOKUP($B$3,'Data Proposed Rates'!$A:$BA,MATCH(BI_R2_Low!$A19,ProposedHeader,0),FALSE) -> 31.35 | G19: =E19*F19 -> 31.35 | H19: 11.52 | I19: 0.5809379728 | J19: 0.3536348502 | K19: 0.3435386545
A20: Fixed Foregone Revenue Charge | B20: 1 | C20: =VLOOKUP($B$3,'Data Current Rates'!$A:$BA,MATCH(BI_R2_Low!$A20,CurrentHeader,0),FALSE) -> 0 | D20: 0 | E20: 1 | F20: =VLOOKUP($B$3,'Data Proposed Rates'!$A:$BA,MATCH(BI_R2_Low!$A20,ProposedHeader,0),FALSE) -> 4.37 | G20: 4.37 | H20: 4.37 | I20: N/A | J20: 0.04929455487 | K20: 0.04788720639
A21: Fixed Deferral/Variance Account Rider (General) | B21: 1 | C21: =VLOOKUP($B$3,'Data Current Rates'!$A:$BA,MATCH(BI_R2_Low!$A21,CurrentHeader,0),FALSE) -> 0 | D21: 0 | E21: 1 | F21: =VLOOKUP($B$3,'Data Proposed Rates'!$A:$BA,MATCH(BI_R2_Low!$A21,ProposedHeader,0),FALSE) -> -0.03 | G21: -0.03 | H21: -0.03 | I21: N/A | J21: -0.0003384065552 | K21: -0.0003287451239
A22: Distribution Volumetric Charge | B22: =IF($B$9="kWh",$B$4,$B$5) -> 450 | C22: =VLOOKUP($B$3,'Data Current Rates'!$A:$BA,MATCH(BI_R2_Low!$A22,CurrentHeader,0),FALSE) -> 0.0374 | D22: 16.83 | E22: 450 | F22: =VLOOKUP($B$3,'Data Proposed Rates'!$A:$BA,MATCH(BI_R2_Low!$A22,ProposedHeader,0),FALSE) -> 0.0356 | G22: 16.02 | H22: -0.81 | I22: -0.04812834225 | J22: 0.1807091005 | K22: 0.1755498962
A23: Volumetric Foregone Revenue Charge | B23: =IF($B$9="kWh",$B$4,$B$5) -> 450 | C23: =VLOOKUP($B$3,'Data Current Rates'!$A:$BA,MATCH(BI_R2_Low!$A23,CurrentHeader,0),FALSE) -> 0 | D23: 0 | E23: 450 | F23: =VLOOKUP($B$3,'Data Proposed Rates'!$A:$BA,MATCH(BI_R2_Low!$A23,ProposedHeader,0),FALSE) -> 0.0011 | G23: 0.495 | H23: 0.495 | I23: N/A | J23: 0.005583708161 | K23: 0.005424294545
A24: Volumetric Deferral/Variance Account Rider (General) | B24: =IF($B$9="kWh",$B$4,$B$5) -> 450 | C24: =VLOOKUP($B$3,'Data Current Rates'!$A:$BA,MATCH(BI_R2_Low!$A24,CurrentHeader,0),FALSE) -> 0 | D24: 0 | E24: 450 | F24: =VLOOKUP($B$3,'Data Proposed Rates'!$A:$BA,MATCH(BI_R2_Low!$A24,ProposedHeader,0),FALSE) -> -0.0008 | G24: -0.36 | H24: -0.36 | I24: N/A | J24: -0.004060878662 | K24: -0.003944941487
A25: Volumetric Deferral/Variance Account Rider (Sub Account CBR) | B25: 450 | C25: =VLOOKUP($B$3,'Data Current Rates'!$A:$BA,MATCH(BI_R2_Low!$A25,CurrentHeader,0),FALSE) -> 0 | D25: 0 | E25: 450 | F25: =VLOOKUP($B$3,'Data Proposed Rates'!$A:$BA,MATCH(BI_R2_Low!$A25,ProposedHeader,0),FALSE) -> 0 | G25: 0 | H25: 0 | I25: N/A | J25: 0 | K25: 0
A26: Fair Hydro Plan - Distribution Rate Protection Savings* | D26: =IF(AND(B3<>"R1",B3<>"R2"),0,IF(VLOOKUP($A26,'Data Pass Through'!$A:$D,2,FALSE)=0,0,IF(SUM(D19:D20,D22:D23)<VLOOKUP($A26,'Data Pass Through'!$A:$D,2,FALSE),0,VLOOKUP($A26,'Data Pass Through'!$A:$D,2,FALSE)-SUM(D19:D20,D22:D23)))) -> 0 | G26: =IF(AND(B3<>"R1",B3<>"R2"),0,IF(VLOOKUP($A26,'Data Pass Through'!$A:$D,2,FALSE)=0,0,IF(SUM(G19:G20,G22:G23)<VLOOKUP($A26,'Data Pass Through'!$A:$D,2,FALSE),0,VLOOKUP($A26,'Data Pass Through'!$A:$D,2,FALSE)-SUM(G19:G20,G22:G23)))) -> -15.375 | H26: -15.375 | I26: N/A | J26: -0.1734333595 | K26: -0.168481876
A27: Sub-Total: Distribution (excluding pass through) | D27: =SUM(INDIRECT("D19:D"&ROW()-1)) -> 36.66 | G27: =SUM(INDIRECT("g19:g"&ROW()-1)) -> 36.47 | H27: =G27-D27 -> -0.19 | I27: -0.005182760502 | J27: 0.4113895689 | K27: 0.399644489
A28: Smart Metering Entity Charge | B28: 1 | C28: =VLOOKUP($A28,'Data Pass Through'!$A:$D,2,FALSE) -> 0.57 | D28: =B28*C28 -> 0.57 | E28: 1 | F28: =VLOOKUP($A28,'Data Pass Through'!$A:$D,3,FALSE) -> 0.57 | G28: =E28*F28 -> 0.57 | H28: 0 | I28: 0 | J28: 0.006429724549 | K28: 0.006246157355
A29: Line Losses on Cost of Power (based on two-tier RPP prices) | B29: =B8-B4 -> 47.25 | C29: =IF(B4>B7,C13,C12) -> 0.077 | D29: =B29*C29 -> 3.63825 | E29: 47.25 | F29: =IF(B4>B7,F13,F12) -> 0.077 | G29: =E29*F29 -> 3.63825 | H29: 0 | I29: 0 | J29: 0.04104025498 | K29: 0.03986856491
A30: Line Losses on Cost of Power (based on TOU prices) | B30: =B8-B4 -> 47.25 | C30: =VLOOKUP($B$3,'Data Billing Quantities'!$A:$O,MATCH(BI_R2_Low!$A15,'Data Billing Quantities'!$4:$4,0),FALSE)*C15+VLOOKUP($B$3,'Data Billing Quantities'!$A:$O,MATCH(BI_R2_Low!$A16,'Data Billing Quantities'!$4:$4,0),FALSE)*C16+VLOOKUP($B$3,'Data Billing Quantities'!$A:$O,MATCH(BI_R2_Low!$A17,'Data Billing Quantities'!$4:$4,0),FALSE)*C17 -> 0.08199 | D30: =B30*C30 -> 3.8740275 | E30: 47.25 | F30: =VLOOKUP($B$3,'Data Billing Quantities'!$A:$O,MATCH(BI_R2_Low!$A15,'Data Billing Quantities'!$4:$4,0),FALSE)*F15+VLOOKUP($B$3,'Data Billing Quantities'!$A:$O,MATCH(BI_R2_Low!$A16,'Data Billing Quantities'!$4:$4,0),FALSE)*F16+VLOOKUP($B$3,'Data Billing Quantities'!$A:$O,MATCH(BI_R2_Low!$A17,'Data Billing Quantities'!$4:$4,0),FALSE)*F17 -> 0.08199 | G30: =E30*F30 -> 3.8740275 | H30: 0 | I30: 0 | J30: 0.0436998767 | K30: 0.04245225502
A31: Sub-Total: Distribution (based on two-tier RPP prices) | D31: =SUM(D27,D28:D29) -> 40.86825 | G31: =SUM(G27,G28:G29) -> 40.67825 | H31: -0.19 | I31: -0.004649085782 | J31: 0.4588595485 | K31: 0.4457592113
A32: Sub-Total: Distribution (based on TOU prices) | D32: =SUM(D27,D28,D30) -> 41.1040275 | G32: =SUM(G27,G28,G30) -> 40.9140275 | H32: -0.19 | I32: -0.004622418083 | J32: 0.4615191702 | K32: 0.4483429014
A33: Retail Transmission Rate – Network Service Rate | B33: =B8 -> 497.25 | C33: =VLOOKUP($B$3,'Data Current Rates'!$A:$BA,MATCH(BI_R2_Low!$A33,CurrentHeader,0),FALSE) -> 0.0062 | D33: =B33*C33 -> 3.08295 | E33: 497.25 | F33: =VLOOKUP($B$3,'Data Proposed Rates'!$A:$BA,MATCH(BI_R2_Low!$A33,ProposedHeader,0),FALSE) -> 0.0073 | G33: =E33*F33 -> 3.629925 | H33: =G33-D33 -> 0.546975 | I33: 0.1774193548 | J33: 0.04094634716 | K33: 0.03977733813
A34: Retail Transmission Rate – Line and Transformation Connection Service Rate | B34: =B8 -> 497.25 | C34: =VLOOKUP($B$3,'Data Current Rates'!$A:$BA,MATCH(BI_R2_Low!$A34,CurrentHeader,0),FALSE) -> 0.0044 | D34: =B34*C34 -> 2.1879 | E34: 497.25 | F34: =VLOOKUP($B$3,'Data Proposed Rates'!$A:$BA,MATCH(BI_R2_Low!$A34,ProposedHeader,0),FALSE) -> 0.0066 | G34: =E34*F34 -> 3.28185 | H34: =G34-D34 -> 1.09395 | I34: 0.5 | J34: 0.03701998511 | K34: 0.03596307283
A35: Sub-Total: Retail Transmission | D35: =SUM(D33:D34) -> 5.27085 | G35: =SUM(G33:G34) -> 6.911775 | H35: =G35-D35 -> 1.640925 | I35: 0.3113207547 | J35: 0.07796633227 | K35: 0.07574041097
A36: Sub-Total: Delivery (based on two-tier RPP prices) | D36: =D31+D35 -> 46.1391 | G36: =G31+G35 -> 47.590025 | H36: =G36-D36 -> 1.450925 | I36: 0.03144675557 | J36: 0.5368258807 | K36: 0.5214996222
A37: Sub-Total: Delivery (based on TOU prices) | D37: =D32+D35 -> 46.3748775 | G37: =G32+G35 -> 47.8258025 | H37: =G37-D37 -> 1.450925 | I37: 0.0312868751 | J37: 0.5394855025 | K37: 0.5240833123
A38: Wholesale Market Service Rate (WMS) - not including CBR | B38: =B8 -> 497.25 | C38: =VLOOKUP($A38,'Data Pass Through'!$A:$D,2,FALSE) -> 0.003 | D38: =B38*C38 -> 1.49175 | E38: =$B$8 -> 497.25 | F38: =VLOOKUP($A38,'Data Pass Through'!$A:$D,3,FALSE) -> 0.003 | G38: =E38*F38 -> 1.49175 | H38: 0 | I38: 0 | J38: 0.01682726596 | K38: 0.01634685129
A39: Capacity Based Recovery (CBR) - Applicable for Class B Customers | B39: =B8 -> 497.25 | C39: =VLOOKUP($A39,'Data Pass Through'!$A:$D,2,FALSE) -> 0.0004 | D39: =B39*C39 -> 0.1989 | E39: =$B$8 -> 497.25 | F39: =VLOOKUP($A39,'Data Pass Through'!$A:$D,3,FALSE) -> 0.0004 | G39: =E39*F39 -> 0.1989 | H39: 0 | I39: 0 | J39: 0.002243635461 | K39: 0.002179580172
A40: Rural Rate Protection Charge | B40: =B8 -> 497.25 | C40: =VLOOKUP($A40,'Data Pass Through'!$A:$D,2,FALSE) -> 0.0005 | D40: 0.248625 | E40: 497.25 | F40: =VLOOKUP($A40,'Data Pass Through'!$A:$D,3,FALSE) -> 0.0005 | G40: 0.248625 | H40: 0 | I40: 0 | J40: 0.002804544326 | K40: 0.002724475215
A41: Standard Supply Service – Administration Charge (if applicable) | B41: 1 | C41: =VLOOKUP($A41,'Data Pass Through'!$A:$D,2,FALSE) -> 0.25 | D41: =B41*C41 -> 0.25 | E41: 1 | F41: =VLOOKUP($A41,'Data Pass Through'!$A:$D,3,FALSE) -> 0.25 | G41: 0.25 | H41: 0 | I41: 0 | J41: 0.002820054627 | K41: 0.002739542699
A42: Sub-Total: Regulatory | D42: =SUM(D38:D41) -> 2.189275 | G42: =SUM(G38:G41) -> 2.189275 | H42: 0 | I42: 0 | J42: 0.02469550037 | K42: 0.02399044937
A43: Debt Retirement Charge (DRC) | B43: =B4 -> 450 | C43: =VLOOKUP($A43,'Data Pass Through'!$A:$D,2,FALSE) -> 0 | D43: =B43*C43 -> 0 | E43: 450 | F43: =VLOOKUP($A43,'Data Pass Through'!$A:$D,3,FALSE) -> 0 | G43: =E43*F43 -> 0 | H43: 0 | I43: N/A | J43: 0 | K43: 0
A44: Total Electricty Charge on Two-Tier RPP | D44: =SUM(D14,D27,D28,D29,D35,D42,D43) -> 82.978375 | G44: =SUM(G14,G27,G28,G29,G35,G42,G43) -> 84.4293 | H44: 1.450925 | I44: 0.01748557983 | J44: 0.9523809524
A45: HST | C45: 0.13 | D45: =D44*C45 -> 10.78718875 | F45: =C45 -> 0.13 | G45: =G44*F45 -> 10.975809 | H45: 0.18862025 | I45: 0.01748557983 | J45: 0.1238095238
A46: Total Electricity Charge on Two-Tier RPP (including HST) | D46: =SUM(D44:D45) -> 93.76556375 | G46: =SUM(G44:G45) -> 95.405109 | H46: 1.63954525 | I46: 0.01748557983 | J46: 1.076190476
A47: Ontario Rebate for Electricity Consumers (OREC) | C47: -0.08 | D47: =D44*C47 -> -6.63827 | F47: =C47 -> -0.08 | G47: =G44*F47 -> -6.754344 | H47: -0.116074 | I47: -0.01748557983 | J47: -0.07619047619
A48: Total Amount on Two-Tier RPP | D48: =SUM(D46:D47) -> 87.12729375 | G48: =SUM(G46:G47) -> 88.650765 | H48: 1.52347125 | I48: 0.01748557983 | J48: 1
A49: Total Electricty Charge on TOU (before HST) | D49: =SUM(D18,D27,D28,D30,D35,D42,D43) -> 85.4596525 | G49: =SUM(G18,G27,G28,G30,G35,G42,G43) -> 86.9105775 | H49: 1.450925 | I49: 0.01697789492 | K49: =G49/$G$53 -> 0.9523809524
A50: HST | C50: 0.13 | D50: =D49*C50 -> 11.10975482 | F50: =C50 -> 0.13 | G50: =G49*F50 -> 11.29837507 | H50: 0.18862025 | I50: 0.01697789492 | K50: =G50/$G$53 -> 0.1238095238
A51: Total Electricity Charge on TOU (including HST) | D51: =SUM(D49:D50) -> 96.56940732 | G51: =SUM(G49:G50) -> 98.20895257 | H51: 1.63954525 | I51: 0.01697789492 | K51: =G51/$G$53 -> 1.076190476
A52: Ontario Rebate for Electricity Consumers (OREC) | C52: -0.08 | D52: =D49*C52 -> -6.8367722 | F52: =C52 -> -0.08 | G52: =G49*F52 -> -6.9528462 | H52: -0.116074 | I52: -0.01697789492 | K52: =G52/$G$53 -> -0.07619047619
A53: Total Amount on TOU | D53: =SUM(D51:D52) -> 89.73263512 | G53: =SUM(G51:G52) -> 91.25610637 | H53: 1.52347125 | I53: 0.01697789492 | K53: =G53/$G$53 -> 1
A54: * Distribution rate protection applies to R1 and R2 customers

Sheet BI_R2_Typical
A1: 2019 Bill Impacts (Typical Consumption Level) - R2
A3: Rate Class | B3: =RIGHT(A1,LEN(A1)-FIND("- ",A1,1)-1) -> R2
A4: Monthly Consumption (kWh) | B4: =IF(COUNTIF(A1,"*Low*")>0,VLOOKUP(B3,'Data Billing Quantities'!$A:$Z,MATCH("Low kWh",'Data Billing Quantities'!4:4,0),FALSE),IF(COUNTIF(A1,"*Typical*")>0,VLOOKUP(B3,'Data Billing Quantities'!$A:$Z,MATCH("Typical kWh",'Data Billing Quantities'!4:4,0),FALSE),IF(COUNTIF(A1,"*Average*")>0,VLOOKUP(B3,'Data Billing Quantities'!$A:$Z,MATCH("Average kWh",'Data Billing Quantities'!4:4,0),FALSE),IF(COUNTIF(A1,"*High*")>0,VLOOKUP(B3,'Data Billing Quantities'!$A:$Z,MATCH("High kWh",'Data Billing Quantities'!4:4,0),FALSE),"error")))) -> 750
A5: Peak (kW) | B5: =IF(COUNTIF(A1,"*Low*")>0,VLOOKUP(B3,'Data Billing Quantities'!$A:$Z,MATCH("Low kW",'Data Billing Quantities'!4:4,0),FALSE),IF(COUNTIF(A1,"*Typical*")>0,VLOOKUP(B3,'Data Billing Quantities'!$A:$Z,MATCH("Typical kW",'Data Billing Quantities'!4:4,0),FALSE),IF(COUNTIF(A1,"*Average*")>0,VLOOKUP(B3,'Data Billing Quantities'!$A:$Z,MATCH("Average kW",'Data Billing Quantities'!4:4,0),FALSE),IF(COUNTIF(A1,"*High*")>0,VLOOKUP(B3,'Data Billing Quantities'!$A:$Z,MATCH("High kW",'Data Billing Quantities'!4:4,0),FALSE),"error")))) -> 0
A6: Loss factor | B6: =VLOOKUP(B3,'Data Billing Quantities'!A:D,MATCH(A6,'Data Billing Quantities'!4:4,0),FALSE) -> 1.105
A7: Commodity Threshold | B7: =VLOOKUP(B3,'Data Billing Quantities'!A:D,MATCH(A7,'Data Billing Quantities'!4:4,0),FALSE) -> 600
A8: Monthly Consumption (kWh) - Uplifted | B8: =B4*B6 -> 828.75
A9: Charge determinant | B9: =VLOOKUP(B3,'Data Billing Quantities'!A:D,MATCH(A9,'Data Billing Quantities'!4:4,0),FALSE) -> kWh
B11: Volume | C11: Current Rate ($) | D11: Current Charge ($) | E11: Volume | F11: Proposed Rate ($) | G11: Proposed Charge ($) | H11: Change ($) | I11: Change (%) | J11: % of Total Bill on RPP | K11: % of Total Bill on TOU
A12: Energy First Tier | B12: =IF(B4>B7,B7,B4) -> 600 | C12: =VLOOKUP($A12,'Data Pass Through'!$A:$D,2,FALSE) -> 0.077 | D12: =B12*C12 -> 46.2 | E12: =B12 -> 600 | F12: =VLOOKUP($A12,'Data Pass Through'!$A:$D,3,FALSE) -> 0.077 | G12: =E12*F12 -> 46.2 | H12: =G12-D12 -> 0 | I12: =IF(ISERROR(H12/ABS(D12)),"N/A",(H12/ABS(D12))) -> 0 | J12: =G12/$G$48 -> 0.3717456415
A13: Energy Second Tier | B13: =IF(B4>B7,(B4)-B7,0) -> 150 | C13: =VLOOKUP($A13,'Data Pass Through'!$A:$D,2,FALSE) -> 0.089 | D13: =B13*C13 -> 13.35 | E13: =B13 -> 150 | F13: =VLOOKUP($A13,'Data Pass Through'!$A:$D,3,FALSE) -> 0.089 | G13: =E13*F13 -> 13.35 | H13: 0 | I13: 0 | J13: =G13/$G$48 -> 0.1074200068
A14: Sub-Total: Energy (RPP Tiered) | D14: =SUM(D12:D13) -> 59.55 | G14: =SUM(G12:G13) -> 59.55 | H14: 0 | I14: 0 | J14: =G14/$G$48 -> 0.4791656483
A15: TOU-Off Peak | B15: =B$4*VLOOKUP($B$3,'Data Billing Quantities'!$A:$O,MATCH(BI_R2_Typical!$A15,'Data Billing Quantities'!$4:$4,0),FALSE) -> 487.5 | C15: =VLOOKUP($A15,'Data Pass Through'!$A:$D,2,FALSE) -> 0.065 | D15: =B15*C15 -> 31.6875 | E15: 487.5 | F15: =VLOOKUP($A15,'Data Pass Through'!$A:$D,3,FALSE) -> 0.065 | G15: =E15*F15 -> 31.6875 | H15: 0 | I15: 0 | K15: =G15/$G$53 -> 0.252011097
A16: TOU-Mid Peak | B16: =B$4*VLOOKUP($B$3,'Data Billing Quantities'!$A:$O,MATCH(BI_R2_Typical!$A16,'Data Billing Quantities'!$4:$4,0),FALSE) -> 127.5 | C16: =VLOOKUP($A16,'Data Pass Through'!$A:$D,2,FALSE) -> 0.094 | D16: =B16*C16 -> 11.985 | E16: 127.5 | F16: =VLOOKUP($A16,'Data Pass Through'!$A:$D,3,FALSE) -> 0.094 | G16: =E16*F16 -> 11.985 | H16: 0 | I16: 0 | K16: 0.09531685989
A17: TOU-On Peak | B17: =B$4*VLOOKUP($B$3,'Data Billing Quantities'!$A:$O,MATCH(BI_R2_Typical!$A17,'Data Billing Quantities'!$4:$4,0),FALSE) -> 135 | C17: =VLOOKUP($A17,'Data Pass Through'!$A:$D,2,FALSE) -> 0.132 | D17: =B17*C17 -> 17.82 | E17: 135 | F17: =VLOOKUP($A17,'Data Pass Through'!$A:$D,3,FALSE) -> 0.132 | G17: =E17*F17 -> 17.82 | H17: 0 | I17: 0 | K17: 0.1417226903
A18: Sub-Total: Energy (RPP TOU) | D18: =SUM(D15:D17) -> 61.4925 | G18: =SUM(G15:G17) -> 61.4925 | H18: 0 | I18: 0 | J18: =G18/$G$48 -> 0.4947958628 | K18: 0.4890506472
A19: Service Charge | B19: 1 | C19: =VLOOKUP($B$3,'Data Current Rates'!$A:$BA,MATCH(BI_R2_Typical!$A19,CurrentHeader,0),FALSE) -> 19.83 | D19: =B19*C19 -> 19.83 | E19: 1 | F19: =VLOOKUP($B$3,'Data Proposed Rates'!$A:$BA,MATCH(BI_R2_Typical!$A19,ProposedHeader,0),FALSE) -> 31.35 | G19: =E19*F19 -> 31.35 | H19: 11.52 | I19: 0.5809379728 | J19: 0.252255971 | K19: 0.2493269552
A20: Fixed Foregone Revenue Charge | B20: 1 | C20: =VLOOKUP($B$3,'Data Current Rates'!$A:$BA,MATCH(BI_R2_Typical!$A20,CurrentHeader,0),FALSE) -> 0 | D20: 0 | E20: 1 | F20: =VLOOKUP($B$3,'Data Proposed Rates'!$A:$BA,MATCH(BI_R2_Typical!$A20,ProposedHeader,0),FALSE) -> 4.37 | G20: 4.37 | H20: 4.37 | I20: N/A | J20: 0.03516295354 | K20: 0.03475466648
A21: Fixed Deferral/Variance Account Rider (General) | B21: 1 | C21: =VLOOKUP($B$3,'Data Current Rates'!$A:$BA,MATCH(BI_R2_Typical!$A21,CurrentHeader,0),FALSE) -> 0 | D21: 0 | E21: 1 | F21: =VLOOKUP($B$3,'Data Proposed Rates'!$A:$BA,MATCH(BI_R2_Typical!$A21,ProposedHeader,0),FALSE) -> -0.03 | G21: -0.03 | H21: -0.03 | I21: N/A | J21: -0.0002413932737 | K21: -0.0002385903877
A22: Distribution Volumetric Charge | B22: =IF($B$9="kWh",$B$4,$B$5) -> 750 | C22: =VLOOKUP($B$3,'Data Current Rates'!$A:$BA,MATCH(BI_R2_Typical!$A22,CurrentHeader,0),FALSE) -> 0.0374 | D22: 28.05 | E22: 750 | F22: =VLOOKUP($B$3,'Data Proposed Rates'!$A:$BA,MATCH(BI_R2_Typical!$A22,ProposedHeader,0),FALSE) -> 0.0356 | G22: 26.7 | H22: -1.35 | I22: -0.04812834225 | J22: 0.2148400136 | K22: 0.2123454451
A23: Volumetric Foregone Revenue Charge | B23: =IF($B$9="kWh",$B$4,$B$5) -> 750 | C23: =VLOOKUP($B$3,'Data Current Rates'!$A:$BA,MATCH(BI_R2_Typical!$A23,CurrentHeader,0),FALSE) -> 0 | D23: 0 | E23: 750 | F23: =VLOOKUP($B$3,'Data Proposed Rates'!$A:$BA,MATCH(BI_R2_Typical!$A23,ProposedHeader,0),FALSE) -> 0.0011 | G23: 0.825 | H23: 0.825 | I23: N/A | J23: 0.006638315027 | K23: 0.006561235662
A24: Volumetric Deferral/Variance Account Rider (General) | B24: =IF($B$9="kWh",$B$4,$B$5) -> 750 | C24: =VLOOKUP($B$3,'Data Current Rates'!$A:$BA,MATCH(BI_R2_Typical!$A24,CurrentHeader,0),FALSE) -> 0 | D24: 0 | E24: 750 | F24: =VLOOKUP($B$3,'Data Proposed Rates'!$A:$BA,MATCH(BI_R2_Typical!$A24,ProposedHeader,0),FALSE) -> -0.0008 | G24: -0.6 | H24: -0.6 | I24: N/A | J24: -0.004827865474 | K24: -0.004771807754
A25: Volumetric Deferral/Variance Account Rider (Sub Account CBR) | B25: 750 | C25: =VLOOKUP($B$3,'Data Current Rates'!$A:$BA,MATCH(BI_R2_Typical!$A25,CurrentHeader,0),FALSE) -> 0 | D25: 0 | E25: 750 | F25: =VLOOKUP($B$3,'Data Proposed Rates'!$A:$BA,MATCH(BI_R2_Typical!$A25,ProposedHeader,0),FALSE) -> 0 | G25: 0 | H25: 0 | I25: N/A | J25: 0 | K25: 0
A26: Fair Hydro Plan - Distribution Rate Protection Savings* | D26: =IF(AND(B3<>"R1",B3<>"R2"),0,IF(VLOOKUP($A26,'Data Pass Through'!$A:$D,2,FALSE)=0,0,IF(SUM(D19:D20,D22:D23)<VLOOKUP($A26,'Data Pass Through'!$A:$D,2,FALSE),0,VLOOKUP($A26,'Data Pass Through'!$A:$D,2,FALSE)-SUM(D19:D20,D22:D23)))) -> -11.02 | G26: =IF(AND(B3<>"R1",B3<>"R2"),0,IF(VLOOKUP($A26,'Data Pass Through'!$A:$D,2,FALSE)=0,0,IF(SUM(G19:G20,G22:G23)<VLOOKUP($A26,'Data Pass Through'!$A:$D,2,FALSE),0,VLOOKUP($A26,'Data Pass Through'!$A:$D,2,FALSE)-SUM(G19:G20,G22:G23)))) -> -26.385 | H26: -15.365 | I26: -1.394283122 | J26: -0.2123053842 | K26: -0.209840246
A27: Sub-Total: Distribution (excluding pass through) | D27: =SUM(INDIRECT("D19:D"&ROW()-1)) -> 36.86 | G27: =SUM(INDIRECT("g19:g"&ROW()-1)) -> 36.23 | H27: =G27-D27 -> -0.63 | I27: -0.01709169832 | J27: 0.2915226102 | K27: 0.2881376582
A28: Smart Metering Entity Charge | B28: 1 | C28: =VLOOKUP($A28,'Data Pass Through'!$A:$D,2,FALSE) -> 0.57 | D28: =B28*C28 -> 0.57 | E28: 1 | F28: =VLOOKUP($A28,'Data Pass Through'!$A:$D,3,FALSE) -> 0.57 | G28: =E28*F28 -> 0.57 | H28: 0 | I28: 0 | J28: 0.0045864722 | K28: 0.004533217366
A29: Line Losses on Cost of Power (based on two-tier RPP prices) | B29: =B8-B4 -> 78.75 | C29: =IF(B4>B7,C13,C12) -> 0.089 | D29: =B29*C29 -> 7.00875 | E29: 78.75 | F29: =IF(B4>B7,F13,F12) -> 0.089 | G29: =E29*F29 -> 7.00875 | H29: 0 | I29: 0 | J29: 0.05639550357 | K29: 0.05574067933
A30: Line Losses on Cost of Power (based on TOU prices) | B30: =B8-B4 -> 78.75 | C30: =VLOOKUP($B$3,'Data Billing Quantities'!$A:$O,MATCH(BI_R2_Typical!$A15,'Data Billing Quantities'!$4:$4,0),FALSE)*C15+VLOOKUP($B$3,'Data Billing Quantities'!$A:$O,MATCH(BI_R2_Typical!$A16,'Data Billing Quantities'!$4:$4,0),FALSE)*C16+VLOOKUP($B$3,'Data Billing Quantities'!$A:$O,MATCH(BI_R2_Typical!$A17,'Data Billing Quantities'!$4:$4,0),FALSE)*C17 -> 0.08199 | D30: =B30*C30 -> 6.4567125 | E30: 78.75 | F30: =VLOOKUP($B$3,'Data Billing Quantities'!$A:$O,MATCH(BI_R2_Typical!$A15,'Data Billing Quantities'!$4:$4,0),FALSE)*F15+VLOOKUP($B$3,'Data Billing Quantities'!$A:$O,MATCH(BI_R2_Typical!$A16,'Data Billing Quantities'!$4:$4,0),FALSE)*F16+VLOOKUP($B$3,'Data Billing Quantities'!$A:$O,MATCH(BI_R2_Typical!$A17,'Data Billing Quantities'!$4:$4,0),FALSE)*F17 -> 0.08199 | G30: =E30*F30 -> 6.4567125 | H30: 0 | I30: 0 | J30: 0.05195356559 | K30: 0.05135031796
A31: Sub-Total: Distribution (based on two-tier RPP prices) | D31: =SUM(D27,D28:D29) -> 44.43875 | G31: =SUM(G27,G28:G29) -> 43.80875 | H31: -0.63 | I31: -0.0141768164 | J31: 0.352504586 | K31: 0.3484115549
A32: Sub-Total: Distribution (based on TOU prices) | D32: =SUM(D27,D28,D30) -> 43.8867125 | G32: =SUM(G27,G28,G30) -> 43.2567125 | H32: -0.63 | I32: -0.01435514223 | J32: 0.348062648 | K32: 0.3440211935
A33: Retail Transmission Rate – Network Service Rate | B33: =B8 -> 828.75 | C33: =VLOOKUP($B$3,'Data Current Rates'!$A:$BA,MATCH(BI_R2_Typical!$A33,CurrentHeader,0),FALSE) -> 0.0062 | D33: =B33*C33 -> 5.13825 | E33: 828.75 | F33: =VLOOKUP($B$3,'Data Proposed Rates'!$A:$BA,MATCH(BI_R2_Typical!$A33,ProposedHeader,0),FALSE) -> 0.0073 | G33: =E33*F33 -> 6.049875 | H33: =G33-D33 -> 0.911625 | I33: 0.1774193548 | J33: 0.04867997106 | K33: 0.04811473406
A34: Retail Transmission Rate – Line and Transformation Connection Service Rate | B34: =B8 -> 828.75 | C34: =VLOOKUP($B$3,'Data Current Rates'!$A:$BA,MATCH(BI_R2_Typical!$A34,CurrentHeader,0),FALSE) -> 0.0044 | D34: =B34*C34 -> 3.6465 | E34: 828.75 | F34: =VLOOKUP($B$3,'Data Proposed Rates'!$A:$BA,MATCH(BI_R2_Typical!$A34,ProposedHeader,0),FALSE) -> 0.0066 | G34: =E34*F34 -> 5.46975 | H34: =G34-D34 -> 1.82325 | I34: 0.5 | J34: 0.04401202863 | K34: 0.04350099244
A35: Sub-Total: Retail Transmission | D35: =SUM(D33:D34) -> 8.78475 | G35: =SUM(G33:G34) -> 11.519625 | H35: =G35-D35 -> 2.734875 | I35: 0.3113207547 | J35: 0.09269199968 | K35: 0.0916157265
A36: Sub-Total: Delivery (based on two-tier RPP prices) | D36: =D31+D35 -> 53.2235 | G36: =G31+G35 -> 55.328375 | H36: =G36-D36 -> 2.104875 | I36: 0.0395478501 | J36: 0.4451965857 | K36: 0.4400272814
A37: Sub-Total: Delivery (based on TOU prices) | D37: =D32+D35 -> 52.6714625 | G37: =G32+G35 -> 54.7763375 | H37: =G37-D37 -> 2.104875 | I37: 0.03996234204 | J37: 0.4407546477 | K37: 0.43563692
A38: Wholesale Market Service Rate (WMS) - not including CBR | B38: =B8 -> 828.75 | C38: =VLOOKUP($A38,'Data Pass Through'!$A:$D,2,FALSE) -> 0.003 | D38: =B38*C38 -> 2.48625 | E38: =$B$8 -> 828.75 | F38: =VLOOKUP($A38,'Data Pass Through'!$A:$D,3,FALSE) -> 0.003 | G38: =E38*F38 -> 2.48625 | H38: 0 | I38: 0 | J38: 0.02000546756 | K38: 0.01977317838
A39: Capacity Based Recovery (CBR) - Applicable for Class B Customers | B39: =B8 -> 828.75 | C39: =VLOOKUP($A39,'Data Pass Through'!$A:$D,2,FALSE) -> 0.0004 | D39: =B39*C39 -> 0.3315 | E39: =$B$8 -> 828.75 | F39: =VLOOKUP($A39,'Data Pass Through'!$A:$D,3,FALSE) -> 0.0004 | G39: =E39*F39 -> 0.3315 | H39: 0 | I39: 0 | J39: 0.002667395674 | K39: 0.002636423784
A40: Rural Rate Protection Charge | B40: =B8 -> 828.75 | C40: =VLOOKUP($A40,'Data Pass Through'!$A:$D,2,FALSE) -> 0.0005 | D40: 0.414375 | E40: 828.75 | F40: =VLOOKUP($A40,'Data Pass Through'!$A:$D,3,FALSE) -> 0.0005 | G40: 0.414375 | H40: 0 | I40: 0 | J40: 0.003334244593 | K40: 0.00329552973
A41: Standard Supply Service – Administration Charge (if applicable) | B41: 1 | C41: =VLOOKUP($A41,'Data Pass Through'!$A:$D,2,FALSE) -> 0.25 | D41: =B41*C41 -> 0.25 | E41: 1 | F41: =VLOOKUP($A41,'Data Pass Through'!$A:$D,3,FALSE) -> 0.25 | G41: 0.25 | H41: 0 | I41: 0 | J41: 0.002011610614 | K41: 0.001988253231
A42: Sub-Total: Regulatory | D42: =SUM(D38:D41) -> 3.482125 | G42: =SUM(G38:G41) -> 3.482125 | H42: 0 | I42: 0 | J42: 0.02801871844 | K42: 0.02769338513
A43: Debt Retirement Charge (DRC) | B43: =B4 -> 750 | C43: =VLOOKUP($A43,'Data Pass Through'!$A:$D,2,FALSE) -> 0 | D43: =B43*C43 -> 0 | E43: 750 | F43: =VLOOKUP($A43,'Data Pass Through'!$A:$D,3,FALSE) -> 0 | G43: =E43*F43 -> 0 | H43: 0 | I43: N/A | J43: 0 | K43: 0
A44: Total Electricty Charge on Two-Tier RPP | D44: =SUM(D14,D27,D28,D29,D35,D42,D43) -> 116.255625 | G44: =SUM(G14,G27,G28,G29,G35,G42,G43) -> 118.3605 | H44: 2.104875 | I44: 0.01810557554 | J44: 0.9523809524
A45: HST | C45: 0.13 | D45: =D44*C45 -> 15.11323125 | F45: =C45 -> 0.13 | G45: =G44*F45 -> 15.386865 | H45: 0.27363375 | I45: 0.01810557554 | J45: 0.1238095238
A46: Total Electricity Charge on Two-Tier RPP (including HST) | D46: =SUM(D44:D45) -> 131.3688562 | G46: =SUM(G44:G45) -> 133.747365 | H46: 2.37850875 | I46: 0.01810557554 | J46: 1.076190476
A47: Ontario Rebate for Electricity Consumers (OREC) | C47: -0.08 | D47: =D44*C47 -> -9.30045 | F47: =C47 -> -0.08 | G47: =G44*F47 -> -9.46884 | H47: -0.16839 | I47: -0.01810557554 | J47: -0.07619047619
A48: Total Amount on Two-Tier RPP | D48: =SUM(D46:D47) -> 122.0684062 | G48: =SUM(G46:G47) -> 124.278525 | H48: 2.21011875 | I48: 0.01810557554 | J48: 1
A49: Total Electricty Charge on TOU (before HST) | D49: =SUM(D18,D27,D28,D30,D35,D42,D43) -> 117.6460875 | G49: =SUM(G18,G27,G28,G30,G35,G42,G43) -> 119.7509625 | H49: 2.104875 | I49: 0.01789158522 | K49: =G49/$G$53 -> 0.9523809524
A50: HST | C50: 0.13 | D50: =D49*C50 -> 15.29399137 | F50: =C50 -> 0.13 | G50: =G49*F50 -> 15.56762512 | H50: 0.27363375 | I50: 0.01789158522 | K50: =G50/$G$53 -> 0.1238095238
A51: Total Electricity Charge on TOU (including HST) | D51: =SUM(D49:D50) -> 132.9400789 | G51: =SUM(G49:G50) -> 135.3185876 | H51: 2.37850875 | I51: 0.01789158522 | K51: =G51/$G$53 -> 1.076190476
A52: Ontario Rebate for Electricity Consumers (OREC) | C52: -0.08 | D52: =D49*C52 -> -9.411687 | F52: =C52 -> -0.08 | G52: =G49*F52 -> -9.580077 | H52: -0.16839 | I52: -0.01789158522 | K52: =G52/$G$53 -> -0.07619047619
A53: Total Amount on TOU | D53: =SUM(D51:D52) -> 123.5283919 | G53: =SUM(G51:G52) -> 125.7385106 | H53: 2.21011875 | I53: 0.01789158522 | K53: =G53/$G$53 -> 1
A54: * Distribution rate protection applies to R1 and R2 customers

Sheet BI_R2_Avg
A1: 2019 Bill Impacts (Average Consumption Level) - R2
A3: Rate Class | B3: =RIGHT(A1,LEN(A1)-FIND("- ",A1,1)-1) -> R2
A4: Monthly Consumption (kWh) | B4: =IF(COUNTIF(A1,"*Low*")>0,VLOOKUP(B3,'Data Billing Quantities'!$A:$Z,MATCH("Low kWh",'Data Billing Quantities'!4:4,0),FALSE),IF(COUNTIF(A1,"*Typical*")>0,VLOOKUP(B3,'Data Billing Quantities'!$A:$Z,MATCH("Typical kWh",'Data Billing Quantities'!4:4,0),FALSE),IF(COUNTIF(A1,"*Average*")>0,VLOOKUP(B3,'Data Billing Quantities'!$A:$Z,MATCH("Average kWh",'Data Billing Quantities'!4:4,0),FALSE),IF(COUNTIF(A1,"*High*")>0,VLOOKUP(B3,'Data Billing Quantities'!$A:$Z,MATCH("High kWh",'Data Billing Quantities'!4:4,0),FALSE),"error")))) -> 1152
A5: Peak (kW) | B5: =IF(COUNTIF(A1,"*Low*")>0,VLOOKUP(B3,'Data Billing Quantities'!$A:$Z,MATCH("Low kW",'Data Billing Quantities'!4:4,0),FALSE),IF(COUNTIF(A1,"*Typical*")>0,VLOOKUP(B3,'Data Billing Quantities'!$A:$Z,MATCH("Typical kW",'Data Billing Quantities'!4:4,0),FALSE),IF(COUNTIF(A1,"*Average*")>0,VLOOKUP(B3,'Data Billing Quantities'!$A:$Z,MATCH("Average kW",'Data Billing Quantities'!4:4,0),FALSE),IF(COUNTIF(A1,"*High*")>0,VLOOKUP(B3,'Data Billing Quantities'!$A:$Z,MATCH("High kW",'Data Billing Quantities'!4:4,0),FALSE),"error")))) -> 0
A6: Loss factor | B6: =VLOOKUP(B3,'Data Billing Quantities'!A:D,MATCH(A6,'Data Billing Quantities'!4:4,0),FALSE) -> 1.105
A7: Commodity Threshold | B7: =VLOOKUP(B3,'Data Billing Quantities'!A:D,MATCH(A7,'Data Billing Quantities'!4:4,0),FALSE) -> 600
A8: Monthly Consumption (kWh) - Uplifted | B8: =B4*B6 -> 1272.96
A9: Charge determinant | B9: =VLOOKUP(B3,'Data Billing Quantities'!A:D,MATCH(A9,'Data Billing Quantities'!4:4,0),FALSE) -> kWh
B11: Volume | C11: Current Rate ($) | D11: Current Charge ($) | E11: Volume | F11: Proposed Rate ($) | G11: Proposed Charge ($) | H11: Change ($) | I11: Change (%) | J11: % of Total Bill on RPP | K11: % of Total Bill on TOU
A12: Energy First Tier | B12: =IF(B4>B7,B7,B4) -> 600 | C12: =VLOOKUP($A12,'Data Pass Through'!$A:$D,2,FALSE) -> 0.077 | D12: =B12*C12 -> 46.2 | E12: =B12 -> 600 | F12: =VLOOKUP($A12,'Data Pass Through'!$A:$D,3,FALSE) -> 0.077 | G12: =E12*F12 -> 46.2 | H12: =G12-D12 -> 0 | I12: =IF(ISERROR(H12/ABS(D12)),"N/A",(H12/ABS(D12))) -> 0 | J12: =G12/$G$48 -> 0.2658923109
A13: Energy Second Tier | B13: =IF(B4>B7,(B4)-B7,0) -> 552 | C13: =VLOOKUP($A13,'Data Pass Through'!$A:$D,2,FALSE) -> 0.089 | D13: =B13*C13 -> 49.128 | E13: =B13 -> 552 | F13: =VLOOKUP($A13,'Data Pass Through'!$A:$D,3,FALSE) -> 0.089 | G13: =E13*F13 -> 49.128 | H13: 0 | I13: 0 | J13: =G13/$G$48 -> 0.2827436678
A14: Sub-Total: Energy (RPP Tiered) | D14: =SUM(D12:D13) -> 95.328 | G14: =SUM(G12:G13) -> 95.328 | H14: 0 | I14: 0 | J14: =G14/$G$48 -> 0.5486359787
A15: TOU-Off Peak | B15: =B$4*VLOOKUP($B$3,'Data Billing Quantities'!$A:$O,MATCH(BI_R2_Avg!$A15,'Data Billing Quantities'!$4:$4,0),FALSE) -> 748.8 | C15: =VLOOKUP($A15,'Data Pass Through'!$A:$D,2,FALSE) -> 0.065 | D15: =B15*C15 -> 48.672 | E15: 748.8 | F15: =VLOOKUP($A15,'Data Pass Through'!$A:$D,3,FALSE) -> 0.065 | G15: =E15*F15 -> 48.672 | H15: 0 | I15: 0 | K15: =G15/$G$53 -> 0.2830673713
A16: TOU-Mid Peak | B16: =B$4*VLOOKUP($B$3,'Data Billing Quantities'!$A:$O,MATCH(BI_R2_Avg!$A16,'Data Billing Quantities'!$4:$4,0),FALSE) -> 195.84 | C16: =VLOOKUP($A16,'Data Pass Through'!$A:$D,2,FALSE) -> 0.094 | D16: =B16*C16 -> 18.40896 | E16: 195.84 | F16: =VLOOKUP($A16,'Data Pass Through'!$A:$D,3,FALSE) -> 0.094 | G16: =E16*F16 -> 18.40896 | H16: 0 | I16: 0 | K16: 0.1070631146
A17: TOU-On Peak | B17: =B$4*VLOOKUP($B$3,'Data Billing Quantities'!$A:$O,MATCH(BI_R2_Avg!$A17,'Data Billing Quantities'!$4:$4,0),FALSE) -> 207.36 | C17: =VLOOKUP($A17,'Data Pass Through'!$A:$D,2,FALSE) -> 0.132 | D17: =B17*C17 -> 27.37152 | E17: 207.36 | F17: =VLOOKUP($A17,'Data Pass Through'!$A:$D,3,FALSE) -> 0.132 | G17: =E17*F17 -> 27.37152 | H17: 0 | I17: 0 | K17: 0.1591877099
A18: Sub-Total: Energy (RPP TOU) | D18: =SUM(D15:D17) -> 94.45248 | G18: =SUM(G15:G17) -> 94.45248 | H18: 0 | I18: 0 | J18: =G18/$G$48 -> 0.5435971467 | K18: 0.5493181958
A19: Service Charge | B19: 1 | C19: =VLOOKUP($B$3,'Data Current Rates'!$A:$BA,MATCH(BI_R2_Avg!$A19,CurrentHeader,0),FALSE) -> 19.83 | D19: =B19*C19 -> 19.83 | E19: 1 | F19: =VLOOKUP($B$3,'Data Proposed Rates'!$A:$BA,MATCH(BI_R2_Avg!$A19,ProposedHeader,0),FALSE) -> 31.35 | G19: =E19*F19 -> 31.35 | H19: 11.52 | I19: 0.5809379728 | J19: 0.1804269253 | K19: 0.1823258155
A20: Fixed Foregone Revenue Charge | B20: 1 | C20: =VLOOKUP($B$3,'Data Current Rates'!$A:$BA,MATCH(BI_R2_Avg!$A20,CurrentHeader,0),FALSE) -> 0 | D20: 0 | E20: 1 | F20: =VLOOKUP($B$3,'Data Proposed Rates'!$A:$BA,MATCH(BI_R2_Avg!$A20,ProposedHeader,0),FALSE) -> 4.37 | G20: 4.37 | H20: 4.37 | I20: N/A | J20: 0.02515041988 | K20: 0.02541511367
A21: Fixed Deferral/Variance Account Rider (General) | B21: 1 | C21: =VLOOKUP($B$3,'Data Current Rates'!$A:$BA,MATCH(BI_R2_Avg!$A21,CurrentHeader,0),FALSE) -> 0 | D21: 0 | E21: 1 | F21: =VLOOKUP($B$3,'Data Proposed Rates'!$A:$BA,MATCH(BI_R2_Avg!$A21,ProposedHeader,0),FALSE) -> -0.03 | G21: -0.03 | H21: -0.03 | I21: N/A | J21: -0.0001726573447 | K21: -0.0001744744646
A22: Distribution Volumetric Charge | B22: =IF($B$9="kWh",$B$4,$B$5) -> 1152 | C22: =VLOOKUP($B$3,'Data Current Rates'!$A:$BA,MATCH(BI_R2_Avg!$A22,CurrentHeader,0),FALSE) -> 0.0374 | D22: 43.0848 | E22: 1152 | F22: =VLOOKUP($B$3,'Data Proposed Rates'!$A:$BA,MATCH(BI_R2_Avg!$A22,ProposedHeader,0),FALSE) -> 0.0356 | G22: 41.0112 | H22: -2.0736 | I22: -0.04812834225 | J22: 0.2360294966 | K22: 0.238513572
A23: Volumetric Foregone Revenue Charge | B23: =IF($B$9="kWh",$B$4,$B$5) -> 1152 | C23: =VLOOKUP($B$3,'Data Current Rates'!$A:$BA,MATCH(BI_R2_Avg!$A23,CurrentHeader,0),FALSE) -> 0 | D23: 0 | E23: 1152 | F23: =VLOOKUP($B$3,'Data Proposed Rates'!$A:$BA,MATCH(BI_R2_Avg!$A23,ProposedHeader,0),FALSE) -> 0.0011 | G23: 1.2672 | H23: 1.2672 | I23: N/A | J23: 0.007293046242 | K23: 0.007369801383
A24: Volumetric Deferral/Variance Account Rider (General) | B24: =IF($B$9="kWh",$B$4,$B$5) -> 1152 | C24: =VLOOKUP($B$3,'Data Current Rates'!$A:$BA,MATCH(BI_R2_Avg!$A24,CurrentHeader,0),FALSE) -> 0 | D24: 0 | E24: 1152 | F24: =VLOOKUP($B$3,'Data Proposed Rates'!$A:$BA,MATCH(BI_R2_Avg!$A24,ProposedHeader,0),FALSE) -> -0.0008 | G24: -0.9216 | H24: -0.9216 | I24: N/A | J24: -0.005304033631 | K24: -0.005359855551
A25: Volumetric Deferral/Variance Account Rider (Sub Account CBR) | B25: 1152 | C25: =VLOOKUP($B$3,'Data Current Rates'!$A:$BA,MATCH(BI_R2_Avg!$A25,CurrentHeader,0),FALSE) -> 0 | D25: 0 | E25: 1152 | F25: =VLOOKUP($B$3,'Data Proposed Rates'!$A:$BA,MATCH(BI_R2_Avg!$A25,ProposedHeader,0),FALSE) -> 0 | G25: 0 | H25: 0 | I25: N/A | J25: 0 | K25: 0
A26: Fair Hydro Plan - Distribution Rate Protection Savings* | D26: =IF(AND(B3<>"R1",B3<>"R2"),0,IF(VLOOKUP($A26,'Data Pass Through'!$A:$D,2,FALSE)=0,0,IF(SUM(D19:D20,D22:D23)<VLOOKUP($A26,'Data Pass Through'!$A:$D,2,FALSE),0,VLOOKUP($A26,'Data Pass Through'!$A:$D,2,FALSE)-SUM(D19:D20,D22:D23)))) -> -26.0548 | G26: =IF(AND(B3<>"R1",B3<>"R2"),0,IF(VLOOKUP($A26,'Data Pass Through'!$A:$D,2,FALSE)=0,0,IF(SUM(G19:G20,G22:G23)<VLOOKUP($A26,'Data Pass Through'!$A:$D,2,FALSE),0,VLOOKUP($A26,'Data Pass Through'!$A:$D,2,FALSE)-SUM(G19:G20,G22:G23)))) -> -41.1384 | H26: -15.0836 | I26: -0.5789182799 | J26: -0.2367615637 | K26: -0.2392533438
A27: Sub-Total: Distribution (excluding pass through) | D27: =SUM(INDIRECT("D19:D"&ROW()-1)) -> 36.86 | G27: =SUM(INDIRECT("g19:g"&ROW()-1)) -> 35.9084 | H27: =G27-D27 -> -0.9516 | I27: -0.02581660336 | J27: 0.2066616333 | K27: 0.2088366288
A28: Smart Metering Entity Charge | B28: 1 | C28: =VLOOKUP($A28,'Data Pass Through'!$A:$D,2,FALSE) -> 0.57 | D28: =B28*C28 -> 0.57 | E28: 1 | F28: =VLOOKUP($A28,'Data Pass Through'!$A:$D,3,FALSE) -> 0.57 | G28: =E28*F28 -> 0.57 | H28: 0 | I28: 0 | J28: 0.00328048955 | K28: 0.003315014827
A29: Line Losses on Cost of Power (based on two-tier RPP prices) | B29: =B8-B4 -> 120.96 | C29: =IF(B4>B7,C13,C12) -> 0.089 | D29: =B29*C29 -> 10.76544 | E29: 120.96 | F29: =IF(B4>B7,F13,F12) -> 0.089 | G29: =E29*F29 -> 10.76544 | H29: 0 | I29: 0 | J29: 0.06195774285 | K29: 0.06260981266
A30: Line Losses on Cost of Power (based on TOU prices) | B30: =B8-B4 -> 120.96 | C30: =VLOOKUP($B$3,'Data Billing Quantities'!$A:$O,MATCH(BI_R2_Avg!$A15,'Data Billing Quantities'!$4:$4,0),FALSE)*C15+VLOOKUP($B$3,'Data Billing Quantities'!$A:$O,MATCH(BI_R2_Avg!$A16,'Data Billing Quantities'!$4:$4,0),FALSE)*C16+VLOOKUP($B$3,'Data Billing Quantities'!$A:$O,MATCH(BI_R2_Avg!$A17,'Data Billing Quantities'!$4:$4,0),FALSE)*C17 -> 0.08199 | D30: =B30*C30 -> 9.9175104 | E30: 120.96 | F30: =VLOOKUP($B$3,'Data Billing Quantities'!$A:$O,MATCH(BI_R2_Avg!$A15,'Data Billing Quantities'!$4:$4,0),FALSE)*F15+VLOOKUP($B$3,'Data Billing Quantities'!$A:$O,MATCH(BI_R2_Avg!$A16,'Data Billing Quantities'!$4:$4,0),FALSE)*F16+VLOOKUP($B$3,'Data Billing Quantities'!$A:$O,MATCH(BI_R2_Avg!$A17,'Data Billing Quantities'!$4:$4,0),FALSE)*F17 -> 0.08199 | G30: =E30*F30 -> 9.9175104 | H30: 0 | I30: 0 | J30: 0.0570777004 | K30: 0.05767841056
A31: Sub-Total: Distribution (based on two-tier RPP prices) | D31: =SUM(D27,D28:D29) -> 48.19544 | G31: =SUM(G27,G28:G29) -> 47.24384 | H31: -0.9516 | I31: -0.01974460654 | J31: 0.2718998657 | K31: 0.2747614563
A32: Sub-Total: Distribution (based on TOU prices) | D32: =SUM(D27,D28,D30) -> 47.3475104 | G32: =SUM(G27,G28,G30) -> 46.3959104 | H32: -0.9516 | I32: -0.02009820563 | J32: 0.2670198232 | K32: 0.2698300542
A33: Retail Transmission Rate – Network Service Rate | B33: =B8 -> 1272.96 | C33: =VLOOKUP($B$3,'Data Current Rates'!$A:$BA,MATCH(BI_R2_Avg!$A33,CurrentHeader,0),FALSE) -> 0.0062 | D33: =B33*C33 -> 7.892352 | E33: 1272.96 | F33: =VLOOKUP($B$3,'Data Proposed Rates'!$A:$BA,MATCH(BI_R2_Avg!$A33,ProposedHeader,0),FALSE) -> 0.0073 | G33: =E33*F33 -> 9.292608 | H33: =G33-D33 -> 1.400256 | I33: 0.1774193548 | J33: 0.0534812341 | K33: 0.0540440935
A34: Retail Transmission Rate – Line and Transformation Connection Service Rate | B34: =B8 -> 1272.96 | C34: =VLOOKUP($B$3,'Data Current Rates'!$A:$BA,MATCH(BI_R2_Avg!$A34,CurrentHeader,0),FALSE) -> 0.0044 | D34: =B34*C34 -> 5.601024 | E34: 1272.96 | F34: =VLOOKUP($B$3,'Data Proposed Rates'!$A:$BA,MATCH(BI_R2_Avg!$A34,ProposedHeader,0),FALSE) -> 0.0066 | G34: =E34*F34 -> 8.401536 | H34: =G34-D34 -> 2.800512 | I34: 0.5 | J34: 0.04835289658 | K34: 0.04886178317
A35: Sub-Total: Retail Transmission | D35: =SUM(D33:D34) -> 13.493376 | G35: =SUM(G33:G34) -> 17.694144 | H35: =G35-D35 -> 4.200768 | I35: 0.3113207547 | J35: 0.1018341307 | K35: 0.1029058767
A36: Sub-Total: Delivery (based on two-tier RPP prices) | D36: =D31+D35 -> 61.688816 | G36: =G31+G35 -> 64.937984 | H36: =G36-D36 -> 3.249168 | I36: 0.05267029278 | J36: 0.3737339964 | K36: 0.3776673329
A37: Sub-Total: Delivery (based on TOU prices) | D37: =D32+D35 -> 60.8408864 | G37: =G32+G35 -> 64.0900544 | H37: =G37-D37 -> 3.249168 | I37: 0.05340435014 | J37: 0.3688539539 | K37: 0.3727359308
A38: Wholesale Market Service Rate (WMS) - not including CBR | B38: =B8 -> 1272.96 | C38: =VLOOKUP($A38,'Data Pass Through'!$A:$D,2,FALSE) -> 0.003 | D38: =B38*C38 -> 3.81888 | E38: =$B$8 -> 1272.96 | F38: =VLOOKUP($A38,'Data Pass Through'!$A:$D,3,FALSE) -> 0.003 | G38: =E38*F38 -> 3.81888 | H38: 0 | I38: 0 | J38: 0.02197858936 | K38: 0.02220990144
A39: Capacity Based Recovery (CBR) - Applicable for Class B Customers | B39: =B8 -> 1272.96 | C39: =VLOOKUP($A39,'Data Pass Through'!$A:$D,2,FALSE) -> 0.0004 | D39: =B39*C39 -> 0.509184 | E39: =$B$8 -> 1272.96 | F39: =VLOOKUP($A39,'Data Pass Through'!$A:$D,3,FALSE) -> 0.0004 | G39: =E39*F39 -> 0.509184 | H39: 0 | I39: 0 | J39: 0.002930478581 | K39: 0.002961320192
A40: Rural Rate Protection Charge | B40: =B8 -> 1272.96 | C40: =VLOOKUP($A40,'Data Pass Through'!$A:$D,2,FALSE) -> 0.0005 | D40: 0.63648 | E40: 1272.96 | F40: =VLOOKUP($A40,'Data Pass Through'!$A:$D,3,FALSE) -> 0.0005 | G40: 0.63648 | H40: 0 | I40: 0 | J40: 0.003663098226 | K40: 0.00370165024
A41: Standard Supply Service – Administration Charge (if applicable) | B41: 1 | C41: =VLOOKUP($A41,'Data Pass Through'!$A:$D,2,FALSE) -> 0.25 | D41: =B41*C41 -> 0.25 | E41: 1 | F41: =VLOOKUP($A41,'Data Pass Through'!$A:$D,3,FALSE) -> 0.25 | G41: 0.25 | H41: 0 | I41: 0 | J41: 0.001438811206 | K41: 0.001453953871
A42: Sub-Total: Regulatory | D42: =SUM(D38:D41) -> 5.214544 | G42: =SUM(G38:G41) -> 5.214544 | H42: 0 | I42: 0 | J42: 0.03001097737 | K42: 0.03032682574
A43: Debt Retirement Charge (DRC) | B43: =B4 -> 1152 | C43: =VLOOKUP($A43,'Data Pass Through'!$A:$D,2,FALSE) -> 0 | D43: =B43*C43 -> 0 | E43: 1152 | F43: =VLOOKUP($A43,'Data Pass Through'!$A:$D,3,FALSE) -> 0 | G43: =E43*F43 -> 0 | H43: 0 | I43: N/A | J43: 0 | K43: 0
A44: Total Electricty Charge on Two-Tier RPP | D44: =SUM(D14,D27,D28,D29,D35,D42,D43) -> 162.23136 | G44: =SUM(G14,G27,G28,G29,G35,G42,G43) -> 165.480528 | H44: 3.249168 | I44: 0.02002798966 | J44: 0.9523809524
A45: HST | C45: 0.13 | D45: =D44*C45 -> 21.0900768 | F45: =C45 -> 0.13 | G45: =G44*F45 -> 21.51246864 | H45: 0.42239184 | I45: 0.02002798966 | J45: 0.1238095238
A46: Total Electricity Charge on Two-Tier RPP (including HST) | D46: =SUM(D44:D45) -> 183.3214368 | G46: =SUM(G44:G45) -> 186.9929966 | H46: 3.67155984 | I46: 0.02002798966 | J46: 1.076190476
A47: Ontario Rebate for Electricity Consumers (OREC) | C47: -0.08 | D47: =D44*C47 -> -12.9785088 | F47: =C47 -> -0.08 | G47: =G44*F47 -> -13.23844224 | H47: -0.25993344 | I47: -0.02002798966 | J47: -0.07619047619
A48: Total Amount on Two-Tier RPP | D48: =SUM(D46:D47) -> 170.342928 | G48: =SUM(G46:G47) -> 173.7545544 | H48: 3.4116264 | I48: 0.02002798966 | J48: 1
A49: Total Electricty Charge on TOU (before HST) | D49: =SUM(D18,D27,D28,D30,D35,D42,D43) -> 160.5079104 | G49: =SUM(G18,G27,G28,G30,G35,G42,G43) -> 163.7570784 | H49: 3.249168 | I49: 0.02024303969 | K49: =G49/$G$53 -> 0.9523809524
A50: HST | C50: 0.13 | D50: =D49*C50 -> 20.86602835 | F50: =C50 -> 0.13 | G50: =G49*F50 -> 21.28842019 | H50: 0.42239184 | I50: 0.02024303969 | K50: =G50/$G$53 -> 0.1238095238
A51: Total Electricity Charge on TOU (including HST) | D51: =SUM(D49:D50) -> 181.3739388 | G51: =SUM(G49:G50) -> 185.0454986 | H51: 3.67155984 | I51: 0.02024303969 | K51: =G51/$G$53 -> 1.076190476
A52: Ontario Rebate for Electricity Consumers (OREC) | C52: -0.08 | D52: =D49*C52 -> -12.84063283 | F52: =C52 -> -0.08 | G52: =G49*F52 -> -13.10056627 | H52: -0.25993344 | I52: -0.02024303969 | K52: =G52/$G$53 -> -0.07619047619
A53: Total Amount on TOU | D53: =SUM(D51:D52) -> 168.5333059 | G53: =SUM(G51:G52) -> 171.9449323 | H53: 3.4116264 | I53: 0.02024303969 | K53: =G53/$G$53 -> 1
A54: * Distribution rate protection applies to R1 and R2 customers

Sheet BI_R2_High
A1: 2019 Bill Impacts (High Consumption Level) - R2
A3: Rate Class | B3: =RIGHT(A1,LEN(A1)-FIND("- ",A1,1)-1) -> R2
A4: Monthly Consumption (kWh) | B4: =IF(COUNTIF(A1,"*Low*")>0,VLOOKUP(B3,'Data Billing Quantities'!$A:$Z,MATCH("Low kWh",'Data Billing Quantities'!4:4,0),FALSE),IF(COUNTIF(A1,"*Typical*")>0,VLOOKUP(B3,'Data Billing Quantities'!$A:$Z,MATCH("Typical kWh",'Data Billing Quantities'!4:4,0),FALSE),IF(COUNTIF(A1,"*Average*")>0,VLOOKUP(B3,'Data Billing Quantities'!$A:$Z,MATCH("Average kWh",'Data Billing Quantities'!4:4,0),FALSE),IF(COUNTIF(A1,"*High*")>0,VLOOKUP(B3,'Data Billing Quantities'!$A:$Z,MATCH("High kWh",'Data Billing Quantities'!4:4,0),FALSE),"error")))) -> 2300
A5: Peak (kW) | B5: =IF(COUNTIF(A1,"*Low*")>0,VLOOKUP(B3,'Data Billing Quantities'!$A:$Z,MATCH("Low kW",'Data Billing Quantities'!4:4,0),FALSE),IF(COUNTIF(A1,"*Typical*")>0,VLOOKUP(B3,'Data Billing Quantities'!$A:$Z,MATCH("Typical kW",'Data Billing Quantities'!4:4,0),FALSE),IF(COUNTIF(A1,"*Average*")>0,VLOOKUP(B3,'Data Billing Quantities'!$A:$Z,MATCH("Average kW",'Data Billing Quantities'!4:4,0),FALSE),IF(COUNTIF(A1,"*High*")>0,VLOOKUP(B3,'Data Billing Quantities'!$A:$Z,MATCH("High kW",'Data Billing Quantities'!4:4,0),FALSE),"error")))) -> 0
A6: Loss factor | B6: =VLOOKUP(B3,'Data Billing Quantities'!A:D,MATCH(A6,'Data Billing Quantities'!4:4,0),FALSE) -> 1.105
A7: Commodity Threshold | B7: =VLOOKUP(B3,'Data Billing Quantities'!A:D,MATCH(A7,'Data Billing Quantities'!4:4,0),FALSE) -> 600
A8: Monthly Consumption (kWh) - Uplifted | B8: =B4*B6 -> 2541.5
A9: Charge determinant | B9: =VLOOKUP(B3,'Data Billing Quantities'!A:D,MATCH(A9,'Data Billing Quantities'!4:4,0),FALSE) -> kWh
B11: Volume | C11: Current Rate ($) | D11: Current Charge ($) | E11: Volume | F11: Proposed Rate ($) | G11: Proposed Charge ($) | H11: Change ($) | I11: Change (%) | J11: % of Total Bill on RPP | K11: % of Total Bill on TOU
A12: Energy First Tier | B12: =IF(B4>B7,B7,B4) -> 600 | C12: =VLOOKUP($A12,'Data Pass Through'!$A:$D,2,FALSE) -> 0.077 | D12: =B12*C12 -> 46.2 | E12: =B12 -> 600 | F12: =VLOOKUP($A12,'Data Pass Through'!$A:$D,3,FALSE) -> 0.077 | G12: =E12*F12 -> 46.2 | H12: =G12-D12 -> 0 | I12: =IF(ISERROR(H12/ABS(D12)),"N/A",(H12/ABS(D12))) -> 0 | J12: =G12/$G$48 -> 0.1466460385
A13: Energy Second Tier | B13: =IF(B4>B7,(B4)-B7,0) -> 1700 | C13: =VLOOKUP($A13,'Data Pass Through'!$A:$D,2,FALSE) -> 0.089 | D13: =B13*C13 -> 151.3 | E13: =B13 -> 1700 | F13: =VLOOKUP($A13,'Data Pass Through'!$A:$D,3,FALSE) -> 0.089 | G13: =E13*F13 -> 151.3 | H13: 0 | I13: 0 | J13: =G13/$G$48 -> 0.4802499052
A14: Sub-Total: Energy (RPP Tiered) | D14: =SUM(D12:D13) -> 197.5 | G14: =SUM(G12:G13) -> 197.5 | H14: 0 | I14: 0 | J14: =G14/$G$48 -> 0.6268959436
A15: TOU-Off Peak | B15: =B$4*VLOOKUP($B$3,'Data Billing Quantities'!$A:$O,MATCH(BI_R2_High!$A15,'Data Billing Quantities'!$4:$4,0),FALSE) -> 1495 | C15: =VLOOKUP($A15,'Data Pass Through'!$A:$D,2,FALSE) -> 0.065 | D15: =B15*C15 -> 97.175 | E15: 1495 | F15: =VLOOKUP($A15,'Data Pass Through'!$A:$D,3,FALSE) -> 0.065 | G15: =E15*F15 -> 97.175 | H15: 0 | I15: 0 | K15: =G15/$G$53 -> 0.3197623155
A16: TOU-Mid Peak | B16: =B$4*VLOOKUP($B$3,'Data Billing Quantities'!$A:$O,MATCH(BI_R2_High!$A16,'Data Billing Quantities'!$4:$4,0),FALSE) -> 391 | C16: =VLOOKUP($A16,'Data Pass Through'!$A:$D,2,FALSE) -> 0.094 | D16: =B16*C16 -> 36.754 | E16: 391 | F16: =VLOOKUP($A16,'Data Pass Through'!$A:$D,3,FALSE) -> 0.094 | G16: =E16*F16 -> 36.754 | H16: 0 | I16: 0 | K16: 0.1209420545
A17: TOU-On Peak | B17: =B$4*VLOOKUP($B$3,'Data Billing Quantities'!$A:$O,MATCH(BI_R2_High!$A17,'Data Billing Quantities'!$4:$4,0),FALSE) -> 414 | C17: =VLOOKUP($A17,'Data Pass Through'!$A:$D,2,FALSE) -> 0.132 | D17: =B17*C17 -> 54.648 | E17: 414 | F17: =VLOOKUP($A17,'Data Pass Through'!$A:$D,3,FALSE) -> 0.132 | G17: =E17*F17 -> 54.648 | H17: 0 | I17: 0 | K17: 0.1798237305
A18: Sub-Total: Energy (RPP TOU) | D18: =SUM(D15:D17) -> 188.577 | G18: =SUM(G15:G17) -> 188.577 | H18: 0 | I18: 0 | J18: =G18/$G$48 -> 0.5985729436 | K18: 0.6205281005
A19: Service Charge | B19: 1 | C19: =VLOOKUP($B$3,'Data Current Rates'!$A:$BA,MATCH(BI_R2_High!$A19,CurrentHeader,0),FALSE) -> 19.83 | D19: =B19*C19 -> 19.83 | E19: 1 | F19: =VLOOKUP($B$3,'Data Proposed Rates'!$A:$BA,MATCH(BI_R2_High!$A19,ProposedHeader,0),FALSE) -> 31.35 | G19: =E19*F19 -> 31.35 | H19: 11.52 | I19: 0.5809379728 | J19: 0.09950981181 | K19: 0.1031597488
A20: Fixed Foregone Revenue Charge | B20: 1 | C20: =VLOOKUP($B$3,'Data Current Rates'!$A:$BA,MATCH(BI_R2_High!$A20,CurrentHeader,0),FALSE) -> 0 | D20: 0 | E20: 1 | F20: =VLOOKUP($B$3,'Data Proposed Rates'!$A:$BA,MATCH(BI_R2_High!$A20,ProposedHeader,0),FALSE) -> 4.37 | G20: 4.37 | H20: 4.37 | I20: N/A | J20: 0.01387106468 | K20: 0.01437984377
A21: Fixed Deferral/Variance Account Rider (General) | B21: 1 | C21: =VLOOKUP($B$3,'Data Current Rates'!$A:$BA,MATCH(BI_R2_High!$A21,CurrentHeader,0),FALSE) -> 0 | D21: 0 | E21: 1 | F21: =VLOOKUP($B$3,'Data Proposed Rates'!$A:$BA,MATCH(BI_R2_High!$A21,ProposedHeader,0),FALSE) -> -0.03 | G21: -0.03 | H21: -0.03 | I21: N/A | J21: -9.52247003e-05 | K21: -9.871746297e-05
A22: Distribution Volumetric Charge | B22: =IF($B$9="kWh",$B$4,$B$5) -> 2300 | C22: =VLOOKUP($B$3,'Data Current Rates'!$A:$BA,MATCH(BI_R2_High!$A22,CurrentHeader,0),FALSE) -> 0.0374 | D22: 86.02 | E22: 2300 | F22: =VLOOKUP($B$3,'Data Proposed Rates'!$A:$BA,MATCH(BI_R2_High!$A22,ProposedHeader,0),FALSE) -> 0.0356 | G22: 81.88 | H22: -4.14 | I22: -0.04812834225 | J22: 0.2598999487 | K22: 0.2694328623
A23: Volumetric Foregone Revenue Charge | B23: =IF($B$9="kWh",$B$4,$B$5) -> 2300 | C23: =VLOOKUP($B$3,'Data Current Rates'!$A:$BA,MATCH(BI_R2_High!$A23,CurrentHeader,0),FALSE) -> 0 | D23: 0 | E23: 2300 | F23: =VLOOKUP($B$3,'Data Proposed Rates'!$A:$BA,MATCH(BI_R2_High!$A23,ProposedHeader,0),FALSE) -> 0.0011 | G23: 2.53 | H23: 2.53 | I23: N/A | J23: 0.008030616392 | K23: 0.00832517271
A24: Volumetric Deferral/Variance Account Rider (General) | B24: =IF($B$9="kWh",$B$4,$B$5) -> 2300 | C24: =VLOOKUP($B$3,'Data Current Rates'!$A:$BA,MATCH(BI_R2_High!$A24,CurrentHeader,0),FALSE) -> 0 | D24: 0 | E24: 2300 | F24: =VLOOKUP($B$3,'Data Proposed Rates'!$A:$BA,MATCH(BI_R2_High!$A24,ProposedHeader,0),FALSE) -> -0.0008 | G24: -1.84 | H24: -1.84 | I24: N/A | J24: -0.005840448285 | K24: -0.006054671062
A25: Volumetric Deferral/Variance Account Rider (Sub Account CBR) | B25: 2300 | C25: =VLOOKUP($B$3,'Data Current Rates'!$A:$BA,MATCH(BI_R2_High!$A25,CurrentHeader,0),FALSE) -> 0 | D25: 0 | E25: 2300 | F25: =VLOOKUP($B$3,'Data Proposed Rates'!$A:$BA,MATCH(BI_R2_High!$A25,ProposedHeader,0),FALSE) -> 0 | G25: 0 | H25: 0 | I25: N/A | J25: 0 | K25: 0
A26: Fair Hydro Plan - Distribution Rate Protection Savings* | D26: =IF(AND(B3<>"R1",B3<>"R2"),0,IF(VLOOKUP($A26,'Data Pass Through'!$A:$D,2,FALSE)=0,0,IF(SUM(D19:D20,D22:D23)<VLOOKUP($A26,'Data Pass Through'!$A:$D,2,FALSE),0,VLOOKUP($A26,'Data Pass Through'!$A:$D,2,FALSE)-SUM(D19:D20,D22:D23)))) -> -68.99 | G26: =IF(AND(B3<>"R1",B3<>"R2"),0,IF(VLOOKUP($A26,'Data Pass Through'!$A:$D,2,FALSE)=0,0,IF(SUM(G19:G20,G22:G23)<VLOOKUP($A26,'Data Pass Through'!$A:$D,2,FALSE),0,VLOOKUP($A26,'Data Pass Through'!$A:$D,2,FALSE)-SUM(G19:G20,G22:G23)))) -> -83.27 | H26: -14.28 | I26: -0.2069865198 | J26: -0.2643120265 | K26: -0.2740067714
A27: Sub-Total: Distribution (excluding pass through) | D27: =SUM(INDIRECT("D19:D"&ROW()-1)) -> 36.86 | G27: =SUM(INDIRECT("g19:g"&ROW()-1)) -> 34.99 | H27: =G27-D27 -> -1.87 | I27: -0.05073250136 | J27: 0.1110637421 | K27: 0.1151374676
A28: Smart Metering Entity Charge | B28: 1 | C28: =VLOOKUP($A28,'Data Pass Through'!$A:$D,2,FALSE) -> 0.57 | D28: =B28*C28 -> 0.57 | E28: 1 | F28: =VLOOKUP($A28,'Data Pass Through'!$A:$D,3,FALSE) -> 0.57 | G28: =E28*F28 -> 0.57 | H28: 0 | I28: 0 | J28: 0.001809269306 | K28: 0.001875631796
A29: Line Losses on Cost of Power (based on two-tier RPP prices) | B29: =B8-B4 -> 241.5 | C29: =IF(B4>B7,C13,C12) -> 0.089 | D29: =B29*C29 -> 21.4935 | E29: 241.5 | F29: =IF(B4>B7,F13,F12) -> 0.089 | G29: =E29*F29 -> 21.4935 | H29: 0 | I29: 0 | J29: 0.06822373653 | K29: 0.07072612634
A30: Line Losses on Cost of Power (based on TOU prices) | B30: =B8-B4 -> 241.5 | C30: =VLOOKUP($B$3,'Data Billing Quantities'!$A:$O,MATCH(BI_R2_High!$A15,'Data Billing Quantities'!$4:$4,0),FALSE)*C15+VLOOKUP($B$3,'Data Billing Quantities'!$A:$O,MATCH(BI_R2_High!$A16,'Data Billing Quantities'!$4:$4,0),FALSE)*C16+VLOOKUP($B$3,'Data Billing Quantities'!$A:$O,MATCH(BI_R2_High!$A17,'Data Billing Quantities'!$4:$4,0),FALSE)*C17 -> 0.08199 | D30: =B30*C30 -> 19.800585 | E30: 241.5 | F30: =VLOOKUP($B$3,'Data Billing Quantities'!$A:$O,MATCH(BI_R2_High!$A15,'Data Billing Quantities'!$4:$4,0),FALSE)*F15+VLOOKUP($B$3,'Data Billing Quantities'!$A:$O,MATCH(BI_R2_High!$A16,'Data Billing Quantities'!$4:$4,0),FALSE)*F16+VLOOKUP($B$3,'Data Billing Quantities'!$A:$O,MATCH(BI_R2_High!$A17,'Data Billing Quantities'!$4:$4,0),FALSE)*F17 -> 0.08199 | G30: =E30*F30 -> 19.800585 | H30: 0 | I30: 0 | J30: 0.06285015908 | K30: 0.06515545055
A31: Sub-Total: Distribution (based on two-tier RPP prices) | D31: =SUM(D27,D28:D29) -> 58.9235 | G31: =SUM(G27,G28:G29) -> 57.0535 | H31: -1.87 | I31: -0.03173606456 | J31: 0.1810967479 | K31: 0.1877392258
A32: Sub-Total: Distribution (based on TOU prices) | D32: =SUM(D27,D28,D30) -> 57.230585 | G32: =SUM(G27,G28,G30) -> 55.360585 | H32: -1.87 | I32: -0.03267483637 | J32: 0.1757231705 | K32: 0.18216855
A33: Retail Transmission Rate – Network Service Rate | B33: =B8 -> 2541.5 | C33: =VLOOKUP($B$3,'Data Current Rates'!$A:$BA,MATCH(BI_R2_High!$A33,CurrentHeader,0),FALSE) -> 0.0062 | D33: =B33*C33 -> 15.7573 | E33: 2541.5 | F33: =VLOOKUP($B$3,'Data Proposed Rates'!$A:$BA,MATCH(BI_R2_High!$A33,ProposedHeader,0),FALSE) -> 0.0073 | G33: =E33*F33 -> 18.55295 | H33: =G33-D33 -> 2.79565 | I33: 0.1774193548 | J33: 0.05888997011 | K33: 0.06105000515
A34: Retail Transmission Rate – Line and Transformation Connection Service Rate | B34: =B8 -> 2541.5 | C34: =VLOOKUP($B$3,'Data Current Rates'!$A:$BA,MATCH(BI_R2_High!$A34,CurrentHeader,0),FALSE) -> 0.0044 | D34: =B34*C34 -> 11.1826 | E34: 2541.5 | F34: =VLOOKUP($B$3,'Data Proposed Rates'!$A:$BA,MATCH(BI_R2_High!$A34,ProposedHeader,0),FALSE) -> 0.0066 | G34: =E34*F34 -> 16.7739 | H34: =G34-D34 -> 5.5913 | I34: 0.5 | J34: 0.05324298668 | K34: 0.05519589507
A35: Sub-Total: Retail Transmission | D35: =SUM(D33:D34) -> 26.9399 | G35: =SUM(G33:G34) -> 35.32685 | H35: =G35-D35 -> 8.38695 | I35: 0.3113207547 | J35: 0.1121329568 | K35: 0.1162459002
A36: Sub-Total: Delivery (based on two-tier RPP prices) | D36: =D31+D35 -> 85.8634 | G36: =G31+G35 -> 92.38035 | H36: =G36-D36 -> 6.51695 | I36: 0.0758990443 | J36: 0.2932297047 | K36: 0.303985126
A37: Sub-Total: Delivery (based on TOU prices) | D37: =D32+D35 -> 84.170485 | G37: =G32+G35 -> 90.687435 | H37: =G37-D37 -> 6.51695 | I37: 0.0774255964 | J37: 0.2878561273 | K37: 0.2984144502
A38: Wholesale Market Service Rate (WMS) - not including CBR | B38: =B8 -> 2541.5 | C38: =VLOOKUP($A38,'Data Pass Through'!$A:$D,2,FALSE) -> 0.003 | D38: =B38*C38 -> 7.6245 | E38: =$B$8 -> 2541.5 | F38: =VLOOKUP($A38,'Data Pass Through'!$A:$D,3,FALSE) -> 0.003 | G38: =E38*F38 -> 7.6245 | H38: 0 | I38: 0 | J38: 0.02420135758 | K38: 0.02508904321
A39: Capacity Based Recovery (CBR) - Applicable for Class B Customers | B39: =B8 -> 2541.5 | C39: =VLOOKUP($A39,'Data Pass Through'!$A:$D,2,FALSE) -> 0.0004 | D39: =B39*C39 -> 1.0166 | E39: =$B$8 -> 2541.5 | F39: =VLOOKUP($A39,'Data Pass Through'!$A:$D,3,FALSE) -> 0.0004 | G39: =E39*F39 -> 1.0166 | H39: 0 | I39: 0 | J39: 0.003226847677 | K39: 0.003345205762
A40: Rural Rate Protection Charge | B40: =B8 -> 2541.5 | C40: =VLOOKUP($A40,'Data Pass Through'!$A:$D,2,FALSE) -> 0.0005 | D40: 1.27075 | E40: 2541.5 | F40: =VLOOKUP($A40,'Data Pass Through'!$A:$D,3,FALSE) -> 0.0005 | G40: 1.27075 | H40: 0 | I40: 0 | J40: 0.004033559597 | K40: 0.004181507202
A41: Standard Supply Service – Administration Charge (if applicable) | B41: 1 | C41: =VLOOKUP($A41,'Data Pass Through'!$A:$D,2,FALSE) -> 0.25 | D41: =B41*C41 -> 0.25 | E41: 1 | F41: =VLOOKUP($A41,'Data Pass Through'!$A:$D,3,FALSE) -> 0.25 | G41: 0.25 | H41: 0 | I41: 0 | J41: 0.0007935391691 | K41: 0.0008226455247
A42: Sub-Total: Regulatory | D42: =SUM(D38:D41) -> 10.16185 | G42: =SUM(G38:G41) -> 10.16185 | H42: 0 | I42: 0 | J42: 0.03225530402 | K42: 0.0334384017
A43: Debt Retirement Charge (DRC) | B43: =B4 -> 2300 | C43: =VLOOKUP($A43,'Data Pass Through'!$A:$D,2,FALSE) -> 0 | D43: =B43*C43 -> 0 | E43: 2300 | F43: =VLOOKUP($A43,'Data Pass Through'!$A:$D,3,FALSE) -> 0 | G43: =E43*F43 -> 0 | H43: 0 | I43: N/A | J43: 0 | K43: 0
A44: Total Electricty Charge on Two-Tier RPP | D44: =SUM(D14,D27,D28,D29,D35,D42,D43) -> 293.52525 | G44: =SUM(G14,G27,G28,G29,G35,G42,G43) -> 300.0422 | H44: 6.51695 | I44: 0.02220234886 | J44: 0.9523809524
A45: HST | C45: 0.13 | D45: =D44*C45 -> 38.1582825 | F45: =C45 -> 0.13 | G45: =G44*F45 -> 39.005486 | H45: 0.8472035 | I45: 0.02220234886 | J45: 0.1238095238
A46: Total Electricity Charge on Two-Tier RPP (including HST) | D46: =SUM(D44:D45) -> 331.6835325 | G46: =SUM(G44:G45) -> 339.047686 | H46: 7.3641535 | I46: 0.02220234886 | J46: 1.076190476
A47: Ontario Rebate for Electricity Consumers (OREC) | C47: -0.08 | D47: =D44*C47 -> -23.48202 | F47: =C47 -> -0.08 | G47: =G44*F47 -> -24.003376 | H47: -0.521356 | I47: -0.02220234886 | J47: -0.07619047619
A48: Total Amount on Two-Tier RPP | D48: =SUM(D46:D47) -> 308.2015125 | G48: =SUM(G46:G47) -> 315.04431 | H48: 6.8427975 | I48: 0.02220234886 | J48: 1
A49: Total Electricty Charge on TOU (before HST) | D49: =SUM(D18,D27,D28,D30,D35,D42,D43) -> 282.909335 | G49: =SUM(G18,G27,G28,G30,G35,G42,G43) -> 289.426285 | H49: 6.51695 | I49: 0.02303547177 | K49: =G49/$G$53 -> 0.9523809524
A50: HST | C50: 0.13 | D50: =D49*C50 -> 36.77821355 | F50: =C50 -> 0.13 | G50: =G49*F50 -> 37.62541705 | H50: 0.8472035 | I50: 0.02303547177 | K50: =G50/$G$53 -> 0.1238095238
A51: Total Electricity Charge on TOU (including HST) | D51: =SUM(D49:D50) -> 319.6875486 | G51: =SUM(G49:G50) -> 327.0517021 | H51: 7.3641535 | I51: 0.02303547177 | K51: =G51/$G$53 -> 1.076190476
A52: Ontario Rebate for Electricity Consumers (OREC) | C52: -0.08 | D52: =D49*C52 -> -22.6327468 | F52: =C52 -> -0.08 | G52: =G49*F52 -> -23.1541028 | H52: -0.521356 | I52: -0.02303547177 | K52: =G52/$G$53 -> -0.07619047619
A53: Total Amount on TOU | D53: =SUM(D51:D52) -> 297.0548018 | G53: =SUM(G51:G52) -> 303.8975993 | H53: 6.8427975 | I53: 0.02303547177 | K53: =G53/$G$53 -> 1
A54: * Distribution rate protection applies to R1 and R2 customers

Sheet BI_Seas_Low
A1: 2019 Bill Impacts (Low Consumption Level) - Seasonal
A3: Rate Class | B3: =RIGHT(A1,LEN(A1)-FIND("- ",A1,1)-1) -> Seasonal
A4: Monthly Consumption (kWh) | B4: =IF(COUNTIF(A1,"*Low*")>0,VLOOKUP(B3,'Data Billing Quantities'!$A:$Z,MATCH("Low kWh",'Data Billing Quantities'!4:4,0),FALSE),IF(COUNTIF(A1,"*Typical*")>0,VLOOKUP(B3,'Data Billing Quantities'!$A:$Z,MATCH("Typical kWh",'Data Billing Quantities'!4:4,0),FALSE),IF(COUNTIF(A1,"*Average*")>0,VLOOKUP(B3,'Data Billing Quantities'!$A:$Z,MATCH("Average kWh",'Data Billing Quantities'!4:4,0),FALSE),IF(COUNTIF(A1,"*High*")>0,VLOOKUP(B3,'Data Billing Quantities'!$A:$Z,MATCH("High kWh",'Data Billing Quantities'!4:4,0),FALSE),"error")))) -> 50
A5: Peak (kW) | B5: =IF(COUNTIF(A1,"*Low*")>0,VLOOKUP(B3,'Data Billing Quantities'!$A:$Z,MATCH("Low kW",'Data Billing Quantities'!4:4,0),FALSE),IF(COUNTIF(A1,"*Typical*")>0,VLOOKUP(B3,'Data Billing Quantities'!$A:$Z,MATCH("Typical kW",'Data Billing Quantities'!4:4,0),FALSE),IF(COUNTIF(A1,"*Average*")>0,VLOOKUP(B3,'Data Billing Quantities'!$A:$Z,MATCH("Average kW",'Data Billing Quantities'!4:4,0),FALSE),IF(COUNTIF(A1,"*High*")>0,VLOOKUP(B3,'Data Billing Quantities'!$A:$Z,MATCH("High kW",'Data Billing Quantities'!4:4,0),FALSE),"error")))) -> 0
A6: Loss factor | B6: =VLOOKUP(B3,'Data Billing Quantities'!A:D,MATCH(A6,'Data Billing Quantities'!4:4,0),FALSE) -> 1.104
A7: Commodity Threshold | B7: =VLOOKUP(B3,'Data Billing Quantities'!A:D,MATCH(A7,'Data Billing Quantities'!4:4,0),FALSE) -> 600
A8: Monthly Consumption (kWh) - Uplifted | B8: =B4*B6 -> 55.2
A9: Charge determinant | B9: =VLOOKUP(B3,'Data Billing Quantities'!A:D,MATCH(A9,'Data Billing Quantities'!4:4,0),FALSE) -> kWh
B11: Volume | C11: Current Rate ($) | D11: Current Charge ($) | E11: Volume | F11: Proposed Rate ($) | G11: Proposed Charge ($) | H11: Change ($) | I11: Change (%) | J11: % of Total Bill on RPP | K11: % of Total Bill on TOU
